Workbook

Sheet Historical scenario - input
B1: Unit cost - historical | C1: Calibration period: 2014-15 to 2016-17
B2: Replacement lives - calibrated
D3: Unit cost | E3: Replacement life | G3: Method | H3: Volume | CV3: Replacement Cost (NOT depreciated)
H4: Installation date | CV4: Installation date
A5: ID | B5: Asset group | C5: Asset category | D5: $ ('000) | E5: μ | F5: σ | G5: # | H5: 2017 | I5: 2016 | J5: 2015 | K5: 2014 | L5: 2013 | M5: 2012 | N5: 2011 | O5: 2010 | P5: 2009 | Q5: 2008 | R5: 2007 | S5: 2006 | T5: 2005 | U5: 2004 | V5: 2003 | W5: 2002 | X5: 2001 | Y5: 2000 | Z5: 1999 | AA5: 1998 | AB5: 1997 | AC5: 1996 | AD5: 1995 | AE5: 1994 | AF5: 1993 | AG5: 1992 | AH5: 1991 | AI5: 1990 | AJ5: 1989 | AK5: 1988 | AL5: 1987 | AM5: 1986 | AN5: 1985 | AO5: 1984 | AP5: 1983 | AQ5: 1982 | AR5: 1981 | AS5: 1980 | AT5: 1979 | AU5: 1978 | AV5: 1977 | AW5: 1976 | AX5: 1975 | AY5: 1974 | AZ5: 1973 | BA5: 1972 | BB5: 1971 | BC5: 1970 | BD5: 1969 | BE5: 1968 | BF5: 1967 | BG5: 1966 | BH5: 1965 | BI5: 1964 | BJ5: 1963 | BK5: 1962 | BL5: 1961 | BM5: 1960 | BN5: 1959 | BO5: 1958 | BP5: 1957 | BQ5: 1956 | BR5: 1955 | BS5: 1954 | BT5: 1953 | BU5: 1952 | BV5: 1951 | BW5: 1950 | BX5: 1949 | BY5: 1948 | BZ5: 1947 | CA5: 1946 | CB5: 1945 | CC5: 1944 | CD5: 1943 | CE5: 1942 | CF5: 1941 | CG5: 1940 | CH5: 1939 | CI5: 1938 | CJ5: 1937 | CK5: 1936 | CL5: 1935 | CM5: 1934 | CN5: 1933 | CO5: 1932 | CP5: 1931 | CQ5: 1930 | CR5: 1929 | CS5: 1928 | CT5: 1927 | CV5: =H5 -> 2017 | CW5: =I5 -> 2016 | CX5: 2015 | CY5: 2014 | CZ5: 2013 | DA5: 2012 | DB5: 2011 | DC5: 2010 | DD5: 2009 | DE5: 2008 | DF5: 2007 | DG5: 2006 | DH5: 2005 | DI5: 2004 | DJ5: 2003 | DK5: 2002 | DL5: 2001 | DM5: 2000 | DN5: 1999 | DO5: 1998 | DP5: 1997 | DQ5: 1996 | DR5: 1995 | DS5: 1994 | DT5: 1993 | DU5: 1992 | DV5: 1991 | DW5: 1990 | DX5: 1989 | DY5: 1988 | DZ5: 1987 | EA5: 1986 | EB5: 1985 | EC5: 1984 | ED5: 1983 | EE5: 1982 | EF5: 1981 | EG5: 1980 | EH5: 1979 | EI5: 1978 | EJ5: 1977 | EK5: 1976 | EL5: 1975 | EM5: 1974 | EN5: 1973 | EO5: 1972 | EP5: 1971 | EQ5: 1970 | ER5: 1969 | ES5: 1968 | ET5: 1967 | EU5: 1966 | EV5: 1965 | EW5: 1964 | EX5: 1963 | EY5: 1962 | EZ5: 1961 | FA5: 1960 | FB5: 1959 | FC5: 1958 | FD5: 1957 | FE5: 1956 | FF5: 1955 | FG5: 1954 | FH5: 1953 | FI5: =BU5 -> 1952 | FJ5: 1951 | FK5: 1950 | FL5: 1949 | FM5: 1948 | FN5: 1947 | FO5: 1946 | FP5: 1945 | FQ5: 1944 | FR5: 1943 | FS5: 1942 | FT5: 1941 | FU5: 1940 | FV5: 1939 | FW5: 1938 | FX5: 1937 | FY5: 1936 | FZ5: 1935 | GA5: 1934 | GB5: 1933 | GC5: 1932 | GD5: 1931 | GE5: 1930 | GF5: 1929 | GG5: 1928 | GH5: 1927
A6: 1 | B6: OVERHEAD CONDUCTORS | C6: ˂ = 1 kv | D6: 48.87456407 | E6: 70.00167864 | F6: 8.366700583 | G6: =IFERROR(IF($B6="","",2),"") -> 2 | H6: 65.000473 | I6: 23.3488603 | J6: 99.39904192 | K6: 72.25351676 | L6: 105.4538059 | M6: 82.24387732 | N6: 69.32704751 | O6: 73.96903322 | P6: 78.51010621 | Q6: 320.1961015 | R6: 355.0109944 | S6: 300.5181186 | T6: 219.1824559 | U6: 371.0561189 | V6: 219.5861068 | W6: 233.4111512 | X6: 330.0855494 | Y6: 359.0475037 | Z6: 347.8461904 | AA6: 361.570322 | AB6: 448.9607487 | AC6: 467.0241279 | AD6: 453.6027345 | AE6: 434.4293152 | AF6: 457.941982 | AG6: 364.2949658 | AH6: 427.0626857 | AI6: 185.2661425 | AJ6: 181.6140535 | AK6: 254.9034329 | AL6: 272.4210802 | AM6: 261.836212 | AN6: 219.991938 | AO6: 212.8734594 | AP6: 206.0644799 | AQ6: 202.4742907 | AR6: 211.3878639 | AS6: 201.2362944 | AT6: 171.7100833 | AU6: 153.8829369 | AV6: 124.8664081 | AW6: 108.4855674 | AX6: 172.6222079 | AY6: 145.8417749 | AZ6: 123.6363325 | BA6: 111.0272119 | BB6: 85.47421542 | BC6: 149.8599862 | BD6: 173.0437711 | BE6: 197.5258481 | BF6: 222.0079251 | BG6: 244.4498289 | BH6: 260.400273 | BI6: 266.5207922 | BJ6: 258.1746296 | BK6: 240.1840125 | BL6: 227.0156226 | BM6: 217.1856978 | BN6: 192.3326803 | BO6: 164.6976086 | BP6: 127.0471417 | BQ6: 96.25907527 | BR6: 71.77699832 | BS6: 53.41544061 | BT6: 39.31969934 | BU6: 28.37695282 | BV6: 20.58720107 | BW6: 0 | BX6: 0 | BY6: 0 | BZ6: 0 | CA6: 0 | CB6: 0 | CC6: 0 | CD6: 0 | CE6: 0 | CF6: 0 | CG6: 0 | CH6: 0 | CI6: 0 | CJ6: 0 | CK6: 0 | CL6: 0 | CM6: 0 | CN6: 0 | CO6: 0 | CP6: 0 | CQ6: 0 | CR6: 0 | CS6: 0 | CT6: 0 | CV6: =IFERROR($D6*H6,"") -> 3176.869782 | CW6: =IFERROR($D6*I6,"") -> 1141.165369 | CX6: =IFERROR($D6*J6,"") -> 4858.084843 | CY6: =IFERROR($D6*K6,"") -> 3531.359134 | CZ6: =IFERROR($D6*L6,"") -> 5154.008793 | DA6: =IFERROR($D6*M6,"") -> 4019.633652 | DB6: =IFERROR($D6*N6,"") -> 3388.329226 | DC6: =IFERROR($D6*O6,"") -> 3615.204254 | DD6: =IFERROR($D6*P6,"") -> 3837.147216 | DE6: =IFERROR($D6*Q6,"") -> 15649.44488 | DF6: =IFERROR($D6*R6,"") -> 17351.00759 | DG6: =IFERROR($D6*S6,"") -> 14687.69204 | DH6: =IFERROR($D6*T6,"") -> 10712.44698 | DI6: =IFERROR($D6*U6,"") -> 18135.20606 | DJ6: =IFERROR($D6*V6,"") -> 10732.17525 | DK6: =IFERROR($D6*W6,"") -> 11407.86827 | DL6: =IFERROR($D6*X6,"") -> 16132.78733 | DM6: =IFERROR($D6*Y6,"") -> 17548.29023 | DN6: =IFERROR($D6*Z6,"") -> 17000.83092 | DO6: =IFERROR($D6*AA6,"") -> 17671.59187 | DP6: =IFERROR($D6*AB6,"") -> 21942.76088 | DQ6: =IFERROR($D6*AC6,"") -> 22825.60066 | DR6: =IFERROR($D6*AD6,"") -> 22169.63591 | DS6: =IFERROR($D6*AE6,"") -> 21232.5434 | DT6: =IFERROR($D6*AF6,"") -> 22381.71474 | DU6: =IFERROR($D6*AG6,"") -> 17804.75765 | DV6: =IFERROR($D6*AH6,"") -> 20872.5026 | DW6: =IFERROR($D6*AI6,"") -> 9054.801951 | DX6: =IFERROR($D6*AJ6,"") -> 8876.307693 | DY6: =IFERROR($D6*AK6,"") -> 12458.29416 | DZ6: =IFERROR($D6*AL6,"") -> 13314.46154 | EA6: =IFERROR($D6*AM6,"") -> 12797.13072 | EB6: =IFERROR($D6*AN6,"") -> 10752.01007 | EC6: =IFERROR($D6*AO6,"") -> 10404.09753 | ED6: =IFERROR($D6*AP6,"") -> 10071.31163 | EE6: =IFERROR($D6*AQ6,"") -> 9895.842694 | EF6: =IFERROR($D6*AR6,"") -> 10331.4897 | EG6: =IFERROR($D6*AS6,"") -> 9835.336165 | EH6: =IFERROR($D6*AT6,"") -> 8392.255467 | EI6: =IFERROR($D6*AU6,"") -> 7520.96146 | EJ6: =IFERROR($D6*AV6,"") -> 6102.791262 | EK6: =IFERROR($D6*AW6,"") -> 5302.184816 | EL6: =IFERROR($D6*AX6,"") -> 8436.83516 | EM6: =IFERROR($D6*AY6,"") -> 7127.95317 | EN6: =IFERROR($D6*AZ6,"") -> 6042.671854 | EO6: =IFERROR($D6*BA6,"") -> 5426.406583 | EP6: =IFERROR($D6*BB6,"") -> 4177.515018 | EQ6: =IFERROR($D6*BC6,"") -> 7324.341496 | ER6: =IFERROR($D6*BD6,"") -> 8457.438881 | ES6: =IFERROR($D6*BE6,"") -> 9653.989719 | ET6: =IFERROR($D6*BF6,"") -> 10850.54056 | EU6: =IFERROR($D6*BG6,"") -> 11947.37883 | EV6: =IFERROR($D6*BH6,"") -> 12726.94983 | EW6: =IFERROR($D6*BI6,"") -> 13026.08754 | EX6: =IFERROR($D6*BJ6,"") -> 12618.17248 | EY6: =IFERROR($D6*BK6,"") -> 11738.88891 | EZ6: =IFERROR($D6*BL6,"") -> 11095.28959 | FA6: =IFERROR($D6*BM6,"") -> 10614.8563 | FB6: =IFERROR($D6*BN6,"") -> 9400.175905 | FC6: =IFERROR($D6*BO6,"") -> 8049.523822 | FD6: =IFERROR($D6*BP6,"") -> 6209.373669 | FE6: =IFERROR($D6*BQ6,"") -> 4704.620342 | FF6: =IFERROR($D6*BR6,"") -> 3508.069503 | FG6: =IFERROR($D6*BS6,"") -> 2610.656375 | FH6: =IFERROR($D6*BT6,"") -> 1921.733165 | FI6: =IFERROR($D6*BU6,"") -> 1386.911199 | FJ6: =IFERROR($D6*BV6,"") -> 1006.190478 | FK6: =IFERROR($D6*BW6,"") -> 0 | FL6: =IFERROR($D6*BX6,"") -> 0 | FM6: =IFERROR($D6*BY6,"") -> 0 | FN6: =IFERROR($D6*BZ6,"") -> 0 | FO6: =IFERROR($D6*CA6,"") -> 0 | FP6: =IFERROR($D6*CB6,"") -> 0 | FQ6: =IFERROR($D6*CC6,"") -> 0 | FR6: =IFERROR($D6*CD6,"") -> 0 | FS6: =IFERROR($D6*CE6,"") -> 0 | FT6: =IFERROR($D6*CF6,"") -> 0 | FU6: =IFERROR($D6*CG6,"") -> 0 | FV6: =IFERROR($D6*CH6,"") -> 0 | FW6: =IFERROR($D6*CI6,"") -> 0 | FX6: =IFERROR($D6*CJ6,"") -> 0 | FY6: =IFERROR($D6*CK6,"") -> 0 | FZ6: =IFERROR($D6*CL6,"") -> 0 | GA6: =IFERROR($D6*CM6,"") -> 0 | GB6: =IFERROR($D6*CN6,"") -> 0 | GC6: =IFERROR($D6*CO6,"") -> 0 | GD6: =IFERROR($D6*CP6,"") -> 0 | GE6: =IFERROR($D6*CQ6,"") -> 0 | GF6: =IFERROR($D6*CR6,"") -> 0 | GG6: =IFERROR($D6*CS6,"") -> 0 | GH6: =IFERROR($D6*CT6,"") -> 0
A7: 1 | B7: OVERHEAD CONDUCTORS | C7: ˃ 11 kv & < = 22 kv ; swer | D7: 34.43999071 | E7: 58.50978825 | F7: 7.649169122 | G7: =IFERROR(IF($B7="","",2),"") -> 2 | H7: 1.9 | I7: 1.34620318 | J7: 0 | K7: 0 | L7: 0 | M7: 0 | N7: 0 | O7: 0 | P7: 0 | Q7: 0.98893198 | R7: 1.97786397 | S7: 1.97786397 | T7: 1.9708596 | U7: 16.4110109 | V7: 0.42346579 | W7: 1.00920113 | X7: 5.04600567 | Y7: 4.03680454 | Z7: 1.00920113 | AA7: 105.1587583 | AB7: 0 | AC7: 0 | AD7: 6.05520681 | AE7: 28.459472 | AF7: 12.31225384 | AG7: 4.64232522 | AH7: 4.23864476 | AI7: 13.92697566 | AJ7: 51.87293834 | AK7: 30.47787427 | AL7: 26.84475019 | AM7: 14.73433657 | AN7: 27.04659041 | AO7: 15.7435377 | AP7: 4.64232522 | AQ7: 23.2116261 | AR7: 2.01840227 | AS7: 23.2116261 | AT7: 1.14860105 | AU7: 4.59440421 | AV7: 0 | AW7: 12.63461157 | AX7: 0 | AY7: 6.89160631 | AZ7: 0 | BA7: 9.18880842 | BB7: 0 | BC7: 0 | BD7: 0 | BE7: 4.6731092 | BF7: 0 | BG7: 0 | BH7: 0 | BI7: 11.48601052 | BJ7: 0 | BK7: 0 | BL7: 0 | BM7: 0 | BN7: 0 | BO7: 0 | BP7: 0 | BQ7: 0 | BR7: 0 | BS7: 0 | BT7: 0 | BU7: 0 | BV7: 0 | BW7: 0 | BX7: 0 | BY7: 0 | BZ7: 0 | CA7: 0 | CB7: 0 | CC7: 0 | CD7: 0 | CE7: 0 | CF7: 0 | CG7: 0 | CH7: 0 | CI7: 0 | CJ7: 0 | CK7: 0 | CL7: 0 | CM7: 0 | CN7: 0 | CO7: 0 | CP7: 0 | CQ7: 0 | CR7: 0 | CS7: 0 | CT7: 0 | CV7: =IFERROR($D7*H7,"") -> 65.43598235 | CW7: 46.36322501 | CX7: 0 | CY7: 0 | CZ7: 0 | DA7: 0 | DB7: 0 | DC7: 0 | DD7: 0 | DE7: 34.0588082 | DF7: 68.11761675 | DG7: 68.11761675 | DH7: 67.87638631 | DI7: 565.1950629 | DJ7: 14.58415787 | DK7: 34.75687754 | DL7: 173.7843884 | DM7: 139.0275109 | DN7: 34.75687754 | DO7: 3621.666657 | DP7: 0 | DQ7: 0 | DR7: 208.5412663 | DS7: 980.1439513 | DT7: 424.0339079 | DU7: 159.8816374 | DV7: 145.9788862 | DW7: 479.6449123 | DX7: 1786.503514 | DY7: 1049.657707 | DZ7: 924.5329471 | EA7: 507.4504146 | EB7: 931.4843224 | EC7: 542.2072921 | ED7: 159.8816374 | EE7: 799.4081872 | EF7: 69.51375543 | EG7: 799.4081872 | EH7: 39.55780949 | EI7: 158.2312383 | EJ7: 0 | EK7: 435.1359051 | EL7: 0 | EM7: 237.3468573 | EN7: 0 | EO7: 316.4624766 | EP7: 0 | EQ7: 0 | ER7: 0 | ES7: 160.9418374 | ET7: 0 | EU7: 0 | EV7: 0 | EW7: 395.5780956 | EX7: 0 | EY7: 0 | EZ7: 0 | FA7: 0 | FB7: 0 | FC7: 0 | FD7: 0 | FE7: 0 | FF7: 0 | FG7: 0 | FH7: 0 | FI7: 0 | FJ7: 0 | FK7: 0 | FL7: 0 | FM7: 0 | FN7: 0 | FO7: 0 | FP7: 0 | FQ7: 0 | FR7: 0 | FS7: 0 | FT7: 0 | FU7: 0 | FV7: 0 | FW7: 0 | FX7: 0 | FY7: 0 | FZ7: 0 | GA7: 0 | GB7: 0 | GC7: 0 | GD7: 0 | GE7: 0 | GF7: 0 | GG7: 0 | GH7: 0
A8: 1 | B8: OVERHEAD CONDUCTORS | C8: > 1 kv & < = 11 kv | D8: 108.4370421 | E8: 62.21995958 | F8: 7.887962955 | G8: 2 | H8: 154.3116171 | I8: 117.9793482 | J8: 142.6406405 | K8: 202.3148626 | L8: 177.9318471 | M8: 140.0098415 | N8: 141.0364948 | O8: 144.9506104 | P8: 168.2428068 | Q8: 258.4820264 | R8: 246.6840916 | S8: 221.051285 | T8: 203.7825105 | U8: 188.583375 | V8: 166.243627 | W8: 139.4301387 | X8: 181.0759728 | Y8: 197.1174304 | Z8: 192.4333248 | AA8: 198.3365811 | AB8: 247.1026121 | AC8: 259.1016223 | AD8: 245.6909638 | AE8: 252.2358785 | AF8: 256.7274866 | AG8: 199.8123952 | AH8: 234.269446 | AI8: 122.9875177 | AJ8: 120.6993778 | AK8: 169.3700195 | AL8: 181.0013972 | AM8: 173.9939688 | AN8: 146.1549338 | AO8: 141.4833149 | AP8: 136.9070352 | AQ8: 134.5235562 | AR8: 140.4822537 | AS8: 137.5732811 | AT8: 134.7846335 | AU8: 123.6300432 | AV8: 123.8269227 | AW8: 132.6717029 | AX8: 160.1327217 | AY8: 170.8733311 | AZ8: 161.1091408 | BA8: 147.4392743 | BB8: 126.9344745 | BC8: 119.440507 | BD8: 137.3565831 | BE8: 156.8083228 | BF8: 176.2600625 | BG8: 194.3467678 | BH8: 206.8027064 | BI8: 211.5803267 | BJ8: 205.0964135 | BK8: 190.5929233 | BL8: 180.1845363 | BM8: 172.3355887 | BN8: 152.7132197 | BO8: 130.5314112 | BP8: 101.0125431 | BQ8: 76.44192448 | BR8: 56.99018477 | BS8: 42.31606534 | BT8: 31.22516111 | BU8: 22.52306703 | BV8: 16.38041239 | BW8: 0 | BX8: 0 | BY8: 0 | BZ8: 0 | CA8: 0 | CB8: 0 | CC8: 0 | CD8: 0 | CE8: 0 | CF8: 0 | CG8: 0 | CH8: 0 | CI8: 0 | CJ8: 0 | CK8: 0 | CL8: 0 | CM8: 0 | CN8: 0 | CO8: 0 | CP8: 0 | CQ8: 0 | CR8: 0 | CS8: 0 | CT8: 0 | CV8: 16733.09532 | CW8: 12793.33154 | CX8: 15467.52914 | CY8: 21938.42527 | CZ8: 19294.4032 | DA8: 15182.25308 | DB8: 15293.58032 | DC8: 15718.01544 | DD8: 18243.75232 | DE8: 28029.02638 | DF8: 26749.69323 | DG8: 23970.1475 | DH8: 22097.57267 | DI8: 20449.42337 | DJ8: 18026.96718 | DK8: 15119.39182 | DL8: 19635.34289 | DM8: 21374.8311 | DN8: 20866.90054 | DO8: 21507.0322 | DP8: 26795.07635 | DQ8: 28096.21353 | DR8: 26642.00139 | DS8: 27351.71258 | DT8: 27838.76928 | DU8: 21667.06511 | DV8: 25403.48578 | DW8: 13336.40263 | DX8: 13088.28351 | DY8: 18365.98394 | DZ8: 19627.25612 | EA8: 18867.39132 | EB8: 15848.60871 | EC8: 15342.03218 | ED8: 14845.79394 | EE8: 14587.33652 | EF8: 15233.48006 | EG8: 14918.03967 | EH8: 14615.64698 | EI8: 13406.07619 | EJ8: 13427.42523 | EK8: 14386.52703 | EL8: 17364.31869 | EM8: 18528.9986 | EN8: 17470.19868 | EO8: 15987.87879 | EP8: 13764.39896 | EQ8: 12951.77529 | ER8: 14894.54158 | ES8: 17003.8307 | ET8: 19113.11982 | EU8: 21074.38865 | EV8: 22425.07378 | EW8: 22943.1448 | EX8: 22240.04842 | EY8: 20667.33285 | EZ8: 19538.67815 | FA8: 18687.56149 | FB8: 16559.76983 | FC8: 14154.44014 | FD8: 10953.50139 | FE8: 8289.136183 | FF8: 6179.847065 | FG8: 4588.628959 | FH8: 3385.96411 | FI8: 2442.334768 | FJ8: 1776.243468 | FK8: 0 | FL8: 0 | FM8: 0 | FN8: 0 | FO8: 0 | FP8: 0 | FQ8: 0 | FR8: 0 | FS8: 0 | FT8: 0 | FU8: 0 | FV8: 0 | FW8: 0 | FX8: 0 | FY8: 0 | FZ8: 0 | GA8: 0 | GB8: 0 | GC8: 0 | GD8: 0 | GE8: 0 | GF8: 0 | GG8: 0 | GH8: 0
A9: 1 | B9: OVERHEAD CONDUCTORS | C9: > 22 kv & < = 66 kv | D9: 476.0488648 | E9: 60.23455613 | F9: 7.761092458 | G9: 2 | H9: 12.04684196 | I9: 9.71013803 | J9: 17.56846595 | K9: 8.86192189 | L9: 17.75576138 | M9: 33.62416528 | N9: 46.92534796 | O9: 18.85782702 | P9: 34.35879389 | Q9: 21.27167825 | R9: 17.22799442 | S9: 20.25826682 | T9: 18.26484875 | U9: 6.08828291 | V9: 9.85942418 | W9: 2.08252636 | X9: 52.57221655 | Y9: 31.90562547 | Z9: 15.24541456 | AA9: 15.83380832 | AB9: 14.57768453 | AC9: 74.89161278 | AD9: 14.49834826 | AE9: 31.23789544 | AF9: 0 | AG9: 4.16505272 | AH9: 47.66009753 | AI9: 32.49401923 | AJ9: 34.49720932 | AK9: 8.33010545 | AL9: 16.6602109 | AM9: 57.83472053 | AN9: 68.16801607 | AO9: 90.56674857 | AP9: 119.0543876 | AQ9: 112.648136 | AR9: 106.050172 | AS9: 20.82526362 | AT9: 32.61592187 | AU9: 28.53893164 | AV9: 22.7849248 | AW9: 96.94383418 | AX9: 29.55223518 | AY9: 19.70149012 | AZ9: 28.138729 | BA9: 86.68655653 | BB9: 59.10447036 | BC9: 41.37312925 | BD9: 108.3581957 | BE9: 55.7958703 | BF9: 25.61193715 | BG9: 17.27924043 | BH9: 0 | BI9: 59.84248041 | BJ9: 0 | BK9: 0 | BL9: 0 | BM9: 2.60184697 | BN9: 0 | BO9: 0 | BP9: 0 | BQ9: 13.15164439 | BR9: 0 | BS9: 0 | BT9: 0 | BU9: 0 | BV9: 0 | BW9: 0 | BX9: 0 | BY9: 0 | BZ9: 0 | CA9: 0 | CB9: 0 | CC9: 0 | CD9: 0 | CE9: 0 | CF9: 0 | CG9: 0 | CH9: 0 | CI9: 0 | CJ9: 0 | CK9: 0 | CL9: 0 | CM9: 0 | CN9: 0 | CO9: 0 | CP9: 0 | CQ9: 0 | CR9: 0 | CS9: 0 | CT9: 0 | CV9: 5734.885439 | CW9: 4622.500186 | CX9: 8363.448272 | CY9: 4218.707856 | CZ9: 8452.610049 | DA9: 16006.74571 | DB9: 22338.75863 | DC9: 8977.247145 | DD9: 16356.46483 | DE9: 10126.35828 | DF9: 8201.367186 | DG9: 9643.924922 | DH9: 8694.960513 | DI9: 2898.320168 | DJ9: 4693.567688 | DK9: 991.3843096 | DL9: 25026.94401 | DM9: 15188.63679 | DN9: 7257.562295 | DO9: 7537.666476 | DP9: 6939.690172 | DQ9: 35652.06725 | DR9: 6901.922231 | DS9: 14870.76466 | DT9: 0 | DU9: 1982.768619 | DV9: 22688.53533 | DW9: 15468.74097 | DX9: 16422.35734 | DY9: 3965.537243 | DZ9: 7931.074486 | EA9: 27532.15305 | EB9: 32451.30667 | EC9: 43114.19785 | ED9: 56675.70608 | EE9: 53626.01726 | EF9: 50485.06397 | EG9: 9913.843105 | EH9: 15526.77258 | EI9: 13585.92601 | EJ9: 10846.73759 | EK9: 46150.00221 | EL9: 14068.30801 | EM9: 9378.872006 | EN9: 13395.41 | EO9: 41267.03683 | EP9: 28136.61602 | EQ9: 19695.63121 | ER9: 51583.79604 | ES9: 26561.56072 | ET9: 12192.53361 | EU9: 8225.762791 | EV9: 0 | EW9: 28487.94487 | EX9: 0 | EY9: 0 | EZ9: 0 | FA9: 1238.606296 | FB9: 0 | FC9: 0 | FD9: 0 | FE9: 6260.825382 | FF9: 0 | FG9: 0 | FH9: 0 | FI9: 0 | FJ9: 0 | FK9: 0 | FL9: 0 | FM9: 0 | FN9: 0 | FO9: 0 | FP9: 0 | FQ9: 0 | FR9: 0 | FS9: 0 | FT9: 0 | FU9: 0 | FV9: 0 | FW9: 0 | FX9: 0 | FY9: 0 | FZ9: 0 | GA9: 0 | GB9: 0 | GC9: 0 | GD9: 0 | GE9: 0 | GF9: 0 | GG9: 0 | GH9: 0
A10: 1 | B10: OVERHEAD CONDUCTORS | C10: > 66 kv & < = 132 kv | D10: 875.0487218 | E10: 72.54653243 | F10: 8.517425223 | G10: 2 | H10: 8.42529815 | I10: 6.61530042 | J10: 8.8705063 | K10: 9.79008772 | L10: 3.93351739 | M10: 15.99630405 | N10: 39.59740839 | O10: 3.08008883 | P10: 4.84013959 | Q10: 34.4873239 | R10: 46.6226323 | S10: 44.0549781 | T10: 41.17447524 | U10: 32.11485559 | V10: 0 | W10: 0 | X10: 0 | Y10: 0 | Z10: 0 | AA10: 1.37635095 | AB10: 6.88422475 | AC10: 4.93192425 | AD10: 4.93192425 | AE10: 83.26923272 | AF10: 0 | AG10: 0 | AH10: 1.8351346 | AI10: 12.61655041 | AJ10: 0 | AK10: 153.3484355 | AL10: 0 | AM10: 1.03226321 | AN10: 1.51857899 | AO10: 2.06452643 | AP10: 0.11469591 | AQ10: 0 | AR10: 52.82802397 | AS10: 2.42972638 | AT10: 0 | AU10: 0 | AV10: 1.45862754 | AW10: 2.42369321 | AX10: 0 | AY10: 0 | AZ10: 0 | BA10: 0 | BB10: 19.53291837 | BC10: 39.86915295 | BD10: 43.07137398 | BE10: 82.46107733 | BF10: 0 | BG10: 0 | BH10: 125.6797307 | BI10: 132.101128 | BJ10: 0 | BK10: 11.96074588 | BL10: 0 | BM10: 0 | BN10: 9.14073262 | BO10: 0 | BP10: 0 | BQ10: 0 | BR10: 0 | BS10: 28.78358359 | BT10: 26.83874686 | BU10: 0 | BV10: 0 | BW10: 68.06928553 | BX10: 0 | BY10: 0 | BZ10: 0 | CA10: 0 | CB10: 0 | CC10: 0 | CD10: 0 | CE10: 0 | CF10: 0 | CG10: 0 | CH10: 0 | CI10: 0 | CJ10: 0 | CK10: 0 | CL10: 0 | CM10: 0 | CN10: 0 | CO10: 0 | CP10: 0 | CQ10: 0 | CR10: 0 | CS10: 0 | CT10: 0 | CV10: 7372.546377 | CW10: 5788.710177 | CX10: 7762.125199 | CY10: 8566.803745 | CZ10: 3442.019364 | DA10: 13997.54541 | DB10: 34649.6616 | DC10: 2695.227794 | DD10: 4235.357961 | DE10: 30178.0887 | DF10: 40797.0748 | DG10: 38550.25227 | DH10: 36029.67193 | DI10: 28102.06333 | DJ10: 0 | DK10: 0 | DL10: 0 | DM10: 0 | DN10: 0 | DO10: 1204.37414 | DP10: 6024.032068 | DQ10: 4315.674011 | DR10: 4315.674011 | DS10: 72864.63565 | DT10: 0 | DU10: 0 | DV10: 1605.832186 | DW10: 11040.09631 | DX10: 0 | DY10: 134187.3524 | DZ10: 0 | EA10: 903.2806024 | EB10: 1328.830604 | EC10: 1806.561214 | ED10: 100.3645094 | EE10: 0 | EF10: 46227.09485 | EG10: 2126.128963 | EH10: 0 | EI10: 0 | EJ10: 1276.370164 | EK10: 2120.849645 | EL10: 0 | EM10: 0 | EN10: 0 | EO10: 0 | EP10: 17092.25525 | EQ10: 34887.45133 | ER10: 37689.55075 | ES10: 72157.46031 | ET10: 0 | EU10: 0 | EV10: 109975.8877 | EW10: 115594.9232 | EX10: 0 | EY10: 10466.23539 | EZ10: 0 | FA10: 0 | FB10: 7998.586395 | FC10: 0 | FD10: 0 | FE10: 0 | FF10: 0 | FG10: 25187.03803 | FH10: 23485.21113 | FI10: 0 | FJ10: 0 | FK10: 59563.94129 | FL10: 0 | FM10: 0 | FN10: 0 | FO10: 0 | FP10: 0 | FQ10: 0 | FR10: 0 | FS10: 0 | FT10: 0 | FU10: 0 | FV10: 0 | FW10: 0 | FX10: 0 | FY10: 0 | FZ10: 0 | GA10: 0 | GB10: 0 | GC10: 0 | GD10: 0 | GE10: 0 | GF10: 0 | GG10: 0 | GH10: 0
A11: 2 | B11: POLES | C11: ˂ = 1 kv ; concrete | D11: 7.831813843 | E11: 29.0567635 | F11: 5.39043259 | G11: 2 | H11: 69 | I11: 138 | J11: 121 | K11: 161 | L11: 306 | M11: 291 | N11: 344 | O11: 460 | P11: 443 | Q11: 260 | R11: 172 | S11: 122 | T11: 425 | U11: 43 | V11: 0 | W11: 0 | X11: 0 | Y11: 4 | Z11: 8 | AA11: 0 | AB11: 112 | AC11: 156 | AD11: 286 | AE11: 192 | AF11: 143 | AG11: 0 | AH11: 2 | AI11: 0 | AJ11: 0 | AK11: 0 | AL11: 0 | AM11: 0 | AN11: 0 | AO11: 0 | AP11: 0 | AQ11: 0 | AR11: 0 | AS11: 0 | AT11: 0 | AU11: 0 | AV11: 0 | AW11: 0 | AX11: 0 | AY11: 0 | AZ11: 0 | BA11: 0 | BB11: 0 | BC11: 0 | BD11: 0 | BE11: 0 | BF11: 0 | BG11: 0 | BH11: 0 | BI11: 0 | BJ11: 0 | BK11: 0 | BL11: 0 | BM11: 0 | BN11: 0 | BO11: 0 | BP11: 0 | BQ11: 0 | BR11: 0 | BS11: 0 | BT11: 0 | BU11: 0 | BV11: 0 | BW11: 0 | BX11: 0 | BY11: 0 | BZ11: 0 | CA11: 0 | CB11: 0 | CC11: 0 | CD11: 0 | CE11: 0 | CF11: 0 | CG11: 0 | CH11: 0 | CI11: 0 | CJ11: 0 | CK11: 0 | CL11: 0 | CM11: 0 | CN11: 0 | CO11: 0 | CP11: 0 | CQ11: 0 | CR11: 0 | CS11: 0 | CT11: 0 | CV11: 540.3951552 | CW11: 1080.79031 | CX11: 947.649475 | CY11: 1260.922029 | CZ11: 2396.535036 | DA11: 2279.057828 | DB11: 2694.143962 | DC11: 3602.634368 | DD11: 3469.493532 | DE11: 2036.271599 | DF11: 1347.071981 | DG11: 955.4812888 | DH11: 3328.520883 | DI11: 336.7679952 | DJ11: 0 | DK11: 0 | DL11: 0 | DM11: 31.32725537 | DN11: 62.65451074 | DO11: 0 | DP11: 877.1631504 | DQ11: 1221.762959 | DR11: 2239.898759 | DS11: 1503.708258 | DT11: 1119.94938 | DU11: 0 | DV11: 15.66362769 | DW11: 0 | DX11: 0 | DY11: 0 | DZ11: 0 | EA11: 0 | EB11: 0 | EC11: 0 | ED11: 0 | EE11: 0 | EF11: 0 | EG11: 0 | EH11: 0 | EI11: 0 | EJ11: 0 | EK11: 0 | EL11: 0 | EM11: 0 | EN11: 0 | EO11: 0 | EP11: 0 | EQ11: 0 | ER11: 0 | ES11: 0 | ET11: 0 | EU11: 0 | EV11: 0 | EW11: 0 | EX11: 0 | EY11: 0 | EZ11: 0 | FA11: 0 | FB11: 0 | FC11: 0 | FD11: 0 | FE11: 0 | FF11: 0 | FG11: 0 | FH11: 0 | FI11: 0 | FJ11: 0 | FK11: 0 | FL11: 0 | FM11: 0 | FN11: 0 | FO11: 0 | FP11: 0 | FQ11: 0 | FR11: 0 | FS11: 0 | FT11: 0 | FU11: 0 | FV11: 0 | FW11: 0 | FX11: 0 | FY11: 0 | FZ11: 0 | GA11: 0 | GB11: 0 | GC11: 0 | GD11: 0 | GE11: 0 | GF11: 0 | GG11: 0 | GH11: 0
A12: 2 | B12: POLES | C12: ˂ = 1 kv ; steel | D12: 6.797157944 | E12: 27.3111012 | F12: 5.226002411 | G12: 2 | H12: 45 | I12: 108 | J12: 0 | K12: 14 | L12: 178 | M12: 117 | N12: 14 | O12: 42 | P12: 89 | Q12: 19 | R12: 9 | S12: 19 | T12: 150 | U12: 459 | V12: 28 | W12: 0 | X12: 0 | Y12: 0 | Z12: 0 | AA12: 0 | AB12: 9 | AC12: 0 | AD12: 9 | AE12: 28 | AF12: 14 | AG12: 5 | AH12: 0 | AI12: 5 | AJ12: 0 | AK12: 1 | AL12: 0 | AM12: 0 | AN12: 0 | AO12: 0 | AP12: 0 | AQ12: 0 | AR12: 0 | AS12: 0 | AT12: 0 | AU12: 0 | AV12: 0 | AW12: 0 | AX12: 0 | AY12: 0 | AZ12: 0 | BA12: 0 | BB12: 0 | BC12: 0 | BD12: 0 | BE12: 0 | BF12: 0 | BG12: 0 | BH12: 0 | BI12: 0 | BJ12: 0 | BK12: 0 | BL12: 0 | BM12: 0 | BN12: 0 | BO12: 0 | BP12: 0 | BQ12: 0 | BR12: 0 | BS12: 0 | BT12: 0 | BU12: 0 | BV12: 0 | BW12: 0 | BX12: 0 | BY12: 0 | BZ12: 0 | CA12: 0 | CB12: 0 | CC12: 0 | CD12: 0 | CE12: 0 | CF12: 0 | CG12: 0 | CH12: 0 | CI12: 0 | CJ12: 0 | CK12: 0 | CL12: 0 | CM12: 0 | CN12: 0 | CO12: 0 | CP12: 0 | CQ12: 0 | CR12: 0 | CS12: 0 | CT12: 0 | CV12: 305.8721075 | CW12: 734.093058 | CX12: 0 | CY12: 95.16021122 | CZ12: 1209.894114 | DA12: 795.2674795 | DB12: 95.16021122 | DC12: 285.4806337 | DD12: 604.9470571 | DE12: 129.1460009 | DF12: 61.1744215 | DG12: 129.1460009 | DH12: 1019.573692 | DI12: 3119.895496 | DJ12: 190.3204224 | DK12: 0 | DL12: 0 | DM12: 0 | DN12: 0 | DO12: 0 | DP12: 61.1744215 | DQ12: 0 | DR12: 61.1744215 | DS12: 190.3204224 | DT12: 95.16021122 | DU12: 33.98578972 | DV12: 0 | DW12: 33.98578972 | DX12: 0 | DY12: 6.797157944 | DZ12: 0 | EA12: 0 | EB12: 0 | EC12: 0 | ED12: 0 | EE12: 0 | EF12: 0 | EG12: 0 | EH12: 0 | EI12: 0 | EJ12: 0 | EK12: 0 | EL12: 0 | EM12: 0 | EN12: 0 | EO12: 0 | EP12: 0 | EQ12: 0 | ER12: 0 | ES12: 0 | ET12: 0 | EU12: 0 | EV12: 0 | EW12: 0 | EX12: 0 | EY12: 0 | EZ12: 0 | FA12: 0 | FB12: 0 | FC12: 0 | FD12: 0 | FE12: 0 | FF12: 0 | FG12: 0 | FH12: 0 | FI12: 0 | FJ12: 0 | FK12: 0 | FL12: 0 | FM12: 0 | FN12: 0 | FO12: 0 | FP12: 0 | FQ12: 0 | FR12: 0 | FS12: 0 | FT12: 0 | FU12: 0 | FV12: 0 | FW12: 0 | FX12: 0 | FY12: 0 | FZ12: 0 | GA12: 0 | GB12: 0 | GC12: 0 | GD12: 0 | GE12: 0 | GF12: 0 | GG12: 0 | GH12: 0
A13: 2 | B13: POLES | C13: ˂ = 1 kv ; wood | D13: 3.8481996 | E13: 65.06956246 | F13: 8.066570675 | G13: 2 | H13: 847 | I13: 1168 | J13: 1214 | K13: 835 | L13: 1132 | M13: 857 | N13: 688 | O13: 669 | P13: 726 | Q13: 2857 | R13: 2362 | S13: 2802 | T13: 2543 | U13: 3130 | V13: 2836 | W13: 3023 | X13: 3232 | Y13: 3512 | Z13: 3398 | AA13: 3540 | AB13: 2839 | AC13: 2931 | AD13: 2765 | AE13: 2691 | AF13: 2877 | AG13: 2359 | AH13: 2765 | AI13: 3910 | AJ13: 3835 | AK13: 4068 | AL13: 4349 | AM13: 4180 | AN13: 3512 | AO13: 3398 | AP13: 3289 | AQ13: 3232 | AR13: 3374 | AS13: 3212 | AT13: 3626 | AU13: 3249 | AV13: 2720 | AW13: 2472 | AX13: 2248 | AY13: 2044 | AZ13: 1859 | BA13: 1689 | BB13: 1536 | BC13: 1396 | BD13: 1269 | BE13: 1154 | BF13: 1049 | BG13: 954 | BH13: 866 | BI13: 787 | BJ13: 716 | BK13: 651 | BL13: 591 | BM13: 537 | BN13: 488 | BO13: 443 | BP13: 369 | BQ13: 308 | BR13: 257 | BS13: 214 | BT13: 179 | BU13: 149 | BV13: 124 | BW13: 0 | BX13: 0 | BY13: 0 | BZ13: 0 | CA13: 0 | CB13: 0 | CC13: 0 | CD13: 0 | CE13: 0 | CF13: 0 | CG13: 0 | CH13: 0 | CI13: 0 | CJ13: 0 | CK13: 0 | CL13: 0 | CM13: 0 | CN13: 0 | CO13: 0 | CP13: 0 | CQ13: 0 | CR13: 0 | CS13: 0 | CT13: 0 | CV13: 3259.425061 | CW13: 4494.697132 | CX13: 4671.714314 | CY13: 3213.246666 | CZ13: 4356.161947 | DA13: 3297.907057 | DB13: 2647.561325 | DC13: 2574.445532 | DD13: 2793.792909 | DE13: 10994.30626 | DF13: 9089.447455 | DG13: 10782.65528 | DH13: 9785.971582 | DI13: 12044.86475 | DJ13: 10913.49406 | DK13: 11633.10739 | DL13: 12437.38111 | DM13: 13514.87699 | DN13: 13076.18224 | DO13: 13622.62658 | DP13: 10925.03866 | DQ13: 11279.07303 | DR13: 10640.27189 | DS13: 10355.50512 | DT13: 11071.27025 | DU13: 9077.902856 | DV13: 10640.27189 | DW13: 15046.46043 | DX13: 14757.84546 | DY13: 15654.47597 | DZ13: 16735.82006 | EA13: 16085.47433 | EB13: 13514.87699 | EC13: 13076.18224 | ED13: 12656.72848 | EE13: 12437.38111 | EF13: 12983.82545 | EG13: 12360.41711 | EH13: 13953.57175 | EI13: 12502.8005 | EJ13: 10467.10291 | EK13: 9512.74941 | EL13: 8650.7527 | EM13: 7865.719982 | EN13: 7153.803056 | EO13: 6499.609124 | EP13: 5910.834585 | EQ13: 5372.086641 | ER13: 4883.365292 | ES13: 4440.822338 | ET13: 4036.76138 | EU13: 3671.182418 | EV13: 3332.540853 | EW13: 3028.533085 | EX13: 2755.310913 | EY13: 2505.177939 | EZ13: 2274.285963 | FA13: 2066.483185 | FB13: 1877.921405 | FC13: 1704.752423 | FD13: 1419.985652 | FE13: 1185.245477 | FF13: 988.9872971 | FG13: 823.5147143 | FH13: 688.8277283 | FI13: 573.3817404 | FJ13: 477.1767504 | FK13: 0 | FL13: 0 | FM13: 0 | FN13: 0 | FO13: 0 | FP13: 0 | FQ13: 0 | FR13: 0 | FS13: 0 | FT13: 0 | FU13: 0 | FV13: 0 | FW13: 0 | FX13: 0 | FY13: 0 | FZ13: 0 | GA13: 0 | GB13: 0 | GC13: 0 | GD13: 0 | GE13: 0 | GF13: 0 | GG13: 0 | GH13: 0
A14: 2 | B14: POLES | C14: ˃ 11 kv & < = 22 kv ; concrete | D14: 12.4974338 | E14: 30.53988702 | F14: 5.52629053 | G14: 2 | H14: 11 | I14: 17 | J14: 0 | K14: 6 | L14: 248 | M14: 73 | N14: 0 | O14: 251 | P14: 58 | Q14: 218 | R14: 28 | S14: 14 | T14: 9 | U14: 11 | V14: 0 | W14: 0 | X14: 0 | Y14: 0 | Z14: 25 | AA14: 0 | AB14: 0 | AC14: 17 | AD14: 32 | AE14: 26 | AF14: 15 | AG14: 0 | AH14: 0 | AI14: 0 | AJ14: 0 | AK14: 0 | AL14: 0 | AM14: 0 | AN14: 0 | AO14: 0 | AP14: 0 | AQ14: 0 | AR14: 0 | AS14: 0 | AT14: 0 | AU14: 0 | AV14: 0 | AW14: 0 | AX14: 0 | AY14: 0 | AZ14: 0 | BA14: 0 | BB14: 0 | BC14: 0 | BD14: 0 | BE14: 0 | BF14: 0 | BG14: 0 | BH14: 0 | BI14: 0 | BJ14: 0 | BK14: 0 | BL14: 0 | BM14: 0 | BN14: 0 | BO14: 0 | BP14: 0 | BQ14: 0 | BR14: 0 | BS14: 0 | BT14: 0 | BU14: 0 | BV14: 0 | BW14: 0 | BX14: 0 | BY14: 0 | BZ14: 0 | CA14: 0 | CB14: 0 | CC14: 0 | CD14: 0 | CE14: 0 | CF14: 0 | CG14: 0 | CH14: 0 | CI14: 0 | CJ14: 0 | CK14: 0 | CL14: 0 | CM14: 0 | CN14: 0 | CO14: 0 | CP14: 0 | CQ14: 0 | CR14: 0 | CS14: 0 | CT14: 0 | CV14: 137.4717718 | CW14: 212.4563746 | CX14: 0 | CY14: 74.98460281 | CZ14: 3099.363583 | DA14: 912.3126675 | DB14: 0 | DC14: 3136.855884 | DD14: 724.8511605 | DE14: 2724.440569 | DF14: 349.9281464 | DG14: 174.9640732 | DH14: 112.4769042 | DI14: 137.4717718 | DJ14: 0 | DK14: 0 | DL14: 0 | DM14: 0 | DN14: 312.435845 | DO14: 0 | DP14: 0 | DQ14: 212.4563746 | DR14: 399.9178817 | DS14: 324.9332788 | DT14: 187.461507 | DU14: 0 | DV14: 0 | DW14: 0 | DX14: 0 | DY14: 0 | DZ14: 0 | EA14: 0 | EB14: 0 | EC14: 0 | ED14: 0 | EE14: 0 | EF14: 0 | EG14: 0 | EH14: 0 | EI14: 0 | EJ14: 0 | EK14: 0 | EL14: 0 | EM14: 0 | EN14: 0 | EO14: 0 | EP14: 0 | EQ14: 0 | ER14: 0 | ES14: 0 | ET14: 0 | EU14: 0 | EV14: 0 | EW14: 0 | EX14: 0 | EY14: 0 | EZ14: 0 | FA14: 0 | FB14: 0 | FC14: 0 | FD14: 0 | FE14: 0 | FF14: 0 | FG14: 0 | FH14: 0 | FI14: 0 | FJ14: 0 | FK14: 0 | FL14: 0 | FM14: 0 | FN14: 0 | FO14: 0 | FP14: 0 | FQ14: 0 | FR14: 0 | FS14: 0 | FT14: 0 | FU14: 0 | FV14: 0 | FW14: 0 | FX14: 0 | FY14: 0 | FZ14: 0 | GA14: 0 | GB14: 0 | GC14: 0 | GD14: 0 | GE14: 0 | GF14: 0 | GG14: 0 | GH14: 0
A15: 2 | B15: POLES | C15: ˃ 11 kv & < = 22 kv ; steel | D15: 10.43449892 | E15: 9.109836281 | F15: 3.018250533 | G15: 2 | H15: 72 | I15: 94 | J15: 25 | K15: 0 | L15: 0 | M15: 0 | N15: 0 | O15: 98 | P15: 0 | Q15: 0 | R15: 0 | S15: 0 | T15: 0 | U15: 0 | V15: 0 | W15: 0 | X15: 0 | Y15: 0 | Z15: 0 | AA15: 0 | AB15: 0 | AC15: 0 | AD15: 0 | AE15: 0 | AF15: 0 | AG15: 0 | AH15: 0 | AI15: 0 | AJ15: 0 | AK15: 0 | AL15: 0 | AM15: 0 | AN15: 0 | AO15: 0 | AP15: 0 | AQ15: 0 | AR15: 0 | AS15: 0 | AT15: 0 | AU15: 0 | AV15: 0 | AW15: 0 | AX15: 0 | AY15: 0 | AZ15: 0 | BA15: 0 | BB15: 0 | BC15: 0 | BD15: 0 | BE15: 0 | BF15: 0 | BG15: 0 | BH15: 0 | BI15: 0 | BJ15: 0 | BK15: 0 | BL15: 0 | BM15: 0 | BN15: 0 | BO15: 0 | BP15: 0 | BQ15: 0 | BR15: 0 | BS15: 0 | BT15: 0 | BU15: 0 | BV15: 0 | BW15: 0 | BX15: 0 | BY15: 0 | BZ15: 0 | CA15: 0 | CB15: 0 | CC15: 0 | CD15: 0 | CE15: 0 | CF15: 0 | CG15: 0 | CH15: 0 | CI15: 0 | CJ15: 0 | CK15: 0 | CL15: 0 | CM15: 0 | CN15: 0 | CO15: 0 | CP15: 0 | CQ15: 0 | CR15: 0 | CS15: 0 | CT15: 0 | CV15: 751.2839222 | CW15: 980.8428985 | CX15: 260.862473 | CY15: 0 | CZ15: 0 | DA15: 0 | DB15: 0 | DC15: 1022.580894 | DD15: 0 | DE15: 0 | DF15: 0 | DG15: 0 | DH15: 0 | DI15: 0 | DJ15: 0 | DK15: 0 | DL15: 0 | DM15: 0 | DN15: 0 | DO15: 0 | DP15: 0 | DQ15: 0 | DR15: 0 | DS15: 0 | DT15: 0 | DU15: 0 | DV15: 0 | DW15: 0 | DX15: 0 | DY15: 0 | DZ15: 0 | EA15: 0 | EB15: 0 | EC15: 0 | ED15: 0 | EE15: 0 | EF15: 0 | EG15: 0 | EH15: 0 | EI15: 0 | EJ15: 0 | EK15: 0 | EL15: 0 | EM15: 0 | EN15: 0 | EO15: 0 | EP15: 0 | EQ15: 0 | ER15: 0 | ES15: 0 | ET15: 0 | EU15: 0 | EV15: 0 | EW15: 0 | EX15: 0 | EY15: 0 | EZ15: 0 | FA15: 0 | FB15: 0 | FC15: 0 | FD15: 0 | FE15: 0 | FF15: 0 | FG15: 0 | FH15: 0 | FI15: 0 | FJ15: 0 | FK15: 0 | FL15: 0 | FM15: 0 | FN15: 0 | FO15: 0 | FP15: 0 | FQ15: 0 | FR15: 0 | FS15: 0 | FT15: 0 | FU15: 0 | FV15: 0 | FW15: 0 | FX15: 0 | FY15: 0 | FZ15: 0 | GA15: 0 | GB15: 0 | GC15: 0 | GD15: 0 | GE15: 0 | GF15: 0 | GG15: 0 | GH15: 0
A16: 2 | B16: POLES | C16: ˃ 11 kv & < = 22 kv ; wood | D16: 9.351002193 | E16: 55.41837752 | F16: 7.444352055 | G16: 2 | H16: 149 | I16: 233 | J16: 112 | K16: 159 | L16: 56 | M16: 21 | N16: 35 | O16: 37 | P16: 75 | Q16: 32 | R16: 36 | S16: 31 | T16: 49 | U16: 35 | V16: 54 | W16: 58 | X16: 36 | Y16: 39 | Z16: 37 | AA16: 39 | AB16: 56 | AC16: 56 | AD16: 54 | AE16: 51 | AF16: 56 | AG16: 47 | AH16: 54 | AI16: 75 | AJ16: 75 | AK16: 44 | AL16: 47 | AM16: 45 | AN16: 39 | AO16: 37 | AP16: 36 | AQ16: 36 | AR16: 37 | AS16: 35 | AT16: 70 | AU16: 63 | AV16: 51 | AW16: 47 | AX16: 42 | AY16: 37 | AZ16: 35 | BA16: 33 | BB16: 30 | BC16: 28 | BD16: 26 | BE16: 23 | BF16: 21 | BG16: 19 | BH16: 16 | BI16: 14 | BJ16: 12 | BK16: 12 | BL16: 12 | BM16: 12 | BN16: 12 | BO16: 12 | BP16: 9 | BQ16: 7 | BR16: 7 | BS16: 7 | BT16: 7 | BU16: 7 | BV16: 7 | BW16: 0 | BX16: 0 | BY16: 0 | BZ16: 0 | CA16: 0 | CB16: 0 | CC16: 0 | CD16: 0 | CE16: 0 | CF16: 0 | CG16: 0 | CH16: 0 | CI16: 0 | CJ16: 0 | CK16: 0 | CL16: 0 | CM16: 0 | CN16: 0 | CO16: 0 | CP16: 0 | CQ16: 0 | CR16: 0 | CS16: 0 | CT16: 0 | CV16: 1393.299327 | CW16: 2178.783511 | CX16: 1047.312246 | CY16: 1486.809349 | CZ16: 523.6561228 | DA16: 196.3710461 | DB16: 327.2850768 | DC16: 345.9870811 | DD16: 701.3251645 | DE16: 299.2320702 | DF16: 336.6360789 | DG16: 289.881068 | DH16: 458.1991075 | DI16: 327.2850768 | DJ16: 504.9541184 | DK16: 542.3581272 | DL16: 336.6360789 | DM16: 364.6890855 | DN16: 345.9870811 | DO16: 364.6890855 | DP16: 523.6561228 | DQ16: 523.6561228 | DR16: 504.9541184 | DS16: 476.9011118 | DT16: 523.6561228 | DU16: 439.4971031 | DV16: 504.9541184 | DW16: 701.3251645 | DX16: 701.3251645 | DY16: 411.4440965 | DZ16: 439.4971031 | EA16: 420.7950987 | EB16: 364.6890855 | EC16: 345.9870811 | ED16: 336.6360789 | EE16: 336.6360789 | EF16: 345.9870811 | EG16: 327.2850768 | EH16: 654.5701535 | EI16: 589.1131382 | EJ16: 476.9011118 | EK16: 439.4971031 | EL16: 392.7420921 | EM16: 345.9870811 | EN16: 327.2850768 | EO16: 308.5830724 | EP16: 280.5300658 | EQ16: 261.8280614 | ER16: 243.126057 | ES16: 215.0730504 | ET16: 196.3710461 | EU16: 177.6690417 | EV16: 149.6160351 | EW16: 130.9140307 | EX16: 112.2120263 | EY16: 112.2120263 | EZ16: 112.2120263 | FA16: 112.2120263 | FB16: 112.2120263 | FC16: 112.2120263 | FD16: 84.15901974 | FE16: 65.45701535 | FF16: 65.45701535 | FG16: 65.45701535 | FH16: 65.45701535 | FI16: 65.45701535 | FJ16: 65.45701535 | FK16: 0 | FL16: 0 | FM16: 0 | FN16: 0 | FO16: 0 | FP16: 0 | FQ16: 0 | FR16: 0 | FS16: 0 | FT16: 0 | FU16: 0 | FV16: 0 | FW16: 0 | FX16: 0 | FY16: 0 | FZ16: 0 | GA16: 0 | GB16: 0 | GC16: 0 | GD16: 0 | GE16: 0 | GF16: 0 | GG16: 0 | GH16: 0
A17: 2 | B17: POLES | C17: > 1 kv & < = 11 kv ; concrete | D17: 10.15898425 | E17: 21.02034935 | F17: 4.584795454 | G17: 2 | H17: 205 | I17: 238 | J17: 290 | K17: 575 | L17: 726 | M17: 533 | N17: 585 | O17: 808 | P17: 1238 | Q17: 2063 | R17: 1450 | S17: 945 | T17: 881 | U17: 154 | V17: 21 | W17: 0 | X17: 0 | Y17: 4 | Z17: 7 | AA17: 0 | AB17: 46 | AC17: 70 | AD17: 70 | AE17: 160 | AF17: 82 | AG17: 0 | AH17: 1 | AI17: 0 | AJ17: 1 | AK17: 0 | AL17: 0 | AM17: 0 | AN17: 0 | AO17: 1 | AP17: 1 | AQ17: 0 | AR17: 1 | AS17: 1 | AT17: 0 | AU17: 0 | AV17: 0 | AW17: 0 | AX17: 0 | AY17: 0 | AZ17: 0 | BA17: 0 | BB17: 0 | BC17: 0 | BD17: 0 | BE17: 0 | BF17: 0 | BG17: 0 | BH17: 0 | BI17: 0 | BJ17: 0 | BK17: 0 | BL17: 0 | BM17: 0 | BN17: 0 | BO17: 0 | BP17: 0 | BQ17: 0 | BR17: 0 | BS17: 0 | BT17: 0 | BU17: 0 | BV17: 0 | BW17: 0 | BX17: 0 | BY17: 0 | BZ17: 0 | CA17: 0 | CB17: 0 | CC17: 0 | CD17: 0 | CE17: 0 | CF17: 0 | CG17: 0 | CH17: 0 | CI17: 0 | CJ17: 0 | CK17: 0 | CL17: 0 | CM17: 0 | CN17: 0 | CO17: 0 | CP17: 0 | CQ17: 0 | CR17: 0 | CS17: 0 | CT17: 0 | CV17: 2082.591771 | CW17: 2417.838252 | CX17: 2946.105433 | CY17: 5841.415944 | CZ17: 7375.422566 | DA17: 5414.738606 | DB17: 5943.005787 | DC17: 8208.459275 | DD17: 12576.8225 | DE17: 20957.98451 | DF17: 14730.52716 | DG17: 9600.240117 | DH17: 8950.065125 | DI17: 1564.483575 | DJ17: 213.3386693 | DK17: 0 | DL17: 0 | DM17: 40.635937 | DN17: 71.11288976 | DO17: 0 | DP17: 467.3132755 | DQ17: 711.1288976 | DR17: 711.1288976 | DS17: 1625.43748 | DT17: 833.0367086 | DU17: 0 | DV17: 10.15898425 | DW17: 0 | DX17: 10.15898425 | DY17: 0 | DZ17: 0 | EA17: 0 | EB17: 0 | EC17: 10.15898425 | ED17: 10.15898425 | EE17: 0 | EF17: 10.15898425 | EG17: 10.15898425 | EH17: 0 | EI17: 0 | EJ17: 0 | EK17: 0 | EL17: 0 | EM17: 0 | EN17: 0 | EO17: 0 | EP17: 0 | EQ17: 0 | ER17: 0 | ES17: 0 | ET17: 0 | EU17: 0 | EV17: 0 | EW17: 0 | EX17: 0 | EY17: 0 | EZ17: 0 | FA17: 0 | FB17: 0 | FC17: 0 | FD17: 0 | FE17: 0 | FF17: 0 | FG17: 0 | FH17: 0 | FI17: 0 | FJ17: 0 | FK17: 0 | FL17: 0 | FM17: 0 | FN17: 0 | FO17: 0 | FP17: 0 | FQ17: 0 | FR17: 0 | FS17: 0 | FT17: 0 | FU17: 0 | FV17: 0 | FW17: 0 | FX17: 0 | FY17: 0 | FZ17: 0 | GA17: 0 | GB17: 0 | GC17: 0 | GD17: 0 | GE17: 0 | GF17: 0 | GG17: 0 | GH17: 0
A18: 2 | B18: POLES | C18: > 1 kv & < = 11 kv ; steel | D18: 8.904809453 | E18: 16.5809736 | F18: 4.071974165 | G18: 2 | H18: 96 | I18: 32 | J18: 0 | K18: 0 | L18: 15 | M18: 3 | N18: 6 | O18: 15 | P18: 51 | Q18: 14 | R18: 58 | S18: 29 | T18: 6 | U18: 39 | V18: 10 | W18: 1 | X18: 0 | Y18: 2 | Z18: 0 | AA18: 0 | AB18: 0 | AC18: 0 | AD18: 0 | AE18: 0 | AF18: 4 | AG18: 0 | AH18: 0 | AI18: 0 | AJ18: 0 | AK18: 0 | AL18: 0 | AM18: 0 | AN18: 0 | AO18: 0 | AP18: 0 | AQ18: 0 | AR18: 0 | AS18: 0 | AT18: 0 | AU18: 0 | AV18: 0 | AW18: 0 | AX18: 0 | AY18: 0 | AZ18: 0 | BA18: 0 | BB18: 0 | BC18: 1 | BD18: 0 | BE18: 0 | BF18: 0 | BG18: 0 | BH18: 0 | BI18: 0 | BJ18: 0 | BK18: 0 | BL18: 0 | BM18: 0 | BN18: 0 | BO18: 0 | BP18: 0 | BQ18: 0 | BR18: 0 | BS18: 0 | BT18: 0 | BU18: 0 | BV18: 0 | BW18: 0 | BX18: 0 | BY18: 0 | BZ18: 0 | CA18: 0 | CB18: 0 | CC18: 0 | CD18: 0 | CE18: 0 | CF18: 0 | CG18: 0 | CH18: 0 | CI18: 0 | CJ18: 0 | CK18: 0 | CL18: 0 | CM18: 0 | CN18: 0 | CO18: 0 | CP18: 0 | CQ18: 0 | CR18: 0 | CS18: 0 | CT18: 0 | CV18: 854.8617074 | CW18: 284.9539025 | CX18: 0 | CY18: 0 | CZ18: 133.5721418 | DA18: 26.71442836 | DB18: 53.42885672 | DC18: 133.5721418 | DD18: 454.1452821 | DE18: 124.6673323 | DF18: 516.4789482 | DG18: 258.2394741 | DH18: 53.42885672 | DI18: 347.2875686 | DJ18: 89.04809453 | DK18: 8.904809453 | DL18: 0 | DM18: 17.80961891 | DN18: 0 | DO18: 0 | DP18: 0 | DQ18: 0 | DR18: 0 | DS18: 0 | DT18: 35.61923781 | DU18: 0 | DV18: 0 | DW18: 0 | DX18: 0 | DY18: 0 | DZ18: 0 | EA18: 0 | EB18: 0 | EC18: 0 | ED18: 0 | EE18: 0 | EF18: 0 | EG18: 0 | EH18: 0 | EI18: 0 | EJ18: 0 | EK18: 0 | EL18: 0 | EM18: 0 | EN18: 0 | EO18: 0 | EP18: 0 | EQ18: 8.904809453 | ER18: 0 | ES18: 0 | ET18: 0 | EU18: 0 | EV18: 0 | EW18: 0 | EX18: 0 | EY18: 0 | EZ18: 0 | FA18: 0 | FB18: 0 | FC18: 0 | FD18: 0 | FE18: 0 | FF18: 0 | FG18: 0 | FH18: 0 | FI18: 0 | FJ18: 0 | FK18: 0 | FL18: 0 | FM18: 0 | FN18: 0 | FO18: 0 | FP18: 0 | FQ18: 0 | FR18: 0 | FS18: 0 | FT18: 0 | FU18: 0 | FV18: 0 | FW18: 0 | FX18: 0 | FY18: 0 | FZ18: 0 | GA18: 0 | GB18: 0 | GC18: 0 | GD18: 0 | GE18: 0 | GF18: 0 | GG18: 0 | GH18: 0
A19: 2 | B19: POLES | C19: > 1 kv & < = 11 kv ; wood | D19: 5.795478118 | E19: 57.69102713 | F19: 7.595460956 | G19: 2 | H19: 2106 | I19: 2464 | J19: 2281 | K19: 3024 | L19: 2267 | M19: 1920 | N19: 1885 | O19: 1468 | P19: 1372 | Q19: 2433 | R19: 2806 | S19: 2386 | T19: 2057 | U19: 2666 | V19: 2296 | W19: 2445 | X19: 2753 | Y19: 2991 | Z19: 2895 | AA19: 3016 | AB19: 2297 | AC19: 2371 | AD19: 2238 | AE19: 2178 | AF19: 2327 | AG19: 1909 | AH19: 2238 | AI19: 3164 | AJ19: 3102 | AK19: 3466 | AL19: 3704 | AM19: 3561 | AN19: 2991 | AO19: 2895 | AP19: 2801 | AQ19: 2753 | AR19: 2874 | AS19: 2736 | AT19: 2934 | AU19: 2629 | AV19: 2201 | AW19: 2002 | AX19: 1819 | AY19: 1654 | AZ19: 1503 | BA19: 1366 | BB19: 1241 | BC19: 1128 | BD19: 1025 | BE19: 932 | BF19: 848 | BG19: 771 | BH19: 701 | BI19: 637 | BJ19: 579 | BK19: 526 | BL19: 479 | BM19: 435 | BN19: 396 | BO19: 359 | BP19: 299 | BQ19: 249 | BR19: 207 | BS19: 173 | BT19: 144 | BU19: 121 | BV19: 101 | BW19: 0 | BX19: 0 | BY19: 0 | BZ19: 0 | CA19: 0 | CB19: 0 | CC19: 0 | CD19: 0 | CE19: 0 | CF19: 0 | CG19: 0 | CH19: 0 | CI19: 0 | CJ19: 0 | CK19: 0 | CL19: 0 | CM19: 0 | CN19: 0 | CO19: 0 | CP19: 0 | CQ19: 0 | CR19: 0 | CS19: 0 | CT19: 0 | CV19: 12205.27692 | CW19: 14280.05808 | CX19: 13219.48559 | CY19: 17525.52583 | CZ19: 13138.34889 | DA19: 11127.31799 | DB19: 10924.47625 | DC19: 8507.761876 | DD19: 7951.395977 | DE19: 14100.39826 | DF19: 16262.1116 | DG19: 13828.01079 | DH19: 11921.29849 | DI19: 15450.74466 | DJ19: 13306.41776 | DK19: 14169.944 | DL19: 15954.95126 | DM19: 17334.27505 | DN19: 16777.90915 | DO19: 17479.162 | DP19: 13312.21324 | DQ19: 13741.07862 | DR19: 12970.28003 | DS19: 12622.55134 | DT19: 13486.07758 | DU19: 11063.56773 | DV19: 12970.28003 | DW19: 18336.89276 | DX19: 17977.57312 | DY19: 20087.12716 | DZ19: 21466.45095 | EA19: 20637.69758 | EB19: 17334.27505 | EC19: 16777.90915 | ED19: 16233.13421 | EE19: 15954.95126 | EF19: 16656.20411 | EG19: 15856.42813 | EH19: 17003.9328 | EI19: 15236.31197 | EJ19: 12755.84734 | EK19: 11602.54719 | EL19: 10541.9747 | EM19: 9585.720806 | EN19: 8710.603611 | EO19: 7916.623109 | EP19: 7192.188344 | EQ19: 6537.299317 | ER19: 5940.36507 | ES19: 5401.385606 | ET19: 4914.565444 | EU19: 4468.313629 | EV19: 4062.63016 | EW19: 3691.719561 | EX19: 3355.58183 | EY19: 3048.42149 | EZ19: 2776.034018 | FA19: 2521.032981 | FB19: 2295.009335 | FC19: 2080.576644 | FD19: 1732.847957 | FE19: 1443.074051 | FF19: 1199.66397 | FG19: 1002.617714 | FH19: 834.5488489 | FI19: 701.2528522 | FJ19: 585.3432899 | FK19: 0 | FL19: 0 | FM19: 0 | FN19: 0 | FO19: 0 | FP19: 0 | FQ19: 0 | FR19: 0 | FS19: 0 | FT19: 0 | FU19: 0 | FV19: 0 | FW19: 0 | FX19: 0 | FY19: 0 | FZ19: 0 | GA19: 0 | GB19: 0 | GC19: 0 | GD19: 0 | GE19: 0 | GF19: 0 | GG19: 0 | GH19: 0
A20: 2 | B20: POLES | C20: > 22 kv & < = 66 kv ; concrete | D20: 23.68455375 | E20: 38.8351858 | F20: 6.231788331 | G20: 2 | H20: 44 | I20: 30 | J20: 0 | K20: 25 | L20: 13 | M20: 130 | N20: 680 | O20: 74 | P20: 101 | Q20: 144 | R20: 289 | S20: 216 | T20: 173 | U20: 36 | V20: 0 | W20: 0 | X20: 5 | Y20: 8 | Z20: 0 | AA20: 0 | AB20: 0 | AC20: 999 | AD20: 62 | AE20: 0 | AF20: 0 | AG20: 0 | AH20: 0 | AI20: 0 | AJ20: 3 | AK20: 3 | AL20: 0 | AM20: 0 | AN20: 0 | AO20: 0 | AP20: 3 | AQ20: 5 | AR20: 0 | AS20: 2 | AT20: 0 | AU20: 3 | AV20: 0 | AW20: 0 | AX20: 0 | AY20: 1 | AZ20: 0 | BA20: 3 | BB20: 7 | BC20: 1 | BD20: 3 | BE20: 0 | BF20: 0 | BG20: 3 | BH20: 0 | BI20: 0 | BJ20: 0 | BK20: 0 | BL20: 0 | BM20: 0 | BN20: 0 | BO20: 0 | BP20: 0 | BQ20: 0 | BR20: 0 | BS20: 0 | BT20: 0 | BU20: 0 | BV20: 0 | BW20: 0 | BX20: 0 | BY20: 0 | BZ20: 0 | CA20: 0 | CB20: 0 | CC20: 0 | CD20: 0 | CE20: 0 | CF20: 0 | CG20: 0 | CH20: 0 | CI20: 0 | CJ20: 0 | CK20: 0 | CL20: 0 | CM20: 0 | CN20: 0 | CO20: 0 | CP20: 0 | CQ20: 0 | CR20: 0 | CS20: 0 | CT20: 0 | CV20: 1042.120365 | CW20: 710.5366126 | CX20: 0 | CY20: 592.1138439 | CZ20: 307.8991988 | DA20: 3078.991988 | DB20: 16105.49655 | DC20: 1752.656978 | DD20: 2392.139929 | DE20: 3410.575741 | DF20: 6844.836035 | DG20: 5115.863611 | DH20: 4097.4278 | DI20: 852.6439352 | DJ20: 0 | DK20: 0 | DL20: 118.4227688 | DM20: 189.47643 | DN20: 0 | DO20: 0 | DP20: 0 | DQ20: 23660.8692 | DR20: 1468.442333 | DS20: 0 | DT20: 0 | DU20: 0 | DV20: 0 | DW20: 0 | DX20: 71.05366126 | DY20: 71.05366126 | DZ20: 0 | EA20: 0 | EB20: 0 | EC20: 0 | ED20: 71.05366126 | EE20: 118.4227688 | EF20: 0 | EG20: 47.36910751 | EH20: 0 | EI20: 71.05366126 | EJ20: 0 | EK20: 0 | EL20: 0 | EM20: 23.68455375 | EN20: 0 | EO20: 71.05366126 | EP20: 165.7918763 | EQ20: 23.68455375 | ER20: 71.05366126 | ES20: 0 | ET20: 0 | EU20: 71.05366126 | EV20: 0 | EW20: 0 | EX20: 0 | EY20: 0 | EZ20: 0 | FA20: 0 | FB20: 0 | FC20: 0 | FD20: 0 | FE20: 0 | FF20: 0 | FG20: 0 | FH20: 0 | FI20: 0 | FJ20: 0 | FK20: 0 | FL20: 0 | FM20: 0 | FN20: 0 | FO20: 0 | FP20: 0 | FQ20: 0 | FR20: 0 | FS20: 0 | FT20: 0 | FU20: 0 | FV20: 0 | FW20: 0 | FX20: 0 | FY20: 0 | FZ20: 0 | GA20: 0 | GB20: 0 | GC20: 0 | GD20: 0 | GE20: 0 | GF20: 0 | GG20: 0 | GH20: 0
A21: 2 | B21: POLES | C21: > 22 kv & < = 66 kv ; steel | D21: 21.54190521 | E21: 14.4988247 | F21: 3.807732225 | G21: 2 | H21: 68 | I21: 50 | J21: 0 | K21: 4 | L21: 60 | M21: 48 | N21: 67 | O21: 0 | P21: 0 | Q21: 41 | R21: 0 | S21: 14 | T21: 44 | U21: 8 | V21: 7 | W21: 0 | X21: 0 | Y21: 0 | Z21: 0 | AA21: 0 | AB21: 0 | AC21: 0 | AD21: 0 | AE21: 0 | AF21: 0 | AG21: 0 | AH21: 0 | AI21: 0 | AJ21: 0 | AK21: 0 | AL21: 0 | AM21: 0 | AN21: 0 | AO21: 0 | AP21: 0 | AQ21: 0 | AR21: 0 | AS21: 0 | AT21: 0 | AU21: 0 | AV21: 0 | AW21: 0 | AX21: 0 | AY21: 0 | AZ21: 0 | BA21: 0 | BB21: 0 | BC21: 0 | BD21: 0 | BE21: 0 | BF21: 0 | BG21: 0 | BH21: 0 | BI21: 0 | BJ21: 0 | BK21: 0 | BL21: 0 | BM21: 0 | BN21: 0 | BO21: 0 | BP21: 0 | BQ21: 0 | BR21: 0 | BS21: 0 | BT21: 0 | BU21: 0 | BV21: 0 | BW21: 0 | BX21: 0 | BY21: 0 | BZ21: 0 | CA21: 0 | CB21: 0 | CC21: 0 | CD21: 0 | CE21: 0 | CF21: 0 | CG21: 0 | CH21: 0 | CI21: 0 | CJ21: 0 | CK21: 0 | CL21: 0 | CM21: 0 | CN21: 0 | CO21: 0 | CP21: 0 | CQ21: 0 | CR21: 0 | CS21: 0 | CT21: 0 | CV21: 1464.849554 | CW21: 1077.09526 | CX21: 0 | CY21: 86.16762083 | CZ21: 1292.514312 | DA21: 1034.01145 | DB21: 1443.307649 | DC21: 0 | DD21: 0 | DE21: 883.2181135 | DF21: 0 | DG21: 301.5866729 | DH21: 947.8438291 | DI21: 172.3352417 | DJ21: 150.7933365 | DK21: 0 | DL21: 0 | DM21: 0 | DN21: 0 | DO21: 0 | DP21: 0 | DQ21: 0 | DR21: 0 | DS21: 0 | DT21: 0 | DU21: 0 | DV21: 0 | DW21: 0 | DX21: 0 | DY21: 0 | DZ21: 0 | EA21: 0 | EB21: 0 | EC21: 0 | ED21: 0 | EE21: 0 | EF21: 0 | EG21: 0 | EH21: 0 | EI21: 0 | EJ21: 0 | EK21: 0 | EL21: 0 | EM21: 0 | EN21: 0 | EO21: 0 | EP21: 0 | EQ21: 0 | ER21: 0 | ES21: 0 | ET21: 0 | EU21: 0 | EV21: 0 | EW21: 0 | EX21: 0 | EY21: 0 | EZ21: 0 | FA21: 0 | FB21: 0 | FC21: 0 | FD21: 0 | FE21: 0 | FF21: 0 | FG21: 0 | FH21: 0 | FI21: 0 | FJ21: 0 | FK21: 0 | FL21: 0 | FM21: 0 | FN21: 0 | FO21: 0 | FP21: 0 | FQ21: 0 | FR21: 0 | FS21: 0 | FT21: 0 | FU21: 0 | FV21: 0 | FW21: 0 | FX21: 0 | FY21: 0 | FZ21: 0 | GA21: 0 | GB21: 0 | GC21: 0 | GD21: 0 | GE21: 0 | GF21: 0 | GG21: 0 | GH21: 0
A22: 2 | B22: POLES | C22: > 22 kv & < = 66 kv ; wood | D22: 18.3547456 | E22: 58.99335663 | F22: 7.680713289 | G22: 2 | H22: 340 | I22: 287 | J22: 208 | K22: 159 | L22: 145 | M22: 96 | N22: 250 | O22: 108 | P22: 180 | Q22: 393 | R22: 454 | S22: 385 | T22: 278 | U22: 432 | V22: 308 | W22: 328 | X22: 442 | Y22: 479 | Z22: 464 | AA22: 483 | AB22: 309 | AC22: 318 | AD22: 300 | AE22: 293 | AF22: 313 | AG22: 257 | AH22: 300 | AI22: 425 | AJ22: 416 | AK22: 555 | AL22: 594 | AM22: 569 | AN22: 479 | AO22: 464 | AP22: 449 | AQ22: 442 | AR22: 460 | AS22: 439 | AT22: 393 | AU22: 352 | AV22: 297 | AW22: 270 | AX22: 246 | AY22: 223 | AZ22: 203 | BA22: 184 | BB22: 168 | BC22: 153 | BD22: 139 | BE22: 127 | BF22: 115 | BG22: 104 | BH22: 95 | BI22: 86 | BJ22: 79 | BK22: 72 | BL22: 65 | BM22: 59 | BN22: 54 | BO22: 48 | BP22: 40 | BQ22: 34 | BR22: 28 | BS22: 24 | BT22: 20 | BU22: 17 | BV22: 14 | BW22: 0 | BX22: 0 | BY22: 0 | BZ22: 0 | CA22: 0 | CB22: 0 | CC22: 0 | CD22: 0 | CE22: 0 | CF22: 0 | CG22: 0 | CH22: 0 | CI22: 0 | CJ22: 0 | CK22: 0 | CL22: 0 | CM22: 0 | CN22: 0 | CO22: 0 | CP22: 0 | CQ22: 0 | CR22: 0 | CS22: 0 | CT22: 0 | CV22: 6240.613505 | CW22: 5267.811988 | CX22: 3817.787086 | CY22: 2918.404551 | CZ22: 2661.438113 | DA22: 1762.055578 | DB22: 4588.686401 | DC22: 1982.312525 | DD22: 3303.854209 | DE22: 7213.415022 | DF22: 8333.054504 | DG22: 7066.577058 | DH22: 5102.619278 | DI22: 7929.250101 | DJ22: 5653.261646 | DK22: 6020.356558 | DL22: 8112.797557 | DM22: 8791.923144 | DN22: 8516.60196 | DO22: 8865.342127 | DP22: 5671.616392 | DQ22: 5836.809102 | DR22: 5506.423681 | DS22: 5377.940462 | DT22: 5745.035374 | DU22: 4717.16962 | DV22: 5506.423681 | DW22: 7800.766882 | DX22: 7635.574171 | DY22: 10186.88381 | DZ22: 10902.71889 | EA22: 10443.85025 | EB22: 8791.923144 | EC22: 8516.60196 | ED22: 8241.280776 | EE22: 8112.797557 | EF22: 8443.182978 | EG22: 8057.73332 | EH22: 7213.415022 | EI22: 6460.870453 | EJ22: 5451.359444 | EK22: 4955.781313 | EL22: 4515.267419 | EM22: 4093.10827 | EN22: 3726.013358 | EO22: 3377.273191 | EP22: 3083.597261 | EQ22: 2808.276077 | ER22: 2551.309639 | ES22: 2331.052692 | ET22: 2110.795744 | EU22: 1908.893543 | EV22: 1743.700832 | EW22: 1578.508122 | EX22: 1450.024903 | EY22: 1321.541683 | EZ22: 1193.058464 | FA22: 1082.929991 | FB22: 991.1562626 | FC22: 881.027789 | FD22: 734.1898242 | FE22: 624.0613505 | FF22: 513.9328769 | FG22: 440.5138945 | FH22: 367.0949121 | FI22: 312.0306753 | FJ22: 256.9664385 | FK22: 0 | FL22: 0 | FM22: 0 | FN22: 0 | FO22: 0 | FP22: 0 | FQ22: 0 | FR22: 0 | FS22: 0 | FT22: 0 | FU22: 0 | FV22: 0 | FW22: 0 | FX22: 0 | FY22: 0 | FZ22: 0 | GA22: 0 | GB22: 0 | GC22: 0 | GD22: 0 | GE22: 0 | GF22: 0 | GG22: 0 | GH22: 0
A23: 2 | B23: POLES | C23: > 66 kv & < = 132 kv ; concrete | D23: 24.02737475 | E23: 46.02710839 | F23: 6.784328146 | G23: 2 | H23: 8 | I23: 9 | J23: 2 | K23: 48 | L23: 2 | M23: 0 | N23: 213 | O23: 76 | P23: 48 | Q23: 116 | R23: 808 | S23: 190 | T23: 140 | U23: 33 | V23: 2 | W23: 0 | X23: 0 | Y23: 11 | Z23: 0 | AA23: 0 | AB23: 9 | AC23: 430 | AD23: 1 | AE23: 0 | AF23: 0 | AG23: 0 | AH23: 1 | AI23: 0 | AJ23: 2 | AK23: 0 | AL23: 0 | AM23: 0 | AN23: 0 | AO23: 0 | AP23: 2 | AQ23: 0 | AR23: 0 | AS23: 0 | AT23: 0 | AU23: 0 | AV23: 0 | AW23: 0 | AX23: 0 | AY23: 0 | AZ23: 0 | BA23: 7 | BB23: 0 | BC23: 0 | BD23: 0 | BE23: 0 | BF23: 0 | BG23: 0 | BH23: 2 | BI23: 0 | BJ23: 0 | BK23: 0 | BL23: 0 | BM23: 0 | BN23: 0 | BO23: 0 | BP23: 0 | BQ23: 0 | BR23: 0 | BS23: 0 | BT23: 0 | BU23: 0 | BV23: 0 | BW23: 0 | BX23: 0 | BY23: 0 | BZ23: 0 | CA23: 0 | CB23: 0 | CC23: 0 | CD23: 0 | CE23: 0 | CF23: 0 | CG23: 0 | CH23: 0 | CI23: 0 | CJ23: 0 | CK23: 0 | CL23: 0 | CM23: 0 | CN23: 0 | CO23: 0 | CP23: 0 | CQ23: 0 | CR23: 0 | CS23: 0 | CT23: 0 | CV23: 192.218998 | CW23: 216.2463727 | CX23: 48.05474949 | CY23: 1153.313988 | CZ23: 48.05474949 | DA23: 0 | DB23: 5117.830821 | DC23: 1826.080481 | DD23: 1153.313988 | DE23: 2787.17547 | DF23: 19414.11879 | DG23: 4565.201202 | DH23: 3363.832464 | DI23: 792.9033666 | DJ23: 48.05474949 | DK23: 0 | DL23: 0 | DM23: 264.3011222 | DN23: 0 | DO23: 0 | DP23: 216.2463727 | DQ23: 10331.77114 | DR23: 24.02737475 | DS23: 0 | DT23: 0 | DU23: 0 | DV23: 24.02737475 | DW23: 0 | DX23: 48.05474949 | DY23: 0 | DZ23: 0 | EA23: 0 | EB23: 0 | EC23: 0 | ED23: 48.05474949 | EE23: 0 | EF23: 0 | EG23: 0 | EH23: 0 | EI23: 0 | EJ23: 0 | EK23: 0 | EL23: 0 | EM23: 0 | EN23: 0 | EO23: 168.1916232 | EP23: 0 | EQ23: 0 | ER23: 0 | ES23: 0 | ET23: 0 | EU23: 0 | EV23: 48.05474949 | EW23: 0 | EX23: 0 | EY23: 0 | EZ23: 0 | FA23: 0 | FB23: 0 | FC23: 0 | FD23: 0 | FE23: 0 | FF23: 0 | FG23: 0 | FH23: 0 | FI23: 0 | FJ23: 0 | FK23: 0 | FL23: 0 | FM23: 0 | FN23: 0 | FO23: 0 | FP23: 0 | FQ23: 0 | FR23: 0 | FS23: 0 | FT23: 0 | FU23: 0 | FV23: 0 | FW23: 0 | FX23: 0 | FY23: 0 | FZ23: 0 | GA23: 0 | GB23: 0 | GC23: 0 | GD23: 0 | GE23: 0 | GF23: 0 | GG23: 0 | GH23: 0
A24: 2 | B24: POLES | C24: > 66 kv & < = 132 kv ; steel | D24: 17.26262335 | E24: 21.81492814 | F24: 4.670645366 | G24: 2 | H24: 2 | I24: 0 | J24: 0 | K24: 0 | L24: 0 | M24: 0 | N24: 0 | O24: 0 | P24: 0 | Q24: 97 | R24: 51 | S24: 0 | T24: 0 | U24: 12 | V24: 0 | W24: 0 | X24: 0 | Y24: 0 | Z24: 0 | AA24: 0 | AB24: 0 | AC24: 0 | AD24: 0 | AE24: 0 | AF24: 0 | AG24: 0 | AH24: 0 | AI24: 0 | AJ24: 0 | AK24: 0 | AL24: 0 | AM24: 0 | AN24: 0 | AO24: 0 | AP24: 0 | AQ24: 0 | AR24: 0 | AS24: 0 | AT24: 0 | AU24: 0 | AV24: 0 | AW24: 0 | AX24: 0 | AY24: 0 | AZ24: 0 | BA24: 0 | BB24: 0 | BC24: 0 | BD24: 0 | BE24: 0 | BF24: 0 | BG24: 0 | BH24: 0 | BI24: 0 | BJ24: 0 | BK24: 0 | BL24: 0 | BM24: 0 | BN24: 0 | BO24: 0 | BP24: 0 | BQ24: 0 | BR24: 0 | BS24: 0 | BT24: 0 | BU24: 0 | BV24: 0 | BW24: 0 | BX24: 0 | BY24: 0 | BZ24: 0 | CA24: 0 | CB24: 0 | CC24: 0 | CD24: 0 | CE24: 0 | CF24: 0 | CG24: 0 | CH24: 0 | CI24: 0 | CJ24: 0 | CK24: 0 | CL24: 0 | CM24: 0 | CN24: 0 | CO24: 0 | CP24: 0 | CQ24: 0 | CR24: 0 | CS24: 0 | CT24: 0 | CV24: 34.5252467 | CW24: 0 | CX24: 0 | CY24: 0 | CZ24: 0 | DA24: 0 | DB24: 0 | DC24: 0 | DD24: 0 | DE24: 1674.474465 | DF24: 880.3937909 | DG24: 0 | DH24: 0 | DI24: 207.1514802 | DJ24: 0 | DK24: 0 | DL24: 0 | DM24: 0 | DN24: 0 | DO24: 0 | DP24: 0 | DQ24: 0 | DR24: 0 | DS24: 0 | DT24: 0 | DU24: 0 | DV24: 0 | DW24: 0 | DX24: 0 | DY24: 0 | DZ24: 0 | EA24: 0 | EB24: 0 | EC24: 0 | ED24: 0 | EE24: 0 | EF24: 0 | EG24: 0 | EH24: 0 | EI24: 0 | EJ24: 0 | EK24: 0 | EL24: 0 | EM24: 0 | EN24: 0 | EO24: 0 | EP24: 0 | EQ24: 0 | ER24: 0 | ES24: 0 | ET24: 0 | EU24: 0 | EV24: 0 | EW24: 0 | EX24: 0 | EY24: 0 | EZ24: 0 | FA24: 0 | FB24: 0 | FC24: 0 | FD24: 0 | FE24: 0 | FF24: 0 | FG24: 0 | FH24: 0 | FI24: 0 | FJ24: 0 | FK24: 0 | FL24: 0 | FM24: 0 | FN24: 0 | FO24: 0 | FP24: 0 | FQ24: 0 | FR24: 0 | FS24: 0 | FT24: 0 | FU24: 0 | FV24: 0 | FW24: 0 | FX24: 0 | FY24: 0 | FZ24: 0 | GA24: 0 | GB24: 0 | GC24: 0 | GD24: 0 | GE24: 0 | GF24: 0 | GG24: 0 | GH24: 0
A25: 2 | B25: POLES | C25: > 66 kv & < = 132 kv ; wood | D25: 23.59936224 | E25: 57.02130715 | F25: 7.551245404 | G25: 2 | H25: 58 | I25: 57 | J25: 44 | K25: 46 | L25: 3 | M25: 42 | N25: 35 | O25: 16 | P25: 6 | Q25: 60 | R25: 70 | S25: 59 | T25: 48 | U25: 66 | V25: 55 | W25: 58 | X25: 71 | Y25: 77 | Z25: 74 | AA25: 77 | AB25: 55 | AC25: 57 | AD25: 53 | AE25: 52 | AF25: 56 | AG25: 45 | AH25: 53 | AI25: 76 | AJ25: 73 | AK25: 89 | AL25: 95 | AM25: 92 | AN25: 77 | AO25: 74 | AP25: 72 | AQ25: 71 | AR25: 73 | AS25: 71 | AT25: 70 | AU25: 62 | AV25: 52 | AW25: 48 | AX25: 43 | AY25: 40 | AZ25: 36 | BA25: 33 | BB25: 29 | BC25: 27 | BD25: 24 | BE25: 22 | BF25: 20 | BG25: 17 | BH25: 16 | BI25: 15 | BJ25: 14 | BK25: 13 | BL25: 12 | BM25: 10 | BN25: 9 | BO25: 8 | BP25: 7 | BQ25: 6 | BR25: 5 | BS25: 3 | BT25: 3 | BU25: 3 | BV25: 3 | BW25: 0 | BX25: 0 | BY25: 0 | BZ25: 0 | CA25: 0 | CB25: 0 | CC25: 0 | CD25: 0 | CE25: 0 | CF25: 0 | CG25: 0 | CH25: 0 | CI25: 0 | CJ25: 0 | CK25: 0 | CL25: 0 | CM25: 0 | CN25: 0 | CO25: 0 | CP25: 0 | CQ25: 0 | CR25: 0 | CS25: 0 | CT25: 0 | CV25: 1368.76301 | CW25: 1345.163648 | CX25: 1038.371938 | CY25: 1085.570663 | CZ25: 70.79808671 | DA25: 991.173214 | DB25: 825.9776783 | DC25: 377.5897958 | DD25: 141.5961734 | DE25: 1415.961734 | DF25: 1651.955357 | DG25: 1392.362372 | DH25: 1132.769387 | DI25: 1557.557908 | DJ25: 1297.964923 | DK25: 1368.76301 | DL25: 1675.554719 | DM25: 1817.150892 | DN25: 1746.352806 | DO25: 1817.150892 | DP25: 1297.964923 | DQ25: 1345.163648 | DR25: 1250.766199 | DS25: 1227.166836 | DT25: 1321.564285 | DU25: 1061.971301 | DV25: 1250.766199 | DW25: 1793.55153 | DX25: 1722.753443 | DY25: 2100.343239 | DZ25: 2241.939413 | EA25: 2171.141326 | EB25: 1817.150892 | EC25: 1746.352806 | ED25: 1699.154081 | EE25: 1675.554719 | EF25: 1722.753443 | EG25: 1675.554719 | EH25: 1651.955357 | EI25: 1463.160459 | EJ25: 1227.166836 | EK25: 1132.769387 | EL25: 1014.772576 | EM25: 943.9744895 | EN25: 849.5770405 | EO25: 778.7789538 | EP25: 684.3815049 | EQ25: 637.1827804 | ER25: 566.3846937 | ES25: 519.1859692 | ET25: 471.9872447 | EU25: 401.189158 | EV25: 377.5897958 | EW25: 353.9904336 | EX25: 330.3910713 | EY25: 306.7917091 | EZ25: 283.1923468 | FA25: 235.9936224 | FB25: 212.3942601 | FC25: 188.7948979 | FD25: 165.1955357 | FE25: 141.5961734 | FF25: 117.9968112 | FG25: 70.79808671 | FH25: 70.79808671 | FI25: 70.79808671 | FJ25: 70.79808671 | FK25: 0 | FL25: 0 | FM25: 0 | FN25: 0 | FO25: 0 | FP25: 0 | FQ25: 0 | FR25: 0 | FS25: 0 | FT25: 0 | FU25: 0 | FV25: 0 | FW25: 0 | FX25: 0 | FY25: 0 | FZ25: 0 | GA25: 0 | GB25: 0 | GC25: 0 | GD25: 0 | GE25: 0 | GF25: 0 | GG25: 0 | GH25: 0
A26: 2 | B26: POLES | C26: staked wooden pole | D26: 7.901585716 | E26: 21.125235 | F26: 4.596219643 | G26: 2 | H26: 374 | I26: 303 | J26: 296 | K26: 190 | L26: 258 | M26: 333 | N26: 424 | O26: 243 | P26: 348 | Q26: 174 | R26: 218 | S26: 197 | T26: 339 | U26: 474 | V26: 589 | W26: 770 | X26: 1502 | Y26: 414 | Z26: 64 | AA26: 69 | AB26: 1 | AC26: 0 | AD26: 0 | AE26: 0 | AF26: 0 | AG26: 0 | AH26: 0 | AI26: 0 | AJ26: 0 | AK26: 0 | AL26: 0 | AM26: 0 | AN26: 0 | AO26: 0 | AP26: 0 | AQ26: 0 | AR26: 0 | AS26: 0 | AT26: 0 | AU26: 0 | AV26: 0 | AW26: 0 | AX26: 0 | AY26: 0 | AZ26: 0 | BA26: 0 | BB26: 0 | BC26: 0 | BD26: 0 | BE26: 0 | BF26: 0 | BG26: 0 | BH26: 0 | BI26: 0 | BJ26: 0 | BK26: 0 | BL26: 0 | BM26: 0 | BN26: 0 | BO26: 0 | BP26: 0 | BQ26: 0 | BR26: 0 | BS26: 0 | BT26: 0 | BU26: 0 | BV26: 0 | BW26: 0 | BX26: 0 | BY26: 0 | BZ26: 0 | CA26: 0 | CB26: 0 | CC26: 0 | CD26: 0 | CE26: 0 | CF26: 0 | CG26: 0 | CH26: 0 | CI26: 0 | CJ26: 0 | CK26: 0 | CL26: 0 | CM26: 0 | CN26: 0 | CO26: 0 | CP26: 0 | CQ26: 0 | CR26: 0 | CS26: 0 | CT26: 0 | CV26: 2955.193058 | CW26: 2394.180472 | CX26: 2338.869372 | CY26: 1501.301286 | CZ26: 2038.609115 | DA26: 2631.228044 | DB26: 3350.272344 | DC26: 1920.085329 | DD26: 2749.751829 | DE26: 1374.875915 | DF26: 1722.545686 | DG26: 1556.612386 | DH26: 2678.637558 | DI26: 3745.35163 | DJ26: 4654.033987 | DK26: 6084.221002 | DL26: 11868.18175 | DM26: 3271.256487 | DN26: 505.7014858 | DO26: 545.2094144 | DP26: 7.901585716 | DQ26: 0 | DR26: 0 | DS26: 0 | DT26: 0 | DU26: 0 | DV26: 0 | DW26: 0 | DX26: 0 | DY26: 0 | DZ26: 0 | EA26: 0 | EB26: 0 | EC26: 0 | ED26: 0 | EE26: 0 | EF26: 0 | EG26: 0 | EH26: 0 | EI26: 0 | EJ26: 0 | EK26: 0 | EL26: 0 | EM26: 0 | EN26: 0 | EO26: 0 | EP26: 0 | EQ26: 0 | ER26: 0 | ES26: 0 | ET26: 0 | EU26: 0 | EV26: 0 | EW26: 0 | EX26: 0 | EY26: 0 | EZ26: 0 | FA26: 0 | FB26: 0 | FC26: 0 | FD26: 0 | FE26: 0 | FF26: 0 | FG26: 0 | FH26: 0 | FI26: 0 | FJ26: 0 | FK26: 0 | FL26: 0 | FM26: 0 | FN26: 0 | FO26: 0 | FP26: 0 | FQ26: 0 | FR26: 0 | FS26: 0 | FT26: 0 | FU26: 0 | FV26: 0 | FW26: 0 | FX26: 0 | FY26: 0 | FZ26: 0 | GA26: 0 | GB26: 0 | GC26: 0 | GD26: 0 | GE26: 0 | GF26: 0 | GG26: 0 | GH26: 0
A27: 3 | B27: SERVICE LINES | C27: ˂ = 11 kv ; residential ; complex type | D27: 1.112453241 | E27: 40.79932417 | F27: 6.387434867 | G27: 2 | H27: 8790 | I27: 9320 | J27: 8065 | K27: 6129 | L27: 7807 | M27: 7381 | N27: 8180 | O27: 8194 | P27: 6884 | Q27: 8365 | R27: 8164 | S27: 7829 | T27: 7628 | U27: 8046 | V27: 7802 | W27: 6500 | X27: 7137 | Y27: 6865 | Z27: 7401 | AA27: 6633 | AB27: 4954 | AC27: 5516 | AD27: 5340 | AE27: 5291 | AF27: 4792 | AG27: 4568 | AH27: 4633 | AI27: 5095 | AJ27: 4832 | AK27: 4446 | AL27: 3969 | AM27: 3318.5 | AN27: 3016.5 | AO27: 2931 | AP27: 3549.5 | AQ27: 3564 | AR27: 1871.071447 | AS27: 551.142893 | AT27: 419.4459151 | AU27: 297.0221575 | AV27: 237.4743136 | AW27: 210.1741817 | AX27: 226.5352363 | AY27: 92.46019811 | AZ27: 39.85629018 | BA27: 39.47580054 | BB27: 19.83302268 | BC27: 32.86479297 | BD27: 43.94655385 | BE27: 36.09895495 | BF27: 36.66968941 | BG27: 0 | BH27: 0 | BI27: 0 | BJ27: 0 | BK27: 0 | BL27: 0 | BM27: 0 | BN27: 0 | BO27: 0 | BP27: 0 | BQ27: 0 | BR27: 0 | BS27: 0 | BT27: 0 | BU27: 0 | BV27: 0 | BW27: 0 | BX27: 0 | BY27: 0 | BZ27: 0 | CA27: 0 | CB27: 0 | CC27: 0 | CD27: 0 | CE27: 0 | CF27: 0 | CG27: 0 | CH27: 0 | CI27: 0 | CJ27: 0 | CK27: 0 | CL27: 0 | CM27: 0 | CN27: 0 | CO27: 0 | CP27: 0 | CQ27: 0 | CR27: 0 | CS27: 0 | CT27: 0 | CV27: 9778.463992 | CW27: 10368.06421 | CX27: 8971.935392 | CY27: 6818.225916 | CZ27: 8684.922455 | DA27: 8211.017375 | DB27: 9099.867514 | DC27: 9115.44186 | DD27: 7658.128114 | DE27: 9305.671364 | DF27: 9082.068263 | DG27: 8709.396427 | DH27: 8485.793325 | DI27: 8950.79878 | DJ27: 8679.360189 | DK27: 7230.946069 | DL27: 7939.578784 | DM27: 7636.991502 | DN27: 8233.266439 | DO27: 7378.90235 | DP27: 5511.093358 | DQ27: 6136.292079 | DR27: 5940.500309 | DS27: 5885.9901 | DT27: 5330.875933 | DU27: 5081.686407 | DV27: 5153.995867 | DW27: 5667.949265 | DX27: 5375.374062 | DY27: 4945.967111 | DZ27: 4415.326915 | EA27: 3691.676082 | EB27: 3355.715203 | EC27: 3260.60045 | ED27: 3948.65278 | EE27: 3964.783352 | EF27: 2081.479496 | EG27: 613.1206978 | EH27: 466.6139678 | EI27: 330.4232619 | EJ27: 264.1790699 | EK27: 233.8089496 | EL27: 252.009858 | EM27: 102.8576471 | EN27: 44.3382592 | EO27: 43.91498227 | EP27: 22.06331037 | EQ27: 36.56054547 | ER27: 48.88848628 | ES27: 40.15839944 | ET27: 40.79331484 | EU27: 0 | EV27: 0 | EW27: 0 | EX27: 0 | EY27: 0 | EZ27: 0 | FA27: 0 | FB27: 0 | FC27: 0 | FD27: 0 | FE27: 0 | FF27: 0 | FG27: 0 | FH27: 0 | FI27: 0 | FJ27: 0 | FK27: 0 | FL27: 0 | FM27: 0 | FN27: 0 | FO27: 0 | FP27: 0 | FQ27: 0 | FR27: 0 | FS27: 0 | FT27: 0 | FU27: 0 | FV27: 0 | FW27: 0 | FX27: 0 | FY27: 0 | FZ27: 0 | GA27: 0 | GB27: 0 | GC27: 0 | GD27: 0 | GE27: 0 | GF27: 0 | GG27: 0 | GH27: 0
A28: 3 | B28: SERVICE LINES | C28: ˂ = 11 kv ; residential ; simple type | D28: 1.112453241 | E28: 40.79932417 | F28: 6.387434867 | G28: 2 | H28: 24622 | I28: 22754 | J28: 22740 | K28: 19684 | L28: 10273 | M28: 9549 | N28: 8825 | O28: 9983 | P28: 11527 | Q28: 13070 | R28: 13070 | S28: 12346 | T28: 12346 | U28: 15682 | V28: 15449 | W28: 9528 | X28: 14036 | Y28: 13660 | Z28: 17622 | AA28: 14573 | AB28: 6624 | AC28: 10733 | AD28: 10866 | AE28: 11684 | AF28: 10081 | AG28: 9959 | AH28: 11393 | AI28: 14958 | AJ28: 14626 | AK28: 13630 | AL28: 12150 | AM28: 9651 | AN28: 10897 | AO28: 8564 | AP28: 12137 | AQ28: 17392 | AR28: 14458 | AS28: 11525 | AT28: 8756 | AU28: 6203 | AV28: 4972 | AW28: 4398 | AX28: 4742 | AY28: 1923 | AZ28: 838 | BA28: 830 | BB28: 417 | BC28: 691 | BD28: 924 | BE28: 759 | BF28: 771 | BG28: 632 | BH28: 564 | BI28: 659 | BJ28: 546 | BK28: 296 | BL28: 328 | BM28: 17 | BN28: 149 | BO28: 54 | BP28: 54 | BQ28: 95 | BR28: 27 | BS28: 81 | BT28: 68 | BU28: 122 | BV28: 14 | BW28: 14 | BX28: 0 | BY28: 0 | BZ28: 0 | CA28: 0 | CB28: 0 | CC28: 0 | CD28: 0 | CE28: 0 | CF28: 0 | CG28: 0 | CH28: 0 | CI28: 0 | CJ28: 0 | CK28: 0 | CL28: 0 | CM28: 0 | CN28: 0 | CO28: 0 | CP28: 0 | CQ28: 0 | CR28: 0 | CS28: 0 | CT28: 0 | CV28: 27390.82371 | CW28: 25312.76105 | CX28: 25297.18671 | CY28: 21897.5296 | CZ28: 11428.23215 | DA28: 10622.816 | DB28: 9817.399855 | DC28: 11105.62071 | DD28: 12823.24851 | DE28: 14539.76386 | DF28: 14539.76386 | DG28: 13734.34772 | DH28: 13734.34772 | DI28: 17445.49173 | DJ28: 17186.29013 | DK28: 10599.45448 | DL28: 15614.3937 | DM28: 15196.11128 | DN28: 19603.65102 | DO28: 16211.78109 | DP28: 7368.890271 | DQ28: 11939.96064 | DR28: 12087.91692 | DS28: 12997.90367 | DT28: 11214.64113 | DU28: 11078.92183 | DV28: 12674.17978 | DW28: 16640.07558 | DX28: 16270.74111 | DY28: 15162.73768 | DZ28: 13516.30688 | EA28: 10736.28623 | EB28: 12122.40297 | EC28: 9527.049559 | ED28: 13501.84499 | EE28: 19347.78677 | EF28: 16083.84896 | EG28: 12821.02361 | EH28: 9740.640582 | EI28: 6900.547456 | EJ28: 5531.117516 | EK28: 4892.569356 | EL28: 5275.253271 | EM28: 2139.247583 | EN28: 932.2358163 | EO28: 923.3361903 | EP28: 463.8930017 | EQ28: 768.7051898 | ER28: 1027.906795 | ES28: 844.3520102 | ET28: 857.7014491 | EU28: 703.0704486 | EV28: 627.4236281 | EW28: 733.1066861 | EX28: 607.3994698 | EY28: 329.2861594 | EZ28: 364.8846632 | FA28: 18.9117051 | FB28: 165.755533 | FC28: 60.07247503 | FD28: 60.07247503 | FE28: 105.6830579 | FF28: 30.03623752 | FG28: 90.10871255 | FH28: 75.64682041 | FI28: 135.7192954 | FJ28: 15.57434538 | FK28: 15.57434538 | FL28: 0 | FM28: 0 | FN28: 0 | FO28: 0 | FP28: 0 | FQ28: 0 | FR28: 0 | FS28: 0 | FT28: 0 | FU28: 0 | FV28: 0 | FW28: 0 | FX28: 0 | FY28: 0 | FZ28: 0 | GA28: 0 | GB28: 0 | GC28: 0 | GD28: 0 | GE28: 0 | GF28: 0 | GG28: 0 | GH28: 0
A29: 4 | B29: SWITCHGEAR | C29: ˂ = 11 kv ; circuit breaker | D29: 72.99885006 | E29: 52.77241612 | F29: 7.264462549 | G29: 2 | H29: 13 | I29: 26 | J29: 62 | K29: 155 | L29: 288 | M29: 256 | N29: 124 | O29: 81 | P29: 53 | Q29: 97 | R29: 123 | S29: 97 | T29: 88 | U29: 42 | V29: 96 | W29: 19 | X29: 51 | Y29: 8 | Z29: 0 | AA29: 42 | AB29: 5 | AC29: 5 | AD29: 1 | AE29: 19 | AF29: 12 | AG29: 6 | AH29: 14 | AI29: 37 | AJ29: 37 | AK29: 36 | AL29: 13 | AM29: 35 | AN29: 28 | AO29: 115 | AP29: 29 | AQ29: 40 | AR29: 21 | AS29: 17 | AT29: 32 | AU29: 4 | AV29: 12 | AW29: 30 | AX29: 31 | AY29: 8 | AZ29: 0 | BA29: 48 | BB29: 54 | BC29: 55 | BD29: 14 | BE29: 56 | BF29: 23 | BG29: 28 | BH29: 48 | BI29: 16 | BJ29: 27 | BK29: 0 | BL29: 0 | BM29: 5 | BN29: 1 | BO29: 0 | BP29: 0 | BQ29: 0 | BR29: 0 | BS29: 0 | BT29: 0 | BU29: 0 | BV29: 0 | BW29: 0 | BX29: 0 | BY29: 0 | BZ29: 0 | CA29: 0 | CB29: 0 | CC29: 0 | CD29: 0 | CE29: 0 | CF29: 0 | CG29: 0 | CH29: 0 | CI29: 0 | CJ29: 0 | CK29: 0 | CL29: 0 | CM29: 0 | CN29: 0 | CO29: 0 | CP29: 0 | CQ29: 0 | CR29: 0 | CS29: 0 | CT29: 0 | CV29: 948.9850508 | CW29: 1897.970102 | CX29: 4525.928704 | CY29: 11314.82176 | CZ29: 21023.66882 | DA29: 18687.70562 | DB29: 9051.857408 | DC29: 5912.906855 | DD29: 3868.939053 | DE29: 7080.888456 | DF29: 8978.858558 | DG29: 7080.888456 | DH29: 6423.898805 | DI29: 3065.951703 | DJ29: 7007.889606 | DK29: 1386.978151 | DL29: 3722.941353 | DM29: 583.9908005 | DN29: 0 | DO29: 3065.951703 | DP29: 364.9942503 | DQ29: 364.9942503 | DR29: 72.99885006 | DS29: 1386.978151 | DT29: 875.9862007 | DU29: 437.9931004 | DV29: 1021.983901 | DW29: 2700.957452 | DX29: 2700.957452 | DY29: 2627.958602 | DZ29: 948.9850508 | EA29: 2554.959752 | EB29: 2043.967802 | EC29: 8394.867757 | ED29: 2116.966652 | EE29: 2919.954002 | EF29: 1532.975851 | EG29: 1240.980451 | EH29: 2335.963202 | EI29: 291.9954002 | EJ29: 875.9862007 | EK29: 2189.965502 | EL29: 2262.964352 | EM29: 583.9908005 | EN29: 0 | EO29: 3503.944803 | EP29: 3941.937903 | EQ29: 4014.936753 | ER29: 1021.983901 | ES29: 4087.935603 | ET29: 1678.973551 | EU29: 2043.967802 | EV29: 3503.944803 | EW29: 1167.981601 | EX29: 1970.968952 | EY29: 0 | EZ29: 0 | FA29: 364.9942503 | FB29: 72.99885006 | FC29: 0 | FD29: 0 | FE29: 0 | FF29: 0 | FG29: 0 | FH29: 0 | FI29: 0 | FJ29: 0 | FK29: 0 | FL29: 0 | FM29: 0 | FN29: 0 | FO29: 0 | FP29: 0 | FQ29: 0 | FR29: 0 | FS29: 0 | FT29: 0 | FU29: 0 | FV29: 0 | FW29: 0 | FX29: 0 | FY29: 0 | FZ29: 0 | GA29: 0 | GB29: 0 | GC29: 0 | GD29: 0 | GE29: 0 | GF29: 0 | GG29: 0 | GH29: 0
A30: 4 | B30: SWITCHGEAR | C30: ˂ = 11 kv ; fuse | D30: 2.966302867 | E30: 37.71251434 | F30: 6.141051567 | G30: 2 | H30: 62 | I30: 94 | J30: 94 | K30: 160 | L30: 182 | M30: 96 | N30: 67 | O30: 50 | P30: 45 | Q30: 41 | R30: 39 | S30: 24 | T30: 27 | U30: 31 | V30: 29 | W30: 33 | X30: 102 | Y30: 53 | Z30: 51 | AA30: 21 | AB30: 21 | AC30: 21 | AD30: 21 | AE30: 21 | AF30: 21 | AG30: 21 | AH30: 21 | AI30: 22 | AJ30: 21 | AK30: 21 | AL30: 21 | AM30: 21 | AN30: 21 | AO30: 21 | AP30: 21 | AQ30: 21 | AR30: 21 | AS30: 21 | AT30: 21 | AU30: 21 | AV30: 21 | AW30: 21 | AX30: 21 | AY30: 21 | AZ30: 2 | BA30: 0 | BB30: 0 | BC30: 0 | BD30: 0 | BE30: 0 | BF30: 0 | BG30: 0 | BH30: 0 | BI30: 0 | BJ30: 0 | BK30: 0 | BL30: 0 | BM30: 0 | BN30: 0 | BO30: 0 | BP30: 0 | BQ30: 0 | BR30: 0 | BS30: 0 | BT30: 0 | BU30: 0 | BV30: 0 | BW30: 0 | BX30: 0 | BY30: 0 | BZ30: 0 | CA30: 0 | CB30: 0 | CC30: 0 | CD30: 0 | CE30: 0 | CF30: 0 | CG30: 0 | CH30: 0 | CI30: 0 | CJ30: 0 | CK30: 0 | CL30: 0 | CM30: 0 | CN30: 0 | CO30: 0 | CP30: 0 | CQ30: 0 | CR30: 0 | CS30: 0 | CT30: 0 | CV30: 183.9107778 | CW30: 278.8324695 | CX30: 278.8324695 | CY30: 474.6084588 | CZ30: 539.8671219 | DA30: 284.7650753 | DB30: 198.7422921 | DC30: 148.3151434 | DD30: 133.483629 | DE30: 121.6184176 | DF30: 115.6858118 | DG30: 71.19126882 | DH30: 80.09017742 | DI30: 91.95538889 | DJ30: 86.02278315 | DK30: 97.88799462 | DL30: 302.5628925 | DM30: 157.214052 | DN30: 151.2814462 | DO30: 62.29236021 | DP30: 62.29236021 | DQ30: 62.29236021 | DR30: 62.29236021 | DS30: 62.29236021 | DT30: 62.29236021 | DU30: 62.29236021 | DV30: 62.29236021 | DW30: 65.25866308 | DX30: 62.29236021 | DY30: 62.29236021 | DZ30: 62.29236021 | EA30: 62.29236021 | EB30: 62.29236021 | EC30: 62.29236021 | ED30: 62.29236021 | EE30: 62.29236021 | EF30: 62.29236021 | EG30: 62.29236021 | EH30: 62.29236021 | EI30: 62.29236021 | EJ30: 62.29236021 | EK30: 62.29236021 | EL30: 62.29236021 | EM30: 62.29236021 | EN30: 5.932605735 | EO30: 0 | EP30: 0 | EQ30: 0 | ER30: 0 | ES30: 0 | ET30: 0 | EU30: 0 | EV30: 0 | EW30: 0 | EX30: 0 | EY30: 0 | EZ30: 0 | FA30: 0 | FB30: 0 | FC30: 0 | FD30: 0 | FE30: 0 | FF30: 0 | FG30: 0 | FH30: 0 | FI30: 0 | FJ30: 0 | FK30: 0 | FL30: 0 | FM30: 0 | FN30: 0 | FO30: 0 | FP30: 0 | FQ30: 0 | FR30: 0 | FS30: 0 | FT30: 0 | FU30: 0 | FV30: 0 | FW30: 0 | FX30: 0 | FY30: 0 | FZ30: 0 | GA30: 0 | GB30: 0 | GC30: 0 | GD30: 0 | GE30: 0 | GF30: 0 | GG30: 0 | GH30: 0
A31: 4 | B31: SWITCHGEAR | C31: ˂ = 11 kv ; switch | D31: 14.21611834 | E31: 47.31215328 | F31: 6.878383042 | G31: 2 | H31: 376 | I31: 491 | J31: 670 | K31: 860 | L31: 1161 | M31: 900 | N31: 723 | O31: 757 | P31: 835 | Q31: 971 | R31: 923 | S31: 808 | T31: 799 | U31: 717 | V31: 651 | W31: 603 | X31: 496 | Y31: 423 | Z31: 385 | AA31: 185 | AB31: 229 | AC31: 218 | AD31: 224 | AE31: 251 | AF31: 229 | AG31: 264 | AH31: 301 | AI31: 320 | AJ31: 297 | AK31: 299 | AL31: 295 | AM31: 273 | AN31: 305 | AO31: 326 | AP31: 258 | AQ31: 241 | AR31: 232 | AS31: 299 | AT31: 285 | AU31: 265 | AV31: 243 | AW31: 259 | AX31: 194 | AY31: 182 | AZ31: 167 | BA31: 191 | BB31: 176 | BC31: 190 | BD31: 167 | BE31: 150 | BF31: 148 | BG31: 158 | BH31: 36 | BI31: 15 | BJ31: 5 | BK31: 8 | BL31: 5 | BM31: 3 | BN31: 0 | BO31: 0 | BP31: 0 | BQ31: 0 | BR31: 0 | BS31: 0 | BT31: 0 | BU31: 0 | BV31: 0 | BW31: 0 | BX31: 0 | BY31: 0 | BZ31: 0 | CA31: 0 | CB31: 0 | CC31: 0 | CD31: 0 | CE31: 0 | CF31: 0 | CG31: 0 | CH31: 0 | CI31: 0 | CJ31: 0 | CK31: 0 | CL31: 0 | CM31: 0 | CN31: 0 | CO31: 0 | CP31: 0 | CQ31: 0 | CR31: 0 | CS31: 0 | CT31: 0 | CV31: 5345.260496 | CW31: 6980.114105 | CX31: 9524.799288 | CY31: 12225.86177 | CZ31: 16504.91339 | DA31: 12794.50651 | DB31: 10278.25356 | DC31: 10761.60158 | DD31: 11870.45881 | DE31: 13803.85091 | DF31: 13121.47723 | DG31: 11486.62362 | DH31: 11358.67855 | DI31: 10192.95685 | DJ31: 9254.69304 | DK31: 8572.319359 | DL31: 7051.194697 | DM31: 6013.418058 | DN31: 5473.205561 | DO31: 2629.981893 | DP31: 3255.4911 | DQ31: 3099.113798 | DR31: 3184.410508 | DS31: 3568.245703 | DT31: 3255.4911 | DU31: 3753.055242 | DV31: 4279.05162 | DW31: 4549.157869 | DX31: 4222.187147 | DY31: 4250.619384 | DZ31: 4193.75491 | EA31: 3881.000307 | EB31: 4335.916094 | EC31: 4634.454579 | ED31: 3667.758532 | EE31: 3426.08452 | EF31: 3298.139455 | EG31: 4250.619384 | EH31: 4051.593727 | EI31: 3767.27136 | EJ31: 3454.516757 | EK31: 3681.97465 | EL31: 2757.926958 | EM31: 2587.333538 | EN31: 2374.091763 | EO31: 2715.278603 | EP31: 2502.036828 | EQ31: 2701.062485 | ER31: 2374.091763 | ES31: 2132.417751 | ET31: 2103.985514 | EU31: 2246.146698 | EV31: 511.7802603 | EW31: 213.2417751 | EX31: 71.0805917 | EY31: 113.7289467 | EZ31: 71.0805917 | FA31: 42.64835502 | FB31: 0 | FC31: 0 | FD31: 0 | FE31: 0 | FF31: 0 | FG31: 0 | FH31: 0 | FI31: 0 | FJ31: 0 | FK31: 0 | FL31: 0 | FM31: 0 | FN31: 0 | FO31: 0 | FP31: 0 | FQ31: 0 | FR31: 0 | FS31: 0 | FT31: 0 | FU31: 0 | FV31: 0 | FW31: 0 | FX31: 0 | FY31: 0 | FZ31: 0 | GA31: 0 | GB31: 0 | GC31: 0 | GD31: 0 | GE31: 0 | GF31: 0 | GG31: 0 | GH31: 0
A32: 4 | B32: SWITCHGEAR | C32: > 11 kv & < = 22 kv ; circuit breaker | D32: 72.99885006 | E32: 52.77241612 | F32: 7.264462549 | G32: 2 | H32: 0 | I32: 0 | J32: 0 | K32: 0 | L32: 0 | M32: 0 | N32: 2 | O32: 21 | P32: 4 | Q32: 0 | R32: 0 | S32: 0 | T32: 7 | U32: 0 | V32: 0 | W32: 0 | X32: 0 | Y32: 16 | Z32: 0 | AA32: 0 | AB32: 0 | AC32: 0 | AD32: 0 | AE32: 0 | AF32: 0 | AG32: 0 | AH32: 0 | AI32: 0 | AJ32: 0 | AK32: 0 | AL32: 0 | AM32: 0 | AN32: 0 | AO32: 0 | AP32: 0 | AQ32: 0 | AR32: 0 | AS32: 0 | AT32: 0 | AU32: 0 | AV32: 0 | AW32: 0 | AX32: 0 | AY32: 0 | AZ32: 0 | BA32: 0 | BB32: 0 | BC32: 0 | BD32: 0 | BE32: 0 | BF32: 0 | BG32: 0 | BH32: 0 | BI32: 0 | BJ32: 0 | BK32: 0 | BL32: 0 | BM32: 0 | BN32: 0 | BO32: 0 | BP32: 0 | BQ32: 0 | BR32: 0 | BS32: 0 | BT32: 0 | BU32: 0 | BV32: 0 | BW32: 0 | BX32: 0 | BY32: 0 | BZ32: 0 | CA32: 0 | CB32: 0 | CC32: 0 | CD32: 0 | CE32: 0 | CF32: 0 | CG32: 0 | CH32: 0 | CI32: 0 | CJ32: 0 | CK32: 0 | CL32: 0 | CM32: 0 | CN32: 0 | CO32: 0 | CP32: 0 | CQ32: 0 | CR32: 0 | CS32: 0 | CT32: 0 | CV32: 0 | CW32: 0 | CX32: 0 | CY32: 0 | CZ32: 0 | DA32: 0 | DB32: 145.9977001 | DC32: 1532.975851 | DD32: 291.9954002 | DE32: 0 | DF32: 0 | DG32: 0 | DH32: 510.9919504 | DI32: 0 | DJ32: 0 | DK32: 0 | DL32: 0 | DM32: 1167.981601 | DN32: 0 | DO32: 0 | DP32: 0 | DQ32: 0 | DR32: 0 | DS32: 0 | DT32: 0 | DU32: 0 | DV32: 0 | DW32: 0 | DX32: 0 | DY32: 0 | DZ32: 0 | EA32: 0 | EB32: 0 | EC32: 0 | ED32: 0 | EE32: 0 | EF32: 0 | EG32: 0 | EH32: 0 | EI32: 0 | EJ32: 0 | EK32: 0 | EL32: 0 | EM32: 0 | EN32: 0 | EO32: 0 | EP32: 0 | EQ32: 0 | ER32: 0 | ES32: 0 | ET32: 0 | EU32: 0 | EV32: 0 | EW32: 0 | EX32: 0 | EY32: 0 | EZ32: 0 | FA32: 0 | FB32: 0 | FC32: 0 | FD32: 0 | FE32: 0 | FF32: 0 | FG32: 0 | FH32: 0 | FI32: 0 | FJ32: 0 | FK32: 0 | FL32: 0 | FM32: 0 | FN32: 0 | FO32: 0 | FP32: 0 | FQ32: 0 | FR32: 0 | FS32: 0 | FT32: 0 | FU32: 0 | FV32: 0 | FW32: 0 | FX32: 0 | FY32: 0 | FZ32: 0 | GA32: 0 | GB32: 0 | GC32: 0 | GD32: 0 | GE32: 0 | GF32: 0 | GG32: 0 | GH32: 0
A33: 4 | B33: SWITCHGEAR | C33: > 11 kv & < = 22 kv ; switch | D33: 12.43694804 | E33: 41.74842244 | F33: 6.461301915 | G33: 2 | H33: 13 | I33: 12 | J33: 16 | K33: 9 | L33: 7 | M33: 8 | N33: 13 | O33: 8 | P33: 34 | Q33: 18 | R33: 6 | S33: 15 | T33: 11 | U33: 13 | V33: 7 | W33: 7 | X33: 8 | Y33: 23 | Z33: 9 | AA33: 2 | AB33: 2 | AC33: 2 | AD33: 8 | AE33: 11 | AF33: 5 | AG33: 2 | AH33: 2 | AI33: 2 | AJ33: 11 | AK33: 3 | AL33: 5 | AM33: 5 | AN33: 2 | AO33: 2 | AP33: 2 | AQ33: 2 | AR33: 2 | AS33: 2 | AT33: 2 | AU33: 2 | AV33: 2 | AW33: 2 | AX33: 2 | AY33: 2 | AZ33: 2 | BA33: 2 | BB33: 2 | BC33: 2 | BD33: 2 | BE33: 2 | BF33: 2 | BG33: 2 | BH33: 0 | BI33: 0 | BJ33: 0 | BK33: 0 | BL33: 0 | BM33: 0 | BN33: 0 | BO33: 0 | BP33: 0 | BQ33: 0 | BR33: 0 | BS33: 0 | BT33: 0 | BU33: 0 | BV33: 0 | BW33: 0 | BX33: 0 | BY33: 0 | BZ33: 0 | CA33: 0 | CB33: 0 | CC33: 0 | CD33: 0 | CE33: 0 | CF33: 0 | CG33: 0 | CH33: 0 | CI33: 0 | CJ33: 0 | CK33: 0 | CL33: 0 | CM33: 0 | CN33: 0 | CO33: 0 | CP33: 0 | CQ33: 0 | CR33: 0 | CS33: 0 | CT33: 0 | CV33: 161.6803246 | CW33: 149.2433765 | CX33: 198.9911687 | CY33: 111.9325324 | CZ33: 87.05863631 | DA33: 99.49558435 | DB33: 161.6803246 | DC33: 99.49558435 | DD33: 422.8562335 | DE33: 223.8650648 | DF33: 74.62168826 | DG33: 186.5542207 | DH33: 136.8064285 | DI33: 161.6803246 | DJ33: 87.05863631 | DK33: 87.05863631 | DL33: 99.49558435 | DM33: 286.049805 | DN33: 111.9325324 | DO33: 24.87389609 | DP33: 24.87389609 | DQ33: 24.87389609 | DR33: 99.49558435 | DS33: 136.8064285 | DT33: 62.18474022 | DU33: 24.87389609 | DV33: 24.87389609 | DW33: 24.87389609 | DX33: 136.8064285 | DY33: 37.31084413 | DZ33: 62.18474022 | EA33: 62.18474022 | EB33: 24.87389609 | EC33: 24.87389609 | ED33: 24.87389609 | EE33: 24.87389609 | EF33: 24.87389609 | EG33: 24.87389609 | EH33: 24.87389609 | EI33: 24.87389609 | EJ33: 24.87389609 | EK33: 24.87389609 | EL33: 24.87389609 | EM33: 24.87389609 | EN33: 24.87389609 | EO33: 24.87389609 | EP33: 24.87389609 | EQ33: 24.87389609 | ER33: 24.87389609 | ES33: 24.87389609 | ET33: 24.87389609 | EU33: 24.87389609 | EV33: 0 | EW33: 0 | EX33: 0 | EY33: 0 | EZ33: 0 | FA33: 0 | FB33: 0 | FC33: 0 | FD33: 0 | FE33: 0 | FF33: 0 | FG33: 0 | FH33: 0 | FI33: 0 | FJ33: 0 | FK33: 0 | FL33: 0 | FM33: 0 | FN33: 0 | FO33: 0 | FP33: 0 | FQ33: 0 | FR33: 0 | FS33: 0 | FT33: 0 | FU33: 0 | FV33: 0 | FW33: 0 | FX33: 0 | FY33: 0 | FZ33: 0 | GA33: 0 | GB33: 0 | GC33: 0 | GD33: 0 | GE33: 0 | GF33: 0 | GG33: 0 | GH33: 0
A34: 4 | B34: SWITCHGEAR | C34: > 22 kv & < = 33 kv ; circuit breaker | D34: 67.02746355 | E34: 51.98039924 | F34: 7.209743355 | G34: 2 | H34: 1 | I34: 2 | J34: 2 | K34: 23 | L34: 62 | M34: 149 | N34: 61 | O34: 68 | P34: 61 | Q34: 48 | R34: 40 | S34: 25 | T34: 16 | U34: 29 | V34: 18 | W34: 7 | X34: 9 | Y34: 5 | Z34: 5 | AA34: 0 | AB34: 3 | AC34: 7 | AD34: 1 | AE34: 13 | AF34: 0 | AG34: 0 | AH34: 7 | AI34: 6 | AJ34: 2 | AK34: 1 | AL34: 1 | AM34: 0 | AN34: 9 | AO34: 12 | AP34: 6 | AQ34: 12 | AR34: 7 | AS34: 6 | AT34: 5 | AU34: 11 | AV34: 1 | AW34: 3 | AX34: 13 | AY34: 5 | AZ34: 4 | BA34: 4 | BB34: 37 | BC34: 7 | BD34: 33 | BE34: 20 | BF34: 7 | BG34: 32 | BH34: 8 | BI34: 16 | BJ34: 7 | BK34: 0 | BL34: 3 | BM34: 3 | BN34: 2 | BO34: 0 | BP34: 0 | BQ34: 0 | BR34: 0 | BS34: 0 | BT34: 0 | BU34: 0 | BV34: 0 | BW34: 0 | BX34: 0 | BY34: 0 | BZ34: 0 | CA34: 0 | CB34: 0 | CC34: 0 | CD34: 0 | CE34: 0 | CF34: 0 | CG34: 0 | CH34: 0 | CI34: 0 | CJ34: 0 | CK34: 0 | CL34: 0 | CM34: 0 | CN34: 0 | CO34: 0 | CP34: 0 | CQ34: 0 | CR34: 0 | CS34: 0 | CT34: 0 | CV34: 67.02746355 | CW34: 134.0549271 | CX34: 134.0549271 | CY34: 1541.631662 | CZ34: 4155.70274 | DA34: 9987.092069 | DB34: 4088.675277 | DC34: 4557.867522 | DD34: 4088.675277 | DE34: 3217.31825 | DF34: 2681.098542 | DG34: 1675.686589 | DH34: 1072.439417 | DI34: 1943.796443 | DJ34: 1206.494344 | DK34: 469.1922449 | DL34: 603.247172 | DM34: 335.1373178 | DN34: 335.1373178 | DO34: 0 | DP34: 201.0823907 | DQ34: 469.1922449 | DR34: 67.02746355 | DS34: 871.3570262 | DT34: 0 | DU34: 0 | DV34: 469.1922449 | DW34: 402.1647813 | DX34: 134.0549271 | DY34: 67.02746355 | DZ34: 67.02746355 | EA34: 0 | EB34: 603.247172 | EC34: 804.3295626 | ED34: 402.1647813 | EE34: 804.3295626 | EF34: 469.1922449 | EG34: 402.1647813 | EH34: 335.1373178 | EI34: 737.3020991 | EJ34: 67.02746355 | EK34: 201.0823907 | EL34: 871.3570262 | EM34: 335.1373178 | EN34: 268.1098542 | EO34: 268.1098542 | EP34: 2480.016151 | EQ34: 469.1922449 | ER34: 2211.906297 | ES34: 1340.549271 | ET34: 469.1922449 | EU34: 2144.878834 | EV34: 536.2197084 | EW34: 1072.439417 | EX34: 469.1922449 | EY34: 0 | EZ34: 201.0823907 | FA34: 201.0823907 | FB34: 134.0549271 | FC34: 0 | FD34: 0 | FE34: 0 | FF34: 0 | FG34: 0 | FH34: 0 | FI34: 0 | FJ34: 0 | FK34: 0 | FL34: 0 | FM34: 0 | FN34: 0 | FO34: 0 | FP34: 0 | FQ34: 0 | FR34: 0 | FS34: 0 | FT34: 0 | FU34: 0 | FV34: 0 | FW34: 0 | FX34: 0 | FY34: 0 | FZ34: 0 | GA34: 0 | GB34: 0 | GC34: 0 | GD34: 0 | GE34: 0 | GF34: 0 | GG34: 0 | GH34: 0
A35: 4 | B35: SWITCHGEAR | C35: > 22 kv & < = 33 kv ; switch | D35: 24.64720403 | E35: 23.55191859 | F35: 4.853031896 | G35: 2 | H35: 12 | I35: 4 | J35: 0 | K35: 7 | L35: 3 | M35: 7 | N35: 4 | O35: 7 | P35: 2 | Q35: 9 | R35: 13 | S35: 6 | T35: 18 | U35: 18 | V35: 11 | W35: 0 | X35: 0 | Y35: 16 | Z35: 3 | AA35: 0 | AB35: 0 | AC35: 0 | AD35: 0 | AE35: 2 | AF35: 2 | AG35: 0 | AH35: 0 | AI35: 0 | AJ35: 0 | AK35: 0 | AL35: 0 | AM35: 0 | AN35: 0 | AO35: 0 | AP35: 2 | AQ35: 1 | AR35: 0 | AS35: 0 | AT35: 0 | AU35: 0 | AV35: 0 | AW35: 0 | AX35: 0 | AY35: 0 | AZ35: 0 | BA35: 0 | BB35: 0 | BC35: 0 | BD35: 0 | BE35: 0 | BF35: 0 | BG35: 0 | BH35: 0 | BI35: 0 | BJ35: 0 | BK35: 0 | BL35: 0 | BM35: 0 | BN35: 0 | BO35: 0 | BP35: 0 | BQ35: 0 | BR35: 0 | BS35: 0 | BT35: 0 | BU35: 0 | BV35: 0 | BW35: 0 | BX35: 0 | BY35: 0 | BZ35: 0 | CA35: 0 | CB35: 0 | CC35: 0 | CD35: 0 | CE35: 0 | CF35: 0 | CG35: 0 | CH35: 0 | CI35: 0 | CJ35: 0 | CK35: 0 | CL35: 0 | CM35: 0 | CN35: 0 | CO35: 0 | CP35: 0 | CQ35: 0 | CR35: 0 | CS35: 0 | CT35: 0 | CV35: 295.7664484 | CW35: 98.58881614 | CX35: 0 | CY35: 172.5304282 | CZ35: 73.9416121 | DA35: 172.5304282 | DB35: 98.58881614 | DC35: 172.5304282 | DD35: 49.29440807 | DE35: 221.8248363 | DF35: 320.4136524 | DG35: 147.8832242 | DH35: 443.6496726 | DI35: 443.6496726 | DJ35: 271.1192444 | DK35: 0 | DL35: 0 | DM35: 394.3552645 | DN35: 73.9416121 | DO35: 0 | DP35: 0 | DQ35: 0 | DR35: 0 | DS35: 49.29440807 | DT35: 49.29440807 | DU35: 0 | DV35: 0 | DW35: 0 | DX35: 0 | DY35: 0 | DZ35: 0 | EA35: 0 | EB35: 0 | EC35: 0 | ED35: 49.29440807 | EE35: 24.64720403 | EF35: 0 | EG35: 0 | EH35: 0 | EI35: 0 | EJ35: 0 | EK35: 0 | EL35: 0 | EM35: 0 | EN35: 0 | EO35: 0 | EP35: 0 | EQ35: 0 | ER35: 0 | ES35: 0 | ET35: 0 | EU35: 0 | EV35: 0 | EW35: 0 | EX35: 0 | EY35: 0 | EZ35: 0 | FA35: 0 | FB35: 0 | FC35: 0 | FD35: 0 | FE35: 0 | FF35: 0 | FG35: 0 | FH35: 0 | FI35: 0 | FJ35: 0 | FK35: 0 | FL35: 0 | FM35: 0 | FN35: 0 | FO35: 0 | FP35: 0 | FQ35: 0 | FR35: 0 | FS35: 0 | FT35: 0 | FU35: 0 | FV35: 0 | FW35: 0 | FX35: 0 | FY35: 0 | FZ35: 0 | GA35: 0 | GB35: 0 | GC35: 0 | GD35: 0 | GE35: 0 | GF35: 0 | GG35: 0 | GH35: 0
A36: 4 | B36: SWITCHGEAR | C36: > 33 kv & < = 66 kv ; circuit breaker | D36: 65.70823239 | E36: 47.2163443 | F36: 6.871415015 | G36: 2 | H36: 0 | I36: 0 | J36: 8 | K36: 1 | L36: 6 | M36: 7 | N36: 32 | O36: 8 | P36: 12 | Q36: 7 | R36: 21 | S36: 21 | T36: 5 | U36: 0 | V36: 0 | W36: 15 | X36: 5 | Y36: 1 | Z36: 0 | AA36: 0 | AB36: 0 | AC36: 2 | AD36: 1 | AE36: 2 | AF36: 0 | AG36: 0 | AH36: 1 | AI36: 0 | AJ36: 3 | AK36: 5 | AL36: 0 | AM36: 5 | AN36: 0 | AO36: 1 | AP36: 1 | AQ36: 1 | AR36: 7 | AS36: 1 | AT36: 0 | AU36: 0 | AV36: 0 | AW36: 2 | AX36: 0 | AY36: 0 | AZ36: 0 | BA36: 0 | BB36: 0 | BC36: 8 | BD36: 0 | BE36: 0 | BF36: 0 | BG36: 0 | BH36: 2 | BI36: 0 | BJ36: 0 | BK36: 0 | BL36: 0 | BM36: 0 | BN36: 0 | BO36: 0 | BP36: 0 | BQ36: 0 | BR36: 0 | BS36: 0 | BT36: 0 | BU36: 0 | BV36: 0 | BW36: 0 | BX36: 0 | BY36: 0 | BZ36: 0 | CA36: 0 | CB36: 0 | CC36: 0 | CD36: 0 | CE36: 0 | CF36: 0 | CG36: 0 | CH36: 0 | CI36: 0 | CJ36: 0 | CK36: 0 | CL36: 0 | CM36: 0 | CN36: 0 | CO36: 0 | CP36: 0 | CQ36: 0 | CR36: 0 | CS36: 0 | CT36: 0 | CV36: 0 | CW36: 0 | CX36: 525.6658591 | CY36: 65.70823239 | CZ36: 394.2493943 | DA36: 459.9576267 | DB36: 2102.663436 | DC36: 525.6658591 | DD36: 788.4987886 | DE36: 459.9576267 | DF36: 1379.87288 | DG36: 1379.87288 | DH36: 328.5411619 | DI36: 0 | DJ36: 0 | DK36: 985.6234858 | DL36: 328.5411619 | DM36: 65.70823239 | DN36: 0 | DO36: 0 | DP36: 0 | DQ36: 131.4164648 | DR36: 65.70823239 | DS36: 131.4164648 | DT36: 0 | DU36: 0 | DV36: 65.70823239 | DW36: 0 | DX36: 197.1246972 | DY36: 328.5411619 | DZ36: 0 | EA36: 328.5411619 | EB36: 0 | EC36: 65.70823239 | ED36: 65.70823239 | EE36: 65.70823239 | EF36: 459.9576267 | EG36: 65.70823239 | EH36: 0 | EI36: 0 | EJ36: 0 | EK36: 131.4164648 | EL36: 0 | EM36: 0 | EN36: 0 | EO36: 0 | EP36: 0 | EQ36: 525.6658591 | ER36: 0 | ES36: 0 | ET36: 0 | EU36: 0 | EV36: 131.4164648 | EW36: 0 | EX36: 0 | EY36: 0 | EZ36: 0 | FA36: 0 | FB36: 0 | FC36: 0 | FD36: 0 | FE36: 0 | FF36: 0 | FG36: 0 | FH36: 0 | FI36: 0 | FJ36: 0 | FK36: 0 | FL36: 0 | FM36: 0 | FN36: 0 | FO36: 0 | FP36: 0 | FQ36: 0 | FR36: 0 | FS36: 0 | FT36: 0 | FU36: 0 | FV36: 0 | FW36: 0 | FX36: 0 | FY36: 0 | FZ36: 0 | GA36: 0 | GB36: 0 | GC36: 0 | GD36: 0 | GE36: 0 | GF36: 0 | GG36: 0 | GH36: 0
A37: 4 | B37: SWITCHGEAR | C37: > 33 kv & < = 66 kv ; switch | D37: 19.67336693 | E37: 13.00696263 | F37: 3.606516689 | G37: 2 | H37: 0 | I37: 4 | J37: 7 | K37: 0 | L37: 3 | M37: 0 | N37: 3 | O37: 4 | P37: 3 | Q37: 3 | R37: 3 | S37: 3 | T37: 0 | U37: 2 | V37: 0 | W37: 2 | X37: 0 | Y37: 0 | Z37: 0 | AA37: 0 | AB37: 0 | AC37: 0 | AD37: 0 | AE37: 0 | AF37: 0 | AG37: 0 | AH37: 0 | AI37: 0 | AJ37: 0 | AK37: 0 | AL37: 0 | AM37: 0 | AN37: 0 | AO37: 0 | AP37: 0 | AQ37: 0 | AR37: 0 | AS37: 0 | AT37: 0 | AU37: 0 | AV37: 0 | AW37: 0 | AX37: 0 | AY37: 0 | AZ37: 0 | BA37: 0 | BB37: 0 | BC37: 0 | BD37: 0 | BE37: 0 | BF37: 0 | BG37: 0 | BH37: 0 | BI37: 0 | BJ37: 0 | BK37: 0 | BL37: 0 | BM37: 0 | BN37: 0 | BO37: 0 | BP37: 0 | BQ37: 0 | BR37: 0 | BS37: 0 | BT37: 0 | BU37: 0 | BV37: 0 | BW37: 0 | BX37: 0 | BY37: 0 | BZ37: 0 | CA37: 0 | CB37: 0 | CC37: 0 | CD37: 0 | CE37: 0 | CF37: 0 | CG37: 0 | CH37: 0 | CI37: 0 | CJ37: 0 | CK37: 0 | CL37: 0 | CM37: 0 | CN37: 0 | CO37: 0 | CP37: 0 | CQ37: 0 | CR37: 0 | CS37: 0 | CT37: 0 | CV37: 0 | CW37: 78.69346773 | CX37: 137.7135685 | CY37: 0 | CZ37: 59.0201008 | DA37: 0 | DB37: 59.0201008 | DC37: 78.69346773 | DD37: 59.0201008 | DE37: 59.0201008 | DF37: 59.0201008 | DG37: 59.0201008 | DH37: 0 | DI37: 39.34673387 | DJ37: 0 | DK37: 39.34673387 | DL37: 0 | DM37: 0 | DN37: 0 | DO37: 0 | DP37: 0 | DQ37: 0 | DR37: 0 | DS37: 0 | DT37: 0 | DU37: 0 | DV37: 0 | DW37: 0 | DX37: 0 | DY37: 0 | DZ37: 0 | EA37: 0 | EB37: 0 | EC37: 0 | ED37: 0 | EE37: 0 | EF37: 0 | EG37: 0 | EH37: 0 | EI37: 0 | EJ37: 0 | EK37: 0 | EL37: 0 | EM37: 0 | EN37: 0 | EO37: 0 | EP37: 0 | EQ37: 0 | ER37: 0 | ES37: 0 | ET37: 0 | EU37: 0 | EV37: 0 | EW37: 0 | EX37: 0 | EY37: 0 | EZ37: 0 | FA37: 0 | FB37: 0 | FC37: 0 | FD37: 0 | FE37: 0 | FF37: 0 | FG37: 0 | FH37: 0 | FI37: 0 | FJ37: 0 | FK37: 0 | FL37: 0 | FM37: 0 | FN37: 0 | FO37: 0 | FP37: 0 | FQ37: 0 | FR37: 0 | FS37: 0 | FT37: 0 | FU37: 0 | FV37: 0 | FW37: 0 | FX37: 0 | FY37: 0 | FZ37: 0 | GA37: 0 | GB37: 0 | GC37: 0 | GD37: 0 | GE37: 0 | GF37: 0 | GG37: 0 | GH37: 0
A38: 4 | B38: SWITCHGEAR | C38: > 66 kv & < = 132 kv ; circuit breaker | D38: 85.32263012 | E38: 35.2544508 | F38: 5.937545857 | G38: 2 | H38: 3 | I38: 5 | J38: 1 | K38: 0 | L38: 17 | M38: 50 | N38: 1 | O38: 8 | P38: 48 | Q38: 35 | R38: 59 | S38: 20 | T38: 25 | U38: 23 | V38: 7 | W38: 7 | X38: 5 | Y38: 15 | Z38: 11 | AA38: 0 | AB38: 0 | AC38: 5 | AD38: 8 | AE38: 1 | AF38: 2 | AG38: 0 | AH38: 0 | AI38: 11 | AJ38: 3 | AK38: 3 | AL38: 0 | AM38: 4 | AN38: 0 | AO38: 1 | AP38: 3 | AQ38: 1 | AR38: 4 | AS38: 0 | AT38: 0 | AU38: 0 | AV38: 0 | AW38: 4 | AX38: 0 | AY38: 0 | AZ38: 0 | BA38: 0 | BB38: 0 | BC38: 0 | BD38: 0 | BE38: 0 | BF38: 0 | BG38: 0 | BH38: 0 | BI38: 0 | BJ38: 0 | BK38: 0 | BL38: 0 | BM38: 0 | BN38: 0 | BO38: 0 | BP38: 0 | BQ38: 0 | BR38: 0 | BS38: 0 | BT38: 0 | BU38: 0 | BV38: 0 | BW38: 0 | BX38: 0 | BY38: 0 | BZ38: 0 | CA38: 0 | CB38: 0 | CC38: 0 | CD38: 0 | CE38: 0 | CF38: 0 | CG38: 0 | CH38: 0 | CI38: 0 | CJ38: 0 | CK38: 0 | CL38: 0 | CM38: 0 | CN38: 0 | CO38: 0 | CP38: 0 | CQ38: 0 | CR38: 0 | CS38: 0 | CT38: 0 | CV38: 255.9678903 | CW38: 426.6131506 | CX38: 85.32263012 | CY38: 0 | CZ38: 1450.484712 | DA38: 4266.131506 | DB38: 85.32263012 | DC38: 682.5810409 | DD38: 4095.486246 | DE38: 2986.292054 | DF38: 5034.035177 | DG38: 1706.452602 | DH38: 2133.065753 | DI38: 1962.420493 | DJ38: 597.2584108 | DK38: 597.2584108 | DL38: 426.6131506 | DM38: 1279.839452 | DN38: 938.5489313 | DO38: 0 | DP38: 0 | DQ38: 426.6131506 | DR38: 682.5810409 | DS38: 85.32263012 | DT38: 170.6452602 | DU38: 0 | DV38: 0 | DW38: 938.5489313 | DX38: 255.9678903 | DY38: 255.9678903 | DZ38: 0 | EA38: 341.2905205 | EB38: 0 | EC38: 85.32263012 | ED38: 255.9678903 | EE38: 85.32263012 | EF38: 341.2905205 | EG38: 0 | EH38: 0 | EI38: 0 | EJ38: 0 | EK38: 341.2905205 | EL38: 0 | EM38: 0 | EN38: 0 | EO38: 0 | EP38: 0 | EQ38: 0 | ER38: 0 | ES38: 0 | ET38: 0 | EU38: 0 | EV38: 0 | EW38: 0 | EX38: 0 | EY38: 0 | EZ38: 0 | FA38: 0 | FB38: 0 | FC38: 0 | FD38: 0 | FE38: 0 | FF38: 0 | FG38: 0 | FH38: 0 | FI38: 0 | FJ38: 0 | FK38: 0 | FL38: 0 | FM38: 0 | FN38: 0 | FO38: 0 | FP38: 0 | FQ38: 0 | FR38: 0 | FS38: 0 | FT38: 0 | FU38: 0 | FV38: 0 | FW38: 0 | FX38: 0 | FY38: 0 | FZ38: 0 | GA38: 0 | GB38: 0 | GC38: 0 | GD38: 0 | GE38: 0 | GF38: 0 | GG38: 0 | GH38: 0
A39: 5 | B39: TRANSFORMERS | C39: ground outdoor / indoor chamber mounted ; ˂ 22 kv ; < = 60 kva ; multiple phase | D39: 42.98991289 | E39: 46.10903198 | F39: 6.79036317 | G39: 2 | H39: 0 | I39: 2 | J39: 8 | K39: 17 | L39: 10 | M39: 14 | N39: 21 | O39: 17 | P39: 19 | Q39: 26 | R39: 32 | S39: 40 | T39: 26 | U39: 30 | V39: 14 | W39: 27 | X39: 9 | Y39: 23 | Z39: 17 | AA39: 17 | AB39: 7 | AC39: 26 | AD39: 29 | AE39: 24 | AF39: 21 | AG39: 13 | AH39: 14 | AI39: 13 | AJ39: 16 | AK39: 40 | AL39: 14 | AM39: 9 | AN39: 12 | AO39: 10 | AP39: 13 | AQ39: 6 | AR39: 4 | AS39: 7 | AT39: 4 | AU39: 6 | AV39: 1 | AW39: 7 | AX39: 3 | AY39: 4 | AZ39: 3 | BA39: 2 | BB39: 1 | BC39: 1 | BD39: 0 | BE39: 0 | BF39: 0 | BG39: 0 | BH39: 0 | BI39: 3 | BJ39: 1 | BK39: 0 | BL39: 0 | BM39: 0 | BN39: 0 | BO39: 0 | BP39: 0 | BQ39: 0 | BR39: 0 | BS39: 0 | BT39: 0 | BU39: 0 | BV39: 0 | BW39: 0 | BX39: 0 | BY39: 0 | BZ39: 0 | CA39: 0 | CB39: 0 | CC39: 0 | CD39: 0 | CE39: 0 | CF39: 0 | CG39: 0 | CH39: 0 | CI39: 0 | CJ39: 0 | CK39: 0 | CL39: 0 | CM39: 0 | CN39: 0 | CO39: 0 | CP39: 0 | CQ39: 0 | CR39: 0 | CS39: 0 | CT39: 0 | CV39: 0 | CW39: 85.97982578 | CX39: 343.9193031 | CY39: 730.8285191 | CZ39: 429.8991289 | DA39: 601.8587805 | DB39: 902.7881707 | DC39: 730.8285191 | DD39: 816.8083449 | DE39: 1117.737735 | DF39: 1375.677212 | DG39: 1719.596516 | DH39: 1117.737735 | DI39: 1289.697387 | DJ39: 601.8587805 | DK39: 1160.727648 | DL39: 386.909216 | DM39: 988.7679965 | DN39: 730.8285191 | DO39: 730.8285191 | DP39: 300.9293902 | DQ39: 1117.737735 | DR39: 1246.707474 | DS39: 1031.757909 | DT39: 902.7881707 | DU39: 558.8688676 | DV39: 601.8587805 | DW39: 558.8688676 | DX39: 687.8386062 | DY39: 1719.596516 | DZ39: 601.8587805 | EA39: 386.909216 | EB39: 515.8789547 | EC39: 429.8991289 | ED39: 558.8688676 | EE39: 257.9394773 | EF39: 171.9596516 | EG39: 300.9293902 | EH39: 171.9596516 | EI39: 257.9394773 | EJ39: 42.98991289 | EK39: 300.9293902 | EL39: 128.9697387 | EM39: 171.9596516 | EN39: 128.9697387 | EO39: 85.97982578 | EP39: 42.98991289 | EQ39: 42.98991289 | ER39: 0 | ES39: 0 | ET39: 0 | EU39: 0 | EV39: 0 | EW39: 128.9697387 | EX39: 42.98991289 | EY39: 0 | EZ39: 0 | FA39: 0 | FB39: 0 | FC39: 0 | FD39: 0 | FE39: 0 | FF39: 0 | FG39: 0 | FH39: 0 | FI39: 0 | FJ39: 0 | FK39: 0 | FL39: 0 | FM39: 0 | FN39: 0 | FO39: 0 | FP39: 0 | FQ39: 0 | FR39: 0 | FS39: 0 | FT39: 0 | FU39: 0 | FV39: 0 | FW39: 0 | FX39: 0 | FY39: 0 | FZ39: 0 | GA39: 0 | GB39: 0 | GC39: 0 | GD39: 0 | GE39: 0 | GF39: 0 | GG39: 0 | GH39: 0
A40: 5 | B40: TRANSFORMERS | C40: ground outdoor / indoor chamber mounted ; ˂ 22 kv ; > 60 kva and < = 600 kva ; multiple phase | D40: 42.98991289 | E40: 46.10903198 | F40: 6.79036317 | G40: 2 | H40: 1 | I40: 3 | J40: 5 | K40: 2 | L40: 4 | M40: 9 | N40: 8 | O40: 10 | P40: 12 | Q40: 7 | R40: 9 | S40: 4 | T40: 10 | U40: 6 | V40: 0 | W40: 1 | X40: 1 | Y40: 1 | Z40: 1 | AA40: 3 | AB40: 3 | AC40: 2 | AD40: 5 | AE40: 4 | AF40: 3 | AG40: 4 | AH40: 27 | AI40: 3 | AJ40: 7 | AK40: 11 | AL40: 14 | AM40: 11 | AN40: 7 | AO40: 14 | AP40: 17 | AQ40: 6 | AR40: 5 | AS40: 3 | AT40: 2 | AU40: 1 | AV40: 3 | AW40: 5 | AX40: 3 | AY40: 1 | AZ40: 1 | BA40: 3 | BB40: 2 | BC40: 2 | BD40: 3 | BE40: 0 | BF40: 1 | BG40: 2 | BH40: 0 | BI40: 4 | BJ40: 2 | BK40: 0 | BL40: 0 | BM40: 0 | BN40: 1 | BO40: 0 | BP40: 0 | BQ40: 0 | BR40: 0 | BS40: 0 | BT40: 0 | BU40: 0 | BV40: 0 | BW40: 0 | BX40: 0 | BY40: 0 | BZ40: 0 | CA40: 0 | CB40: 0 | CC40: 0 | CD40: 0 | CE40: 0 | CF40: 0 | CG40: 0 | CH40: 0 | CI40: 0 | CJ40: 0 | CK40: 0 | CL40: 0 | CM40: 0 | CN40: 0 | CO40: 0 | CP40: 0 | CQ40: 0 | CR40: 0 | CS40: 0 | CT40: 0 | CV40: 42.98991289 | CW40: 128.9697387 | CX40: 214.9495644 | CY40: 85.97982578 | CZ40: 171.9596516 | DA40: 386.909216 | DB40: 343.9193031 | DC40: 429.8991289 | DD40: 515.8789547 | DE40: 300.9293902 | DF40: 386.909216 | DG40: 171.9596516 | DH40: 429.8991289 | DI40: 257.9394773 | DJ40: 0 | DK40: 42.98991289 | DL40: 42.98991289 | DM40: 42.98991289 | DN40: 42.98991289 | DO40: 128.9697387 | DP40: 128.9697387 | DQ40: 85.97982578 | DR40: 214.9495644 | DS40: 171.9596516 | DT40: 128.9697387 | DU40: 171.9596516 | DV40: 1160.727648 | DW40: 128.9697387 | DX40: 300.9293902 | DY40: 472.8890418 | DZ40: 601.8587805 | EA40: 472.8890418 | EB40: 300.9293902 | EC40: 601.8587805 | ED40: 730.8285191 | EE40: 257.9394773 | EF40: 214.9495644 | EG40: 128.9697387 | EH40: 85.97982578 | EI40: 42.98991289 | EJ40: 128.9697387 | EK40: 214.9495644 | EL40: 128.9697387 | EM40: 42.98991289 | EN40: 42.98991289 | EO40: 128.9697387 | EP40: 85.97982578 | EQ40: 85.97982578 | ER40: 128.9697387 | ES40: 0 | ET40: 42.98991289 | EU40: 85.97982578 | EV40: 0 | EW40: 171.9596516 | EX40: 85.97982578 | EY40: 0 | EZ40: 0 | FA40: 0 | FB40: 42.98991289 | FC40: 0 | FD40: 0 | FE40: 0 | FF40: 0 | FG40: 0 | FH40: 0 | FI40: 0 | FJ40: 0 | FK40: 0 | FL40: 0 | FM40: 0 | FN40: 0 | FO40: 0 | FP40: 0 | FQ40: 0 | FR40: 0 | FS40: 0 | FT40: 0 | FU40: 0 | FV40: 0 | FW40: 0 | FX40: 0 | FY40: 0 | FZ40: 0 | GA40: 0 | GB40: 0 | GC40: 0 | GD40: 0 | GE40: 0 | GF40: 0 | GG40: 0 | GH40: 0
A41: 5 | B41: TRANSFORMERS | C41: ground outdoor / indoor chamber mounted ; ˂ 22 kv ; > 600 kva ; multiple phase | D41: 54.24767879 | E41: 39.38247839 | F41: 6.275546063 | G41: 2 | H41: 0 | I41: 0 | J41: 0 | K41: 0 | L41: 0 | M41: 0 | N41: 0 | O41: 0 | P41: 7 | Q41: 2 | R41: 6 | S41: 0 | T41: 0 | U41: 3 | V41: 1 | W41: 1 | X41: 0 | Y41: 1 | Z41: 0 | AA41: 5 | AB41: 0 | AC41: 0 | AD41: 0 | AE41: 0 | AF41: 0 | AG41: 0 | AH41: 0 | AI41: 0 | AJ41: 0 | AK41: 0 | AL41: 1 | AM41: 0 | AN41: 2 | AO41: 0 | AP41: 8 | AQ41: 0 | AR41: 0 | AS41: 0 | AT41: 0 | AU41: 1 | AV41: 0 | AW41: 0 | AX41: 0 | AY41: 0 | AZ41: 0 | BA41: 0 | BB41: 1 | BC41: 0 | BD41: 1 | BE41: 3 | BF41: 0 | BG41: 0 | BH41: 0 | BI41: 0 | BJ41: 1 | BK41: 0 | BL41: 0 | BM41: 0 | BN41: 0 | BO41: 0 | BP41: 0 | BQ41: 0 | BR41: 0 | BS41: 0 | BT41: 0 | BU41: 0 | BV41: 0 | BW41: 0 | BX41: 0 | BY41: 0 | BZ41: 0 | CA41: 0 | CB41: 0 | CC41: 0 | CD41: 0 | CE41: 0 | CF41: 0 | CG41: 0 | CH41: 0 | CI41: 0 | CJ41: 0 | CK41: 0 | CL41: 0 | CM41: 0 | CN41: 0 | CO41: 0 | CP41: 0 | CQ41: 0 | CR41: 0 | CS41: 0 | CT41: 0 | CV41: 0 | CW41: 0 | CX41: 0 | CY41: 0 | CZ41: 0 | DA41: 0 | DB41: 0 | DC41: 0 | DD41: 379.7337515 | DE41: 108.4953576 | DF41: 325.4860727 | DG41: 0 | DH41: 0 | DI41: 162.7430364 | DJ41: 54.24767879 | DK41: 54.24767879 | DL41: 0 | DM41: 54.24767879 | DN41: 0 | DO41: 271.2383939 | DP41: 0 | DQ41: 0 | DR41: 0 | DS41: 0 | DT41: 0 | DU41: 0 | DV41: 0 | DW41: 0 | DX41: 0 | DY41: 0 | DZ41: 54.24767879 | EA41: 0 | EB41: 108.4953576 | EC41: 0 | ED41: 433.9814303 | EE41: 0 | EF41: 0 | EG41: 0 | EH41: 0 | EI41: 54.24767879 | EJ41: 0 | EK41: 0 | EL41: 0 | EM41: 0 | EN41: 0 | EO41: 0 | EP41: 54.24767879 | EQ41: 0 | ER41: 54.24767879 | ES41: 162.7430364 | ET41: 0 | EU41: 0 | EV41: 0 | EW41: 0 | EX41: 54.24767879 | EY41: 0 | EZ41: 0 | FA41: 0 | FB41: 0 | FC41: 0 | FD41: 0 | FE41: 0 | FF41: 0 | FG41: 0 | FH41: 0 | FI41: 0 | FJ41: 0 | FK41: 0 | FL41: 0 | FM41: 0 | FN41: 0 | FO41: 0 | FP41: 0 | FQ41: 0 | FR41: 0 | FS41: 0 | FT41: 0 | FU41: 0 | FV41: 0 | FW41: 0 | FX41: 0 | FY41: 0 | FZ41: 0 | GA41: 0 | GB41: 0 | GC41: 0 | GD41: 0 | GE41: 0 | GF41: 0 | GG41: 0 | GH41: 0
A42: 5 | B42: TRANSFORMERS | C42: ground outdoor / indoor chamber mounted ; > = 22 kv & < = 33 kv ; < = 15 mva | D42: 54.24767879 | E42: 39.38247839 | F42: 6.275546063 | G42: 2 | H42: 1 | I42: 0 | J42: 0 | K42: 3 | L42: 2 | M42: 2 | N42: 1 | O42: 3 | P42: 1 | Q42: 3 | R42: 2 | S42: 0 | T42: 2 | U42: 2 | V42: 0 | W42: 4 | X42: 0 | Y42: 1 | Z42: 0 | AA42: 0 | AB42: 0 | AC42: 0 | AD42: 0 | AE42: 0 | AF42: 0 | AG42: 4 | AH42: 3 | AI42: 1 | AJ42: 1 | AK42: 0 | AL42: 1 | AM42: 0 | AN42: 0 | AO42: 1 | AP42: 0 | AQ42: 3 | AR42: 3 | AS42: 1 | AT42: 0 | AU42: 0 | AV42: 0 | AW42: 0 | AX42: 0 | AY42: 3 | AZ42: 0 | BA42: 0 | BB42: 4 | BC42: 1 | BD42: 1 | BE42: 3 | BF42: 0 | BG42: 0 | BH42: 4 | BI42: 1 | BJ42: 8 | BK42: 3 | BL42: 1 | BM42: 0 | BN42: 2 | BO42: 0 | BP42: 0 | BQ42: 0 | BR42: 0 | BS42: 0 | BT42: 0 | BU42: 0 | BV42: 0 | BW42: 0 | BX42: 0 | BY42: 0 | BZ42: 0 | CA42: 0 | CB42: 0 | CC42: 0 | CD42: 0 | CE42: 0 | CF42: 0 | CG42: 0 | CH42: 0 | CI42: 0 | CJ42: 0 | CK42: 0 | CL42: 0 | CM42: 0 | CN42: 0 | CO42: 0 | CP42: 0 | CQ42: 0 | CR42: 0 | CS42: 0 | CT42: 0 | CV42: 54.24767879 | CW42: 0 | CX42: 0 | CY42: 162.7430364 | CZ42: 108.4953576 | DA42: 108.4953576 | DB42: 54.24767879 | DC42: 162.7430364 | DD42: 54.24767879 | DE42: 162.7430364 | DF42: 108.4953576 | DG42: 0 | DH42: 108.4953576 | DI42: 108.4953576 | DJ42: 0 | DK42: 216.9907152 | DL42: 0 | DM42: 54.24767879 | DN42: 0 | DO42: 0 | DP42: 0 | DQ42: 0 | DR42: 0 | DS42: 0 | DT42: 0 | DU42: 216.9907152 | DV42: 162.7430364 | DW42: 54.24767879 | DX42: 54.24767879 | DY42: 0 | DZ42: 54.24767879 | EA42: 0 | EB42: 0 | EC42: 54.24767879 | ED42: 0 | EE42: 162.7430364 | EF42: 162.7430364 | EG42: 54.24767879 | EH42: 0 | EI42: 0 | EJ42: 0 | EK42: 0 | EL42: 0 | EM42: 162.7430364 | EN42: 0 | EO42: 0 | EP42: 216.9907152 | EQ42: 54.24767879 | ER42: 54.24767879 | ES42: 162.7430364 | ET42: 0 | EU42: 0 | EV42: 216.9907152 | EW42: 54.24767879 | EX42: 433.9814303 | EY42: 162.7430364 | EZ42: 54.24767879 | FA42: 0 | FB42: 108.4953576 | FC42: 0 | FD42: 0 | FE42: 0 | FF42: 0 | FG42: 0 | FH42: 0 | FI42: 0 | FJ42: 0 | FK42: 0 | FL42: 0 | FM42: 0 | FN42: 0 | FO42: 0 | FP42: 0 | FQ42: 0 | FR42: 0 | FS42: 0 | FT42: 0 | FU42: 0 | FV42: 0 | FW42: 0 | FX42: 0 | FY42: 0 | FZ42: 0 | GA42: 0 | GB42: 0 | GC42: 0 | GD42: 0 | GE42: 0 | GF42: 0 | GG42: 0 | GH42: 0
A43: 5 | B43: TRANSFORMERS | C43: ground outdoor / indoor chamber mounted ; > = 22 kv & < = 33 kv ; > 15 mva and < = 40 mva | D43: 2711.334255 | E43: 58.52486136 | F43: 7.650154336 | G43: 2 | H43: 0 | I43: 0 | J43: 4 | K43: 6 | L43: 8 | M43: 5 | N43: 8 | O43: 2 | P43: 18 | Q43: 6 | R43: 1 | S43: 5 | T43: 8 | U43: 11 | V43: 5 | W43: 5 | X43: 6 | Y43: 1 | Z43: 0 | AA43: 0 | AB43: 0 | AC43: 0 | AD43: 1 | AE43: 2 | AF43: 2 | AG43: 0 | AH43: 0 | AI43: 1 | AJ43: 0 | AK43: 2 | AL43: 2 | AM43: 0 | AN43: 0 | AO43: 4 | AP43: 1 | AQ43: 6 | AR43: 4 | AS43: 2 | AT43: 3 | AU43: 6 | AV43: 3 | AW43: 0 | AX43: 2 | AY43: 4 | AZ43: 5 | BA43: 2 | BB43: 7 | BC43: 7 | BD43: 5 | BE43: 1 | BF43: 5 | BG43: 1 | BH43: 1 | BI43: 1 | BJ43: 0 | BK43: 0 | BL43: 0 | BM43: 0 | BN43: 0 | BO43: 0 | BP43: 0 | BQ43: 0 | BR43: 0 | BS43: 0 | BT43: 0 | BU43: 0 | BV43: 0 | BW43: 0 | BX43: 0 | BY43: 0 | BZ43: 0 | CA43: 0 | CB43: 0 | CC43: 0 | CD43: 0 | CE43: 0 | CF43: 0 | CG43: 0 | CH43: 0 | CI43: 0 | CJ43: 0 | CK43: 0 | CL43: 0 | CM43: 0 | CN43: 0 | CO43: 0 | CP43: 0 | CQ43: 0 | CR43: 0 | CS43: 0 | CT43: 0 | CV43: 0 | CW43: 0 | CX43: 10845.33702 | CY43: 16268.00553 | CZ43: 21690.67404 | DA43: 13556.67127 | DB43: 21690.67404 | DC43: 5422.668509 | DD43: 48804.01658 | DE43: 16268.00553 | DF43: 2711.334255 | DG43: 13556.67127 | DH43: 21690.67404 | DI43: 29824.6768 | DJ43: 13556.67127 | DK43: 13556.67127 | DL43: 16268.00553 | DM43: 2711.334255 | DN43: 0 | DO43: 0 | DP43: 0 | DQ43: 0 | DR43: 2711.334255 | DS43: 5422.668509 | DT43: 5422.668509 | DU43: 0 | DV43: 0 | DW43: 2711.334255 | DX43: 0 | DY43: 5422.668509 | DZ43: 5422.668509 | EA43: 0 | EB43: 0 | EC43: 10845.33702 | ED43: 2711.334255 | EE43: 16268.00553 | EF43: 10845.33702 | EG43: 5422.668509 | EH43: 8134.002764 | EI43: 16268.00553 | EJ43: 8134.002764 | EK43: 0 | EL43: 5422.668509 | EM43: 10845.33702 | EN43: 13556.67127 | EO43: 5422.668509 | EP43: 18979.33978 | EQ43: 18979.33978 | ER43: 13556.67127 | ES43: 2711.334255 | ET43: 13556.67127 | EU43: 2711.334255 | EV43: 2711.334255 | EW43: 2711.334255 | EX43: 0 | EY43: 0 | EZ43: 0 | FA43: 0 | FB43: 0 | FC43: 0 | FD43: 0 | FE43: 0 | FF43: 0 | FG43: 0 | FH43: 0 | FI43: 0 | FJ43: 0 | FK43: 0 | FL43: 0 | FM43: 0 | FN43: 0 | FO43: 0 | FP43: 0 | FQ43: 0 | FR43: 0 | FS43: 0 | FT43: 0 | FU43: 0 | FV43: 0 | FW43: 0 | FX43: 0 | FY43: 0 | FZ43: 0 | GA43: 0 | GB43: 0 | GC43: 0 | GD43: 0 | GE43: 0 | GF43: 0 | GG43: 0 | GH43: 0
A44: 5 | B44: TRANSFORMERS | C44: ground outdoor / indoor chamber mounted ; > 33 kv & < = 66 kv ; < = 15 mva | D44: 2711.334255 | E44: 58.52486136 | F44: 7.650154336 | G44: 2 | H44: 0 | I44: 0 | J44: 0 | K44: 0 | L44: 0 | M44: 0 | N44: 1 | O44: 0 | P44: 0 | Q44: 0 | R44: 0 | S44: 0 | T44: 0 | U44: 0 | V44: 0 | W44: 0 | X44: 0 | Y44: 0 | Z44: 0 | AA44: 0 | AB44: 0 | AC44: 0 | AD44: 0 | AE44: 0 | AF44: 0 | AG44: 0 | AH44: 0 | AI44: 0 | AJ44: 0 | AK44: 0 | AL44: 0 | AM44: 0 | AN44: 0 | AO44: 0 | AP44: 3 | AQ44: 0 | AR44: 0 | AS44: 0 | AT44: 0 | AU44: 0 | AV44: 0 | AW44: 0 | AX44: 0 | AY44: 0 | AZ44: 0 | BA44: 0 | BB44: 2 | BC44: 0 | BD44: 0 | BE44: 0 | BF44: 1 | BG44: 0 | BH44: 2 | BI44: 0 | BJ44: 0 | BK44: 0 | BL44: 0 | BM44: 0 | BN44: 0 | BO44: 0 | BP44: 0 | BQ44: 0 | BR44: 0 | BS44: 0 | BT44: 4 | BU44: 1 | BV44: 1 | BW44: 0 | BX44: 0 | BY44: 0 | BZ44: 0 | CA44: 0 | CB44: 0 | CC44: 0 | CD44: 0 | CE44: 0 | CF44: 0 | CG44: 0 | CH44: 0 | CI44: 0 | CJ44: 0 | CK44: 0 | CL44: 0 | CM44: 0 | CN44: 0 | CO44: 0 | CP44: 0 | CQ44: 0 | CR44: 0 | CS44: 0 | CT44: 0 | CV44: 0 | CW44: 0 | CX44: 0 | CY44: 0 | CZ44: 0 | DA44: 0 | DB44: 2711.334255 | DC44: 0 | DD44: 0 | DE44: 0 | DF44: 0 | DG44: 0 | DH44: 0 | DI44: 0 | DJ44: 0 | DK44: 0 | DL44: 0 | DM44: 0 | DN44: 0 | DO44: 0 | DP44: 0 | DQ44: 0 | DR44: 0 | DS44: 0 | DT44: 0 | DU44: 0 | DV44: 0 | DW44: 0 | DX44: 0 | DY44: 0 | DZ44: 0 | EA44: 0 | EB44: 0 | EC44: 0 | ED44: 8134.002764 | EE44: 0 | EF44: 0 | EG44: 0 | EH44: 0 | EI44: 0 | EJ44: 0 | EK44: 0 | EL44: 0 | EM44: 0 | EN44: 0 | EO44: 0 | EP44: 5422.668509 | EQ44: 0 | ER44: 0 | ES44: 0 | ET44: 2711.334255 | EU44: 0 | EV44: 5422.668509 | EW44: 0 | EX44: 0 | EY44: 0 | EZ44: 0 | FA44: 0 | FB44: 0 | FC44: 0 | FD44: 0 | FE44: 0 | FF44: 0 | FG44: 0 | FH44: 10845.33702 | FI44: 2711.334255 | FJ44: 2711.334255 | FK44: 0 | FL44: 0 | FM44: 0 | FN44: 0 | FO44: 0 | FP44: 0 | FQ44: 0 | FR44: 0 | FS44: 0 | FT44: 0 | FU44: 0 | FV44: 0 | FW44: 0 | FX44: 0 | FY44: 0 | FZ44: 0 | GA44: 0 | GB44: 0 | GC44: 0 | GD44: 0 | GE44: 0 | GF44: 0 | GG44: 0 | GH44: 0
A45: 5 | B45: TRANSFORMERS | C45: ground outdoor / indoor chamber mounted ; > 33 kv & < = 66 kv ; > 15 mva and < = 40 mva | D45: 2711.334255 | E45: 58.52486136 | F45: 7.650154336 | G45: 2 | H45: 0 | I45: 0 | J45: 0 | K45: 0 | L45: 0 | M45: 1 | N45: 0 | O45: 4 | P45: 0 | Q45: 0 | R45: 2 | S45: 4 | T45: 2 | U45: 4 | V45: 1 | W45: 0 | X45: 0 | Y45: 0 | Z45: 0 | AA45: 0 | AB45: 0 | AC45: 0 | AD45: 2 | AE45: 2 | AF45: 0 | AG45: 0 | AH45: 0 | AI45: 1 | AJ45: 1 | AK45: 3 | AL45: 0 | AM45: 5 | AN45: 0 | AO45: 2 | AP45: 3 | AQ45: 2 | AR45: 0 | AS45: 0 | AT45: 2 | AU45: 0 | AV45: 0 | AW45: 6 | AX45: 0 | AY45: 0 | AZ45: 0 | BA45: 0 | BB45: 0 | BC45: 0 | BD45: 0 | BE45: 0 | BF45: 4 | BG45: 0 | BH45: 0 | BI45: 0 | BJ45: 0 | BK45: 0 | BL45: 1 | BM45: 0 | BN45: 0 | BO45: 0 | BP45: 0 | BQ45: 0 | BR45: 0 | BS45: 0 | BT45: 0 | BU45: 0 | BV45: 0 | BW45: 0 | BX45: 0 | BY45: 0 | BZ45: 0 | CA45: 0 | CB45: 0 | CC45: 0 | CD45: 0 | CE45: 0 | CF45: 0 | CG45: 0 | CH45: 0 | CI45: 0 | CJ45: 0 | CK45: 0 | CL45: 0 | CM45: 0 | CN45: 0 | CO45: 0 | CP45: 0 | CQ45: 0 | CR45: 0 | CS45: 0 | CT45: 0 | CV45: 0 | CW45: 0 | CX45: 0 | CY45: 0 | CZ45: 0 | DA45: 2711.334255 | DB45: 0 | DC45: 10845.33702 | DD45: 0 | DE45: 0 | DF45: 5422.668509 | DG45: 10845.33702 | DH45: 5422.668509 | DI45: 10845.33702 | DJ45: 2711.334255 | DK45: 0 | DL45: 0 | DM45: 0 | DN45: 0 | DO45: 0 | DP45: 0 | DQ45: 0 | DR45: 5422.668509 | DS45: 5422.668509 | DT45: 0 | DU45: 0 | DV45: 0 | DW45: 2711.334255 | DX45: 2711.334255 | DY45: 8134.002764 | DZ45: 0 | EA45: 13556.67127 | EB45: 0 | EC45: 5422.668509 | ED45: 8134.002764 | EE45: 5422.668509 | EF45: 0 | EG45: 0 | EH45: 5422.668509 | EI45: 0 | EJ45: 0 | EK45: 16268.00553 | EL45: 0 | EM45: 0 | EN45: 0 | EO45: 0 | EP45: 0 | EQ45: 0 | ER45: 0 | ES45: 0 | ET45: 10845.33702 | EU45: 0 | EV45: 0 | EW45: 0 | EX45: 0 | EY45: 0 | EZ45: 2711.334255 | FA45: 0 | FB45: 0 | FC45: 0 | FD45: 0 | FE45: 0 | FF45: 0 | FG45: 0 | FH45: 0 | FI45: 0 | FJ45: 0 | FK45: 0 | FL45: 0 | FM45: 0 | FN45: 0 | FO45: 0 | FP45: 0 | FQ45: 0 | FR45: 0 | FS45: 0 | FT45: 0 | FU45: 0 | FV45: 0 | FW45: 0 | FX45: 0 | FY45: 0 | FZ45: 0 | GA45: 0 | GB45: 0 | GC45: 0 | GD45: 0 | GE45: 0 | GF45: 0 | GG45: 0 | GH45: 0
A46: 5 | B46: TRANSFORMERS | C46: ground outdoor / indoor chamber mounted ; > 66 kv & < = 132 kv ; < = 100 mva | D46: 2711.334255 | E46: 58.52486136 | F46: 7.650154336 | G46: 2 | H46: 1 | I46: 0 | J46: 0 | K46: 1 | L46: 3 | M46: 4 | N46: 4 | O46: 1 | P46: 10 | Q46: 9 | R46: 0 | S46: 7 | T46: 10 | U46: 1 | V46: 8 | W46: 1 | X46: 3 | Y46: 2 | Z46: 0 | AA46: 0 | AB46: 2 | AC46: 2 | AD46: 1 | AE46: 0 | AF46: 2 | AG46: 2 | AH46: 1 | AI46: 0 | AJ46: 0 | AK46: 5 | AL46: 0 | AM46: 3 | AN46: 2 | AO46: 0 | AP46: 0 | AQ46: 0 | AR46: 3 | AS46: 0 | AT46: 0 | AU46: 0 | AV46: 0 | AW46: 0 | AX46: 0 | AY46: 0 | AZ46: 0 | BA46: 0 | BB46: 2 | BC46: 0 | BD46: 2 | BE46: 0 | BF46: 1 | BG46: 1 | BH46: 0 | BI46: 0 | BJ46: 2 | BK46: 0 | BL46: 0 | BM46: 0 | BN46: 0 | BO46: 0 | BP46: 0 | BQ46: 0 | BR46: 0 | BS46: 0 | BT46: 0 | BU46: 0 | BV46: 0 | BW46: 0 | BX46: 0 | BY46: 0 | BZ46: 0 | CA46: 0 | CB46: 0 | CC46: 0 | CD46: 0 | CE46: 0 | CF46: 0 | CG46: 0 | CH46: 0 | CI46: 0 | CJ46: 0 | CK46: 0 | CL46: 0 | CM46: 0 | CN46: 0 | CO46: 0 | CP46: 0 | CQ46: 0 | CR46: 0 | CS46: 0 | CT46: 0 | CV46: 2711.334255 | CW46: 0 | CX46: 0 | CY46: 2711.334255 | CZ46: 8134.002764 | DA46: 10845.33702 | DB46: 10845.33702 | DC46: 2711.334255 | DD46: 27113.34255 | DE46: 24402.00829 | DF46: 0 | DG46: 18979.33978 | DH46: 27113.34255 | DI46: 2711.334255 | DJ46: 21690.67404 | DK46: 2711.334255 | DL46: 8134.002764 | DM46: 5422.668509 | DN46: 0 | DO46: 0 | DP46: 5422.668509 | DQ46: 5422.668509 | DR46: 2711.334255 | DS46: 0 | DT46: 5422.668509 | DU46: 5422.668509 | DV46: 2711.334255 | DW46: 0 | DX46: 0 | DY46: 13556.67127 | DZ46: 0 | EA46: 8134.002764 | EB46: 5422.668509 | EC46: 0 | ED46: 0 | EE46: 0 | EF46: 8134.002764 | EG46: 0 | EH46: 0 | EI46: 0 | EJ46: 0 | EK46: 0 | EL46: 0 | EM46: 0 | EN46: 0 | EO46: 0 | EP46: 5422.668509 | EQ46: 0 | ER46: 5422.668509 | ES46: 0 | ET46: 2711.334255 | EU46: 2711.334255 | EV46: 0 | EW46: 0 | EX46: 5422.668509 | EY46: 0 | EZ46: 0 | FA46: 0 | FB46: 0 | FC46: 0 | FD46: 0 | FE46: 0 | FF46: 0 | FG46: 0 | FH46: 0 | FI46: 0 | FJ46: 0 | FK46: 0 | FL46: 0 | FM46: 0 | FN46: 0 | FO46: 0 | FP46: 0 | FQ46: 0 | FR46: 0 | FS46: 0 | FT46: 0 | FU46: 0 | FV46: 0 | FW46: 0 | FX46: 0 | FY46: 0 | FZ46: 0 | GA46: 0 | GB46: 0 | GC46: 0 | GD46: 0 | GE46: 0 | GF46: 0 | GG46: 0 | GH46: 0
A47: 5 | B47: TRANSFORMERS | C47: ground outdoor / indoor chamber mounted ; > 66 kv & < = 132 kv ; > 100 mva | D47: 2711.334255 | E47: 58.52486136 | F47: 7.650154336 | G47: 2 | H47: 0 | I47: 0 | J47: 0 | K47: 1 | L47: 1 | M47: 0 | N47: 3 | O47: 0 | P47: 0 | Q47: 3 | R47: 0 | S47: 10 | T47: 1 | U47: 1 | V47: 0 | W47: 0 | X47: 0 | Y47: 0 | Z47: 0 | AA47: 0 | AB47: 0 | AC47: 0 | AD47: 0 | AE47: 0 | AF47: 0 | AG47: 0 | AH47: 0 | AI47: 0 | AJ47: 0 | AK47: 0 | AL47: 0 | AM47: 0 | AN47: 0 | AO47: 0 | AP47: 1 | AQ47: 0 | AR47: 0 | AS47: 0 | AT47: 0 | AU47: 1 | AV47: 0 | AW47: 2 | AX47: 0 | AY47: 1 | AZ47: 2 | BA47: 0 | BB47: 0 | BC47: 0 | BD47: 4 | BE47: 1 | BF47: 0 | BG47: 2 | BH47: 0 | BI47: 2 | BJ47: 1 | BK47: 0 | BL47: 0 | BM47: 0 | BN47: 0 | BO47: 0 | BP47: 0 | BQ47: 0 | BR47: 0 | BS47: 0 | BT47: 0 | BU47: 0 | BV47: 0 | BW47: 0 | BX47: 0 | BY47: 0 | BZ47: 0 | CA47: 0 | CB47: 0 | CC47: 0 | CD47: 0 | CE47: 0 | CF47: 0 | CG47: 0 | CH47: 0 | CI47: 0 | CJ47: 0 | CK47: 0 | CL47: 0 | CM47: 0 | CN47: 0 | CO47: 0 | CP47: 0 | CQ47: 0 | CR47: 0 | CS47: 0 | CT47: 0 | CV47: 0 | CW47: 0 | CX47: 0 | CY47: 2711.334255 | CZ47: 2711.334255 | DA47: 0 | DB47: 8134.002764 | DC47: 0 | DD47: 0 | DE47: 8134.002764 | DF47: 0 | DG47: 27113.34255 | DH47: 2711.334255 | DI47: 2711.334255 | DJ47: 0 | DK47: 0 | DL47: 0 | DM47: 0 | DN47: 0 | DO47: 0 | DP47: 0 | DQ47: 0 | DR47: 0 | DS47: 0 | DT47: 0 | DU47: 0 | DV47: 0 | DW47: 0 | DX47: 0 | DY47: 0 | DZ47: 0 | EA47: 0 | EB47: 0 | EC47: 0 | ED47: 2711.334255 | EE47: 0 | EF47: 0 | EG47: 0 | EH47: 0 | EI47: 2711.334255 | EJ47: 0 | EK47: 5422.668509 | EL47: 0 | EM47: 2711.334255 | EN47: 5422.668509 | EO47: 0 | EP47: 0 | EQ47: 0 | ER47: 10845.33702 | ES47: 2711.334255 | ET47: 0 | EU47: 5422.668509 | EV47: 0 | EW47: 5422.668509 | EX47: 2711.334255 | EY47: 0 | EZ47: 0 | FA47: 0 | FB47: 0 | FC47: 0 | FD47: 0 | FE47: 0 | FF47: 0 | FG47: 0 | FH47: 0 | FI47: 0 | FJ47: 0 | FK47: 0 | FL47: 0 | FM47: 0 | FN47: 0 | FO47: 0 | FP47: 0 | FQ47: 0 | FR47: 0 | FS47: 0 | FT47: 0 | FU47: 0 | FV47: 0 | FW47: 0 | FX47: 0 | FY47: 0 | FZ47: 0 | GA47: 0 | GB47: 0 | GC47: 0 | GD47: 0 | GE47: 0 | GF47: 0 | GG47: 0 | GH47: 0
A48: 5 | B48: TRANSFORMERS | C48: kiosk mounted ; < = 22 kv ; < = 60 kva ; multiple phase | D48: 41.576117 | E48: 44.77199293 | F48: 6.691187707 | G48: 2 | H48: 1 | I48: 0 | J48: 0 | K48: 0 | L48: 0 | M48: 1 | N48: 1 | O48: 0 | P48: 3 | Q48: 0 | R48: 0 | S48: 0 | T48: 0 | U48: 1 | V48: 0 | W48: 1 | X48: 0 | Y48: 1 | Z48: 0 | AA48: 0 | AB48: 0 | AC48: 0 | AD48: 0 | AE48: 0 | AF48: 0 | AG48: 1 | AH48: 0 | AI48: 1 | AJ48: 0 | AK48: 0 | AL48: 0 | AM48: 1 | AN48: 0 | AO48: 0 | AP48: 0 | AQ48: 0 | AR48: 0 | AS48: 0 | AT48: 0 | AU48: 0 | AV48: 0 | AW48: 0 | AX48: 0 | AY48: 0 | AZ48: 0 | BA48: 0 | BB48: 0 | BC48: 0 | BD48: 0 | BE48: 0 | BF48: 0 | BG48: 0 | BH48: 0 | BI48: 0 | BJ48: 0 | BK48: 0 | BL48: 0 | BM48: 0 | BN48: 0 | BO48: 0 | BP48: 0 | BQ48: 0 | BR48: 0 | BS48: 0 | BT48: 0 | BU48: 0 | BV48: 0 | BW48: 0 | BX48: 0 | BY48: 0 | BZ48: 0 | CA48: 0 | CB48: 0 | CC48: 0 | CD48: 0 | CE48: 0 | CF48: 0 | CG48: 0 | CH48: 0 | CI48: 0 | CJ48: 0 | CK48: 0 | CL48: 0 | CM48: 0 | CN48: 0 | CO48: 0 | CP48: 0 | CQ48: 0 | CR48: 0 | CS48: 0 | CT48: 0 | CV48: 41.576117 | CW48: 0 | CX48: 0 | CY48: 0 | CZ48: 0 | DA48: 41.576117 | DB48: 41.576117 | DC48: 0 | DD48: 124.728351 | DE48: 0 | DF48: 0 | DG48: 0 | DH48: 0 | DI48: 41.576117 | DJ48: 0 | DK48: 41.576117 | DL48: 0 | DM48: 41.576117 | DN48: 0 | DO48: 0 | DP48: 0 | DQ48: 0 | DR48: 0 | DS48: 0 | DT48: 0 | DU48: 41.576117 | DV48: 0 | DW48: 41.576117 | DX48: 0 | DY48: 0 | DZ48: 0 | EA48: 41.576117 | EB48: 0 | EC48: 0 | ED48: 0 | EE48: 0 | EF48: 0 | EG48: 0 | EH48: 0 | EI48: 0 | EJ48: 0 | EK48: 0 | EL48: 0 | EM48: 0 | EN48: 0 | EO48: 0 | EP48: 0 | EQ48: 0 | ER48: 0 | ES48: 0 | ET48: 0 | EU48: 0 | EV48: 0 | EW48: 0 | EX48: 0 | EY48: 0 | EZ48: 0 | FA48: 0 | FB48: 0 | FC48: 0 | FD48: 0 | FE48: 0 | FF48: 0 | FG48: 0 | FH48: 0 | FI48: 0 | FJ48: 0 | FK48: 0 | FL48: 0 | FM48: 0 | FN48: 0 | FO48: 0 | FP48: 0 | FQ48: 0 | FR48: 0 | FS48: 0 | FT48: 0 | FU48: 0 | FV48: 0 | FW48: 0 | FX48: 0 | FY48: 0 | FZ48: 0 | GA48: 0 | GB48: 0 | GC48: 0 | GD48: 0 | GE48: 0 | GF48: 0 | GG48: 0 | GH48: 0
A49: 5 | B49: TRANSFORMERS | C49: kiosk mounted ; < = 22 kv ; > 60 kva and < = 600 kva ; multiple phase | D49: 41.576117 | E49: 44.77199293 | F49: 6.691187707 | G49: 2 | H49: 257 | I49: 182 | J49: 180 | K49: 239 | L49: 270 | M49: 276 | N49: 342 | O49: 351 | P49: 288 | Q49: 356 | R49: 395 | S49: 377 | T49: 419 | U49: 557 | V49: 144 | W49: 472 | X49: 130 | Y49: 333 | Z49: 65 | AA49: 199 | AB49: 117 | AC49: 142 | AD49: 135 | AE49: 113 | AF49: 98 | AG49: 91 | AH49: 136 | AI49: 146 | AJ49: 166 | AK49: 152 | AL49: 122 | AM49: 160 | AN49: 116 | AO49: 123 | AP49: 206 | AQ49: 248 | AR49: 127 | AS49: 82 | AT49: 61 | AU49: 51 | AV49: 28 | AW49: 46 | AX49: 34 | AY49: 18 | AZ49: 20 | BA49: 11 | BB49: 4 | BC49: 6 | BD49: 5 | BE49: 4 | BF49: 2 | BG49: 2 | BH49: 0 | BI49: 3 | BJ49: 1 | BK49: 3 | BL49: 0 | BM49: 2 | BN49: 1 | BO49: 0 | BP49: 0 | BQ49: 0 | BR49: 0 | BS49: 1 | BT49: 0 | BU49: 0 | BV49: 0 | BW49: 0 | BX49: 0 | BY49: 0 | BZ49: 0 | CA49: 0 | CB49: 0 | CC49: 0 | CD49: 0 | CE49: 0 | CF49: 0 | CG49: 0 | CH49: 0 | CI49: 0 | CJ49: 0 | CK49: 0 | CL49: 0 | CM49: 0 | CN49: 0 | CO49: 0 | CP49: 0 | CQ49: 0 | CR49: 0 | CS49: 0 | CT49: 0 | CV49: 10685.06207 | CW49: 7566.853294 | CX49: 7483.70106 | CY49: 9936.691962 | CZ49: 11225.55159 | DA49: 11475.00829 | DB49: 14219.03201 | DC49: 14593.21707 | DD49: 11973.9217 | DE49: 14801.09765 | DF49: 16422.56621 | DG49: 15674.19611 | DH49: 17420.39302 | DI49: 23157.89717 | DJ49: 5986.960848 | DK49: 19623.92722 | DL49: 5404.89521 | DM49: 13844.84696 | DN49: 2702.447605 | DO49: 8273.647282 | DP49: 4864.405689 | DQ49: 5903.808614 | DR49: 5612.775795 | DS49: 4698.101221 | DT49: 4074.459466 | DU49: 3783.426647 | DV49: 5654.351912 | DW49: 6070.113082 | DX49: 6901.635422 | DY49: 6319.569784 | DZ49: 5072.286274 | EA49: 6652.17872 | EB49: 4822.829572 | EC49: 5113.862391 | ED49: 8564.680101 | EE49: 10310.87702 | EF49: 5280.166859 | EG49: 3409.241594 | EH49: 2536.143137 | EI49: 2120.381967 | EJ49: 1164.131276 | EK49: 1912.501382 | EL49: 1413.587978 | EM49: 748.370106 | EN49: 831.5223399 | EO49: 457.337287 | EP49: 166.304468 | EQ49: 249.456702 | ER49: 207.880585 | ES49: 166.304468 | ET49: 83.15223399 | EU49: 83.15223399 | EV49: 0 | EW49: 124.728351 | EX49: 41.576117 | EY49: 124.728351 | EZ49: 0 | FA49: 83.15223399 | FB49: 41.576117 | FC49: 0 | FD49: 0 | FE49: 0 | FF49: 0 | FG49: 41.576117 | FH49: 0 | FI49: 0 | FJ49: 0 | FK49: 0 | FL49: 0 | FM49: 0 | FN49: 0 | FO49: 0 | FP49: 0 | FQ49: 0 | FR49: 0 | FS49: 0 | FT49: 0 | FU49: 0 | FV49: 0 | FW49: 0 | FX49: 0 | FY49: 0 | FZ49: 0 | GA49: 0 | GB49: 0 | GC49: 0 | GD49: 0 | GE49: 0 | GF49: 0 | GG49: 0 | GH49: 0
A50: 5 | B50: TRANSFORMERS | C50: kiosk mounted ; < = 22 kv ; > 600 kva ; multiple phase | D50: 58.27139726 | E50: 37.27131697 | F50: 6.105023912 | G50: 2 | H50: 70 | I50: 44 | J50: 41 | K50: 57 | L50: 67 | M50: 52 | N50: 74 | O50: 63 | P50: 118 | Q50: 154 | R50: 86 | S50: 144 | T50: 78 | U50: 127 | V50: 103 | W50: 78 | X50: 66 | Y50: 101 | Z50: 94 | AA50: 69 | AB50: 55 | AC50: 38 | AD50: 50 | AE50: 36 | AF50: 23 | AG50: 18 | AH50: 25 | AI50: 23 | AJ50: 18 | AK50: 20 | AL50: 17 | AM50: 10 | AN50: 21 | AO50: 8 | AP50: 9 | AQ50: 5 | AR50: 5 | AS50: 3 | AT50: 1 | AU50: 2 | AV50: 0 | AW50: 1 | AX50: 2 | AY50: 0 | AZ50: 1 | BA50: 3 | BB50: 0 | BC50: 0 | BD50: 0 | BE50: 0 | BF50: 0 | BG50: 0 | BH50: 0 | BI50: 0 | BJ50: 0 | BK50: 0 | BL50: 0 | BM50: 0 | BN50: 0 | BO50: 0 | BP50: 0 | BQ50: 0 | BR50: 0 | BS50: 0 | BT50: 1 | BU50: 0 | BV50: 0 | BW50: 0 | BX50: 0 | BY50: 0 | BZ50: 0 | CA50: 0 | CB50: 0 | CC50: 0 | CD50: 0 | CE50: 0 | CF50: 0 | CG50: 0 | CH50: 0 | CI50: 0 | CJ50: 0 | CK50: 0 | CL50: 0 | CM50: 0 | CN50: 0 | CO50: 0 | CP50: 0 | CQ50: 0 | CR50: 0 | CS50: 0 | CT50: 0 | CV50: 4078.997808 | CW50: 2563.941479 | CX50: 2389.127288 | CY50: 3321.469644 | CZ50: 3904.183616 | DA50: 3030.112657 | DB50: 4312.083397 | DC50: 3671.098027 | DD50: 6876.024877 | DE50: 8973.795178 | DF50: 5011.340164 | DG50: 8391.081205 | DH50: 4545.168986 | DI50: 7400.467452 | DJ50: 6001.953918 | DK50: 4545.168986 | DL50: 3845.912219 | DM50: 5885.411123 | DN50: 5477.511342 | DO50: 4020.726411 | DP50: 3204.926849 | DQ50: 2214.313096 | DR50: 2913.569863 | DS50: 2097.770301 | DT50: 1340.242137 | DU50: 1048.885151 | DV50: 1456.784931 | DW50: 1340.242137 | DX50: 1048.885151 | DY50: 1165.427945 | DZ50: 990.6137534 | EA50: 582.7139726 | EB50: 1223.699342 | EC50: 466.1711781 | ED50: 524.4425753 | EE50: 291.3569863 | EF50: 291.3569863 | EG50: 174.8141918 | EH50: 58.27139726 | EI50: 116.5427945 | EJ50: 0 | EK50: 58.27139726 | EL50: 116.5427945 | EM50: 0 | EN50: 58.27139726 | EO50: 174.8141918 | EP50: 0 | EQ50: 0 | ER50: 0 | ES50: 0 | ET50: 0 | EU50: 0 | EV50: 0 | EW50: 0 | EX50: 0 | EY50: 0 | EZ50: 0 | FA50: 0 | FB50: 0 | FC50: 0 | FD50: 0 | FE50: 0 | FF50: 0 | FG50: 0 | FH50: 58.27139726 | FI50: 0 | FJ50: 0 | FK50: 0 | FL50: 0 | FM50: 0 | FN50: 0 | FO50: 0 | FP50: 0 | FQ50: 0 | FR50: 0 | FS50: 0 | FT50: 0 | FU50: 0 | FV50: 0 | FW50: 0 | FX50: 0 | FY50: 0 | FZ50: 0 | GA50: 0 | GB50: 0 | GC50: 0 | GD50: 0 | GE50: 0 | GF50: 0 | GG50: 0 | GH50: 0
A51: 5 | B51: TRANSFORMERS | C51: pole mounted ; < = 22 kv ; < = 60 kva ; multiple phase | D51: 8.349844271 | E51: 64.88700793 | F51: 8.05524723 | G51: 2 | H51: 45 | I51: 32 | J51: 39 | K51: 19 | L51: 49 | M51: 95 | N51: 43 | O51: 62 | P51: 30 | Q51: 42 | R51: 14 | S51: 72 | T51: 85 | U51: 107 | V51: 53 | W51: 106 | X51: 27 | Y51: 71 | Z51: 46 | AA51: 111 | AB51: 34 | AC51: 79 | AD51: 60 | AE51: 76 | AF51: 88 | AG51: 99 | AH51: 104 | AI51: 105 | AJ51: 126 | AK51: 111 | AL51: 92 | AM51: 90 | AN51: 78 | AO51: 72 | AP51: 66 | AQ51: 100 | AR51: 66 | AS51: 65 | AT51: 35 | AU51: 21 | AV51: 31 | AW51: 33 | AX51: 26 | AY51: 19 | AZ51: 19 | BA51: 20 | BB51: 16 | BC51: 20 | BD51: 27 | BE51: 33 | BF51: 20 | BG51: 18 | BH51: 17 | BI51: 16 | BJ51: 13 | BK51: 7 | BL51: 5 | BM51: 7 | BN51: 4 | BO51: 7 | BP51: 9 | BQ51: 4 | BR51: 2 | BS51: 7 | BT51: 9 | BU51: 2 | BV51: 0 | BW51: 0 | BX51: 0 | BY51: 0 | BZ51: 0 | CA51: 0 | CB51: 0 | CC51: 0 | CD51: 0 | CE51: 0 | CF51: 0 | CG51: 0 | CH51: 0 | CI51: 0 | CJ51: 0 | CK51: 0 | CL51: 0 | CM51: 0 | CN51: 0 | CO51: 0 | CP51: 0 | CQ51: 0 | CR51: 0 | CS51: 0 | CT51: 0 | CV51: 375.7429922 | CW51: 267.1950167 | CX51: 325.6439266 | CY51: 158.6470411 | CZ51: 409.1423693 | DA51: 793.2352057 | DB51: 359.0433036 | DC51: 517.6903448 | DD51: 250.4953281 | DE51: 350.6934594 | DF51: 116.8978198 | DG51: 601.1887875 | DH51: 709.736763 | DI51: 893.433337 | DJ51: 442.5417463 | DK51: 885.0834927 | DL51: 225.4457953 | DM51: 592.8389432 | DN51: 384.0928364 | DO51: 926.832714 | DP51: 283.8947052 | DQ51: 659.6376974 | DR51: 500.9906562 | DS51: 634.5881646 | DT51: 734.7862958 | DU51: 826.6345828 | DV51: 868.3838041 | DW51: 876.7336484 | DX51: 1052.080378 | DY51: 926.832714 | DZ51: 768.1856729 | EA51: 751.4859844 | EB51: 651.2878531 | EC51: 601.1887875 | ED51: 551.0897219 | EE51: 834.9844271 | EF51: 551.0897219 | EG51: 542.7398776 | EH51: 292.2445495 | EI51: 175.3467297 | EJ51: 258.8451724 | EK51: 275.5448609 | EL51: 217.095951 | EM51: 158.6470411 | EN51: 158.6470411 | EO51: 166.9968854 | EP51: 133.5975083 | EQ51: 166.9968854 | ER51: 225.4457953 | ES51: 275.5448609 | ET51: 166.9968854 | EU51: 150.2971969 | EV51: 141.9473526 | EW51: 133.5975083 | EX51: 108.5479755 | EY51: 58.44890989 | EZ51: 41.74922135 | FA51: 58.44890989 | FB51: 33.39937708 | FC51: 58.44890989 | FD51: 75.14859844 | FE51: 33.39937708 | FF51: 16.69968854 | FG51: 58.44890989 | FH51: 75.14859844 | FI51: 16.69968854 | FJ51: 0 | FK51: 0 | FL51: 0 | FM51: 0 | FN51: 0 | FO51: 0 | FP51: 0 | FQ51: 0 | FR51: 0 | FS51: 0 | FT51: 0 | FU51: 0 | FV51: 0 | FW51: 0 | FX51: 0 | FY51: 0 | FZ51: 0 | GA51: 0 | GB51: 0 | GC51: 0 | GD51: 0 | GE51: 0 | GF51: 0 | GG51: 0 | GH51: 0
A52: 5 | B52: TRANSFORMERS | C52: pole mounted ; < = 22 kv ; < = 60 kva ; single phase | D52: 4.278708258 | E52: 56.11590497 | F52: 7.491054997 | G52: 2 | H52: 0 | I52: 8 | J52: 59 | K52: 57 | L52: 66 | M52: 27 | N52: 60 | O52: 67 | P52: 91 | Q52: 103 | R52: 115 | S52: 92 | T52: 72 | U52: 40 | V52: 43 | W52: 119 | X52: 32 | Y52: 105 | Z52: 35 | AA52: 69 | AB52: 29 | AC52: 85 | AD52: 80 | AE52: 75 | AF52: 97 | AG52: 90 | AH52: 79 | AI52: 115 | AJ52: 189 | AK52: 153 | AL52: 99 | AM52: 90 | AN52: 96 | AO52: 100 | AP52: 62 | AQ52: 61 | AR52: 42 | AS52: 61 | AT52: 25 | AU52: 22 | AV52: 7 | AW52: 25 | AX52: 19 | AY52: 11 | AZ52: 10 | BA52: 18 | BB52: 7 | BC52: 7 | BD52: 3 | BE52: 15 | BF52: 4 | BG52: 5 | BH52: 12 | BI52: 9 | BJ52: 3 | BK52: 11 | BL52: 1 | BM52: 1 | BN52: 5 | BO52: 0 | BP52: 5 | BQ52: 2 | BR52: 4 | BS52: 1 | BT52: 2 | BU52: 0 | BV52: 0 | BW52: 0 | BX52: 0 | BY52: 0 | BZ52: 0 | CA52: 0 | CB52: 0 | CC52: 0 | CD52: 0 | CE52: 0 | CF52: 0 | CG52: 0 | CH52: 0 | CI52: 0 | CJ52: 0 | CK52: 0 | CL52: 0 | CM52: 0 | CN52: 0 | CO52: 0 | CP52: 0 | CQ52: 0 | CR52: 0 | CS52: 0 | CT52: 0 | CV52: 0 | CW52: 34.22966607 | CX52: 252.4437872 | CY52: 243.8863707 | CZ52: 282.394745 | DA52: 115.525123 | DB52: 256.7224955 | DC52: 286.6734533 | DD52: 389.3624515 | DE52: 440.7069506 | DF52: 492.0514497 | DG52: 393.6411598 | DH52: 308.0669946 | DI52: 171.1483303 | DJ52: 183.9844551 | DK52: 509.1662827 | DL52: 136.9186643 | DM52: 449.2643671 | DN52: 149.754789 | DO52: 295.2308698 | DP52: 124.0825395 | DQ52: 363.6902019 | DR52: 342.2966607 | DS52: 320.9031194 | DT52: 415.034701 | DU52: 385.0837432 | DV52: 338.0179524 | DW52: 492.0514497 | DX52: 808.6758608 | DY52: 654.6423635 | DZ52: 423.5921176 | EA52: 385.0837432 | EB52: 410.7559928 | EC52: 427.8708258 | ED52: 265.279912 | EE52: 261.0012038 | EF52: 179.7057468 | EG52: 261.0012038 | EH52: 106.9677065 | EI52: 94.13158168 | EJ52: 29.95095781 | EK52: 106.9677065 | EL52: 81.29545691 | EM52: 47.06579084 | EN52: 42.78708258 | EO52: 77.01674865 | EP52: 29.95095781 | EQ52: 29.95095781 | ER52: 12.83612477 | ES52: 64.18062387 | ET52: 17.11483303 | EU52: 21.39354129 | EV52: 51.3444991 | EW52: 38.50837432 | EX52: 12.83612477 | EY52: 47.06579084 | EZ52: 4.278708258 | FA52: 4.278708258 | FB52: 21.39354129 | FC52: 0 | FD52: 21.39354129 | FE52: 8.557416516 | FF52: 17.11483303 | FG52: 4.278708258 | FH52: 8.557416516 | FI52: 0 | FJ52: 0 | FK52: 0 | FL52: 0 | FM52: 0 | FN52: 0 | FO52: 0 | FP52: 0 | FQ52: 0 | FR52: 0 | FS52: 0 | FT52: 0 | FU52: 0 | FV52: 0 | FW52: 0 | FX52: 0 | FY52: 0 | FZ52: 0 | GA52: 0 | GB52: 0 | GC52: 0 | GD52: 0 | GE52: 0 | GF52: 0 | GG52: 0 | GH52: 0
A53: 5 | B53: TRANSFORMERS | C53: pole mounted ; < = 22 kv ; > 60 kva and < = 600 kva ; multiple phase | D53: 15.41618313 | E53: 57.86418091 | F53: 7.60685092 | G53: 2 | H53: 104 | I53: 94 | J53: 150 | K53: 175 | L53: 243 | M53: 186 | N53: 260 | O53: 355 | P53: 444 | Q53: 426 | R53: 443 | S53: 444 | T53: 432 | U53: 601 | V53: 200 | W53: 600 | X53: 440 | Y53: 368 | Z53: 88 | AA53: 240 | AB53: 133 | AC53: 322 | AD53: 254 | AE53: 241 | AF53: 292 | AG53: 282 | AH53: 231 | AI53: 252 | AJ53: 347 | AK53: 390 | AL53: 323 | AM53: 290 | AN53: 248 | AO53: 319 | AP53: 303 | AQ53: 410 | AR53: 221 | AS53: 214 | AT53: 129 | AU53: 112 | AV53: 103 | AW53: 137 | AX53: 69 | AY53: 62 | AZ53: 58 | BA53: 95 | BB53: 75 | BC53: 107 | BD53: 120 | BE53: 104 | BF53: 87 | BG53: 74 | BH53: 53 | BI53: 49 | BJ53: 27 | BK53: 14 | BL53: 16 | BM53: 15 | BN53: 10 | BO53: 4 | BP53: 4 | BQ53: 0 | BR53: 2 | BS53: 2 | BT53: 3 | BU53: 3 | BV53: 0 | BW53: 0 | BX53: 0 | BY53: 0 | BZ53: 0 | CA53: 0 | CB53: 0 | CC53: 0 | CD53: 0 | CE53: 0 | CF53: 0 | CG53: 0 | CH53: 0 | CI53: 0 | CJ53: 0 | CK53: 0 | CL53: 0 | CM53: 0 | CN53: 0 | CO53: 0 | CP53: 0 | CQ53: 0 | CR53: 0 | CS53: 0 | CT53: 0 | CV53: 1603.283045 | CW53: 1449.121214 | CX53: 2312.427469 | CY53: 2697.832048 | CZ53: 3746.1325 | DA53: 2867.410062 | DB53: 4008.207614 | DC53: 5472.745011 | DD53: 6844.785309 | DE53: 6567.294013 | DF53: 6829.369126 | DG53: 6844.785309 | DH53: 6659.791112 | DI53: 9265.126061 | DJ53: 3083.236626 | DK53: 9249.709877 | DL53: 6783.120577 | DM53: 5673.155391 | DN53: 1356.624115 | DO53: 3699.883951 | DP53: 2050.352356 | DQ53: 4964.010968 | DR53: 3915.710515 | DS53: 3715.300134 | DT53: 4501.525474 | DU53: 4347.363642 | DV53: 3561.138303 | DW53: 3884.878149 | DX53: 5349.415546 | DY53: 6012.31142 | DZ53: 4979.427151 | EA53: 4470.693107 | EB53: 3823.213416 | EC53: 4917.762418 | ED53: 4671.103488 | EE53: 6320.635083 | EF53: 3406.976472 | EG53: 3299.06319 | EH53: 1988.687624 | EI53: 1726.61251 | EJ53: 1587.866862 | EK53: 2112.017089 | EL53: 1063.716636 | EM53: 955.803354 | EN53: 894.1386215 | EO53: 1464.537397 | EP53: 1156.213735 | EQ53: 1649.531595 | ER53: 1849.941975 | ES53: 1603.283045 | ET53: 1341.207932 | EU53: 1140.797552 | EV53: 817.0577058 | EW53: 755.3929733 | EX53: 416.2369445 | EY53: 215.8265638 | EZ53: 246.6589301 | FA53: 231.2427469 | FB53: 154.1618313 | FC53: 61.66473252 | FD53: 61.66473252 | FE53: 0 | FF53: 30.83236626 | FG53: 30.83236626 | FH53: 46.24854939 | FI53: 46.24854939 | FJ53: 0 | FK53: 0 | FL53: 0 | FM53: 0 | FN53: 0 | FO53: 0 | FP53: 0 | FQ53: 0 | FR53: 0 | FS53: 0 | FT53: 0 | FU53: 0 | FV53: 0 | FW53: 0 | FX53: 0 | FY53: 0 | FZ53: 0 | GA53: 0 | GB53: 0 | GC53: 0 | GD53: 0 | GE53: 0 | GF53: 0 | GG53: 0 | GH53: 0
A54: 5 | B54: TRANSFORMERS | C54: pole mounted ; < = 22 kv ; > 60 kva and < = 600 kva ; single phase | D54: 15.41618313 | E54: 57.86418091 | F54: 7.60685092 | G54: 2 | H54: 0 | I54: 0 | J54: 0 | K54: 0 | L54: 0 | M54: 0 | N54: 0 | O54: 0 | P54: 0 | Q54: 0 | R54: 0 | S54: 0 | T54: 1 | U54: 0 | V54: 2 | W54: 2 | X54: 3 | Y54: 2 | Z54: 0 | AA54: 5 | AB54: 5 | AC54: 1 | AD54: 0 | AE54: 1 | AF54: 0 | AG54: 0 | AH54: 0 | AI54: 0 | AJ54: 0 | AK54: 0 | AL54: 0 | AM54: 0 | AN54: 0 | AO54: 0 | AP54: 0 | AQ54: 0 | AR54: 1 | AS54: 0 | AT54: 0 | AU54: 0 | AV54: 0 | AW54: 0 | AX54: 1 | AY54: 0 | AZ54: 0 | BA54: 0 | BB54: 0 | BC54: 0 | BD54: 0 | BE54: 0 | BF54: 0 | BG54: 0 | BH54: 0 | BI54: 0 | BJ54: 0 | BK54: 0 | BL54: 0 | BM54: 0 | BN54: 0 | BO54: 0 | BP54: 0 | BQ54: 0 | BR54: 0 | BS54: 0 | BT54: 0 | BU54: 0 | BV54: 0 | BW54: 0 | BX54: 0 | BY54: 0 | BZ54: 0 | CA54: 0 | CB54: 0 | CC54: 0 | CD54: 0 | CE54: 0 | CF54: 0 | CG54: 0 | CH54: 0 | CI54: 0 | CJ54: 0 | CK54: 0 | CL54: 0 | CM54: 0 | CN54: 0 | CO54: 0 | CP54: 0 | CQ54: 0 | CR54: 0 | CS54: 0 | CT54: 0 | CV54: 0 | CW54: 0 | CX54: 0 | CY54: 0 | CZ54: 0 | DA54: 0 | DB54: 0 | DC54: 0 | DD54: 0 | DE54: 0 | DF54: 0 | DG54: 0 | DH54: 15.41618313 | DI54: 0 | DJ54: 30.83236626 | DK54: 30.83236626 | DL54: 46.24854939 | DM54: 30.83236626 | DN54: 0 | DO54: 77.08091565 | DP54: 77.08091565 | DQ54: 15.41618313 | DR54: 0 | DS54: 15.41618313 | DT54: 0 | DU54: 0 | DV54: 0 | DW54: 0 | DX54: 0 | DY54: 0 | DZ54: 0 | EA54: 0 | EB54: 0 | EC54: 0 | ED54: 0 | EE54: 0 | EF54: 15.41618313 | EG54: 0 | EH54: 0 | EI54: 0 | EJ54: 0 | EK54: 0 | EL54: 15.41618313 | EM54: 0 | EN54: 0 | EO54: 0 | EP54: 0 | EQ54: 0 | ER54: 0 | ES54: 0 | ET54: 0 | EU54: 0 | EV54: 0 | EW54: 0 | EX54: 0 | EY54: 0 | EZ54: 0 | FA54: 0 | FB54: 0 | FC54: 0 | FD54: 0 | FE54: 0 | FF54: 0 | FG54: 0 | FH54: 0 | FI54: 0 | FJ54: 0 | FK54: 0 | FL54: 0 | FM54: 0 | FN54: 0 | FO54: 0 | FP54: 0 | FQ54: 0 | FR54: 0 | FS54: 0 | FT54: 0 | FU54: 0 | FV54: 0 | FW54: 0 | FX54: 0 | FY54: 0 | FZ54: 0 | GA54: 0 | GB54: 0 | GC54: 0 | GD54: 0 | GE54: 0 | GF54: 0 | GG54: 0 | GH54: 0
A55: 5 | B55: TRANSFORMERS | C55: pole mounted ; < = 22 kv ; > 600 kva ; multiple phase | D55: 41.576117 | E55: 44.77199293 | F55: 6.691187707 | G55: 2 | H55: 0 | I55: 0 | J55: 0 | K55: 0 | L55: 0 | M55: 0 | N55: 1 | O55: 0 | P55: 0 | Q55: 0 | R55: 0 | S55: 0 | T55: 0 | U55: 1 | V55: 1 | W55: 2 | X55: 0 | Y55: 0 | Z55: 0 | AA55: 0 | AB55: 0 | AC55: 0 | AD55: 0 | AE55: 0 | AF55: 0 | AG55: 0 | AH55: 0 | AI55: 0 | AJ55: 0 | AK55: 1 | AL55: 0 | AM55: 0 | AN55: 0 | AO55: 0 | AP55: 0 | AQ55: 0 | AR55: 2 | AS55: 0 | AT55: 0 | AU55: 0 | AV55: 0 | AW55: 0 | AX55: 0 | AY55: 1 | AZ55: 0 | BA55: 0 | BB55: 0 | BC55: 0 | BD55: 0 | BE55: 0 | BF55: 0 | BG55: 0 | BH55: 0 | BI55: 0 | BJ55: 0 | BK55: 0 | BL55: 0 | BM55: 0 | BN55: 0 | BO55: 0 | BP55: 0 | BQ55: 0 | BR55: 0 | BS55: 0 | BT55: 0 | BU55: 0 | BV55: 0 | BW55: 0 | BX55: 0 | BY55: 0 | BZ55: 0 | CA55: 0 | CB55: 0 | CC55: 0 | CD55: 0 | CE55: 0 | CF55: 0 | CG55: 0 | CH55: 0 | CI55: 0 | CJ55: 0 | CK55: 0 | CL55: 0 | CM55: 0 | CN55: 0 | CO55: 0 | CP55: 0 | CQ55: 0 | CR55: 0 | CS55: 0 | CT55: 0 | CV55: 0 | CW55: 0 | CX55: 0 | CY55: 0 | CZ55: 0 | DA55: 0 | DB55: 41.576117 | DC55: 0 | DD55: 0 | DE55: 0 | DF55: 0 | DG55: 0 | DH55: 0 | DI55: 41.576117 | DJ55: 41.576117 | DK55: 83.15223399 | DL55: 0 | DM55: 0 | DN55: 0 | DO55: 0 | DP55: 0 | DQ55: 0 | DR55: 0 | DS55: 0 | DT55: 0 | DU55: 0 | DV55: 0 | DW55: 0 | DX55: 0 | DY55: 41.576117 | DZ55: 0 | EA55: 0 | EB55: 0 | EC55: 0 | ED55: 0 | EE55: 0 | EF55: 83.15223399 | EG55: 0 | EH55: 0 | EI55: 0 | EJ55: 0 | EK55: 0 | EL55: 0 | EM55: 41.576117 | EN55: 0 | EO55: 0 | EP55: 0 | EQ55: 0 | ER55: 0 | ES55: 0 | ET55: 0 | EU55: 0 | EV55: 0 | EW55: 0 | EX55: 0 | EY55: 0 | EZ55: 0 | FA55: 0 | FB55: 0 | FC55: 0 | FD55: 0 | FE55: 0 | FF55: 0 | FG55: 0 | FH55: 0 | FI55: 0 | FJ55: 0 | FK55: 0 | FL55: 0 | FM55: 0 | FN55: 0 | FO55: 0 | FP55: 0 | FQ55: 0 | FR55: 0 | FS55: 0 | FT55: 0 | FU55: 0 | FV55: 0 | FW55: 0 | FX55: 0 | FY55: 0 | FZ55: 0 | GA55: 0 | GB55: 0 | GC55: 0 | GD55: 0 | GE55: 0 | GF55: 0 | GG55: 0 | GH55: 0
A56: 6 | B56: UNDERGROUND CABLES | C56: ˂ = 1 kv | D56: 416.5848208 | E56: 59.30306089 | F56: 7.700848063 | G56: 2 | H56: 457.218103 | I56: 318.4656051 | J56: 428.2500292 | K56: 305.9700165 | L56: 360.1872896 | M56: 251.4820155 | N56: 246.4386747 | O56: 155.7291871 | P56: 157.3552742 | Q56: 370.9202741 | R56: 297.734211 | S56: 444.1063371 | T56: 511.8777788 | U56: 241.5740593 | V56: 54.49465099 | W56: 186.9623332 | X56: 602.3032653 | Y56: 422.5801484 | Z56: 195.9527107 | AA56: 435.9598622 | AB56: 171.7762313 | AC56: 207.3540562 | AD56: 270.0875929 | AE56: 318.5955384 | AF56: 229.7197704 | AG56: 109.7626015 | AH56: 220.9872478 | AI56: 228.4517656 | AJ56: 348.9261462 | AK56: 309.4274175 | AL56: 296.1761062 | AM56: 348.8697883 | AN56: 232.1845166 | AO56: 170.3066334 | AP56: 400.7635979 | AQ56: 529.7903826 | AR56: 465.1968285 | AS56: 323.8817057 | AT56: 285.5952324 | AU56: 152.8374904 | AV56: 79.33616803 | AW56: 151.6154446 | AX56: 197.4713433 | AY56: 152.3806127 | AZ56: 167.4413284 | BA56: 70.51403211 | BB56: 25.55332309 | BC56: 29.94508178 | BD56: 44.9726508 | BE56: 22.9278994 | BF56: 15.89023608 | BG56: 13.2675475 | BH56: 2.65339508 | BI56: 8.16410476 | BJ56: 20.11163332 | BK56: 6.684459 | BL56: 10.41332312 | BM56: 0 | BN56: 0 | BO56: 0 | BP56: 0 | BQ56: 0 | BR56: 0 | BS56: 0 | BT56: 0 | BU56: 0 | BV56: 0 | BW56: 0 | BX56: 0 | BY56: 0 | BZ56: 0 | CA56: 0 | CB56: 0 | CC56: 0 | CD56: 0 | CE56: 0 | CF56: 0 | CG56: 0 | CH56: 0 | CI56: 0 | CJ56: 0 | CK56: 0 | CL56: 0 | CM56: 0 | CN56: 0 | CO56: 0 | CP56: 0 | CQ56: 0 | CR56: 0 | CS56: 0 | CT56: 0 | CV56: 190470.1215 | CW56: 132667.937 | CX56: 178402.4617 | CY56: 127462.4645 | CZ56: 150048.5575 | DA56: 104763.5903 | DB56: 102662.6111 | DC56: 64874.41548 | DD56: 65551.81871 | DE56: 154519.7559 | DF56: 124031.5529 | DG56: 185007.9589 | DH56: 213240.5128 | DI56: 100636.0862 | DJ56: 22701.64442 | DK56: 77885.67006 | DL56: 250910.3978 | DM56: 176040.4754 | DN56: 81630.92489 | DO56: 181614.2611 | DP56: 71559.37052 | DQ56: 86380.55233 | DR56: 112514.3915 | DS56: 132722.0653 | DT56: 95697.7694 | DU56: 45725.43367 | DV56: 92059.93301 | DW56: 95169.53782 | DX56: 145357.3361 | DY56: 128902.7653 | DZ56: 123382.4701 | EA56: 145333.8582 | EB56: 96724.54523 | EC56: 70947.15834 | ED56: 166952.0316 | EE56: 220702.6316 | EF56: 193793.9374 | EG56: 134924.2023 | EH56: 118974.6387 | EI56: 63669.77854 | EJ56: 33050.24334 | EK56: 63160.69281 | EL56: 82263.56416 | EM56: 63479.45024 | EN56: 69753.51581 | EO56: 29375.07543 | EP56: 10645.12652 | EQ56: 12474.66653 | ER56: 18734.92367 | ES56: 9551.414863 | ET56: 6619.63115 | EU56: 5527.058898 | EV56: 1105.364114 | EW56: 3401.042118 | EX56: 8378.201162 | EY56: 2784.644155 | EZ56: 4338.032346 | FA56: 0 | FB56: 0 | FC56: 0 | FD56: 0 | FE56: 0 | FF56: 0 | FG56: 0 | FH56: 0 | FI56: 0 | FJ56: 0 | FK56: 0 | FL56: 0 | FM56: 0 | FN56: 0 | FO56: 0 | FP56: 0 | FQ56: 0 | FR56: 0 | FS56: 0 | FT56: 0 | FU56: 0 | FV56: 0 | FW56: 0 | FX56: 0 | FY56: 0 | FZ56: 0 | GA56: 0 | GB56: 0 | GC56: 0 | GD56: 0 | GE56: 0 | GF56: 0 | GG56: 0 | GH56: 0
A57: 6 | B57: UNDERGROUND CABLES | C57: > 1 kv & < = 11 kv | D57: 29.03554043 | E57: 42.8891279 | F57: 6.548979149 | G57: 2 | H57: 156.028363 | I57: 169.1601923 | J57: 189.490787 | K57: 193.9791855 | L57: 162.7370965 | M57: 150.66182 | N57: 148.9320723 | O57: 119.5389458 | P57: 105.0005765 | Q57: 171.4409363 | R57: 156.8294928 | S57: 147.0885306 | T57: 147.0885306 | U57: 116.8201452 | V57: 98.39273632 | W57: 48.7328925 | X57: 156.9940842 | Y57: 110.1481384 | Z57: 51.07629021 | AA57: 113.6356438 | AB57: 44.77454079 | AC57: 54.04812166 | AD57: 70.40000737 | AE57: 83.04390442 | AF57: 59.87788389 | AG57: 28.6103033 | AH57: 57.60169766 | AI57: 58.20520624 | AJ57: 88.89980889 | AK57: 73.90900959 | AL57: 70.74383665 | AM57: 83.33010934 | AN57: 55.45897582 | AO57: 40.67898928 | AP57: 95.72532662 | AQ57: 126.5443211 | AR57: 118.5233884 | AS57: 82.51895725 | AT57: 72.7642851 | AU57: 38.94011336 | AV57: 20.21336106 | AW57: 38.62875911 | AX57: 63.13223747 | AY57: 48.7165827 | AZ57: 53.53154302 | BA57: 22.54356781 | BB57: 8.16948137 | BC57: 9.57354106 | BD57: 14.37790427 | BE57: 7.33012479 | BF57: 5.0801607 | BG57: 4.24167854 | BH57: 9.74096228 | BI57: 0 | BJ57: 0 | BK57: 0 | BL57: 0 | BM57: 0 | BN57: 0 | BO57: 0 | BP57: 0 | BQ57: 0 | BR57: 0 | BS57: 0 | BT57: 0 | BU57: 0 | BV57: 0 | BW57: 0 | BX57: 0 | BY57: 0 | BZ57: 0 | CA57: 0 | CB57: 0 | CC57: 0 | CD57: 0 | CE57: 0 | CF57: 0 | CG57: 0 | CH57: 0 | CI57: 0 | CJ57: 0 | CK57: 0 | CL57: 0 | CM57: 0 | CN57: 0 | CO57: 0 | CP57: 0 | CQ57: 0 | CR57: 0 | CS57: 0 | CT57: 0 | CV57: 4530.367843 | CW57: 4911.657603 | CX57: 5501.967407 | CY57: 5632.290485 | CZ57: 4725.159547 | DA57: 4374.547367 | DB57: 4324.323209 | DC57: 3470.877893 | DD57: 3048.748484 | DE57: 4977.880237 | DF57: 4553.629081 | DG57: 4270.794976 | DH57: 4270.794976 | DI57: 3391.93605 | DJ57: 2856.886274 | DK57: 1414.985871 | DL57: 4558.408081 | DM57: 3198.210726 | DN57: 1483.02769 | DO57: 3299.472331 | DP57: 1300.05299 | DQ57: 1569.316422 | DR57: 2044.102261 | DS57: 2411.224645 | DT57: 1738.586719 | DU57: 830.7156183 | DV57: 1672.496422 | DW57: 1690.019619 | DX57: 2581.253996 | DY57: 2145.988036 | DZ57: 2054.08553 | EA57: 2419.534759 | EB57: 1610.281335 | EC57: 1181.136438 | ED57: 2779.436592 | EE57: 3674.282752 | EF57: 3441.390637 | EG57: 2395.98252 | EH57: 2112.750342 | EI57: 1130.647236 | EJ57: 586.9058624 | EK57: 1121.606897 | EL57: 1833.078634 | EM57: 1414.512307 | EN57: 1554.317282 | EO57: 654.5646747 | EP57: 237.2053066 | EQ57: 277.9729386 | ER57: 417.4702208 | ES57: 212.8341347 | ET57: 147.5052114 | EU57: 123.1594288 | EV57: 282.8341042 | EW57: 0 | EX57: 0 | EY57: 0 | EZ57: 0 | FA57: 0 | FB57: 0 | FC57: 0 | FD57: 0 | FE57: 0 | FF57: 0 | FG57: 0 | FH57: 0 | FI57: 0 | FJ57: 0 | FK57: 0 | FL57: 0 | FM57: 0 | FN57: 0 | FO57: 0 | FP57: 0 | FQ57: 0 | FR57: 0 | FS57: 0 | FT57: 0 | FU57: 0 | FV57: 0 | FW57: 0 | FX57: 0 | FY57: 0 | FZ57: 0 | GA57: 0 | GB57: 0 | GC57: 0 | GD57: 0 | GE57: 0 | GF57: 0 | GG57: 0 | GH57: 0
A58: 6 | B58: UNDERGROUND CABLES | C58: > 11 kv & < = 22 kv | D58: 38.29542359 | E58: 21.9612302 | F58: 4.686281063 | G58: 2 | H58: 26.405983 | I58: 14.46645146 | J58: 9.49361638 | K58: 17.18535518 | L58: 14.42861097 | M58: 8.57423545 | N58: 22.65043932 | O58: 13.48373825 | P58: 8.11871664 | Q58: 28.86842381 | R58: 27.49373696 | S58: 20.62030272 | T58: 42.6152923 | U58: 21.99498957 | V58: 20.62030272 | W58: 31.61779751 | X58: 35.74185806 | Y58: 21.99498957 | Z58: 17.87092903 | AA58: 0 | AB58: 0 | AC58: 0 | AD58: 0 | AE58: 0 | AF58: 0 | AG58: 0 | AH58: 0 | AI58: 0 | AJ58: 0 | AK58: 0 | AL58: 0 | AM58: 0 | AN58: 0 | AO58: 0 | AP58: 0 | AQ58: 0 | AR58: 0 | AS58: 0 | AT58: 0 | AU58: 0 | AV58: 0 | AW58: 0 | AX58: 0 | AY58: 0 | AZ58: 0 | BA58: 0 | BB58: 0 | BC58: 0 | BD58: 0 | BE58: 0 | BF58: 0 | BG58: 0 | BH58: 0 | BI58: 0 | BJ58: 0 | BK58: 0 | BL58: 0 | BM58: 0 | BN58: 0 | BO58: 0 | BP58: 0 | BQ58: 0 | BR58: 0 | BS58: 0 | BT58: 0 | BU58: 0 | BV58: 0 | BW58: 0 | BX58: 0 | BY58: 0 | BZ58: 0 | CA58: 0 | CB58: 0 | CC58: 0 | CD58: 0 | CE58: 0 | CF58: 0 | CG58: 0 | CH58: 0 | CI58: 0 | CJ58: 0 | CK58: 0 | CL58: 0 | CM58: 0 | CN58: 0 | CO58: 0 | CP58: 0 | CQ58: 0 | CR58: 0 | CS58: 0 | CT58: 0 | CV58: 1011.228304 | CW58: 553.9988865 | CX58: 363.5620606 | CY58: 658.1204561 | CZ58: 552.5497689 | DA58: 328.3539785 | DB58: 867.4081682 | DC58: 516.3654678 | DD58: 310.9096927 | DE58: 1105.528518 | DF58: 1052.884303 | DG58: 789.6632272 | DH58: 1631.97067 | DI58: 842.3074424 | DJ58: 789.6632272 | DK58: 1210.816949 | DL58: 1368.749594 | DM58: 842.3074424 | DN58: 684.3747971 | DO58: 0 | DP58: 0 | DQ58: 0 | DR58: 0 | DS58: 0 | DT58: 0 | DU58: 0 | DV58: 0 | DW58: 0 | DX58: 0 | DY58: 0 | DZ58: 0 | EA58: 0 | EB58: 0 | EC58: 0 | ED58: 0 | EE58: 0 | EF58: 0 | EG58: 0 | EH58: 0 | EI58: 0 | EJ58: 0 | EK58: 0 | EL58: 0 | EM58: 0 | EN58: 0 | EO58: 0 | EP58: 0 | EQ58: 0 | ER58: 0 | ES58: 0 | ET58: 0 | EU58: 0 | EV58: 0 | EW58: 0 | EX58: 0 | EY58: 0 | EZ58: 0 | FA58: 0 | FB58: 0 | FC58: 0 | FD58: 0 | FE58: 0 | FF58: 0 | FG58: 0 | FH58: 0 | FI58: 0 | FJ58: 0 | FK58: 0 | FL58: 0 | FM58: 0 | FN58: 0 | FO58: 0 | FP58: 0 | FQ58: 0 | FR58: 0 | FS58: 0 | FT58: 0 | FU58: 0 | FV58: 0 | FW58: 0 | FX58: 0 | FY58: 0 | FZ58: 0 | GA58: 0 | GB58: 0 | GC58: 0 | GD58: 0 | GE58: 0 | GF58: 0 | GG58: 0 | GH58: 0
A59: 6 | B59: UNDERGROUND CABLES | C59: > 22 kv & < = 33 kv | D59: 182.9743609 | E59: 45.99718594 | F59: 6.782122525 | G59: 2 | H59: 8.360227 | I59: 8.23465762 | J59: 8.49281948 | K59: 21.15497874 | L59: 6.80176426 | M59: 0.34863884 | N59: 4.37508676 | O59: 6.05705658 | P59: 1.43329301 | Q59: 5.88093172 | R59: 4.90077643 | S59: 1.96031057 | T59: 6.86108701 | U59: 2.08176945 | V59: 0.62952629 | W59: 0 | X59: 7.01971543 | Y59: 0 | Z59: 0 | AA59: 1.10695512 | AB59: 2.37590368 | AC59: 3.30466603 | AD59: 0.3131873 | AE59: 9.10295097 | AF59: 0.89636366 | AG59: 4.43862006 | AH59: 2.38670324 | AI59: 0.64797373 | AJ59: 1.58753564 | AK59: 4.33062444 | AL59: 6.32854344 | AM59: 8.18606814 | AN59: 3.08867478 | AO59: 3.08867478 | AP59: 6.58773294 | AQ59: 4.03903626 | AR59: 12.25750309 | AS59: 7.9700769 | AT59: 9.15802874 | AU59: 0.64797373 | AV59: 3.56385552 | AW59: 0.07289704 | AX59: 0 | AY59: 0.60747537 | AZ59: 0 | BA59: 0 | BB59: 0.80996716 | BC59: 0 | BD59: 0.21869113 | BE59: 0.12149507 | BF59: 0 | BG59: 0.55887734 | BH59: 0.68847209 | BI59: 2.85918409 | BJ59: 0 | BK59: 0 | BL59: 2.8834831 | BM59: 0 | BN59: 0 | BO59: 0 | BP59: 0 | BQ59: 0 | BR59: 0 | BS59: 0 | BT59: 0 | BU59: 0 | BV59: 0 | BW59: 0 | BX59: 0 | BY59: 0 | BZ59: 0 | CA59: 0 | CB59: 0 | CC59: 0 | CD59: 0 | CE59: 0 | CF59: 0 | CG59: 0 | CH59: 0 | CI59: 0 | CJ59: 0 | CK59: 0 | CL59: 0 | CM59: 0 | CN59: 0 | CO59: 0 | CP59: 0 | CQ59: 0 | CR59: 0 | CS59: 0 | CT59: 0 | CV59: 1529.707192 | CW59: 1506.731215 | CX59: 1553.968216 | CY59: 3870.818714 | CZ59: 1244.548468 | DA59: 63.79196892 | DB59: 800.5287036 | DC59: 1108.286056 | DD59: 262.2558724 | DE59: 1076.059723 | DF59: 896.716435 | DG59: 358.6865736 | DH59: 1255.40301 | DI59: 380.9104346 | DJ59: 115.1871706 | DK59: 0 | DL59: 1284.427944 | DM59: 0 | DN59: 0 | DO59: 202.5444056 | DP59: 434.7294573 | DQ59: 604.6691547 | DR59: 57.30524604 | DS59: 1665.606636 | DT59: 164.0115678 | DU59: 812.1536685 | DV59: 436.7054999 | DW59: 118.5625791 | DX59: 290.4783191 | DY59: 792.393239 | DZ59: 1157.961191 | EA59: 1497.840586 | EB59: 565.1482937 | EC59: 565.1482937 | ED59: 1205.386224 | EE59: 739.0400781 | EF59: 2242.808794 | EG59: 1458.319727 | EH59: 1675.684455 | EI59: 118.5625791 | EJ59: 652.0941859 | EK59: 13.3382893 | EL59: 0 | EM59: 111.1524176 | EN59: 0 | EO59: 0 | EP59: 148.2032234 | EQ59: 0 | ER59: 40.01486974 | ES59: 22.23048278 | ET59: 0 | EU59: 102.2602241 | EV59: 125.9727406 | EW59: 523.1573814 | EX59: 0 | EY59: 0 | EZ59: 527.6034772 | FA59: 0 | FB59: 0 | FC59: 0 | FD59: 0 | FE59: 0 | FF59: 0 | FG59: 0 | FH59: 0 | FI59: 0 | FJ59: 0 | FK59: 0 | FL59: 0 | FM59: 0 | FN59: 0 | FO59: 0 | FP59: 0 | FQ59: 0 | FR59: 0 | FS59: 0 | FT59: 0 | FU59: 0 | FV59: 0 | FW59: 0 | FX59: 0 | FY59: 0 | FZ59: 0 | GA59: 0 | GB59: 0 | GC59: 0 | GD59: 0 | GE59: 0 | GF59: 0 | GG59: 0 | GH59: 0
A60: 6 | B60: UNDERGROUND CABLES | C60: > 33 kv & < = 66 kv | D60: 173.4314457 | E60: 35.23943147 | F60: 5.936280946 | G60: 2 | H60: 2.43058 | I60: 3.01528021 | J60: 0.53464989 | K60: 0.93622231 | L60: 12.20548244 | M60: 0.6970612 | N60: 0.70298523 | O60: 0.22422464 | P60: 0.15955395 | Q60: 0 | R60: 0 | S60: 0 | T60: 0 | U60: 0.01741595 | V60: 0.05442938 | W60: 0 | X60: 1.03193443 | Y60: 0 | Z60: 0 | AA60: 0 | AB60: 0 | AC60: 0 | AD60: 1.02161508 | AE60: 0 | AF60: 0 | AG60: 0 | AH60: 0 | AI60: 2.30121378 | AJ60: 0 | AK60: 2.8894164 | AL60: 2.06386886 | AM60: 0.63463967 | AN60: 2.36312984 | AO60: 0.17542885 | AP60: 0.06191606 | AQ60: 0.59852197 | AR60: 0 | AS60: 0 | AT60: 0 | AU60: 0 | AV60: 0.41277377 | AW60: 0 | AX60: 0 | AY60: 0 | AZ60: 0 | BA60: 0 | BB60: 0 | BC60: 0 | BD60: 0 | BE60: 0 | BF60: 0 | BG60: 0 | BH60: 0 | BI60: 0 | BJ60: 0 | BK60: 0 | BL60: 0 | BM60: 0 | BN60: 0 | BO60: 0 | BP60: 0 | BQ60: 0 | BR60: 0 | BS60: 0 | BT60: 0 | BU60: 0 | BV60: 0 | BW60: 0 | BX60: 0 | BY60: 0 | BZ60: 0 | CA60: 0 | CB60: 0 | CC60: 0 | CD60: 0 | CE60: 0 | CF60: 0 | CG60: 0 | CH60: 0 | CI60: 0 | CJ60: 0 | CK60: 0 | CL60: 0 | CM60: 0 | CN60: 0 | CO60: 0 | CP60: 0 | CQ60: 0 | CR60: 0 | CS60: 0 | CT60: 0 | CV60: 421.5390034 | CW60: 522.9444061 | CX60: 92.72510338 | CY60: 162.3703887 | CZ60: 2116.814465 | DA60: 120.8923317 | DB60: 121.9197448 | DC60: 38.88760348 | DD60: 27.67167222 | DE60: 0 | DF60: 0 | DG60: 0 | DH60: 0 | DI60: 3.020473387 | DJ60: 9.439766063 | DK60: 0 | DL60: 178.9698801 | DM60: 0 | DN60: 0 | DO60: 0 | DP60: 0 | DQ60: 0 | DR60: 177.1801803 | DS60: 0 | DT60: 0 | DU60: 0 | DV60: 0 | DW60: 399.1028328 | DX60: 0 | DY60: 501.1156636 | DZ60: 357.9397602 | EA60: 110.0664755 | EB60: 409.8410246 | EC60: 30.42487908 | ED60: 10.7381918 | EE60: 103.8025306 | EF60: 0 | EG60: 0 | EH60: 0 | EI60: 0 | EJ60: 71.58795169 | EK60: 0 | EL60: 0 | EM60: 0 | EN60: 0 | EO60: 0 | EP60: 0 | EQ60: 0 | ER60: 0 | ES60: 0 | ET60: 0 | EU60: 0 | EV60: 0 | EW60: 0 | EX60: 0 | EY60: 0 | EZ60: 0 | FA60: 0 | FB60: 0 | FC60: 0 | FD60: 0 | FE60: 0 | FF60: 0 | FG60: 0 | FH60: 0 | FI60: 0 | FJ60: 0 | FK60: 0 | FL60: 0 | FM60: 0 | FN60: 0 | FO60: 0 | FP60: 0 | FQ60: 0 | FR60: 0 | FS60: 0 | FT60: 0 | FU60: 0 | FV60: 0 | FW60: 0 | FX60: 0 | FY60: 0 | FZ60: 0 | GA60: 0 | GB60: 0 | GC60: 0 | GD60: 0 | GE60: 0 | GF60: 0 | GG60: 0 | GH60: 0
A61: 6 | B61: UNDERGROUND CABLES | C61: > 66 kv & < = 132 kv | D61: 223.4386953 | E61: 51.11729731 | F61: 7.149636166 | G61: 2 | H61: 14.92531 | I61: 9.91786744 | J61: 1.53386084 | K61: 14.050425 | L61: 14.52159972 | M61: 15.08322409 | N61: 4.40022754 | O61: 0 | P61: 6.60775917 | Q61: 6.34207153 | R61: 3.62404087 | S61: 4.53005109 | T61: 0 | U61: 0.49830562 | V61: 0 | W61: 0.46750127 | X61: 3.85416747 | Y61: 0.36240408 | Z61: 0 | AA61: 0 | AB61: 0.8425895 | AC61: 0 | AD61: 0 | AE61: 1.40431584 | AF61: 4.53005109 | AG61: 0 | AH61: 0.25368286 | AI61: 0 | AJ61: 0 | AK61: 0.67950766 | AL61: 0 | AM61: 0.07248081 | AN61: 0 | AO61: 0 | AP61: 0 | AQ61: 0 | AR61: 0 | AS61: 0 | AT61: 0 | AU61: 20.95148633 | AV61: 0 | AW61: 0 | AX61: 0 | AY61: 0 | AZ61: 0 | BA61: 0 | BB61: 0 | BC61: 0 | BD61: 0 | BE61: 0 | BF61: 0 | BG61: 0 | BH61: 15.78541606 | BI61: 0 | BJ61: 0 | BK61: 0 | BL61: 0 | BM61: 0 | BN61: 0 | BO61: 0 | BP61: 0 | BQ61: 0 | BR61: 0 | BS61: 0 | BT61: 0 | BU61: 0 | BV61: 0 | BW61: 0 | BX61: 0 | BY61: 0 | BZ61: 0 | CA61: 0 | CB61: 0 | CC61: 0 | CD61: 0 | CE61: 0 | CF61: 0 | CG61: 0 | CH61: 0 | CI61: 0 | CJ61: 0 | CK61: 0 | CL61: 0 | CM61: 0 | CN61: 0 | CO61: 0 | CP61: 0 | CQ61: 0 | CR61: 0 | CS61: 0 | CT61: 0 | CV61: 3334.891793 | CW61: 2216.035361 | CX61: 342.7238648 | CY61: 3139.40863 | CZ61: 3244.687295 | DA61: 3370.175911 | DB61: 983.1811004 | DC61: 0 | DD61: 1476.429088 | DE61: 1417.064188 | DF61: 809.7509636 | DG61: 1012.188705 | DH61: 0 | DI61: 111.3407576 | DJ61: 0 | DK61: 104.4578738 | DL61: 861.1701508 | DM61: 80.97509479 | DN61: 0 | DO61: 0 | DP61: 188.2670985 | DQ61: 0 | DR61: 0 | DS61: 313.778499 | DT61: 1012.188705 | DU61: 0 | DV61: 56.68256725 | DW61: 0 | DX61: 0 | DY61: 151.828305 | DZ61: 0 | EA61: 16.19501762 | EB61: 0 | EC61: 0 | ED61: 0 | EE61: 0 | EF61: 0 | EG61: 0 | EH61: 0 | EI61: 4681.372769 | EJ61: 0 | EK61: 0 | EL61: 0 | EM61: 0 | EN61: 0 | EO61: 0 | EP61: 0 | EQ61: 0 | ER61: 0 | ES61: 0 | ET61: 0 | EU61: 0 | EV61: 3527.072769 | EW61: 0 | EX61: 0 | EY61: 0 | EZ61: 0 | FA61: 0 | FB61: 0 | FC61: 0 | FD61: 0 | FE61: 0 | FF61: 0 | FG61: 0 | FH61: 0 | FI61: 0 | FJ61: 0 | FK61: 0 | FL61: 0 | FM61: 0 | FN61: 0 | FO61: 0 | FP61: 0 | FQ61: 0 | FR61: 0 | FS61: 0 | FT61: 0 | FU61: 0 | FV61: 0 | FW61: 0 | FX61: 0 | FY61: 0 | FZ61: 0 | GA61: 0 | GB61: 0 | GC61: 0 | GD61: 0 | GE61: 0 | GF61: 0 | GG61: 0 | GH61: 0

Sheet Historical scenario - output
D1: Replacement expenditure forecast ($,000) | X1: Replacement quantity forecast (#)
D2: 1 | E2: 2 | F2: 3 | G2: 4 | H2: 5 | I2: 6 | J2: 7 | K2: 8 | L2: 9 | M2: 10 | N2: 11 | O2: 12 | P2: 13 | Q2: 14 | R2: 15 | S2: 16 | T2: 17 | U2: 18 | V2: 19 | W2: 20 | X2: 1 | Y2: 2 | Z2: 3 | AA2: 4 | AB2: 5 | AC2: 6 | AD2: 7 | AE2: 8 | AF2: 9 | AG2: 10 | AH2: 11 | AI2: 12 | AJ2: 13 | AK2: 14 | AL2: 15 | AM2: 16 | AN2: 17 | AO2: 18 | AP2: 19 | AQ2: 20
A5: ID | B5: Asset group | D5: 2018 | E5: 2019 | F5: 2020 | G5: 2021 | H5: 2022 | I5: 2023 | J5: 2024 | K5: 2025 | L5: 2026 | M5: 2027 | N5: 2028 | O5: 2029 | P5: 2030 | Q5: 2031 | R5: 2032 | S5: 2033 | T5: 2034 | U5: 2035 | V5: 2036 | W5: 2037 | X5: 2018 | Y5: 2019 | Z5: 2020 | AA5: 2021 | AB5: 2022 | AC5: 2023 | AD5: 2024 | AE5: 2025 | AF5: 2026 | AG5: 2027 | AH5: 2028 | AI5: 2029 | AJ5: 2030 | AK5: 2031 | AL5: 2032 | AM5: 2033 | AN5: 2034 | AO5: 2035 | AP5: 2036 | AQ5: 2037
A6: 1 | B6: OVERHEAD CONDUCTORS | D6: =IFERROR(IF($A6="","",SUMIFS(D$21:D$175,$A$21:$A$175,$A6)),"") -> 28097.77264 | E6: =IFERROR(IF($A6="","",SUMIFS(E$21:E$175,$A$21:$A$175,$A6)),"") -> 31145.23945 | F6: 34262.56718 | G6: 37418.71589 | H6: 40581.85753 | I6: 43720.26541 | J6: 46803.12729 | K6: 49801.22753 | L6: 52687.45571 | M6: 55437.1167 | N6: 58028.0403 | O6: 60440.51375 | P6: 62657.08629 | Q6: 64662.31538 | R6: 66442.53842 | S6: 67985.7557 | T6: 69281.69958 | U6: =IFERROR(IF($A6="","",SUMIFS(U$21:U$175,$A$21:$A$175,$A6)),"") -> 70322.14046 | V6: 71101.44385 | W6: 71617.34886 | X6: =IFERROR(IF($A6="","",SUMIFS(X$21:X$175,$A$21:$A$175,$A6)),"") -> 191.9396986 | Y6: =IFERROR(IF($A6="","",SUMIFS(Y$21:Y$175,$A$21:$A$175,$A6)),"") -> 211.6520229 | Z6: 231.5377686 | AA6: 251.3501038 | AB6: 270.8397971 | AC6: 289.7632931 | AD6: 307.8906635 | AE6: 325.0130633 | AF6: 340.9493506 | AG6: 355.5515767 | AH6: 368.7091276 | AI6: 380.3513774 | AJ6: 390.4488062 | AK6: 399.0126245 | AL6: 406.0930278 | AM6: 411.7762696 | AN6: 416.180786 | AO6: =IFERROR(IF($A6="","",SUMIFS(AO$21:AO$175,$A$21:$A$175,$A6)),"") -> 419.4526241 | AP6: 421.7604162 | AQ6: 423.2901115
A7: 2 | B7: POLES | D7: =IFERROR(IF($A7="","",SUMIFS(D$21:D$175,$A$21:$A$175,$A7)),"") -> 14096.98996 | E7: 15515.12148 | F7: 17070.29093 | G7: 18755.2293 | H7: 20560.30946 | I7: 22463.82416 | J7: 24429.09348 | K7: 26407.37039 | L7: 28345.9611 | M7: 30197.7828 | N7: 31928.53976 | O7: 33519.80713 | P7: 34968.73238 | Q7: 36286.02934 | R7: 37493.34372 | S7: 38620.0822 | T7: 39699.46581 | U7: 40763.97624 | V7: 41840.90525 | W7: 42948.86696 | X7: 1924.077172 | Y7: 2116.881094 | Z7: 2324.683749 | AA7: 2545.803494 | AB7: 2778.495558 | AC7: 3020.167093 | AD7: 3267.250633 | AE7: 3515.522857 | AF7: 3760.799003 | AG7: 3999.66565 | AH7: 4229.943758 | AI7: 4450.779365 | AJ7: 4662.471735 | AK7: 4866.213133 | AL7: 5063.834935 | AM7: 5257.549801 | AN7: 5449.646791 | AO7: 5642.138255 | AP7: 5836.413404 | AQ7: 6032.97302
A8: 3 | B8: SERVICE LINES | D8: 14536.80282 | E8: 14948.14875 | F8: 15448.39656 | G8: 15986.23522 | H8: 16522.23874 | I8: 17027.81756 | J8: 17484.23916 | K8: 17881.54426 | L8: 18217.28796 | M8: 18495.11613 | N8: 18723.23863 | O8: 18912.88236 | P8: 19076.80587 | Q8: 19227.944 | R8: 19378.23461 | S8: 19537.66694 | T8: 19713.58348 | U8: 19910.2625 | V8: 20128.80148 | W8: 20367.3073 | X8: 13067.33827 | Y8: 13437.10297 | Z8: 13886.78282 | AA8: 14370.25362 | AB8: 14852.07478 | AC8: 15306.54676 | AD8: 15716.83061 | AE8: 16073.9738 | AF8: 16375.77858 | AG8: 16625.52226 | AH8: 16830.58481 | AI8: 17001.05825 | AJ8: 17148.41142 | AK8: 17284.27163 | AL8: 17419.36999 | AM8: 17562.68598 | AN8: 17720.81985 | AO8: 17897.61741 | AP8: 18094.0652 | AQ8: 18308.46146
A9: 4 | B9: SWITCHGEAR | D9: 8195.818069 | E9: 8416.388061 | F9: 8577.385705 | G9: 8681.625126 | H9: 8734.567105 | I9: 8743.74751 | J9: 8718.088946 | K9: 8667.183341 | L9: 8600.639005 | M9: 8527.56784 | N9: 8456.24396 | O9: 8393.912612 | P9: 8346.696435 | Q9: 8319.550652 | R9: 8316.250948 | S9: 8339.431132 | T9: 8390.699425 | U9: 8470.848275 | V9: 8580.146312 | W9: 8718.679047 | X9: 384.4350296 | Y9: 391.7586424 | Z9: 396.6766203 | AA9: 399.4836707 | AB9: 400.5415778 | AC9: 400.2446767 | AD9: 398.9871901 | AE9: 397.1360477 | AF9: 395.0124568 | AG9: 392.8842132 | AH9: 390.9684088 | AI9: 389.4417044 | AJ9: 388.4540363 | AK9: 388.142213 | AL9: 388.6417617 | AM9: 390.0971979 | AN9: 392.6714709 | AO9: 396.5545287 | AP9: 401.9695821 | AQ9: 409.1747023
A10: 5 | B10: TRANSFORMERS | D10: 13587.9584 | E10: 14354.95139 | F10: 15252.12803 | G10: 16252.11119 | H10: 17327.36107 | I10: 18450.2648 | J10: 19593.88751 | K10: 20733.06921 | L10: 21845.60522 | M10: 22913.29484 | N10: 23922.69522 | O10: 24865.47574 | P10: 25738.33019 | Q10: 26542.46486 | R10: 27282.7321 | S10: 27966.51768 | T10: 28602.51203 | U10: 29199.50042 | V10: 29765.29779 | W10: 30305.93193 | X10: 151.3667114 | Y10: 162.2441539 | Z10: 175.3046395 | AA10: 190.154221 | AB10: 206.4571878 | AC10: 223.9291746 | AD10: 242.3368304 | AE10: 261.5001876 | AF10: 281.2949826 | AG10: 301.6529811 | AH10: 322.5590322 | AI10: 344.0442029 | AJ10: 366.1749513 | AK10: 389.0388424 | AL10: 412.7277615 | AM10: 437.3198835 | AN10: 462.8618144 | AO10: 489.3523303 | AP10: 516.7290344 | AQ10: 544.8590612
A11: 6 | B11: UNDERGROUND CABLES | D11: 9841.549777 | E11: 11370.06259 | F11: 13146.70008 | G11: 15196.98181 | H11: 17545.2146 | I11: 20213.91992 | J11: 23223.00916 | K11: 26588.60654 | L11: 30321.49169 | M11: 34425.22624 | N11: 38894.12113 | O11: 43711.27154 | P11: 48846.92589 | Q11: 54257.45907 | R11: 59885.19019 | S11: 65659.22476 | T11: 71497.41257 | U11: 77309.40262 | V11: 83000.65419 | W11: 88477.14503 | X11: 106.0562059 | Y11: 113.8645924 | Z11: 122.0038839 | AA11: 130.4029607 | AB11: 138.9832561 | AC11: 147.6763809 | AD11: 156.4408467 | AE11: 165.2741535 | AF11: 174.2176064 | AG11: 183.3528842 | AH11: 192.7910742 | AI11: 202.6562123 | AJ11: 213.0661167 | AK11: 224.1134942 | AL11: 235.8500386 | AM11: 248.2756579 | AN11: 261.3341378 | AO11: 274.9155624 | AP11: 288.8647831 | AQ11: 302.9943285
C18: Total | D18: =IFERROR(SUM(D$6:D$17),"") -> 88356.89167 | E18: =IFERROR(SUM(E$6:E$17),"") -> 95749.91173 | F18: 103757.4685 | G18: 112290.8985 | H18: 121271.5485 | I18: 130619.8394 | J18: 140251.4455 | K18: 150079.0013 | L18: 160018.4407 | M18: 169996.1046 | N18: 179952.879 | O18: 189843.8631 | P18: 199634.5771 | Q18: 209295.7633 | R18: 218798.29 | S18: 228108.6784 | T18: 237185.3729 | U18: 245976.1305 | V18: 254417.2489 | W18: 262435.2791
A20: ID | B20: Asset group | C20: Asset category
A21: =IFERROR('Historical scenario - input'!A6,"") -> 1 | B21: =IFERROR('Historical scenario - input'!B6,"") -> OVERHEAD CONDUCTORS | C21: =IFERROR('Historical scenario - input'!C6,"") -> ˂ = 1 kv | D21: =IFERROR(repcalc('Historical scenario - input'!$CV6:$GH6,'Historical scenario - input'!$G6,'Historical scenario - input'!$E6,'Historical scenario - input'!$F6,20,TRUE,TRUE),"") -> 2280.590803 | E21: 2653.990942 | F21: 3057.309745 | G21: 3486.762438 | H21: 3937.378767 | I21: 4403.094932 | J21: 4876.917414 | K21: 5351.156262 | L21: 5817.719993 | M21: 6268.458778 | N21: 6695.537798 | O21: 7091.81886 | P21: 7451.226162 | Q21: 7769.071755 | R21: 8042.317931 | S21: 8269.757469 | T21: 8452.098165 | U21: 8591.944817 | V21: 8693.679378 | W21: 8763.247456 | X21: =IFERROR(IF(OR(D21="",'Historical scenario - input'!$D6=""),"",D21/'Historical scenario - input'!$D6),"") -> 46.6621206 | Y21: =IFERROR(IF(OR(E21="",'Historical scenario - input'!$D6=""),"",E21/'Historical scenario - input'!$D6),"") -> 54.30208929 | Z21: =IFERROR(IF(OR(F21="",'Historical scenario - input'!$D6=""),"",F21/'Historical scenario - input'!$D6),"") -> 62.55421 | AA21: =IFERROR(IF(OR(G21="",'Historical scenario - input'!$D6=""),"",G21/'Historical scenario - input'!$D6),"") -> 71.34104425 | AB21: =IFERROR(IF(OR(H21="",'Historical scenario - input'!$D6=""),"",H21/'Historical scenario - input'!$D6),"") -> 80.56089791 | AC21: =IFERROR(IF(OR(I21="",'Historical scenario - input'!$D6=""),"",I21/'Historical scenario - input'!$D6),"") -> 90.0897024 | AD21: =IFERROR(IF(OR(J21="",'Historical scenario - input'!$D6=""),"",J21/'Historical scenario - input'!$D6),"") -> 99.7843665 | AE21: =IFERROR(IF(OR(K21="",'Historical scenario - input'!$D6=""),"",K21/'Historical scenario - input'!$D6),"") -> 109.4875497 | AF21: =IFERROR(IF(OR(L21="",'Historical scenario - input'!$D6=""),"",L21/'Historical scenario - input'!$D6),"") -> 119.0336958 | AG21: =IFERROR(IF(OR(M21="",'Historical scenario - input'!$D6=""),"",M21/'Historical scenario - input'!$D6),"") -> 128.256055 | AH21: =IFERROR(IF(OR(N21="",'Historical scenario - input'!$D6=""),"",N21/'Historical scenario - input'!$D6),"") -> 136.9943226 | AI21: =IFERROR(IF(OR(O21="",'Historical scenario - input'!$D6=""),"",O21/'Historical scenario - input'!$D6),"") -> 145.1024473 | AJ21: =IFERROR(IF(OR(P21="",'Historical scenario - input'!$D6=""),"",P21/'Historical scenario - input'!$D6),"") -> 152.456115 | AK21: =IFERROR(IF(OR(Q21="",'Historical scenario - input'!$D6=""),"",Q21/'Historical scenario - input'!$D6),"") -> 158.9594077 | AL21: =IFERROR(IF(OR(R21="",'Historical scenario - input'!$D6=""),"",R21/'Historical scenario - input'!$D6),"") -> 164.5501721 | AM21: =IFERROR(IF(OR(S21="",'Historical scenario - input'!$D6=""),"",S21/'Historical scenario - input'!$D6),"") -> 169.203708 | AN21: =IFERROR(IF(OR(T21="",'Historical scenario - input'!$D6=""),"",T21/'Historical scenario - input'!$D6),"") -> 172.9344972 | AO21: =IFERROR(IF(OR(U21="",'Historical scenario - input'!$D6=""),"",U21/'Historical scenario - input'!$D6),"") -> 175.7958353 | AP21: =IFERROR(IF(OR(V21="",'Historical scenario - input'!$D6=""),"",V21/'Historical scenario - input'!$D6),"") -> 177.8773794 | AQ21: =IFERROR(IF(OR(W21="",'Historical scenario - input'!$D6=""),"",W21/'Historical scenario - input'!$D6),"") -> 179.3007799
A22: =IFERROR('Historical scenario - input'!A7,"") -> 1 | B22: =IFERROR('Historical scenario - input'!B7,"") -> OVERHEAD CONDUCTORS | C22: =IFERROR('Historical scenario - input'!C7,"") -> ˃ 11 kv & < = 22 kv ; swer | D22: =IFERROR(repcalc('Historical scenario - input'!$CV7:$GH7,'Historical scenario - input'!$G7,'Historical scenario - input'!$E7,'Historical scenario - input'!$F7,20,TRUE,TRUE),"") -> 40.32659928 | E22: 46.36040875 | F22: 52.91995264 | G22: 60.05112587 | H22: 67.82193904 | I22: 76.32530582 | J22: 85.67975705 | K22: 96.0276061 | L22: 107.5302645 | M22: 120.3606202 | N22: 134.6926263 | O22: 150.6884946 | P22: 168.4841268 | Q22: 188.173642 | R22: 209.7940516 | S22: 233.3112802 | T22: 258.6088032 | U22: 285.4801498 | V22: 313.6263681 | W22: 342.6592636 | X22: =IFERROR(IF(OR(D22="",'Historical scenario - input'!$D7=""),"",D22/'Historical scenario - input'!$D7),"") -> 1.17092364 | Y22: =IFERROR(IF(OR(E22="",'Historical scenario - input'!$D7=""),"",E22/'Historical scenario - input'!$D7),"") -> 1.346121407 | Z22: =IFERROR(IF(OR(F22="",'Historical scenario - input'!$D7=""),"",F22/'Historical scenario - input'!$D7),"") -> 1.536584405 | AA22: =IFERROR(IF(OR(G22="",'Historical scenario - input'!$D7=""),"",G22/'Historical scenario - input'!$D7),"") -> 1.74364524 | AB22: =IFERROR(IF(OR(H22="",'Historical scenario - input'!$D7=""),"",H22/'Historical scenario - input'!$D7),"") -> 1.969278668 | AC22: =IFERROR(IF(OR(I22="",'Historical scenario - input'!$D7=""),"",I22/'Historical scenario - input'!$D7),"") -> 2.216182532 | AD22: =IFERROR(IF(OR(J22="",'Historical scenario - input'!$D7=""),"",J22/'Historical scenario - input'!$D7),"") -> 2.487798495 | AE22: =IFERROR(IF(OR(K22="",'Historical scenario - input'!$D7=""),"",K22/'Historical scenario - input'!$D7),"") -> 2.788258769 | AF22: =IFERROR(IF(OR(L22="",'Historical scenario - input'!$D7=""),"",L22/'Historical scenario - input'!$D7),"") -> 3.122250103 | AG22: =IFERROR(IF(OR(M22="",'Historical scenario - input'!$D7=""),"",M22/'Historical scenario - input'!$D7),"") -> 3.49479247 | AH22: =IFERROR(IF(OR(N22="",'Historical scenario - input'!$D7=""),"",N22/'Historical scenario - input'!$D7),"") -> 3.910936777 | AI22: =IFERROR(IF(OR(O22="",'Historical scenario - input'!$D7=""),"",O22/'Historical scenario - input'!$D7),"") -> 4.375393008 | AJ22: =IFERROR(IF(OR(P22="",'Historical scenario - input'!$D7=""),"",P22/'Historical scenario - input'!$D7),"") -> 4.892107208 | AK22: =IFERROR(IF(OR(Q22="",'Historical scenario - input'!$D7=""),"",Q22/'Historical scenario - input'!$D7),"") -> 5.463812217 | AL22: =IFERROR(IF(OR(R22="",'Historical scenario - input'!$D7=""),"",R22/'Historical scenario - input'!$D7),"") -> 6.0915827 | AM22: =IFERROR(IF(OR(S22="",'Historical scenario - input'!$D7=""),"",S22/'Historical scenario - input'!$D7),"") -> 6.774429242 | AN22: =IFERROR(IF(OR(T22="",'Historical scenario - input'!$D7=""),"",T22/'Historical scenario - input'!$D7),"") -> 7.508968438 | AO22: =IFERROR(IF(OR(U22="",'Historical scenario - input'!$D7=""),"",U22/'Historical scenario - input'!$D7),"") -> 8.289205192 | AP22: =IFERROR(IF(OR(V22="",'Historical scenario - input'!$D7=""),"",V22/'Historical scenario - input'!$D7),"") -> 9.106459139 | AQ22: =IFERROR(IF(OR(W22="",'Historical scenario - input'!$D7=""),"",W22/'Historical scenario - input'!$D7),"") -> 9.949458653
A23: =IFERROR('Historical scenario - input'!A8,"") -> 1 | B23: =IFERROR('Historical scenario - input'!B8,"") -> OVERHEAD CONDUCTORS | C23: =IFERROR('Historical scenario - input'!C8,"") -> > 1 kv & < = 11 kv | D23: =IFERROR(repcalc('Historical scenario - input'!$CV8:$GH8,'Historical scenario - input'!$G8,'Historical scenario - input'!$E8,'Historical scenario - input'!$F8,20,TRUE,TRUE),"") -> 13483.32421 | E23: 14466.96052 | F23: 15379.31877 | G23: 16204.08859 | H23: 16927.89098 | I23: 17540.88338 | J23: 18037.16908 | K23: 18414.98528 | L23: 18676.66145 | M23: 18828.35837 | N23: 18879.61521 | O23: 18842.74614 | P23: 18732.13736 | Q23: 18563.49974 | R23: 18353.13051 | S23: 18117.23093 | T23: 17871.31591 | U23: 17629.73834 | V23: 17405.33696 | W23: 17209.20342 | X23: =IFERROR(IF(OR(D23="",'Historical scenario - input'!$D8=""),"",D23/'Historical scenario - input'!$D8),"") -> 124.3424198 | Y23: =IFERROR(IF(OR(E23="",'Historical scenario - input'!$D8=""),"",E23/'Historical scenario - input'!$D8),"") -> 133.4134557 | Z23: =IFERROR(IF(OR(F23="",'Historical scenario - input'!$D8=""),"",F23/'Historical scenario - input'!$D8),"") -> 141.8271696 | AA23: =IFERROR(IF(OR(G23="",'Historical scenario - input'!$D8=""),"",G23/'Historical scenario - input'!$D8),"") -> 149.4331482 | AB23: =IFERROR(IF(OR(H23="",'Historical scenario - input'!$D8=""),"",H23/'Historical scenario - input'!$D8),"") -> 156.1080112 | AC23: =IFERROR(IF(OR(I23="",'Historical scenario - input'!$D8=""),"",I23/'Historical scenario - input'!$D8),"") -> 161.7609909 | AD23: =IFERROR(IF(OR(J23="",'Historical scenario - input'!$D8=""),"",J23/'Historical scenario - input'!$D8),"") -> 166.3377083 | AE23: =IFERROR(IF(OR(K23="",'Historical scenario - input'!$D8=""),"",K23/'Historical scenario - input'!$D8),"") -> 169.821907 | AF23: =IFERROR(IF(OR(L23="",'Historical scenario - input'!$D8=""),"",L23/'Historical scenario - input'!$D8),"") -> 172.2350692 | AG23: =IFERROR(IF(OR(M23="",'Historical scenario - input'!$D8=""),"",M23/'Historical scenario - input'!$D8),"") -> 173.6340092 | AH23: =IFERROR(IF(OR(N23="",'Historical scenario - input'!$D8=""),"",N23/'Historical scenario - input'!$D8),"") -> 174.1066968 | AI23: =IFERROR(IF(OR(O23="",'Historical scenario - input'!$D8=""),"",O23/'Historical scenario - input'!$D8),"") -> 173.7666924 | AJ23: =IFERROR(IF(OR(P23="",'Historical scenario - input'!$D8=""),"",P23/'Historical scenario - input'!$D8),"") -> 172.7466648 | AK23: =IFERROR(IF(OR(Q23="",'Historical scenario - input'!$D8=""),"",Q23/'Historical scenario - input'!$D8),"") -> 171.1914986 | AL23: =IFERROR(IF(OR(R23="",'Historical scenario - input'!$D8=""),"",R23/'Historical scenario - input'!$D8),"") -> 169.251486 | AM23: =IFERROR(IF(OR(S23="",'Historical scenario - input'!$D8=""),"",S23/'Historical scenario - input'!$D8),"") -> 167.076034 | AN23: =IFERROR(IF(OR(T23="",'Historical scenario - input'!$D8=""),"",T23/'Historical scenario - input'!$D8),"") -> 164.8082201 | AO23: =IFERROR(IF(OR(U23="",'Historical scenario - input'!$D8=""),"",U23/'Historical scenario - input'!$D8),"") -> 162.5804061 | AP23: =IFERROR(IF(OR(V23="",'Historical scenario - input'!$D8=""),"",V23/'Historical scenario - input'!$D8),"") -> 160.5109899 | AQ23: =IFERROR(IF(OR(W23="",'Historical scenario - input'!$D8=""),"",W23/'Historical scenario - input'!$D8),"") -> 158.7022579
A24: =IFERROR('Historical scenario - input'!A9,"") -> 1 | B24: =IFERROR('Historical scenario - input'!B9,"") -> OVERHEAD CONDUCTORS | C24: =IFERROR('Historical scenario - input'!C9,"") -> > 22 kv & < = 66 kv | D24: =IFERROR(repcalc('Historical scenario - input'!$CV9:$GH9,'Historical scenario - input'!$G9,'Historical scenario - input'!$E9,'Historical scenario - input'!$F9,20,TRUE,TRUE),"") -> 5966.883462 | E24: 6907.763771 | F24: 7928.851474 | G24: 9022.052457 | H24: 10176.24757 | I24: 11377.6227 | J24: 12610.22178 | K24: 13856.68006 | L24: 15099.06788 | M24: 16319.75466 | N24: 17502.19521 | O24: 18631.54652 | P24: 19695.04485 | Q24: 20682.10712 | R24: 21584.16242 | S24: 22394.26326 | T24: 23106.56323 | U24: 23715.77211 | V24: 24216.70572 | W24: 24604.03373 | X24: =IFERROR(IF(OR(D24="",'Historical scenario - input'!$D9=""),"",D24/'Historical scenario - input'!$D9),"") -> 12.53418273 | Y24: =IFERROR(IF(OR(E24="",'Historical scenario - input'!$D9=""),"",E24/'Historical scenario - input'!$D9),"") -> 14.51061914 | Z24: =IFERROR(IF(OR(F24="",'Historical scenario - input'!$D9=""),"",F24/'Historical scenario - input'!$D9),"") -> 16.65554118 | AA24: =IFERROR(IF(OR(G24="",'Historical scenario - input'!$D9=""),"",G24/'Historical scenario - input'!$D9),"") -> 18.95194616 | AB24: =IFERROR(IF(OR(H24="",'Historical scenario - input'!$D9=""),"",H24/'Historical scenario - input'!$D9),"") -> 21.37647691 | AC24: =IFERROR(IF(OR(I24="",'Historical scenario - input'!$D9=""),"",I24/'Historical scenario - input'!$D9),"") -> 23.90011519 | AD24: =IFERROR(IF(OR(J24="",'Historical scenario - input'!$D9=""),"",J24/'Historical scenario - input'!$D9),"") -> 26.48934324 | AE24: =IFERROR(IF(OR(K24="",'Historical scenario - input'!$D9=""),"",K24/'Historical scenario - input'!$D9),"") -> 29.10768428 | AF24: =IFERROR(IF(OR(L24="",'Historical scenario - input'!$D9=""),"",L24/'Historical scenario - input'!$D9),"") -> 31.71747481 | AG24: =IFERROR(IF(OR(M24="",'Historical scenario - input'!$D9=""),"",M24/'Historical scenario - input'!$D9),"") -> 34.2816796 | AH24: =IFERROR(IF(OR(N24="",'Historical scenario - input'!$D9=""),"",N24/'Historical scenario - input'!$D9),"") -> 36.76554343 | AI24: =IFERROR(IF(OR(O24="",'Historical scenario - input'!$D9=""),"",O24/'Historical scenario - input'!$D9),"") -> 39.13788666 | AJ24: =IFERROR(IF(OR(P24="",'Historical scenario - input'!$D9=""),"",P24/'Historical scenario - input'!$D9),"") -> 41.37189752 | AK24: =IFERROR(IF(OR(Q24="",'Historical scenario - input'!$D9=""),"",Q24/'Historical scenario - input'!$D9),"") -> 43.4453449 | AL24: =IFERROR(IF(OR(R24="",'Historical scenario - input'!$D9=""),"",R24/'Historical scenario - input'!$D9),"") -> 45.34022454 | AM24: =IFERROR(IF(OR(S24="",'Historical scenario - input'!$D9=""),"",S24/'Historical scenario - input'!$D9),"") -> 47.04194237 | AN24: =IFERROR(IF(OR(T24="",'Historical scenario - input'!$D9=""),"",T24/'Historical scenario - input'!$D9),"") -> 48.53821727 | AO24: =IFERROR(IF(OR(U24="",'Historical scenario - input'!$D9=""),"",U24/'Historical scenario - input'!$D9),"") -> 49.81793648 | AP24: =IFERROR(IF(OR(V24="",'Historical scenario - input'!$D9=""),"",V24/'Historical scenario - input'!$D9),"") -> 50.87020999 | AQ24: =IFERROR(IF(OR(W24="",'Historical scenario - input'!$D9=""),"",W24/'Historical scenario - input'!$D9),"") -> 51.68384077
A25: =IFERROR('Historical scenario - input'!A10,"") -> 1 | B25: =IFERROR('Historical scenario - input'!B10,"") -> OVERHEAD CONDUCTORS | C25: =IFERROR('Historical scenario - input'!C10,"") -> > 66 kv & < = 132 kv | D25: =IFERROR(repcalc('Historical scenario - input'!$CV10:$GH10,'Historical scenario - input'!$G10,'Historical scenario - input'!$E10,'Historical scenario - input'!$F10,20,TRUE,TRUE),"") -> 6326.647559 | E25: 7070.163809 | F25: 7844.167243 | G25: 8645.761278 | H25: 9472.518271 | I25: 10322.33909 | J25: 11193.13926 | K25: 12082.37832 | L25: 12986.47612 | M25: 13900.18428 | N25: 14815.99945 | O25: 15723.71374 | P25: 16610.19379 | Q25: 17459.46312 | R25: 18253.1335 | S25: 18971.19276 | T25: 19593.11348 | U25: 20099.20505 | V25: 20472.09543 | W25: 20698.205 | X25: =IFERROR(IF(OR(D25="",'Historical scenario - input'!$D10=""),"",D25/'Historical scenario - input'!$D10),"") -> 7.23005177 | Y25: =IFERROR(IF(OR(E25="",'Historical scenario - input'!$D10=""),"",E25/'Historical scenario - input'!$D10),"") -> 8.079737314 | Z25: =IFERROR(IF(OR(F25="",'Historical scenario - input'!$D10=""),"",F25/'Historical scenario - input'!$D10),"") -> 8.964263416 | AA25: =IFERROR(IF(OR(G25="",'Historical scenario - input'!$D10=""),"",G25/'Historical scenario - input'!$D10),"") -> 9.880319876 | AB25: =IFERROR(IF(OR(H25="",'Historical scenario - input'!$D10=""),"",H25/'Historical scenario - input'!$D10),"") -> 10.8251324 | AC25: =IFERROR(IF(OR(I25="",'Historical scenario - input'!$D10=""),"",I25/'Historical scenario - input'!$D10),"") -> 11.79630212 | AD25: =IFERROR(IF(OR(J25="",'Historical scenario - input'!$D10=""),"",J25/'Historical scenario - input'!$D10),"") -> 12.7914469 | AE25: =IFERROR(IF(OR(K25="",'Historical scenario - input'!$D10=""),"",K25/'Historical scenario - input'!$D10),"") -> 13.80766352 | AF25: =IFERROR(IF(OR(L25="",'Historical scenario - input'!$D10=""),"",L25/'Historical scenario - input'!$D10),"") -> 14.84086062 | AG25: =IFERROR(IF(OR(M25="",'Historical scenario - input'!$D10=""),"",M25/'Historical scenario - input'!$D10),"") -> 15.88504038 | AH25: =IFERROR(IF(OR(N25="",'Historical scenario - input'!$D10=""),"",N25/'Historical scenario - input'!$D10),"") -> 16.93162801 | AI25: =IFERROR(IF(OR(O25="",'Historical scenario - input'!$D10=""),"",O25/'Historical scenario - input'!$D10),"") -> 17.96895802 | AJ25: =IFERROR(IF(OR(P25="",'Historical scenario - input'!$D10=""),"",P25/'Historical scenario - input'!$D10),"") -> 18.98202166 | AK25: =IFERROR(IF(OR(Q25="",'Historical scenario - input'!$D10=""),"",Q25/'Historical scenario - input'!$D10),"") -> 19.95256114 | AL25: =IFERROR(IF(OR(R25="",'Historical scenario - input'!$D10=""),"",R25/'Historical scenario - input'!$D10),"") -> 20.8595625 | AM25: =IFERROR(IF(OR(S25="",'Historical scenario - input'!$D10=""),"",S25/'Historical scenario - input'!$D10),"") -> 21.68015595 | AN25: =IFERROR(IF(OR(T25="",'Historical scenario - input'!$D10=""),"",T25/'Historical scenario - input'!$D10),"") -> 22.39088292 | AO25: =IFERROR(IF(OR(U25="",'Historical scenario - input'!$D10=""),"",U25/'Historical scenario - input'!$D10),"") -> 22.96924108 | AP25: =IFERROR(IF(OR(V25="",'Historical scenario - input'!$D10=""),"",V25/'Historical scenario - input'!$D10),"") -> 23.39537779 | AQ25: =IFERROR(IF(OR(W25="",'Historical scenario - input'!$D10=""),"",W25/'Historical scenario - input'!$D10),"") -> 23.65377434
A26: =IFERROR('Historical scenario - input'!A11,"") -> 2 | B26: =IFERROR('Historical scenario - input'!B11,"") -> POLES | C26: =IFERROR('Historical scenario - input'!C11,"") -> ˂ = 1 kv ; concrete | D26: =IFERROR(repcalc('Historical scenario - input'!$CV11:$GH11,'Historical scenario - input'!$G11,'Historical scenario - input'!$E11,'Historical scenario - input'!$F11,20,TRUE,TRUE),"") -> 333.7842893 | E26: 400.6345871 | F26: 467.0454021 | G26: 529.6254926 | H26: 585.5041959 | I26: 632.9507799 | J26: 671.871239 | K26: 704.0521184 | L26: 733.0612758 | M26: 763.7829014 | N26: 801.6428173 | O26: 851.6503764 | P26: 917.4276357 | Q26: 1000.404521 | R26: 1099.3298 | S26: 1210.190081 | T26: 1326.556615 | U26: 1440.307473 | V26: 1542.613438 | W26: 1625.038107 | X26: =IFERROR(IF(OR(D26="",'Historical scenario - input'!$D11=""),"",D26/'Historical scenario - input'!$D11),"") -> 42.61902747 | Y26: =IFERROR(IF(OR(E26="",'Historical scenario - input'!$D11=""),"",E26/'Historical scenario - input'!$D11),"") -> 51.15476378 | Z26: =IFERROR(IF(OR(F26="",'Historical scenario - input'!$D11=""),"",F26/'Historical scenario - input'!$D11),"") -> 59.63438501 | AA26: =IFERROR(IF(OR(G26="",'Historical scenario - input'!$D11=""),"",G26/'Historical scenario - input'!$D11),"") -> 67.62488272 | AB26: =IFERROR(IF(OR(H26="",'Historical scenario - input'!$D11=""),"",H26/'Historical scenario - input'!$D11),"") -> 74.75971821 | AC26: =IFERROR(IF(OR(I26="",'Historical scenario - input'!$D11=""),"",I26/'Historical scenario - input'!$D11),"") -> 80.81790407 | AD26: =IFERROR(IF(OR(J26="",'Historical scenario - input'!$D11=""),"",J26/'Historical scenario - input'!$D11),"") -> 85.7874373 | AE26: =IFERROR(IF(OR(K26="",'Historical scenario - input'!$D11=""),"",K26/'Historical scenario - input'!$D11),"") -> 89.89643173 | AF26: =IFERROR(IF(OR(L26="",'Historical scenario - input'!$D11=""),"",L26/'Historical scenario - input'!$D11),"") -> 93.60044691 | AG26: =IFERROR(IF(OR(M26="",'Historical scenario - input'!$D11=""),"",M26/'Historical scenario - input'!$D11),"") -> 97.52311748 | AH26: =IFERROR(IF(OR(N26="",'Historical scenario - input'!$D11=""),"",N26/'Historical scenario - input'!$D11),"") -> 102.3572359 | AI26: =IFERROR(IF(OR(O26="",'Historical scenario - input'!$D11=""),"",O26/'Historical scenario - input'!$D11),"") -> 108.7424182 | AJ26: =IFERROR(IF(OR(P26="",'Historical scenario - input'!$D11=""),"",P26/'Historical scenario - input'!$D11),"") -> 117.1411443 | AK26: =IFERROR(IF(OR(Q26="",'Historical scenario - input'!$D11=""),"",Q26/'Historical scenario - input'!$D11),"") -> 127.7359934 | AL26: =IFERROR(IF(OR(R26="",'Historical scenario - input'!$D11=""),"",R26/'Historical scenario - input'!$D11),"") -> 140.3672026 | AM26: =IFERROR(IF(OR(S26="",'Historical scenario - input'!$D11=""),"",S26/'Historical scenario - input'!$D11),"") -> 154.5223246 | AN26: =IFERROR(IF(OR(T26="",'Historical scenario - input'!$D11=""),"",T26/'Historical scenario - input'!$D11),"") -> 169.380509 | AO26: =IFERROR(IF(OR(U26="",'Historical scenario - input'!$D11=""),"",U26/'Historical scenario - input'!$D11),"") -> 183.9047125 | AP26: =IFERROR(IF(OR(V26="",'Historical scenario - input'!$D11=""),"",V26/'Historical scenario - input'!$D11),"") -> 196.9675823 | AQ26: =IFERROR(IF(OR(W26="",'Historical scenario - input'!$D11=""),"",W26/'Historical scenario - input'!$D11),"") -> 207.4919221
A27: =IFERROR('Historical scenario - input'!A12,"") -> 2 | B27: =IFERROR('Historical scenario - input'!B12,"") -> POLES | C27: =IFERROR('Historical scenario - input'!C12,"") -> ˂ = 1 kv ; steel | D27: =IFERROR(repcalc('Historical scenario - input'!$CV12:$GH12,'Historical scenario - input'!$G12,'Historical scenario - input'!$E12,'Historical scenario - input'!$F12,20,TRUE,TRUE),"") -> 54.49115714 | E27: 65.37543431 | F27: 78.50472987 | G27: 94.65067606 | H27: 114.6582168 | I27: 139.2880314 | J27: 169.0135443 | K27: 203.8127561 | L27: 243.008984 | M27: 285.2144467 | N27: 328.4128125 | O27: 370.1836465 | P27: 408.0318548 | Q27: 439.7516516 | R27: 463.7397575 | S27: 479.1834384 | T27: 486.0835369 | U27: 485.1198457 | V27: 477.4100139 | W27: 464.2388297 | X27: =IFERROR(IF(OR(D27="",'Historical scenario - input'!$D12=""),"",D27/'Historical scenario - input'!$D12),"") -> 8.01675606 | Y27: =IFERROR(IF(OR(E27="",'Historical scenario - input'!$D12=""),"",E27/'Historical scenario - input'!$D12),"") -> 9.618054317 | Z27: =IFERROR(IF(OR(F27="",'Historical scenario - input'!$D12=""),"",F27/'Historical scenario - input'!$D12),"") -> 11.54964038 | AA27: =IFERROR(IF(OR(G27="",'Historical scenario - input'!$D12=""),"",G27/'Historical scenario - input'!$D12),"") -> 13.92503703 | AB27: =IFERROR(IF(OR(H27="",'Historical scenario - input'!$D12=""),"",H27/'Historical scenario - input'!$D12),"") -> 16.86855267 | AC27: =IFERROR(IF(OR(I27="",'Historical scenario - input'!$D12=""),"",I27/'Historical scenario - input'!$D12),"") -> 20.49209868 | AD27: =IFERROR(IF(OR(J27="",'Historical scenario - input'!$D12=""),"",J27/'Historical scenario - input'!$D12),"") -> 24.86532543 | AE27: =IFERROR(IF(OR(K27="",'Historical scenario - input'!$D12=""),"",K27/'Historical scenario - input'!$D12),"") -> 29.98499634 | AF27: =IFERROR(IF(OR(L27="",'Historical scenario - input'!$D12=""),"",L27/'Historical scenario - input'!$D12),"") -> 35.75155764 | AG27: =IFERROR(IF(OR(M27="",'Historical scenario - input'!$D12=""),"",M27/'Historical scenario - input'!$D12),"") -> 41.96083849 | AH27: =IFERROR(IF(OR(N27="",'Historical scenario - input'!$D12=""),"",N27/'Historical scenario - input'!$D12),"") -> 48.31619557 | AI27: =IFERROR(IF(OR(O27="",'Historical scenario - input'!$D12=""),"",O27/'Historical scenario - input'!$D12),"") -> 54.46153371 | AJ27: =IFERROR(IF(OR(P27="",'Historical scenario - input'!$D12=""),"",P27/'Historical scenario - input'!$D12),"") -> 60.02977394 | AK27: =IFERROR(IF(OR(Q27="",'Historical scenario - input'!$D12=""),"",Q27/'Historical scenario - input'!$D12),"") -> 64.69640035 | AL27: =IFERROR(IF(OR(R27="",'Historical scenario - input'!$D12=""),"",R27/'Historical scenario - input'!$D12),"") -> 68.22553798 | AM27: =IFERROR(IF(OR(S27="",'Historical scenario - input'!$D12=""),"",S27/'Historical scenario - input'!$D12),"") -> 70.49761714 | AN27: =IFERROR(IF(OR(T27="",'Historical scenario - input'!$D12=""),"",T27/'Historical scenario - input'!$D12),"") -> 71.51276178 | AO27: =IFERROR(IF(OR(U27="",'Historical scenario - input'!$D12=""),"",U27/'Historical scenario - input'!$D12),"") -> 71.37098324 | AP27: =IFERROR(IF(OR(V27="",'Historical scenario - input'!$D12=""),"",V27/'Historical scenario - input'!$D12),"") -> 70.23671038 | AQ27: =IFERROR(IF(OR(W27="",'Historical scenario - input'!$D12=""),"",W27/'Historical scenario - input'!$D12),"") -> 68.29896164
A28: =IFERROR('Historical scenario - input'!A13,"") -> 2 | B28: =IFERROR('Historical scenario - input'!B13,"") -> POLES | C28: =IFERROR('Historical scenario - input'!C13,"") -> ˂ = 1 kv ; wood | D28: =IFERROR(repcalc('Historical scenario - input'!$CV13:$GH13,'Historical scenario - input'!$G13,'Historical scenario - input'!$E13,'Historical scenario - input'!$F13,20,TRUE,TRUE),"") -> 1409.157684 | E28: 1583.822347 | F28: 1770.579433 | G28: 1969.834304 | H28: 2182.14781 | I28: 2408.242008 | J28: 2648.988723 | K28: 2905.379495 | L28: 3178.476643 | M28: 3469.346589 | N28: 3778.977848 | O28: 4108.187412 | P28: 4457.520322 | Q28: 4827.148086 | R28: 5216.772193 | S28: 5625.539174 | T28: 6051.973482 | U28: 6493.933928 | V28: 6948.598379 | W28: 7412.480188 | X28: =IFERROR(IF(OR(D28="",'Historical scenario - input'!$D13=""),"",D28/'Historical scenario - input'!$D13),"") -> 366.1862249 | Y28: =IFERROR(IF(OR(E28="",'Historical scenario - input'!$D13=""),"",E28/'Historical scenario - input'!$D13),"") -> 411.5748953 | Z28: =IFERROR(IF(OR(F28="",'Historical scenario - input'!$D13=""),"",F28/'Historical scenario - input'!$D13),"") -> 460.1059242 | AA28: =IFERROR(IF(OR(G28="",'Historical scenario - input'!$D13=""),"",G28/'Historical scenario - input'!$D13),"") -> 511.8846496 | AB28: =IFERROR(IF(OR(H28="",'Historical scenario - input'!$D13=""),"",H28/'Historical scenario - input'!$D13),"") -> 567.0568155 | AC28: =IFERROR(IF(OR(I28="",'Historical scenario - input'!$D13=""),"",I28/'Historical scenario - input'!$D13),"") -> 625.8100562 | AD28: =IFERROR(IF(OR(J28="",'Historical scenario - input'!$D13=""),"",J28/'Historical scenario - input'!$D13),"") -> 688.3709264 | AE28: =IFERROR(IF(OR(K28="",'Historical scenario - input'!$D13=""),"",K28/'Historical scenario - input'!$D13),"") -> 754.9970887 | AF28: =IFERROR(IF(OR(L28="",'Historical scenario - input'!$D13=""),"",L28/'Historical scenario - input'!$D13),"") -> 825.9646 | AG28: =IFERROR(IF(OR(M28="",'Historical scenario - input'!$D13=""),"",M28/'Historical scenario - input'!$D13),"") -> 901.5505821 | AH28: =IFERROR(IF(OR(N28="",'Historical scenario - input'!$D13=""),"",N28/'Historical scenario - input'!$D13),"") -> 982.0119123 | AI28: =IFERROR(IF(OR(O28="",'Historical scenario - input'!$D13=""),"",O28/'Historical scenario - input'!$D13),"") -> 1067.560896 | AJ28: =IFERROR(IF(OR(P28="",'Historical scenario - input'!$D13=""),"",P28/'Historical scenario - input'!$D13),"") -> 1158.339168 | AK28: =IFERROR(IF(OR(Q28="",'Historical scenario - input'!$D13=""),"",Q28/'Historical scenario - input'!$D13),"") -> 1254.391297 | AL28: =IFERROR(IF(OR(R28="",'Historical scenario - input'!$D13=""),"",R28/'Historical scenario - input'!$D13),"") -> 1355.639711 | AM28: =IFERROR(IF(OR(S28="",'Historical scenario - input'!$D13=""),"",S28/'Historical scenario - input'!$D13),"") -> 1461.862626 | AN28: =IFERROR(IF(OR(T28="",'Historical scenario - input'!$D13=""),"",T28/'Historical scenario - input'!$D13),"") -> 1572.676605 | AO28: =IFERROR(IF(OR(U28="",'Historical scenario - input'!$D13=""),"",U28/'Historical scenario - input'!$D13),"") -> 1687.525233 | AP28: =IFERROR(IF(OR(V28="",'Historical scenario - input'!$D13=""),"",V28/'Historical scenario - input'!$D13),"") -> 1805.675147 | AQ28: =IFERROR(IF(OR(W28="",'Historical scenario - input'!$D13=""),"",W28/'Historical scenario - input'!$D13),"") -> 1926.2203
A29: =IFERROR('Historical scenario - input'!A14,"") -> 2 | B29: =IFERROR('Historical scenario - input'!B14,"") -> POLES | C29: =IFERROR('Historical scenario - input'!C14,"") -> ˃ 11 kv & < = 22 kv ; concrete | D29: =IFERROR(repcalc('Historical scenario - input'!$CV14:$GH14,'Historical scenario - input'!$G14,'Historical scenario - input'!$E14,'Historical scenario - input'!$F14,20,TRUE,TRUE),"") -> 42.80739731 | E29: 53.58966369 | F29: 65.30087893 | G29: 77.58618361 | H29: 90.10193093 | I29: 102.6193065 | J29: 115.1399366 | K29: 128.0016485 | L29: 141.9483218 | M29: 158.1381931 | N29: 178.0709323 | O29: 203.4252195 | P29: 235.8142583 | Q29: 276.4844275 | R29: 325.998968 | S29: 383.9605124 | T29: 448.82979 | U29: 517.8903308 | V29: 587.3898066 | W29: 652.859852 | X29: =IFERROR(IF(OR(D29="",'Historical scenario - input'!$D14=""),"",D29/'Historical scenario - input'!$D14),"") -> 3.425294984 | Y29: =IFERROR(IF(OR(E29="",'Historical scenario - input'!$D14=""),"",E29/'Historical scenario - input'!$D14),"") -> 4.288053415 | Z29: =IFERROR(IF(OR(F29="",'Historical scenario - input'!$D14=""),"",F29/'Historical scenario - input'!$D14),"") -> 5.225143015 | AA29: =IFERROR(IF(OR(G29="",'Historical scenario - input'!$D14=""),"",G29/'Historical scenario - input'!$D14),"") -> 6.2081692 | AB29: =IFERROR(IF(OR(H29="",'Historical scenario - input'!$D14=""),"",H29/'Historical scenario - input'!$D14),"") -> 7.209634583 | AC29: =IFERROR(IF(OR(I29="",'Historical scenario - input'!$D14=""),"",I29/'Historical scenario - input'!$D14),"") -> 8.21123025 | AD29: =IFERROR(IF(OR(J29="",'Historical scenario - input'!$D14=""),"",J29/'Historical scenario - input'!$D14),"") -> 9.213086337 | AE29: =IFERROR(IF(OR(K29="",'Historical scenario - input'!$D14=""),"",K29/'Historical scenario - input'!$D14),"") -> 10.24223457 | AF29: =IFERROR(IF(OR(L29="",'Historical scenario - input'!$D14=""),"",L29/'Historical scenario - input'!$D14),"") -> 11.35819753 | AG29: =IFERROR(IF(OR(M29="",'Historical scenario - input'!$D14=""),"",M29/'Historical scenario - input'!$D14),"") -> 12.65365319 | AH29: =IFERROR(IF(OR(N29="",'Historical scenario - input'!$D14=""),"",N29/'Historical scenario - input'!$D14),"") -> 14.24859976 | AI29: =IFERROR(IF(OR(O29="",'Historical scenario - input'!$D14=""),"",O29/'Historical scenario - input'!$D14),"") -> 16.27735924 | AJ29: =IFERROR(IF(OR(P29="",'Historical scenario - input'!$D14=""),"",P29/'Historical scenario - input'!$D14),"") -> 18.86901439 | AK29: =IFERROR(IF(OR(Q29="",'Historical scenario - input'!$D14=""),"",Q29/'Historical scenario - input'!$D14),"") -> 22.12329602 | AL29: =IFERROR(IF(OR(R29="",'Historical scenario - input'!$D14=""),"",R29/'Historical scenario - input'!$D14),"") -> 26.08527264 | AM29: =IFERROR(IF(OR(S29="",'Historical scenario - input'!$D14=""),"",S29/'Historical scenario - input'!$D14),"") -> 30.72314833 | AN29: =IFERROR(IF(OR(T29="",'Historical scenario - input'!$D14=""),"",T29/'Historical scenario - input'!$D14),"") -> 35.91375615 | AO29: =IFERROR(IF(OR(U29="",'Historical scenario - input'!$D14=""),"",U29/'Historical scenario - input'!$D14),"") -> 41.43973387 | AP29: =IFERROR(IF(OR(V29="",'Historical scenario - input'!$D14=""),"",V29/'Historical scenario - input'!$D14),"") -> 47.0008336 | AQ29: =IFERROR(IF(OR(W29="",'Historical scenario - input'!$D14=""),"",W29/'Historical scenario - input'!$D14),"") -> 52.23951272
A30: =IFERROR('Historical scenario - input'!A15,"") -> 2 | B30: =IFERROR('Historical scenario - input'!B15,"") -> POLES | C30: =IFERROR('Historical scenario - input'!C15,"") -> ˃ 11 kv & < = 22 kv ; steel | D30: =IFERROR(repcalc('Historical scenario - input'!$CV15:$GH15,'Historical scenario - input'!$G15,'Historical scenario - input'!$E15,'Historical scenario - input'!$F15,20,TRUE,TRUE),"") -> 194.6046266 | E30: 223.7471542 | F30: 244.0308635 | G30: 260.0471217 | H30: 278.1692701 | I30: 301.8485824 | J30: 328.7607179 | K30: 352.0050151 | L30: 364.498904 | M30: 363.3806606 | N30: 351.4969795 | O30: 335.4340321 | P30: 321.9067276 | Q30: 314.9149012 | R30: 314.9355414 | S30: 319.8661497 | T30: 326.6394448 | U30: 332.5754612 | V30: 336.0900212 | W30: 336.8110759 | X30: =IFERROR(IF(OR(D30="",'Historical scenario - input'!$D15=""),"",D30/'Historical scenario - input'!$D15),"") -> 18.65011709 | Y30: =IFERROR(IF(OR(E30="",'Historical scenario - input'!$D15=""),"",E30/'Historical scenario - input'!$D15),"") -> 21.44301858 | Z30: =IFERROR(IF(OR(F30="",'Historical scenario - input'!$D15=""),"",F30/'Historical scenario - input'!$D15),"") -> 23.3869269 | AA30: =IFERROR(IF(OR(G30="",'Historical scenario - input'!$D15=""),"",G30/'Historical scenario - input'!$D15),"") -> 24.92186005 | AB30: =IFERROR(IF(OR(H30="",'Historical scenario - input'!$D15=""),"",H30/'Historical scenario - input'!$D15),"") -> 26.65861315 | AC30: =IFERROR(IF(OR(I30="",'Historical scenario - input'!$D15=""),"",I30/'Historical scenario - input'!$D15),"") -> 28.92794227 | AD30: =IFERROR(IF(OR(J30="",'Historical scenario - input'!$D15=""),"",J30/'Historical scenario - input'!$D15),"") -> 31.50709205 | AE30: =IFERROR(IF(OR(K30="",'Historical scenario - input'!$D15=""),"",K30/'Historical scenario - input'!$D15),"") -> 33.73473109 | AF30: =IFERROR(IF(OR(L30="",'Historical scenario - input'!$D15=""),"",L30/'Historical scenario - input'!$D15),"") -> 34.93209466 | AG30: =IFERROR(IF(OR(M30="",'Historical scenario - input'!$D15=""),"",M30/'Historical scenario - input'!$D15),"") -> 34.82492676 | AH30: =IFERROR(IF(OR(N30="",'Historical scenario - input'!$D15=""),"",N30/'Historical scenario - input'!$D15),"") -> 33.68604302 | AI30: =IFERROR(IF(OR(O30="",'Historical scenario - input'!$D15=""),"",O30/'Historical scenario - input'!$D15),"") -> 32.14663538 | AJ30: =IFERROR(IF(OR(P30="",'Historical scenario - input'!$D15=""),"",P30/'Historical scenario - input'!$D15),"") -> 30.85023345 | AK30: =IFERROR(IF(OR(Q30="",'Historical scenario - input'!$D15=""),"",Q30/'Historical scenario - input'!$D15),"") -> 30.18016521 | AL30: =IFERROR(IF(OR(R30="",'Historical scenario - input'!$D15=""),"",R30/'Historical scenario - input'!$D15),"") -> 30.18214327 | AM30: =IFERROR(IF(OR(S30="",'Historical scenario - input'!$D15=""),"",S30/'Historical scenario - input'!$D15),"") -> 30.65467275 | AN30: =IFERROR(IF(OR(T30="",'Historical scenario - input'!$D15=""),"",T30/'Historical scenario - input'!$D15),"") -> 31.30379784 | AO30: =IFERROR(IF(OR(U30="",'Historical scenario - input'!$D15=""),"",U30/'Historical scenario - input'!$D15),"") -> 31.87268155 | AP30: =IFERROR(IF(OR(V30="",'Historical scenario - input'!$D15=""),"",V30/'Historical scenario - input'!$D15),"") -> 32.20950271 | AQ30: =IFERROR(IF(OR(W30="",'Historical scenario - input'!$D15=""),"",W30/'Historical scenario - input'!$D15),"") -> 32.27860567
A31: =IFERROR('Historical scenario - input'!A16,"") -> 2 | B31: =IFERROR('Historical scenario - input'!B16,"") -> POLES | C31: =IFERROR('Historical scenario - input'!C16,"") -> ˃ 11 kv & < = 22 kv ; wood | D31: =IFERROR(repcalc('Historical scenario - input'!$CV16:$GH16,'Historical scenario - input'!$G16,'Historical scenario - input'!$E16,'Historical scenario - input'!$F16,20,TRUE,TRUE),"") -> 312.5378438 | E31: 312.8857641 | F31: 314.0142512 | G31: 316.1408928 | H31: 319.391922 | I31: 323.8036582 | J31: 329.3301629 | K31: 335.8559796 | L31: 343.2125921 | M31: 351.1970882 | N31: 359.591452 | O31: 368.1809257 | P31: 376.7699849 | Q31: 385.1946807 | R31: 393.3304146 | S31: 401.0946461 | T31: 408.4445396 | U31: 415.3701106 | V31: 421.8839536 | W31: 428.0090579 | X31: =IFERROR(IF(OR(D31="",'Historical scenario - input'!$D16=""),"",D31/'Historical scenario - input'!$D16),"") -> 33.42292488 | Y31: =IFERROR(IF(OR(E31="",'Historical scenario - input'!$D16=""),"",E31/'Historical scenario - input'!$D16),"") -> 33.46013161 | Z31: =IFERROR(IF(OR(F31="",'Historical scenario - input'!$D16=""),"",F31/'Historical scenario - input'!$D16),"") -> 33.58081249 | AA31: =IFERROR(IF(OR(G31="",'Historical scenario - input'!$D16=""),"",G31/'Historical scenario - input'!$D16),"") -> 33.80823641 | AB31: =IFERROR(IF(OR(H31="",'Historical scenario - input'!$D16=""),"",H31/'Historical scenario - input'!$D16),"") -> 34.1559028 | AC31: =IFERROR(IF(OR(I31="",'Historical scenario - input'!$D16=""),"",I31/'Historical scenario - input'!$D16),"") -> 34.62769568 | AD31: =IFERROR(IF(OR(J31="",'Historical scenario - input'!$D16=""),"",J31/'Historical scenario - input'!$D16),"") -> 35.21870235 | AE31: =IFERROR(IF(OR(K31="",'Historical scenario - input'!$D16=""),"",K31/'Historical scenario - input'!$D16),"") -> 35.91657586 | AF31: =IFERROR(IF(OR(L31="",'Historical scenario - input'!$D16=""),"",L31/'Historical scenario - input'!$D16),"") -> 36.70329501 | AG31: =IFERROR(IF(OR(M31="",'Historical scenario - input'!$D16=""),"",M31/'Historical scenario - input'!$D16),"") -> 37.55716029 | AH31: =IFERROR(IF(OR(N31="",'Historical scenario - input'!$D16=""),"",N31/'Historical scenario - input'!$D16),"") -> 38.45485699 | AI31: =IFERROR(IF(OR(O31="",'Historical scenario - input'!$D16=""),"",O31/'Historical scenario - input'!$D16),"") -> 39.37341881 | AJ31: =IFERROR(IF(OR(P31="",'Historical scenario - input'!$D16=""),"",P31/'Historical scenario - input'!$D16),"") -> 40.29193633 | AK31: =IFERROR(IF(OR(Q31="",'Historical scenario - input'!$D16=""),"",Q31/'Historical scenario - input'!$D16),"") -> 41.19287674 | AL31: =IFERROR(IF(OR(R31="",'Historical scenario - input'!$D16=""),"",R31/'Historical scenario - input'!$D16),"") -> 42.06291544 | AM31: =IFERROR(IF(OR(S31="",'Historical scenario - input'!$D16=""),"",S31/'Historical scenario - input'!$D16),"") -> 42.89322554 | AN31: =IFERROR(IF(OR(T31="",'Historical scenario - input'!$D16=""),"",T31/'Historical scenario - input'!$D16),"") -> 43.67922616 | AO31: =IFERROR(IF(OR(U31="",'Historical scenario - input'!$D16=""),"",U31/'Historical scenario - input'!$D16),"") -> 44.41984955 | AP31: =IFERROR(IF(OR(V31="",'Historical scenario - input'!$D16=""),"",V31/'Historical scenario - input'!$D16),"") -> 45.11644259 | AQ31: =IFERROR(IF(OR(W31="",'Historical scenario - input'!$D16=""),"",W31/'Historical scenario - input'!$D16),"") -> 45.77146375
A32: =IFERROR('Historical scenario - input'!A17,"") -> 2 | B32: =IFERROR('Historical scenario - input'!B17,"") -> POLES | C32: =IFERROR('Historical scenario - input'!C17,"") -> > 1 kv & < = 11 kv ; concrete | D32: =IFERROR(repcalc('Historical scenario - input'!$CV17:$GH17,'Historical scenario - input'!$G17,'Historical scenario - input'!$E17,'Historical scenario - input'!$F17,20,TRUE,TRUE),"") -> 1640.104851 | E32: 1834.208902 | F32: 2138.253107 | G32: 2574.507988 | H32: 3151.175159 | I32: 3856.369887 | J32: 4655.611689 | K32: 5493.80196 | L32: 6301.765172 | M32: 7006.329505 | N32: 7541.936532 | O32: 7861.249823 | P32: 7942.415386 | Q32: 7791.502694 | R32: 7439.941876 | S32: 6938.025259 | T32: 6346.343744 | U32: 5727.17113 | V32: 5137.358752 | W32: 4623.534523 | X32: =IFERROR(IF(OR(D32="",'Historical scenario - input'!$D17=""),"",D32/'Historical scenario - input'!$D17),"") -> 161.4437832 | Y32: =IFERROR(IF(OR(E32="",'Historical scenario - input'!$D17=""),"",E32/'Historical scenario - input'!$D17),"") -> 180.5504228 | Z32: =IFERROR(IF(OR(F32="",'Historical scenario - input'!$D17=""),"",F32/'Historical scenario - input'!$D17),"") -> 210.4790256 | AA32: =IFERROR(IF(OR(G32="",'Historical scenario - input'!$D17=""),"",G32/'Historical scenario - input'!$D17),"") -> 253.4217914 | AB32: =IFERROR(IF(OR(H32="",'Historical scenario - input'!$D17=""),"",H32/'Historical scenario - input'!$D17),"") -> 310.1860463 | AC32: =IFERROR(IF(OR(I32="",'Historical scenario - input'!$D17=""),"",I32/'Historical scenario - input'!$D17),"") -> 379.6019161 | AD32: =IFERROR(IF(OR(J32="",'Historical scenario - input'!$D17=""),"",J32/'Historical scenario - input'!$D17),"") -> 458.2753131 | AE32: =IFERROR(IF(OR(K32="",'Historical scenario - input'!$D17=""),"",K32/'Historical scenario - input'!$D17),"") -> 540.7826043 | AF32: =IFERROR(IF(OR(L32="",'Historical scenario - input'!$D17=""),"",L32/'Historical scenario - input'!$D17),"") -> 620.3144937 | AG32: =IFERROR(IF(OR(M32="",'Historical scenario - input'!$D17=""),"",M32/'Historical scenario - input'!$D17),"") -> 689.6683105 | AH32: =IFERROR(IF(OR(N32="",'Historical scenario - input'!$D17=""),"",N32/'Historical scenario - input'!$D17),"") -> 742.3908085 | AI32: =IFERROR(IF(OR(O32="",'Historical scenario - input'!$D17=""),"",O32/'Historical scenario - input'!$D17),"") -> 773.8224244 | AJ32: =IFERROR(IF(OR(P32="",'Historical scenario - input'!$D17=""),"",P32/'Historical scenario - input'!$D17),"") -> 781.8119598 | AK32: =IFERROR(IF(OR(Q32="",'Historical scenario - input'!$D17=""),"",Q32/'Historical scenario - input'!$D17),"") -> 766.9568632 | AL32: =IFERROR(IF(OR(R32="",'Historical scenario - input'!$D17=""),"",R32/'Historical scenario - input'!$D17),"") -> 732.3509607 | AM32: =IFERROR(IF(OR(S32="",'Historical scenario - input'!$D17=""),"",S32/'Historical scenario - input'!$D17),"") -> 682.9447795 | AN32: =IFERROR(IF(OR(T32="",'Historical scenario - input'!$D17=""),"",T32/'Historical scenario - input'!$D17),"") -> 624.7025871 | AO32: =IFERROR(IF(OR(U32="",'Historical scenario - input'!$D17=""),"",U32/'Historical scenario - input'!$D17),"") -> 563.7543074 | AP32: =IFERROR(IF(OR(V32="",'Historical scenario - input'!$D17=""),"",V32/'Historical scenario - input'!$D17),"") -> 505.6961036 | AQ32: =IFERROR(IF(OR(W32="",'Historical scenario - input'!$D17=""),"",W32/'Historical scenario - input'!$D17),"") -> 455.1177961
A33: =IFERROR('Historical scenario - input'!A18,"") -> 2 | B33: =IFERROR('Historical scenario - input'!B18,"") -> POLES | C33: =IFERROR('Historical scenario - input'!C18,"") -> > 1 kv & < = 11 kv ; steel | D33: =IFERROR(repcalc('Historical scenario - input'!$CV18:$GH18,'Historical scenario - input'!$G18,'Historical scenario - input'!$E18,'Historical scenario - input'!$F18,20,TRUE,TRUE),"") -> 130.7790511 | E33: 142.8426166 | F33: 162.087575 | G33: 180.937738 | H33: 196.293404 | I33: 206.2207204 | J33: 210.0990786 | K33: 208.546871 | L33: 203.2642398 | M33: 196.6118251 | N33: 191.0121319 | O33: 188.3296376 | P33: 189.413077 | Q33: 193.9456491 | R33: 200.6497254 | S33: 207.7666776 | T33: 213.6331528 | U33: 217.1486385 | V33: 217.9882507 | W33: 216.5296419 | X33: =IFERROR(IF(OR(D33="",'Historical scenario - input'!$D18=""),"",D33/'Historical scenario - input'!$D18),"") -> 14.68633909 | Y33: =IFERROR(IF(OR(E33="",'Historical scenario - input'!$D18=""),"",E33/'Historical scenario - input'!$D18),"") -> 16.0410638 | Z33: =IFERROR(IF(OR(F33="",'Historical scenario - input'!$D18=""),"",F33/'Historical scenario - input'!$D18),"") -> 18.20225081 | AA33: =IFERROR(IF(OR(G33="",'Historical scenario - input'!$D18=""),"",G33/'Historical scenario - input'!$D18),"") -> 20.31910272 | AB33: =IFERROR(IF(OR(H33="",'Historical scenario - input'!$D18=""),"",H33/'Historical scenario - input'!$D18),"") -> 22.0435266 | AC33: =IFERROR(IF(OR(I33="",'Historical scenario - input'!$D18=""),"",I33/'Historical scenario - input'!$D18),"") -> 23.15835297 | AD33: =IFERROR(IF(OR(J33="",'Historical scenario - input'!$D18=""),"",J33/'Historical scenario - input'!$D18),"") -> 23.5938882 | AE33: =IFERROR(IF(OR(K33="",'Historical scenario - input'!$D18=""),"",K33/'Historical scenario - input'!$D18),"") -> 23.41957704 | AF33: =IFERROR(IF(OR(L33="",'Historical scenario - input'!$D18=""),"",L33/'Historical scenario - input'!$D18),"") -> 22.82634355 | AG33: =IFERROR(IF(OR(M33="",'Historical scenario - input'!$D18=""),"",M33/'Historical scenario - input'!$D18),"") -> 22.07928492 | AH33: =IFERROR(IF(OR(N33="",'Historical scenario - input'!$D18=""),"",N33/'Historical scenario - input'!$D18),"") -> 21.45044573 | AI33: =IFERROR(IF(OR(O33="",'Historical scenario - input'!$D18=""),"",O33/'Historical scenario - input'!$D18),"") -> 21.14920466 | AJ33: =IFERROR(IF(OR(P33="",'Historical scenario - input'!$D18=""),"",P33/'Historical scenario - input'!$D18),"") -> 21.27087368 | AK33: =IFERROR(IF(OR(Q33="",'Historical scenario - input'!$D18=""),"",Q33/'Historical scenario - input'!$D18),"") -> 21.77987638 | AL33: =IFERROR(IF(OR(R33="",'Historical scenario - input'!$D18=""),"",R33/'Historical scenario - input'!$D18),"") -> 22.53273655 | AM33: =IFERROR(IF(OR(S33="",'Historical scenario - input'!$D18=""),"",S33/'Historical scenario - input'!$D18),"") -> 23.33196221 | AN33: =IFERROR(IF(OR(T33="",'Historical scenario - input'!$D18=""),"",T33/'Historical scenario - input'!$D18),"") -> 23.99076072 | AO33: =IFERROR(IF(OR(U33="",'Historical scenario - input'!$D18=""),"",U33/'Historical scenario - input'!$D18),"") -> 24.38554577 | AP33: =IFERROR(IF(OR(V33="",'Historical scenario - input'!$D18=""),"",V33/'Historical scenario - input'!$D18),"") -> 24.47983327 | AQ33: =IFERROR(IF(OR(W33="",'Historical scenario - input'!$D18=""),"",W33/'Historical scenario - input'!$D18),"") -> 24.31603315
A34: =IFERROR('Historical scenario - input'!A19,"") -> 2 | B34: =IFERROR('Historical scenario - input'!B19,"") -> POLES | C34: =IFERROR('Historical scenario - input'!C19,"") -> > 1 kv & < = 11 kv ; wood | D34: =IFERROR(repcalc('Historical scenario - input'!$CV19:$GH19,'Historical scenario - input'!$G19,'Historical scenario - input'!$E19,'Historical scenario - input'!$F19,20,TRUE,TRUE),"") -> 5115.616844 | E34: 5398.018389 | F34: 5692.422475 | G34: 6002.919923 | H34: 6333.442861 | I34: 6687.503659 | J34: 7067.947937 | K34: 7476.73313 | L34: 7914.742583 | M34: 8381.643541 | N34: 8875.795889 | O34: 9394.216856 | P34: 9932.605226 | Q34: 10485.42669 | R34: 11046.05988 | S34: 11607.00027 | T34: 12160.11645 | U34: 12696.95065 | V34: 13209.05213 | W34: 13688.32941 | X34: =IFERROR(IF(OR(D34="",'Historical scenario - input'!$D19=""),"",D34/'Historical scenario - input'!$D19),"") -> 882.691081 | Y34: =IFERROR(IF(OR(E34="",'Historical scenario - input'!$D19=""),"",E34/'Historical scenario - input'!$D19),"") -> 931.4189925 | Z34: =IFERROR(IF(OR(F34="",'Historical scenario - input'!$D19=""),"",F34/'Historical scenario - input'!$D19),"") -> 982.2179222 | AA34: =IFERROR(IF(OR(G34="",'Historical scenario - input'!$D19=""),"",G34/'Historical scenario - input'!$D19),"") -> 1035.793735 | AB34: =IFERROR(IF(OR(H34="",'Historical scenario - input'!$D19=""),"",H34/'Historical scenario - input'!$D19),"") -> 1092.824912 | AC34: =IFERROR(IF(OR(I34="",'Historical scenario - input'!$D19=""),"",I34/'Historical scenario - input'!$D19),"") -> 1153.917507 | AD34: =IFERROR(IF(OR(J34="",'Historical scenario - input'!$D19=""),"",J34/'Historical scenario - input'!$D19),"") -> 1219.562527 | AE34: =IFERROR(IF(OR(K34="",'Historical scenario - input'!$D19=""),"",K34/'Historical scenario - input'!$D19),"") -> 1290.097724 | AF34: =IFERROR(IF(OR(L34="",'Historical scenario - input'!$D19=""),"",L34/'Historical scenario - input'!$D19),"") -> 1365.675518 | AG34: =IFERROR(IF(OR(M34="",'Historical scenario - input'!$D19=""),"",M34/'Historical scenario - input'!$D19),"") -> 1446.238493 | AH34: =IFERROR(IF(OR(N34="",'Historical scenario - input'!$D19=""),"",N34/'Historical scenario - input'!$D19),"") -> 1531.50365 | AI34: =IFERROR(IF(OR(O34="",'Historical scenario - input'!$D19=""),"",O34/'Historical scenario - input'!$D19),"") -> 1620.956316 | AJ34: =IFERROR(IF(OR(P34="",'Historical scenario - input'!$D19=""),"",P34/'Historical scenario - input'!$D19),"") -> 1713.854323 | AK34: =IFERROR(IF(OR(Q34="",'Historical scenario - input'!$D19=""),"",Q34/'Historical scenario - input'!$D19),"") -> 1809.242737 | AL34: =IFERROR(IF(OR(R34="",'Historical scenario - input'!$D19=""),"",R34/'Historical scenario - input'!$D19),"") -> 1905.979051 | AM34: =IFERROR(IF(OR(S34="",'Historical scenario - input'!$D19=""),"",S34/'Historical scenario - input'!$D19),"") -> 2002.768371 | AN34: =IFERROR(IF(OR(T34="",'Historical scenario - input'!$D19=""),"",T34/'Historical scenario - input'!$D19),"") -> 2098.207638 | AO34: =IFERROR(IF(OR(U34="",'Historical scenario - input'!$D19=""),"",U34/'Historical scenario - input'!$D19),"") -> 2190.837475 | AP34: =IFERROR(IF(OR(V34="",'Historical scenario - input'!$D19=""),"",V34/'Historical scenario - input'!$D19),"") -> 2279.199724 | AQ34: =IFERROR(IF(OR(W34="",'Historical scenario - input'!$D19=""),"",W34/'Historical scenario - input'!$D19),"") -> 2361.898212
A35: =IFERROR('Historical scenario - input'!A20,"") -> 2 | B35: =IFERROR('Historical scenario - input'!B20,"") -> POLES | C35: =IFERROR('Historical scenario - input'!C20,"") -> > 22 kv & < = 66 kv ; concrete | D35: =IFERROR(repcalc('Historical scenario - input'!$CV20:$GH20,'Historical scenario - input'!$G20,'Historical scenario - input'!$E20,'Historical scenario - input'!$F20,20,TRUE,TRUE),"") -> 188.3393841 | E35: 187.6999794 | F35: 199.7504682 | G35: 226.796729 | H35: 271.0908043 | I35: 334.6454442 | J35: 418.9669172 | K35: 524.7349414 | L35: 651.4822691 | M35: 797.3440349 | N35: 958.9521333 | O35: 1131.537791 | P35: 1309.274706 | Q35: 1485.848992 | R35: 1655.189142 | S35: 1812.241468 | T35: 1953.647224 | U35: 2078.177292 | V35: 2186.813314 | W35: 2282.426532 | X35: =IFERROR(IF(OR(D35="",'Historical scenario - input'!$D20=""),"",D35/'Historical scenario - input'!$D20),"") -> 7.951992088 | Y35: =IFERROR(IF(OR(E35="",'Historical scenario - input'!$D20=""),"",E35/'Historical scenario - input'!$D20),"") -> 7.924995394 | Z35: =IFERROR(IF(OR(F35="",'Historical scenario - input'!$D20=""),"",F35/'Historical scenario - input'!$D20),"") -> 8.433786435 | AA35: =IFERROR(IF(OR(G35="",'Historical scenario - input'!$D20=""),"",G35/'Historical scenario - input'!$D20),"") -> 9.57572312 | AB35: =IFERROR(IF(OR(H35="",'Historical scenario - input'!$D20=""),"",H35/'Historical scenario - input'!$D20),"") -> 11.44589031 | AC35: =IFERROR(IF(OR(I35="",'Historical scenario - input'!$D20=""),"",I35/'Historical scenario - input'!$D20),"") -> 14.12926955 | AD35: =IFERROR(IF(OR(J35="",'Historical scenario - input'!$D20=""),"",J35/'Historical scenario - input'!$D20),"") -> 17.68945793 | AE35: =IFERROR(IF(OR(K35="",'Historical scenario - input'!$D20=""),"",K35/'Historical scenario - input'!$D20),"") -> 22.15515424 | AF35: =IFERROR(IF(OR(L35="",'Historical scenario - input'!$D20=""),"",L35/'Historical scenario - input'!$D20),"") -> 27.50663052 | AG35: =IFERROR(IF(OR(M35="",'Historical scenario - input'!$D20=""),"",M35/'Historical scenario - input'!$D20),"") -> 33.66514916 | AH35: =IFERROR(IF(OR(N35="",'Historical scenario - input'!$D20=""),"",N35/'Historical scenario - input'!$D20),"") -> 40.48850332 | AI35: =IFERROR(IF(OR(O35="",'Historical scenario - input'!$D20=""),"",O35/'Historical scenario - input'!$D20),"") -> 47.77534772 | AJ35: =IFERROR(IF(OR(P35="",'Historical scenario - input'!$D20=""),"",P35/'Historical scenario - input'!$D20),"") -> 55.27968649 | AK35: =IFERROR(IF(OR(Q35="",'Historical scenario - input'!$D20=""),"",Q35/'Historical scenario - input'!$D20),"") -> 62.73493719 | AL35: =IFERROR(IF(OR(R35="",'Historical scenario - input'!$D20=""),"",R35/'Historical scenario - input'!$D20),"") -> 69.88475101 | AM35: =IFERROR(IF(OR(S35="",'Historical scenario - input'!$D20=""),"",S35/'Historical scenario - input'!$D20),"") -> 76.51575313 | AN35: =IFERROR(IF(OR(T35="",'Historical scenario - input'!$D20=""),"",T35/'Historical scenario - input'!$D20),"") -> 82.48613186 | AO35: =IFERROR(IF(OR(U35="",'Historical scenario - input'!$D20=""),"",U35/'Historical scenario - input'!$D20),"") -> 87.74399185 | AP35: =IFERROR(IF(OR(V35="",'Historical scenario - input'!$D20=""),"",V35/'Historical scenario - input'!$D20),"") -> 92.33077965 | AQ35: =IFERROR(IF(OR(W35="",'Historical scenario - input'!$D20=""),"",W35/'Historical scenario - input'!$D20),"") -> 96.36772369
A36: =IFERROR('Historical scenario - input'!A21,"") -> 2 | B36: =IFERROR('Historical scenario - input'!B21,"") -> POLES | C36: =IFERROR('Historical scenario - input'!C21,"") -> > 22 kv & < = 66 kv ; steel | D36: =IFERROR(repcalc('Historical scenario - input'!$CV21:$GH21,'Historical scenario - input'!$G21,'Historical scenario - input'!$E21,'Historical scenario - input'!$F21,20,TRUE,TRUE),"") -> 313.7663189 | E36: 368.8645559 | F36: 420.3292628 | G36: 467.609665 | H36: 511.1008233 | I36: 551.3301041 | J36: 588.1666929 | K36: 620.4877648 | L36: 646.4575969 | M36: 664.2237705 | N36: 672.6388821 | O36: 671.6827884 | P36: 662.4983239 | Q36: 647.1641594 | R36: 628.3754452 | S36: 609.1101597 | T36: 592.2602014 | U36: 580.2064566 | V36: 574.4037915 | W36: 575.1164209 | X36: =IFERROR(IF(OR(D36="",'Historical scenario - input'!$D21=""),"",D36/'Historical scenario - input'!$D21),"") -> 14.56539317 | Y36: =IFERROR(IF(OR(E36="",'Historical scenario - input'!$D21=""),"",E36/'Historical scenario - input'!$D21),"") -> 17.12311666 | Z36: =IFERROR(IF(OR(F36="",'Historical scenario - input'!$D21=""),"",F36/'Historical scenario - input'!$D21),"") -> 19.5121675 | AA36: =IFERROR(IF(OR(G36="",'Historical scenario - input'!$D21=""),"",G36/'Historical scenario - input'!$D21),"") -> 21.70697812 | AB36: =IFERROR(IF(OR(H36="",'Historical scenario - input'!$D21=""),"",H36/'Historical scenario - input'!$D21),"") -> 23.72588768 | AC36: =IFERROR(IF(OR(I36="",'Historical scenario - input'!$D21=""),"",I36/'Historical scenario - input'!$D21),"") -> 25.59337713 | AD36: =IFERROR(IF(OR(J36="",'Historical scenario - input'!$D21=""),"",J36/'Historical scenario - input'!$D21),"") -> 27.30337392 | AE36: =IFERROR(IF(OR(K36="",'Historical scenario - input'!$D21=""),"",K36/'Historical scenario - input'!$D21),"") -> 28.80375523 | AF36: =IFERROR(IF(OR(L36="",'Historical scenario - input'!$D21=""),"",L36/'Historical scenario - input'!$D21),"") -> 30.00930469 | AG36: =IFERROR(IF(OR(M36="",'Historical scenario - input'!$D21=""),"",M36/'Historical scenario - input'!$D21),"") -> 30.83403089 | AH36: =IFERROR(IF(OR(N36="",'Historical scenario - input'!$D21=""),"",N36/'Historical scenario - input'!$D21),"") -> 31.22467004 | AI36: =IFERROR(IF(OR(O36="",'Historical scenario - input'!$D21=""),"",O36/'Historical scenario - input'!$D21),"") -> 31.18028707 | AJ36: =IFERROR(IF(OR(P36="",'Historical scenario - input'!$D21=""),"",P36/'Historical scenario - input'!$D21),"") -> 30.75393367 | AK36: =IFERROR(IF(OR(Q36="",'Historical scenario - input'!$D21=""),"",Q36/'Historical scenario - input'!$D21),"") -> 30.04210413 | AL36: =IFERROR(IF(OR(R36="",'Historical scenario - input'!$D21=""),"",R36/'Historical scenario - input'!$D21),"") -> 29.16991042 | AM36: =IFERROR(IF(OR(S36="",'Historical scenario - input'!$D21=""),"",S36/'Historical scenario - input'!$D21),"") -> 28.27559372 | AN36: =IFERROR(IF(OR(T36="",'Historical scenario - input'!$D21=""),"",T36/'Historical scenario - input'!$D21),"") -> 27.49339929 | AO36: =IFERROR(IF(OR(U36="",'Historical scenario - input'!$D21=""),"",U36/'Historical scenario - input'!$D21),"") -> 26.93385061 | AP36: =IFERROR(IF(OR(V36="",'Historical scenario - input'!$D21=""),"",V36/'Historical scenario - input'!$D21),"") -> 26.66448422 | AQ36: =IFERROR(IF(OR(W36="",'Historical scenario - input'!$D21=""),"",W36/'Historical scenario - input'!$D21),"") -> 26.6975653
A37: =IFERROR('Historical scenario - input'!A22,"") -> 2 | B37: =IFERROR('Historical scenario - input'!B22,"") -> POLES | C37: =IFERROR('Historical scenario - input'!C22,"") -> > 22 kv & < = 66 kv ; wood | D37: =IFERROR(repcalc('Historical scenario - input'!$CV22:$GH22,'Historical scenario - input'!$G22,'Historical scenario - input'!$E22,'Historical scenario - input'!$F22,20,TRUE,TRUE),"") -> 1839.821962 | E37: 1964.716337 | F37: 2095.267856 | G37: 2233.07095 | H37: 2379.820557 | I37: 2537.21882 | J37: 2706.873475 | K37: 2890.191534 | L37: 3088.272061 | M37: 3301.802124 | N37: 3530.960472 | O37: 3775.334016 | P37: 4033.852721 | Q37: 4304.748874 | R37: 4585.54668 | S37: 4873.087571 | T37: 5163.595395 | U37: 5452.78359 | V37: 5736.003697 | W37: 6008.431089 | X37: =IFERROR(IF(OR(D37="",'Historical scenario - input'!$D22=""),"",D37/'Historical scenario - input'!$D22),"") -> 100.2368544 | Y37: =IFERROR(IF(OR(E37="",'Historical scenario - input'!$D22=""),"",E37/'Historical scenario - input'!$D22),"") -> 107.0413276 | Z37: =IFERROR(IF(OR(F37="",'Historical scenario - input'!$D22=""),"",F37/'Historical scenario - input'!$D22),"") -> 114.1540123 | AA37: =IFERROR(IF(OR(G37="",'Historical scenario - input'!$D22=""),"",G37/'Historical scenario - input'!$D22),"") -> 121.6617761 | AB37: =IFERROR(IF(OR(H37="",'Historical scenario - input'!$D22=""),"",H37/'Historical scenario - input'!$D22),"") -> 129.6569622 | AC37: =IFERROR(IF(OR(I37="",'Historical scenario - input'!$D22=""),"",I37/'Historical scenario - input'!$D22),"") -> 138.2323065 | AD37: =IFERROR(IF(OR(J37="",'Historical scenario - input'!$D22=""),"",J37/'Historical scenario - input'!$D22),"") -> 147.4754014 | AE37: =IFERROR(IF(OR(K37="",'Historical scenario - input'!$D22=""),"",K37/'Historical scenario - input'!$D22),"") -> 157.4629034 | AF37: =IFERROR(IF(OR(L37="",'Historical scenario - input'!$D22=""),"",L37/'Historical scenario - input'!$D22),"") -> 168.2546916 | AG37: =IFERROR(IF(OR(M37="",'Historical scenario - input'!$D22=""),"",M37/'Historical scenario - input'!$D22),"") -> 179.8881987 | AH37: =IFERROR(IF(OR(N37="",'Historical scenario - input'!$D22=""),"",N37/'Historical scenario - input'!$D22),"") -> 192.3731632 | AI37: =IFERROR(IF(OR(O37="",'Historical scenario - input'!$D22=""),"",O37/'Historical scenario - input'!$D22),"") -> 205.6870794 | AJ37: =IFERROR(IF(OR(P37="",'Historical scenario - input'!$D22=""),"",P37/'Historical scenario - input'!$D22),"") -> 219.7716497 | AK37: =IFERROR(IF(OR(Q37="",'Historical scenario - input'!$D22=""),"",Q37/'Historical scenario - input'!$D22),"") -> 234.5305659 | AL37: =IFERROR(IF(OR(R37="",'Historical scenario - input'!$D22=""),"",R37/'Historical scenario - input'!$D22),"") -> 249.8289423 | AM37: =IFERROR(IF(OR(S37="",'Historical scenario - input'!$D22=""),"",S37/'Historical scenario - input'!$D22),"") -> 265.4946942 | AN37: =IFERROR(IF(OR(T37="",'Historical scenario - input'!$D22=""),"",T37/'Historical scenario - input'!$D22),"") -> 281.32209 | AO37: =IFERROR(IF(OR(U37="",'Historical scenario - input'!$D22=""),"",U37/'Historical scenario - input'!$D22),"") -> 297.07759 | AP37: =IFERROR(IF(OR(V37="",'Historical scenario - input'!$D22=""),"",V37/'Historical scenario - input'!$D22),"") -> 312.5079378 | AQ37: =IFERROR(IF(OR(W37="",'Historical scenario - input'!$D22=""),"",W37/'Historical scenario - input'!$D22),"") -> 327.3502787
A38: =IFERROR('Historical scenario - input'!A23,"") -> 2 | B38: =IFERROR('Historical scenario - input'!B23,"") -> POLES | C38: =IFERROR('Historical scenario - input'!C23,"") -> > 66 kv & < = 132 kv ; concrete | D38: =IFERROR(repcalc('Historical scenario - input'!$CV23:$GH23,'Historical scenario - input'!$G23,'Historical scenario - input'!$E23,'Historical scenario - input'!$F23,20,TRUE,TRUE),"") -> 30.53943013 | E38: 29.94579196 | F38: 29.53845566 | G38: 29.61915806 | H38: 30.57419323 | I38: 32.88491473 | J38: 37.13581611 | K38: 44.01761653 | L38: 54.3223404 | M38: 68.92746863 | N38: 88.76710566 | O38: 114.7898875 | P38: 147.9059689 | Q38: 188.9284964 | R38: 238.5178121 | S38: 297.1383492 | T38: 365.0378421 | U38: 442.2554482 | V38: 528.659565 | W38: 624.0082519 | X38: =IFERROR(IF(OR(D38="",'Historical scenario - input'!$D23=""),"",D38/'Historical scenario - input'!$D23),"") -> 1.271026504 | Y38: =IFERROR(IF(OR(E38="",'Historical scenario - input'!$D23=""),"",E38/'Historical scenario - input'!$D23),"") -> 1.246319761 | Z38: =IFERROR(IF(OR(F38="",'Historical scenario - input'!$D23=""),"",F38/'Historical scenario - input'!$D23),"") -> 1.229366752 | AA38: =IFERROR(IF(OR(G38="",'Historical scenario - input'!$D23=""),"",G38/'Historical scenario - input'!$D23),"") -> 1.232725522 | AB38: =IFERROR(IF(OR(H38="",'Historical scenario - input'!$D23=""),"",H38/'Historical scenario - input'!$D23),"") -> 1.272473317 | AC38: =IFERROR(IF(OR(I38="",'Historical scenario - input'!$D23=""),"",I38/'Historical scenario - input'!$D23),"") -> 1.368643686 | AD38: =IFERROR(IF(OR(J38="",'Historical scenario - input'!$D23=""),"",J38/'Historical scenario - input'!$D23),"") -> 1.54556278 | AE38: =IFERROR(IF(OR(K38="",'Historical scenario - input'!$D23=""),"",K38/'Historical scenario - input'!$D23),"") -> 1.831977775 | AF38: =IFERROR(IF(OR(L38="",'Historical scenario - input'!$D23=""),"",L38/'Historical scenario - input'!$D23),"") -> 2.26085209 | AG38: =IFERROR(IF(OR(M38="",'Historical scenario - input'!$D23=""),"",M38/'Historical scenario - input'!$D23),"") -> 2.868705773 | AH38: =IFERROR(IF(OR(N38="",'Historical scenario - input'!$D23=""),"",N38/'Historical scenario - input'!$D23),"") -> 3.694415499 | AI38: =IFERROR(IF(OR(O38="",'Historical scenario - input'!$D23=""),"",O38/'Historical scenario - input'!$D23),"") -> 4.777462735 | AJ38: =IFERROR(IF(OR(P38="",'Historical scenario - input'!$D23=""),"",P38/'Historical scenario - input'!$D23),"") -> 6.155727394 | AK38: =IFERROR(IF(OR(Q38="",'Historical scenario - input'!$D23=""),"",Q38/'Historical scenario - input'!$D23),"") -> 7.863051972 | AL38: =IFERROR(IF(OR(R38="",'Historical scenario - input'!$D23=""),"",R38/'Historical scenario - input'!$D23),"") -> 9.926919386 | AM38: =IFERROR(IF(OR(S38="",'Historical scenario - input'!$D23=""),"",S38/'Historical scenario - input'!$D23),"") -> 12.36665896 | AN38: =IFERROR(IF(OR(T38="",'Historical scenario - input'!$D23=""),"",T38/'Historical scenario - input'!$D23),"") -> 15.19258121 | AO38: =IFERROR(IF(OR(U38="",'Historical scenario - input'!$D23=""),"",U38/'Historical scenario - input'!$D23),"") -> 18.40631583 | AP38: =IFERROR(IF(OR(V38="",'Historical scenario - input'!$D23=""),"",V38/'Historical scenario - input'!$D23),"") -> 22.00238564 | AQ38: =IFERROR(IF(OR(W38="",'Historical scenario - input'!$D23=""),"",W38/'Historical scenario - input'!$D23),"") -> 25.97072125
A39: =IFERROR('Historical scenario - input'!A24,"") -> 2 | B39: =IFERROR('Historical scenario - input'!B24,"") -> POLES | C39: =IFERROR('Historical scenario - input'!C24,"") -> > 66 kv & < = 132 kv ; steel | D39: =IFERROR(repcalc('Historical scenario - input'!$CV24:$GH24,'Historical scenario - input'!$G24,'Historical scenario - input'!$E24,'Historical scenario - input'!$F24,20,TRUE,TRUE),"") -> 15.70299094 | E39: 24.66099892 | F39: 37.20040188 | G39: 53.8815544 | H39: 74.90817863 | I39: 99.92077231 | J39: 127.839577 | K39: 156.8242892 | L39: 184.4041883 | M39: 207.7932776 | N39: 224.3484489 | O39: 232.0733699 | P39: 230.0397694 | Q39: 218.60778 | R39: 199.3791348 | S39: 174.8943393 | T39: 148.1588767 | U39: 122.1266232 | V39: 99.26696116 | W39: 81.30056088 | X39: =IFERROR(IF(OR(D39="",'Historical scenario - input'!$D24=""),"",D39/'Historical scenario - input'!$D24),"") -> 0.9096526419 | Y39: =IFERROR(IF(OR(E39="",'Historical scenario - input'!$D24=""),"",E39/'Historical scenario - input'!$D24),"") -> 1.428577709 | Z39: =IFERROR(IF(OR(F39="",'Historical scenario - input'!$D24=""),"",F39/'Historical scenario - input'!$D24),"") -> 2.154968056 | AA39: =IFERROR(IF(OR(G39="",'Historical scenario - input'!$D24=""),"",G39/'Historical scenario - input'!$D24),"") -> 3.121284251 | AB39: =IFERROR(IF(OR(H39="",'Historical scenario - input'!$D24=""),"",H39/'Historical scenario - input'!$D24),"") -> 4.339327639 | AC39: =IFERROR(IF(OR(I39="",'Historical scenario - input'!$D24=""),"",I39/'Historical scenario - input'!$D24),"") -> 5.788272749 | AD39: =IFERROR(IF(OR(J39="",'Historical scenario - input'!$D24=""),"",J39/'Historical scenario - input'!$D24),"") -> 7.40557066 | AE39: =IFERROR(IF(OR(K39="",'Historical scenario - input'!$D24=""),"",K39/'Historical scenario - input'!$D24),"") -> 9.084615126 | AF39: =IFERROR(IF(OR(L39="",'Historical scenario - input'!$D24=""),"",L39/'Historical scenario - input'!$D24),"") -> 10.6822807 | AG39: =IFERROR(IF(OR(M39="",'Historical scenario - input'!$D24=""),"",M39/'Historical scenario - input'!$D24),"") -> 12.03717844 | AH39: =IFERROR(IF(OR(N39="",'Historical scenario - input'!$D24=""),"",N39/'Historical scenario - input'!$D24),"") -> 12.99619672 | AI39: =IFERROR(IF(OR(O39="",'Historical scenario - input'!$D24=""),"",O39/'Historical scenario - input'!$D24),"") -> 13.44369075 | AJ39: =IFERROR(IF(OR(P39="",'Historical scenario - input'!$D24=""),"",P39/'Historical scenario - input'!$D24),"") -> 13.32588707 | AK39: =IFERROR(IF(OR(Q39="",'Historical scenario - input'!$D24=""),"",Q39/'Historical scenario - input'!$D24),"") -> 12.66364767 | AL39: =IFERROR(IF(OR(R39="",'Historical scenario - input'!$D24=""),"",R39/'Historical scenario - input'!$D24),"") -> 11.54975873 | AM39: =IFERROR(IF(OR(S39="",'Historical scenario - input'!$D24=""),"",S39/'Historical scenario - input'!$D24),"") -> 10.13138824 | AN39: =IFERROR(IF(OR(T39="",'Historical scenario - input'!$D24=""),"",T39/'Historical scenario - input'!$D24),"") -> 8.582639713 | AO39: =IFERROR(IF(OR(U39="",'Historical scenario - input'!$D24=""),"",U39/'Historical scenario - input'!$D24),"") -> 7.074627111 | AP39: =IFERROR(IF(OR(V39="",'Historical scenario - input'!$D24=""),"",V39/'Historical scenario - input'!$D24),"") -> 5.750398369 | AQ39: =IFERROR(IF(OR(W39="",'Historical scenario - input'!$D24=""),"",W39/'Historical scenario - input'!$D24),"") -> 4.70962954
A40: =IFERROR('Historical scenario - input'!A25,"") -> 2 | B40: =IFERROR('Historical scenario - input'!B25,"") -> POLES | C40: =IFERROR('Historical scenario - input'!C25,"") -> > 66 kv & < = 132 kv ; wood | D40: =IFERROR(repcalc('Historical scenario - input'!$CV25:$GH25,'Historical scenario - input'!$G25,'Historical scenario - input'!$E25,'Historical scenario - input'!$F25,20,TRUE,TRUE),"") -> 537.1578673 | E40: 564.2329033 | F40: 592.7944416 | G40: 623.3119435 | H40: 656.2233783 | I40: 691.9080658 | J40: 730.6612887 | K40: 772.6716709 | L40: 818.0022266 | M40: 866.5759175 | N40: 918.1664927 | O40: 972.395317 | P40: 1028.734789 | Q40: 1086.518798 | R40: 1144.960443 | S40: 1203.176922 | T40: 1260.221112 | U40: 1315.118861 | V40: 1366.910514 | W40: 1414.694594 | X40: =IFERROR(IF(OR(D40="",'Historical scenario - input'!$D25=""),"",D40/'Historical scenario - input'!$D25),"") -> 22.76154169 | Y40: =IFERROR(IF(OR(E40="",'Historical scenario - input'!$D25=""),"",E40/'Historical scenario - input'!$D25),"") -> 23.90881998 | Z40: =IFERROR(IF(OR(F40="",'Historical scenario - input'!$D25=""),"",F40/'Historical scenario - input'!$D25),"") -> 25.11908736 | AA40: =IFERROR(IF(OR(G40="",'Historical scenario - input'!$D25=""),"",G40/'Historical scenario - input'!$D25),"") -> 26.41223679 | AB40: =IFERROR(IF(OR(H40="",'Historical scenario - input'!$D25=""),"",H40/'Historical scenario - input'!$D25),"") -> 27.8068268 | AC40: =IFERROR(IF(OR(I40="",'Historical scenario - input'!$D25=""),"",I40/'Historical scenario - input'!$D25),"") -> 29.31893069 | AD40: =IFERROR(IF(OR(J40="",'Historical scenario - input'!$D25=""),"",J40/'Historical scenario - input'!$D25),"") -> 30.96106078 | AE40: =IFERROR(IF(OR(K40="",'Historical scenario - input'!$D25=""),"",K40/'Historical scenario - input'!$D25),"") -> 32.74120983 | AF40: =IFERROR(IF(OR(L40="",'Historical scenario - input'!$D25=""),"",L40/'Historical scenario - input'!$D25),"") -> 34.662048 | AG40: =IFERROR(IF(OR(M40="",'Historical scenario - input'!$D25=""),"",M40/'Historical scenario - input'!$D25),"") -> 36.72031086 | AH40: =IFERROR(IF(OR(N40="",'Historical scenario - input'!$D25=""),"",N40/'Historical scenario - input'!$D25),"") -> 38.90641126 | AI40: =IFERROR(IF(OR(O40="",'Historical scenario - input'!$D25=""),"",O40/'Historical scenario - input'!$D25),"") -> 41.2043049 | AJ40: =IFERROR(IF(OR(P40="",'Historical scenario - input'!$D25=""),"",P40/'Historical scenario - input'!$D25),"") -> 43.59163517 | AK40: =IFERROR(IF(OR(Q40="",'Historical scenario - input'!$D25=""),"",Q40/'Historical scenario - input'!$D25),"") -> 46.0401763 | AL40: =IFERROR(IF(OR(R40="",'Historical scenario - input'!$D25=""),"",R40/'Historical scenario - input'!$D25),"") -> 48.51658411 | AM40: =IFERROR(IF(OR(S40="",'Historical scenario - input'!$D25=""),"",S40/'Historical scenario - input'!$D25),"") -> 50.98345075 | AN40: =IFERROR(IF(OR(T40="",'Historical scenario - input'!$D25=""),"",T40/'Historical scenario - input'!$D25),"") -> 53.40064274 | AO40: =IFERROR(IF(OR(U40="",'Historical scenario - input'!$D25=""),"",U40/'Historical scenario - input'!$D25),"") -> 55.72688142 | AP40: =IFERROR(IF(OR(V40="",'Historical scenario - input'!$D25=""),"",V40/'Historical scenario - input'!$D25),"") -> 57.92150228 | AQ40: =IFERROR(IF(OR(W40="",'Historical scenario - input'!$D25=""),"",W40/'Historical scenario - input'!$D25),"") -> 59.94630616
A41: =IFERROR('Historical scenario - input'!A26,"") -> 2 | B41: =IFERROR('Historical scenario - input'!B26,"") -> POLES | C41: =IFERROR('Historical scenario - input'!C26,"") -> staked wooden pole | D41: =IFERROR(repcalc('Historical scenario - input'!$CV26:$GH26,'Historical scenario - input'!$G26,'Historical scenario - input'!$E26,'Historical scenario - input'!$F26,20,TRUE,TRUE),"") -> 1937.778267 | E41: 2359.876057 | F41: 2763.171332 | G41: 3114.688985 | H41: 3385.706758 | I41: 3557.069405 | J41: 3622.686687 | K41: 3590.253596 | L41: 3479.041707 | M41: 3315.471461 | N41: 3127.768831 | O41: 2941.136028 | P41: 2774.521634 | Q41: 2639.438936 | R41: 2540.616907 | S41: 2477.80718 | T41: 2447.924406 | U41: 2446.840401 | V41: 2470.462669 | W41: 2515.058833 | X41: =IFERROR(IF(OR(D41="",'Historical scenario - input'!$D26=""),"",D41/'Historical scenario - input'!$D26),"") -> 245.239163 | Y41: =IFERROR(IF(OR(E41="",'Historical scenario - input'!$D26=""),"",E41/'Historical scenario - input'!$D26),"") -> 298.6585405 | Z41: =IFERROR(IF(OR(F41="",'Historical scenario - input'!$D26=""),"",F41/'Historical scenario - input'!$D26),"") -> 349.6983304 | AA41: =IFERROR(IF(OR(G41="",'Historical scenario - input'!$D26=""),"",G41/'Historical scenario - input'!$D26),"") -> 394.1853061 | AB41: =IFERROR(IF(OR(H41="",'Historical scenario - input'!$D26=""),"",H41/'Historical scenario - input'!$D26),"") -> 428.4844688 | AC41: =IFERROR(IF(OR(I41="",'Historical scenario - input'!$D26=""),"",I41/'Historical scenario - input'!$D26),"") -> 450.1715899 | AD41: =IFERROR(IF(OR(J41="",'Historical scenario - input'!$D26=""),"",J41/'Historical scenario - input'!$D26),"") -> 458.4759081 | AE41: =IFERROR(IF(OR(K41="",'Historical scenario - input'!$D26=""),"",K41/'Historical scenario - input'!$D26),"") -> 454.3712774 | AF41: =IFERROR(IF(OR(L41="",'Historical scenario - input'!$D26=""),"",L41/'Historical scenario - input'!$D26),"") -> 440.2966482 | AG41: =IFERROR(IF(OR(M41="",'Historical scenario - input'!$D26=""),"",M41/'Historical scenario - input'!$D26),"") -> 419.595709 | AH41: =IFERROR(IF(OR(N41="",'Historical scenario - input'!$D26=""),"",N41/'Historical scenario - input'!$D26),"") -> 395.8406506 | AI41: =IFERROR(IF(OR(O41="",'Historical scenario - input'!$D26=""),"",O41/'Historical scenario - input'!$D26),"") -> 372.2209862 | AJ41: =IFERROR(IF(OR(P41="",'Historical scenario - input'!$D26=""),"",P41/'Historical scenario - input'!$D26),"") -> 351.1347891 | AK41: =IFERROR(IF(OR(Q41="",'Historical scenario - input'!$D26=""),"",Q41/'Historical scenario - input'!$D26),"") -> 334.0391449 | AL41: =IFERROR(IF(OR(R41="",'Historical scenario - input'!$D26=""),"",R41/'Historical scenario - input'!$D26),"") -> 321.5325377 | AM41: =IFERROR(IF(OR(S41="",'Historical scenario - input'!$D26=""),"",S41/'Historical scenario - input'!$D26),"") -> 313.5835348 | AN41: =IFERROR(IF(OR(T41="",'Historical scenario - input'!$D26=""),"",T41/'Historical scenario - input'!$D26),"") -> 309.8016644 | AO41: =IFERROR(IF(OR(U41="",'Historical scenario - input'!$D26=""),"",U41/'Historical scenario - input'!$D26),"") -> 309.6644761 | AP41: =IFERROR(IF(OR(V41="",'Historical scenario - input'!$D26=""),"",V41/'Historical scenario - input'!$D26),"") -> 312.6540365 | AQ41: =IFERROR(IF(OR(W41="",'Historical scenario - input'!$D26=""),"",W41/'Historical scenario - input'!$D26),"") -> 318.2979877
A42: =IFERROR('Historical scenario - input'!A27,"") -> 3 | B42: =IFERROR('Historical scenario - input'!B27,"") -> SERVICE LINES | C42: =IFERROR('Historical scenario - input'!C27,"") -> ˂ = 11 kv ; residential ; complex type | D42: =IFERROR(repcalc('Historical scenario - input'!$CV27:$GH27,'Historical scenario - input'!$G27,'Historical scenario - input'!$E27,'Historical scenario - input'!$F27,20,TRUE,TRUE),"") -> 1602.894031 | E42: 1850.184489 | F42: 2114.893741 | G42: 2393.331736 | H42: 2681.308691 | I42: 2974.452866 | J42: 3268.545316 | K42: 3559.832652 | L42: 3845.282163 | M42: 4122.751885 | N42: 4391.059717 | O42: 4649.948516 | P42: 4899.956327 | Q42: 5142.211003 | R42: 5378.175354 | S42: 5609.372305 | T42: 5837.119312 | U42: 6062.297818 | V42: 6285.177484 | W42: 6505.307066 | X42: =IFERROR(IF(OR(D42="",'Historical scenario - input'!$D27=""),"",D42/'Historical scenario - input'!$D27),"") -> 1440.864183 | Y42: =IFERROR(IF(OR(E42="",'Historical scenario - input'!$D27=""),"",E42/'Historical scenario - input'!$D27),"") -> 1663.157084 | Z42: =IFERROR(IF(OR(F42="",'Historical scenario - input'!$D27=""),"",F42/'Historical scenario - input'!$D27),"") -> 1901.107985 | AA42: =IFERROR(IF(OR(G42="",'Historical scenario - input'!$D27=""),"",G42/'Historical scenario - input'!$D27),"") -> 2151.399849 | AB42: =IFERROR(IF(OR(H42="",'Historical scenario - input'!$D27=""),"",H42/'Historical scenario - input'!$D27),"") -> 2410.26642 | AC42: =IFERROR(IF(OR(I42="",'Historical scenario - input'!$D27=""),"",I42/'Historical scenario - input'!$D27),"") -> 2673.777877 | AD42: =IFERROR(IF(OR(J42="",'Historical scenario - input'!$D27=""),"",J42/'Historical scenario - input'!$D27),"") -> 2938.141753 | AE42: =IFERROR(IF(OR(K42="",'Historical scenario - input'!$D27=""),"",K42/'Historical scenario - input'!$D27),"") -> 3199.984071 | AF42: =IFERROR(IF(OR(L42="",'Historical scenario - input'!$D27=""),"",L42/'Historical scenario - input'!$D27),"") -> 3456.578685 | AG42: =IFERROR(IF(OR(M42="",'Historical scenario - input'!$D27=""),"",M42/'Historical scenario - input'!$D27),"") -> 3706.000155 | AH42: =IFERROR(IF(OR(N42="",'Historical scenario - input'!$D27=""),"",N42/'Historical scenario - input'!$D27),"") -> 3947.185872 | AI42: =IFERROR(IF(OR(O42="",'Historical scenario - input'!$D27=""),"",O42/'Historical scenario - input'!$D27),"") -> 4179.904685 | AJ42: =IFERROR(IF(OR(P42="",'Historical scenario - input'!$D27=""),"",P42/'Historical scenario - input'!$D27),"") -> 4404.640253 | AK42: =IFERROR(IF(OR(Q42="",'Historical scenario - input'!$D27=""),"",Q42/'Historical scenario - input'!$D27),"") -> 4622.406418 | AL42: =IFERROR(IF(OR(R42="",'Historical scenario - input'!$D27=""),"",R42/'Historical scenario - input'!$D27),"") -> 4834.518121 | AM42: =IFERROR(IF(OR(S42="",'Historical scenario - input'!$D27=""),"",S42/'Historical scenario - input'!$D27),"") -> 5042.34434 | AN42: =IFERROR(IF(OR(T42="",'Historical scenario - input'!$D27=""),"",T42/'Historical scenario - input'!$D27),"") -> 5247.069355 | AO42: =IFERROR(IF(OR(U42="",'Historical scenario - input'!$D27=""),"",U42/'Historical scenario - input'!$D27),"") -> 5449.485508 | AP42: =IFERROR(IF(OR(V42="",'Historical scenario - input'!$D27=""),"",V42/'Historical scenario - input'!$D27),"") -> 5649.835202 | AQ42: =IFERROR(IF(OR(W42="",'Historical scenario - input'!$D27=""),"",W42/'Historical scenario - input'!$D27),"") -> 5847.712806
A43: =IFERROR('Historical scenario - input'!A28,"") -> 3 | B43: =IFERROR('Historical scenario - input'!B28,"") -> SERVICE LINES | C43: =IFERROR('Historical scenario - input'!C28,"") -> ˂ = 11 kv ; residential ; simple type | D43: =IFERROR(repcalc('Historical scenario - input'!$CV28:$GH28,'Historical scenario - input'!$G28,'Historical scenario - input'!$E28,'Historical scenario - input'!$F28,20,TRUE,TRUE),"") -> 12933.90879 | E43: 13097.96426 | F43: 13333.50282 | G43: 13592.90348 | H43: 13840.93004 | I43: 14053.36469 | J43: 14215.69384 | K43: 14321.71161 | L43: 14372.0058 | M43: 14372.36425 | N43: 14332.17891 | O43: 14262.93384 | P43: 14176.84954 | Q43: 14085.733 | R43: 14000.05926 | S43: 13928.29464 | T43: 13876.46417 | U43: 13847.96468 | V43: 13843.62399 | W43: 13862.00023 | X43: =IFERROR(IF(OR(D43="",'Historical scenario - input'!$D28=""),"",D43/'Historical scenario - input'!$D28),"") -> 11626.47409 | Y43: =IFERROR(IF(OR(E43="",'Historical scenario - input'!$D28=""),"",E43/'Historical scenario - input'!$D28),"") -> 11773.94589 | Z43: =IFERROR(IF(OR(F43="",'Historical scenario - input'!$D28=""),"",F43/'Historical scenario - input'!$D28),"") -> 11985.67483 | AA43: =IFERROR(IF(OR(G43="",'Historical scenario - input'!$D28=""),"",G43/'Historical scenario - input'!$D28),"") -> 12218.85377 | AB43: =IFERROR(IF(OR(H43="",'Historical scenario - input'!$D28=""),"",H43/'Historical scenario - input'!$D28),"") -> 12441.80836 | AC43: =IFERROR(IF(OR(I43="",'Historical scenario - input'!$D28=""),"",I43/'Historical scenario - input'!$D28),"") -> 12632.76889 | AD43: =IFERROR(IF(OR(J43="",'Historical scenario - input'!$D28=""),"",J43/'Historical scenario - input'!$D28),"") -> 12778.68886 | AE43: =IFERROR(IF(OR(K43="",'Historical scenario - input'!$D28=""),"",K43/'Historical scenario - input'!$D28),"") -> 12873.98973 | AF43: =IFERROR(IF(OR(L43="",'Historical scenario - input'!$D28=""),"",L43/'Historical scenario - input'!$D28),"") -> 12919.1999 | AG43: =IFERROR(IF(OR(M43="",'Historical scenario - input'!$D28=""),"",M43/'Historical scenario - input'!$D28),"") -> 12919.52211 | AH43: =IFERROR(IF(OR(N43="",'Historical scenario - input'!$D28=""),"",N43/'Historical scenario - input'!$D28),"") -> 12883.39894 | AI43: =IFERROR(IF(OR(O43="",'Historical scenario - input'!$D28=""),"",O43/'Historical scenario - input'!$D28),"") -> 12821.15357 | AJ43: =IFERROR(IF(OR(P43="",'Historical scenario - input'!$D28=""),"",P43/'Historical scenario - input'!$D28),"") -> 12743.77117 | AK43: =IFERROR(IF(OR(Q43="",'Historical scenario - input'!$D28=""),"",Q43/'Historical scenario - input'!$D28),"") -> 12661.86521 | AL43: =IFERROR(IF(OR(R43="",'Historical scenario - input'!$D28=""),"",R43/'Historical scenario - input'!$D28),"") -> 12584.85187 | AM43: =IFERROR(IF(OR(S43="",'Historical scenario - input'!$D28=""),"",S43/'Historical scenario - input'!$D28),"") -> 12520.34164 | AN43: =IFERROR(IF(OR(T43="",'Historical scenario - input'!$D28=""),"",T43/'Historical scenario - input'!$D28),"") -> 12473.75049 | AO43: =IFERROR(IF(OR(U43="",'Historical scenario - input'!$D28=""),"",U43/'Historical scenario - input'!$D28),"") -> 12448.1319 | AP43: =IFERROR(IF(OR(V43="",'Historical scenario - input'!$D28=""),"",V43/'Historical scenario - input'!$D28),"") -> 12444.22999 | AQ43: =IFERROR(IF(OR(W43="",'Historical scenario - input'!$D28=""),"",W43/'Historical scenario - input'!$D28),"") -> 12460.74866
A44: =IFERROR('Historical scenario - input'!A29,"") -> 4 | B44: =IFERROR('Historical scenario - input'!B29,"") -> SWITCHGEAR | C44: =IFERROR('Historical scenario - input'!C29,"") -> ˂ = 11 kv ; circuit breaker | D44: =IFERROR(repcalc('Historical scenario - input'!$CV29:$GH29,'Historical scenario - input'!$G29,'Historical scenario - input'!$E29,'Historical scenario - input'!$F29,20,TRUE,TRUE),"") -> 2342.443428 | E44: 2449.098332 | F44: 2532.296618 | G44: 2591.583528 | H44: 2627.76598 | I44: 2642.808184 | J44: 2639.625331 | K44: 2621.795565 | L44: 2593.219935 | M44: 2557.766282 | N44: 2518.935122 | O44: 2479.583293 | P44: 2441.734689 | Q44: 2406.497472 | R44: 2374.095099 | S44: 2344.005634 | T44: 2315.191833 | U44: 2286.39477 | V44: 2256.457373 | W44: 2224.641894 | X44: =IFERROR(IF(OR(D44="",'Historical scenario - input'!$D29=""),"",D44/'Historical scenario - input'!$D29),"") -> 32.08877161 | Y44: =IFERROR(IF(OR(E44="",'Historical scenario - input'!$D29=""),"",E44/'Historical scenario - input'!$D29),"") -> 33.54982072 | Z44: =IFERROR(IF(OR(F44="",'Historical scenario - input'!$D29=""),"",F44/'Historical scenario - input'!$D29),"") -> 34.68954121 | AA44: =IFERROR(IF(OR(G44="",'Historical scenario - input'!$D29=""),"",G44/'Historical scenario - input'!$D29),"") -> 35.50170346 | AB44: =IFERROR(IF(OR(H44="",'Historical scenario - input'!$D29=""),"",H44/'Historical scenario - input'!$D29),"") -> 35.9973613 | AC44: =IFERROR(IF(OR(I44="",'Historical scenario - input'!$D29=""),"",I44/'Historical scenario - input'!$D29),"") -> 36.20342213 | AD44: =IFERROR(IF(OR(J44="",'Historical scenario - input'!$D29=""),"",J44/'Historical scenario - input'!$D29),"") -> 36.15982072 | AE44: =IFERROR(IF(OR(K44="",'Historical scenario - input'!$D29=""),"",K44/'Historical scenario - input'!$D29),"") -> 35.91557351 | AF44: =IFERROR(IF(OR(L44="",'Historical scenario - input'!$D29=""),"",L44/'Historical scenario - input'!$D29),"") -> 35.52412035 | AG44: =IFERROR(IF(OR(M44="",'Historical scenario - input'!$D29=""),"",M44/'Historical scenario - input'!$D29),"") -> 35.03844622 | AH44: =IFERROR(IF(OR(N44="",'Historical scenario - input'!$D29=""),"",N44/'Historical scenario - input'!$D29),"") -> 34.50650414 | AI44: =IFERROR(IF(OR(O44="",'Historical scenario - input'!$D29=""),"",O44/'Historical scenario - input'!$D29),"") -> 33.96742951 | AJ44: =IFERROR(IF(OR(P44="",'Historical scenario - input'!$D29=""),"",P44/'Historical scenario - input'!$D29),"") -> 33.44894731 | AK44: =IFERROR(IF(OR(Q44="",'Historical scenario - input'!$D29=""),"",Q44/'Historical scenario - input'!$D29),"") -> 32.9662381 | AL44: =IFERROR(IF(OR(R44="",'Historical scenario - input'!$D29=""),"",R44/'Historical scenario - input'!$D29),"") -> 32.52236299 | AM44: =IFERROR(IF(OR(S44="",'Historical scenario - input'!$D29=""),"",S44/'Historical scenario - input'!$D29),"") -> 32.11017204 | AN44: =IFERROR(IF(OR(T44="",'Historical scenario - input'!$D29=""),"",T44/'Historical scenario - input'!$D29),"") -> 31.71545622 | AO44: =IFERROR(IF(OR(U44="",'Historical scenario - input'!$D29=""),"",U44/'Historical scenario - input'!$D29),"") -> 31.32096969 | AP44: =IFERROR(IF(OR(V44="",'Historical scenario - input'!$D29=""),"",V44/'Historical scenario - input'!$D29),"") -> 30.9108619 | AQ44: =IFERROR(IF(OR(W44="",'Historical scenario - input'!$D29=""),"",W44/'Historical scenario - input'!$D29),"") -> 30.47502655
A45: =IFERROR('Historical scenario - input'!A30,"") -> 4 | B45: =IFERROR('Historical scenario - input'!B30,"") -> SWITCHGEAR | C45: =IFERROR('Historical scenario - input'!C30,"") -> ˂ = 11 kv ; fuse | D45: =IFERROR(repcalc('Historical scenario - input'!$CV30:$GH30,'Historical scenario - input'!$G30,'Historical scenario - input'!$E30,'Historical scenario - input'!$F30,20,TRUE,TRUE),"") -> 117.3440213 | E45: 114.0392122 | F45: 109.897029 | G45: 105.275879 | H45: 100.5189858 | I45: 95.93429418 | J45: 91.7817651 | K45: 88.26746307 | L45: 85.54289712 | M45: 83.7077209 | N45: 82.81409702 | O45: 82.87164234 | P45: 83.85265743 | Q45: 85.69804318 | R45: 88.32468883 | S45: 91.6350341 | T45: 95.52894364 | U45: 99.91710667 | V45: 104.7341353 | W45: 109.9487025 | X45: =IFERROR(IF(OR(D45="",'Historical scenario - input'!$D30=""),"",D45/'Historical scenario - input'!$D30),"") -> 39.55901557 | Y45: =IFERROR(IF(OR(E45="",'Historical scenario - input'!$D30=""),"",E45/'Historical scenario - input'!$D30),"") -> 38.44489835 | Z45: =IFERROR(IF(OR(F45="",'Historical scenario - input'!$D30=""),"",F45/'Historical scenario - input'!$D30),"") -> 37.04848559 | AA45: =IFERROR(IF(OR(G45="",'Historical scenario - input'!$D30=""),"",G45/'Historical scenario - input'!$D30),"") -> 35.49060352 | AB45: =IFERROR(IF(OR(H45="",'Historical scenario - input'!$D30=""),"",H45/'Historical scenario - input'!$D30),"") -> 33.88695973 | AC45: =IFERROR(IF(OR(I45="",'Historical scenario - input'!$D30=""),"",I45/'Historical scenario - input'!$D30),"") -> 32.34136852 | AD45: =IFERROR(IF(OR(J45="",'Historical scenario - input'!$D30=""),"",J45/'Historical scenario - input'!$D30),"") -> 30.94146795 | AE45: =IFERROR(IF(OR(K45="",'Historical scenario - input'!$D30=""),"",K45/'Historical scenario - input'!$D30),"") -> 29.75672648 | AF45: =IFERROR(IF(OR(L45="",'Historical scenario - input'!$D30=""),"",L45/'Historical scenario - input'!$D30),"") -> 28.83822082 | AG45: =IFERROR(IF(OR(M45="",'Historical scenario - input'!$D30=""),"",M45/'Historical scenario - input'!$D30),"") -> 28.21954623 | AH45: =IFERROR(IF(OR(N45="",'Historical scenario - input'!$D30=""),"",N45/'Historical scenario - input'!$D30),"") -> 27.91828776 | AI45: =IFERROR(IF(OR(O45="",'Historical scenario - input'!$D30=""),"",O45/'Historical scenario - input'!$D30),"") -> 27.93768743 | AJ45: =IFERROR(IF(OR(P45="",'Historical scenario - input'!$D30=""),"",P45/'Historical scenario - input'!$D30),"") -> 28.26840723 | AK45: =IFERROR(IF(OR(Q45="",'Historical scenario - input'!$D30=""),"",Q45/'Historical scenario - input'!$D30),"") -> 28.89052366 | AL45: =IFERROR(IF(OR(R45="",'Historical scenario - input'!$D30=""),"",R45/'Historical scenario - input'!$D30),"") -> 29.77601842 | AM45: =IFERROR(IF(OR(S45="",'Historical scenario - input'!$D30=""),"",S45/'Historical scenario - input'!$D30),"") -> 30.892002 | AN45: =IFERROR(IF(OR(T45="",'Historical scenario - input'!$D30=""),"",T45/'Historical scenario - input'!$D30),"") -> 32.20471675 | AO45: =IFERROR(IF(OR(U45="",'Historical scenario - input'!$D30=""),"",U45/'Historical scenario - input'!$D30),"") -> 33.68405424 | AP45: =IFERROR(IF(OR(V45="",'Historical scenario - input'!$D30=""),"",V45/'Historical scenario - input'!$D30),"") -> 35.3079709 | AQ45: =IFERROR(IF(OR(W45="",'Historical scenario - input'!$D30=""),"",W45/'Historical scenario - input'!$D30),"") -> 37.06590575
A46: =IFERROR('Historical scenario - input'!A31,"") -> 4 | B46: =IFERROR('Historical scenario - input'!B31,"") -> SWITCHGEAR | C46: =IFERROR('Historical scenario - input'!C31,"") -> ˂ = 11 kv ; switch | D46: =IFERROR(repcalc('Historical scenario - input'!$CV31:$GH31,'Historical scenario - input'!$G31,'Historical scenario - input'!$E31,'Historical scenario - input'!$F31,20,TRUE,TRUE),"") -> 3954.652101 | E46: 4053.16002 | F46: 4125.890774 | G46: 4175.891892 | H46: 4206.755825 | I46: 4222.281969 | J46: 4226.179946 | K46: 4221.842645 | L46: 4212.205949 | M46: 4199.700361 | N46: 4186.28925 | O46: 4173.580323 | P46: 4162.991177 | Q46: 4155.946386 | R46: 4154.081779 | S46: 4159.431147 | T46: 4174.571234 | U46: 4202.702792 | V46: 4247.648998 | W46: 4313.758089 | X46: =IFERROR(IF(OR(D46="",'Historical scenario - input'!$D31=""),"",D46/'Historical scenario - input'!$D31),"") -> 278.1808653 | Y46: =IFERROR(IF(OR(E46="",'Historical scenario - input'!$D31=""),"",E46/'Historical scenario - input'!$D31),"") -> 285.1101773 | Z46: =IFERROR(IF(OR(F46="",'Historical scenario - input'!$D31=""),"",F46/'Historical scenario - input'!$D31),"") -> 290.2262541 | AA46: =IFERROR(IF(OR(G46="",'Historical scenario - input'!$D31=""),"",G46/'Historical scenario - input'!$D31),"") -> 293.7434672 | AB46: =IFERROR(IF(OR(H46="",'Historical scenario - input'!$D31=""),"",H46/'Historical scenario - input'!$D31),"") -> 295.9145193 | AC46: =IFERROR(IF(OR(I46="",'Historical scenario - input'!$D31=""),"",I46/'Historical scenario - input'!$D31),"") -> 297.00667 | AD46: =IFERROR(IF(OR(J46="",'Historical scenario - input'!$D31=""),"",J46/'Historical scenario - input'!$D31),"") -> 297.2808642 | AE46: =IFERROR(IF(OR(K46="",'Historical scenario - input'!$D31=""),"",K46/'Historical scenario - input'!$D31),"") -> 296.9757668 | AF46: =IFERROR(IF(OR(L46="",'Historical scenario - input'!$D31=""),"",L46/'Historical scenario - input'!$D31),"") -> 296.2978957 | AG46: =IFERROR(IF(OR(M46="",'Historical scenario - input'!$D31=""),"",M46/'Historical scenario - input'!$D31),"") -> 295.418219 | AH46: =IFERROR(IF(OR(N46="",'Historical scenario - input'!$D31=""),"",N46/'Historical scenario - input'!$D31),"") -> 294.4748454 | AI46: =IFERROR(IF(OR(O46="",'Historical scenario - input'!$D31=""),"",O46/'Historical scenario - input'!$D31),"") -> 293.5808653 | AJ46: =IFERROR(IF(OR(P46="",'Historical scenario - input'!$D31=""),"",P46/'Historical scenario - input'!$D31),"") -> 292.8359963 | AK46: =IFERROR(IF(OR(Q46="",'Historical scenario - input'!$D31=""),"",Q46/'Historical scenario - input'!$D31),"") -> 292.3404467 | AL46: =IFERROR(IF(OR(R46="",'Historical scenario - input'!$D31=""),"",R46/'Historical scenario - input'!$D31),"") -> 292.2092853 | AM46: =IFERROR(IF(OR(S46="",'Historical scenario - input'!$D31=""),"",S46/'Historical scenario - input'!$D31),"") -> 292.5855742 | AN46: =IFERROR(IF(OR(T46="",'Historical scenario - input'!$D31=""),"",T46/'Historical scenario - input'!$D31),"") -> 293.6505686 | AO46: =IFERROR(IF(OR(U46="",'Historical scenario - input'!$D31=""),"",U46/'Historical scenario - input'!$D31),"") -> 295.6294181 | AP46: =IFERROR(IF(OR(V46="",'Historical scenario - input'!$D31=""),"",V46/'Historical scenario - input'!$D31),"") -> 298.7910551 | AQ46: =IFERROR(IF(OR(W46="",'Historical scenario - input'!$D31=""),"",W46/'Historical scenario - input'!$D31),"") -> 303.4413463
A47: =IFERROR('Historical scenario - input'!A32,"") -> 4 | B47: =IFERROR('Historical scenario - input'!B32,"") -> SWITCHGEAR | C47: =IFERROR('Historical scenario - input'!C32,"") -> > 11 kv & < = 22 kv ; circuit breaker | D47: =IFERROR(repcalc('Historical scenario - input'!$CV32:$GH32,'Historical scenario - input'!$G32,'Historical scenario - input'!$E32,'Historical scenario - input'!$F32,20,TRUE,TRUE),"") -> 0.0007004112949 | E47: 0.001341516274 | F47: 0.00252170017 | G47: 0.004652157387 | H47: 0.008423425397 | I47: 0.0149695156 | J47: 0.02611104766 | K47: 0.04470468547 | L47: 0.07512953784 | M47: 0.1239414111 | N47: 0.2007206556 | O47: 0.3191263282 | P47: 0.498146179 | Q47: 0.7634971191 | R47: 1.149084698 | S47: 1.698375764 | T47: 2.465482376 | U47: 3.51570724 | V47: 4.925274217 | W47: 6.779975561 | X47: =IFERROR(IF(OR(D47="",'Historical scenario - input'!$D32=""),"",D47/'Historical scenario - input'!$D32),"") -> 9.594826416e-06 | Y47: =IFERROR(IF(OR(E47="",'Historical scenario - input'!$D32=""),"",E47/'Historical scenario - input'!$D32),"") -> 1.837722475e-05 | Z47: =IFERROR(IF(OR(F47="",'Historical scenario - input'!$D32=""),"",F47/'Historical scenario - input'!$D32),"") -> 3.45443821e-05 | AA47: =IFERROR(IF(OR(G47="",'Historical scenario - input'!$D32=""),"",G47/'Historical scenario - input'!$D32),"") -> 6.372918728e-05 | AB47: =IFERROR(IF(OR(H47="",'Historical scenario - input'!$D32=""),"",H47/'Historical scenario - input'!$D32),"") -> 0.0001153912067 | AC47: =IFERROR(IF(OR(I47="",'Historical scenario - input'!$D32=""),"",I47/'Historical scenario - input'!$D32),"") -> 0.0002050650878 | AD47: =IFERROR(IF(OR(J47="",'Historical scenario - input'!$D32=""),"",J47/'Historical scenario - input'!$D32),"") -> 0.0003576912189 | AE47: =IFERROR(IF(OR(K47="",'Historical scenario - input'!$D32=""),"",K47/'Historical scenario - input'!$D32),"") -> 0.0006124025986 | AF47: =IFERROR(IF(OR(L47="",'Historical scenario - input'!$D32=""),"",L47/'Historical scenario - input'!$D32),"") -> 0.001029187964 | AG47: =IFERROR(IF(OR(M47="",'Historical scenario - input'!$D32=""),"",M47/'Historical scenario - input'!$D32),"") -> 0.001697854295 | AH47: =IFERROR(IF(OR(N47="",'Historical scenario - input'!$D32=""),"",N47/'Historical scenario - input'!$D32),"") -> 0.002749641335 | AI47: =IFERROR(IF(OR(O47="",'Historical scenario - input'!$D32=""),"",O47/'Historical scenario - input'!$D32),"") -> 0.004371662402 | AJ47: =IFERROR(IF(OR(P47="",'Historical scenario - input'!$D32=""),"",P47/'Historical scenario - input'!$D32),"") -> 0.006824027756 | AK47: =IFERROR(IF(OR(Q47="",'Historical scenario - input'!$D32=""),"",Q47/'Historical scenario - input'!$D32),"") -> 0.0104590294 | AL47: =IFERROR(IF(OR(R47="",'Historical scenario - input'!$D32=""),"",R47/'Historical scenario - input'!$D32),"") -> 0.01574113424 | AM47: =IFERROR(IF(OR(S47="",'Historical scenario - input'!$D32=""),"",S47/'Historical scenario - input'!$D32),"") -> 0.02326578793 | AN47: =IFERROR(IF(OR(T47="",'Historical scenario - input'!$D32=""),"",T47/'Historical scenario - input'!$D32),"") -> 0.03377426322 | AO47: =IFERROR(IF(OR(U47="",'Historical scenario - input'!$D32=""),"",U47/'Historical scenario - input'!$D32),"") -> 0.04816113181 | AP47: =IFERROR(IF(OR(V47="",'Historical scenario - input'!$D32=""),"",V47/'Historical scenario - input'!$D32),"") -> 0.06747057266 | AQ47: =IFERROR(IF(OR(W47="",'Historical scenario - input'!$D32=""),"",W47/'Historical scenario - input'!$D32),"") -> 0.09287784062
A48: =IFERROR('Historical scenario - input'!A33,"") -> 4 | B48: =IFERROR('Historical scenario - input'!B33,"") -> SWITCHGEAR | C48: =IFERROR('Historical scenario - input'!C33,"") -> > 11 kv & < = 22 kv ; switch | D48: =IFERROR(repcalc('Historical scenario - input'!$CV33:$GH33,'Historical scenario - input'!$G33,'Historical scenario - input'!$E33,'Historical scenario - input'!$F33,20,TRUE,TRUE),"") -> 71.53656627 | E48: 66.748183 | F48: 62.41899962 | G48: 58.70776844 | H48: 55.71691097 | I48: 53.49685758 | J48: 52.05402024 | K48: 51.36099337 | L48: 51.36765811 | M48: 52.01203781 | N48: 53.22996474 | O48: 54.96284331 | P48: 57.16302486 | Q48: 59.79654527 | R48: 62.84321878 | S48: 66.29432126 | T48: 70.14831272 | U48: 74.40521692 | V48: 79.06037157 | W48: 84.09827351 | X48: =IFERROR(IF(OR(D48="",'Historical scenario - input'!$D33=""),"",D48/'Historical scenario - input'!$D33),"") -> 5.751938982 | Y48: =IFERROR(IF(OR(E48="",'Historical scenario - input'!$D33=""),"",E48/'Historical scenario - input'!$D33),"") -> 5.366926256 | Z48: =IFERROR(IF(OR(F48="",'Historical scenario - input'!$D33=""),"",F48/'Historical scenario - input'!$D33),"") -> 5.018835763 | AA48: =IFERROR(IF(OR(G48="",'Historical scenario - input'!$D33=""),"",G48/'Historical scenario - input'!$D33),"") -> 4.720432073 | AB48: =IFERROR(IF(OR(H48="",'Historical scenario - input'!$D33=""),"",H48/'Historical scenario - input'!$D33),"") -> 4.479950449 | AC48: =IFERROR(IF(OR(I48="",'Historical scenario - input'!$D33=""),"",I48/'Historical scenario - input'!$D33),"") -> 4.301445772 | AD48: =IFERROR(IF(OR(J48="",'Historical scenario - input'!$D33=""),"",J48/'Historical scenario - input'!$D33),"") -> 4.185433601 | AE48: =IFERROR(IF(OR(K48="",'Historical scenario - input'!$D33=""),"",K48/'Historical scenario - input'!$D33),"") -> 4.129710375 | AF48: =IFERROR(IF(OR(L48="",'Historical scenario - input'!$D33=""),"",L48/'Historical scenario - input'!$D33),"") -> 4.130246257 | AG48: =IFERROR(IF(OR(M48="",'Historical scenario - input'!$D33=""),"",M48/'Historical scenario - input'!$D33),"") -> 4.18205798 | AH48: =IFERROR(IF(OR(N48="",'Historical scenario - input'!$D33=""),"",N48/'Historical scenario - input'!$D33),"") -> 4.279986099 | AI48: =IFERROR(IF(OR(O48="",'Historical scenario - input'!$D33=""),"",O48/'Historical scenario - input'!$D33),"") -> 4.419319202 | AJ48: =IFERROR(IF(OR(P48="",'Historical scenario - input'!$D33=""),"",P48/'Historical scenario - input'!$D33),"") -> 4.596226072 | AK48: =IFERROR(IF(OR(Q48="",'Historical scenario - input'!$D33=""),"",Q48/'Historical scenario - input'!$D33),"") -> 4.807975804 | AL48: =IFERROR(IF(OR(R48="",'Historical scenario - input'!$D33=""),"",R48/'Historical scenario - input'!$D33),"") -> 5.05294535 | AM48: =IFERROR(IF(OR(S48="",'Historical scenario - input'!$D33=""),"",S48/'Historical scenario - input'!$D33),"") -> 5.33043324 | AN48: =IFERROR(IF(OR(T48="",'Historical scenario - input'!$D33=""),"",T48/'Historical scenario - input'!$D33),"") -> 5.640315653 | AO48: =IFERROR(IF(OR(U48="",'Historical scenario - input'!$D33=""),"",U48/'Historical scenario - input'!$D33),"") -> 5.982594496 | AP48: =IFERROR(IF(OR(V48="",'Historical scenario - input'!$D33=""),"",V48/'Historical scenario - input'!$D33),"") -> 6.356894898 | AQ48: =IFERROR(IF(OR(W48="",'Historical scenario - input'!$D33=""),"",W48/'Historical scenario - input'!$D33),"") -> 6.761970317
A49: =IFERROR('Historical scenario - input'!A34,"") -> 4 | B49: =IFERROR('Historical scenario - input'!B34,"") -> SWITCHGEAR | C49: =IFERROR('Historical scenario - input'!C34,"") -> > 22 kv & < = 33 kv ; circuit breaker | D49: =IFERROR(repcalc('Historical scenario - input'!$CV34:$GH34,'Historical scenario - input'!$G34,'Historical scenario - input'!$E34,'Historical scenario - input'!$F34,20,TRUE,TRUE),"") -> 1168.69257 | E49: 1188.464142 | F49: 1193.249048 | G49: 1183.422859 | H49: 1160.003727 | I49: 1124.563676 | J49: 1079.100145 | K49: 1025.881691 | L49: 967.2841684 | M49: 905.6340662 | N49: 843.0739099 | O49: 781.4610802 | P49: 722.3066949 | Q49: 666.7560624 | R49: 615.607419 | S49: 569.3618527 | T49: 528.294921 | U49: 492.539626 | V49: 462.1710023 | W49: 437.2842234 | X49: =IFERROR(IF(OR(D49="",'Historical scenario - input'!$D34=""),"",D49/'Historical scenario - input'!$D34),"") -> 17.43602559 | Y49: =IFERROR(IF(OR(E49="",'Historical scenario - input'!$D34=""),"",E49/'Historical scenario - input'!$D34),"") -> 17.73100276 | Z49: =IFERROR(IF(OR(F49="",'Historical scenario - input'!$D34=""),"",F49/'Historical scenario - input'!$D34),"") -> 17.80239001 | AA49: =IFERROR(IF(OR(G49="",'Historical scenario - input'!$D34=""),"",G49/'Historical scenario - input'!$D34),"") -> 17.65579056 | AB49: =IFERROR(IF(OR(H49="",'Historical scenario - input'!$D34=""),"",H49/'Historical scenario - input'!$D34),"") -> 17.30639451 | AC49: =IFERROR(IF(OR(I49="",'Historical scenario - input'!$D34=""),"",I49/'Historical scenario - input'!$D34),"") -> 16.77765525 | AD49: =IFERROR(IF(OR(J49="",'Historical scenario - input'!$D34=""),"",J49/'Historical scenario - input'!$D34),"") -> 16.09937312 | AE49: =IFERROR(IF(OR(K49="",'Historical scenario - input'!$D34=""),"",K49/'Historical scenario - input'!$D34),"") -> 15.30539329 | AF49: =IFERROR(IF(OR(L49="",'Historical scenario - input'!$D34=""),"",L49/'Historical scenario - input'!$D34),"") -> 14.43116175 | AG49: =IFERROR(IF(OR(M49="",'Historical scenario - input'!$D34=""),"",M49/'Historical scenario - input'!$D34),"") -> 13.51138799 | AH49: =IFERROR(IF(OR(N49="",'Historical scenario - input'!$D34=""),"",N49/'Historical scenario - input'!$D34),"") -> 12.5780369 | AI49: =IFERROR(IF(OR(O49="",'Historical scenario - input'!$D34=""),"",O49/'Historical scenario - input'!$D34),"") -> 11.65881922 | AJ49: =IFERROR(IF(OR(P49="",'Historical scenario - input'!$D34=""),"",P49/'Historical scenario - input'!$D34),"") -> 10.7762797 | AK49: =IFERROR(IF(OR(Q49="",'Historical scenario - input'!$D34=""),"",Q49/'Historical scenario - input'!$D34),"") -> 9.947505501 | AL49: =IFERROR(IF(OR(R49="",'Historical scenario - input'!$D34=""),"",R49/'Historical scenario - input'!$D34),"") -> 9.18440571 | AM49: =IFERROR(IF(OR(S49="",'Historical scenario - input'!$D34=""),"",S49/'Historical scenario - input'!$D34),"") -> 8.494456191 | AN49: =IFERROR(IF(OR(T49="",'Historical scenario - input'!$D34=""),"",T49/'Historical scenario - input'!$D34),"") -> 7.881768054 | AO49: =IFERROR(IF(OR(U49="",'Historical scenario - input'!$D34=""),"",U49/'Historical scenario - input'!$D34),"") -> 7.348325595 | AP49: =IFERROR(IF(OR(V49="",'Historical scenario - input'!$D34=""),"",V49/'Historical scenario - input'!$D34),"") -> 6.895248273 | AQ49: =IFERROR(IF(OR(W49="",'Historical scenario - input'!$D34=""),"",W49/'Historical scenario - input'!$D34),"") -> 6.523956006
A50: =IFERROR('Historical scenario - input'!A35,"") -> 4 | B50: =IFERROR('Historical scenario - input'!B35,"") -> SWITCHGEAR | C50: =IFERROR('Historical scenario - input'!C35,"") -> > 22 kv & < = 33 kv ; switch | D50: =IFERROR(repcalc('Historical scenario - input'!$CV35:$GH35,'Historical scenario - input'!$G35,'Historical scenario - input'!$E35,'Historical scenario - input'!$F35,20,TRUE,TRUE),"") -> 88.64257431 | E50: 87.82376013 | F50: 93.5318965 | G50: 104.0738306 | H50: 117.9025038 | I50: 133.5796962 | J50: 149.7402085 | K50: 165.0915009 | L50: 178.4595401 | M50: 188.8706085 | N50: 195.6446359 | O50: 198.4704749 | P50: 197.4376355 | Q50: 193.0104914 | R50: 185.9463099 | S50: 177.1730654 | T50: 167.6526508 | U50: 158.2572329 | V50: 149.6810494 | W50: 142.3991778 | X50: =IFERROR(IF(OR(D50="",'Historical scenario - input'!$D35=""),"",D50/'Historical scenario - input'!$D35),"") -> 3.596455573 | Y50: =IFERROR(IF(OR(E50="",'Historical scenario - input'!$D35=""),"",E50/'Historical scenario - input'!$D35),"") -> 3.563234191 | Z50: =IFERROR(IF(OR(F50="",'Historical scenario - input'!$D35=""),"",F50/'Historical scenario - input'!$D35),"") -> 3.794827858 | AA50: =IFERROR(IF(OR(G50="",'Historical scenario - input'!$D35=""),"",G50/'Historical scenario - input'!$D35),"") -> 4.222541041 | AB50: =IFERROR(IF(OR(H50="",'Historical scenario - input'!$D35=""),"",H50/'Historical scenario - input'!$D35),"") -> 4.783605624 | AC50: =IFERROR(IF(OR(I50="",'Historical scenario - input'!$D35=""),"",I50/'Historical scenario - input'!$D35),"") -> 5.419669347 | AD50: =IFERROR(IF(OR(J50="",'Historical scenario - input'!$D35=""),"",J50/'Historical scenario - input'!$D35),"") -> 6.075342595 | AE50: =IFERROR(IF(OR(K50="",'Historical scenario - input'!$D35=""),"",K50/'Historical scenario - input'!$D35),"") -> 6.698183726 | AF50: =IFERROR(IF(OR(L50="",'Historical scenario - input'!$D35=""),"",L50/'Historical scenario - input'!$D35),"") -> 7.240559208 | AG50: =IFERROR(IF(OR(M50="",'Historical scenario - input'!$D35=""),"",M50/'Historical scenario - input'!$D35),"") -> 7.662962835 | AH50: =IFERROR(IF(OR(N50="",'Historical scenario - input'!$D35=""),"",N50/'Historical scenario - input'!$D35),"") -> 7.937802422 | AI50: =IFERROR(IF(OR(O50="",'Historical scenario - input'!$D35=""),"",O50/'Historical scenario - input'!$D35),"") -> 8.052453928 | AJ50: =IFERROR(IF(OR(P50="",'Historical scenario - input'!$D35=""),"",P50/'Historical scenario - input'!$D35),"") -> 8.010548995 | AK50: =IFERROR(IF(OR(Q50="",'Historical scenario - input'!$D35=""),"",Q50/'Historical scenario - input'!$D35),"") -> 7.830928456 | AL50: =IFERROR(IF(OR(R50="",'Historical scenario - input'!$D35=""),"",R50/'Historical scenario - input'!$D35),"") -> 7.544316575 | AM50: =IFERROR(IF(OR(S50="",'Historical scenario - input'!$D35=""),"",S50/'Historical scenario - input'!$D35),"") -> 7.188363645 | AN50: =IFERROR(IF(OR(T50="",'Historical scenario - input'!$D35=""),"",T50/'Historical scenario - input'!$D35),"") -> 6.802096114 | AO50: =IFERROR(IF(OR(U50="",'Historical scenario - input'!$D35=""),"",U50/'Historical scenario - input'!$D35),"") -> 6.42090002 | AP50: =IFERROR(IF(OR(V50="",'Historical scenario - input'!$D35=""),"",V50/'Historical scenario - input'!$D35),"") -> 6.072942358 | AQ50: =IFERROR(IF(OR(W50="",'Historical scenario - input'!$D35=""),"",W50/'Historical scenario - input'!$D35),"") -> 5.777498237
A51: =IFERROR('Historical scenario - input'!A36,"") -> 4 | B51: =IFERROR('Historical scenario - input'!B36,"") -> SWITCHGEAR | C51: =IFERROR('Historical scenario - input'!C36,"") -> > 33 kv & < = 66 kv ; circuit breaker | D51: =IFERROR(repcalc('Historical scenario - input'!$CV36:$GH36,'Historical scenario - input'!$G36,'Historical scenario - input'!$E36,'Historical scenario - input'!$F36,20,TRUE,TRUE),"") -> 110.5705883 | E51: 110.9807988 | F51: 110.7498662 | G51: 110.1047233 | H51: 109.2690384 | I51: 108.4403055 | J51: 107.7715429 | K51: 107.3599398 | L51: 107.2438348 | M51: 107.4083007 | N51: 107.7985265 | O51: 108.3392848 | P51: 108.9581478 | Q51: 109.6098131 | R51: 110.2989031 | S51: 111.098847 | T51: 112.1648664 | U51: 113.7395819 | V51: 116.150287 | W51: 119.7974594 | X51: =IFERROR(IF(OR(D51="",'Historical scenario - input'!$D36=""),"",D51/'Historical scenario - input'!$D36),"") -> 1.682750917 | Y51: =IFERROR(IF(OR(E51="",'Historical scenario - input'!$D36=""),"",E51/'Historical scenario - input'!$D36),"") -> 1.688993826 | Z51: =IFERROR(IF(OR(F51="",'Historical scenario - input'!$D36=""),"",F51/'Historical scenario - input'!$D36),"") -> 1.68547931 | AA51: =IFERROR(IF(OR(G51="",'Historical scenario - input'!$D36=""),"",G51/'Historical scenario - input'!$D36),"") -> 1.675661014 | AB51: =IFERROR(IF(OR(H51="",'Historical scenario - input'!$D36=""),"",H51/'Historical scenario - input'!$D36),"") -> 1.662942897 | AC51: =IFERROR(IF(OR(I51="",'Historical scenario - input'!$D36=""),"",I51/'Historical scenario - input'!$D36),"") -> 1.650330583 | AD51: =IFERROR(IF(OR(J51="",'Historical scenario - input'!$D36=""),"",J51/'Historical scenario - input'!$D36),"") -> 1.640152823 | AE51: =IFERROR(IF(OR(K51="",'Historical scenario - input'!$D36=""),"",K51/'Historical scenario - input'!$D36),"") -> 1.633888721 | AF51: =IFERROR(IF(OR(L51="",'Historical scenario - input'!$D36=""),"",L51/'Historical scenario - input'!$D36),"") -> 1.632121743 | AG51: =IFERROR(IF(OR(M51="",'Historical scenario - input'!$D36=""),"",M51/'Historical scenario - input'!$D36),"") -> 1.634624716 | AH51: =IFERROR(IF(OR(N51="",'Historical scenario - input'!$D36=""),"",N51/'Historical scenario - input'!$D36),"") -> 1.640563481 | AI51: =IFERROR(IF(OR(O51="",'Historical scenario - input'!$D36=""),"",O51/'Historical scenario - input'!$D36),"") -> 1.64879317 | AJ51: =IFERROR(IF(OR(P51="",'Historical scenario - input'!$D36=""),"",P51/'Historical scenario - input'!$D36),"") -> 1.658211518 | AK51: =IFERROR(IF(OR(Q51="",'Historical scenario - input'!$D36=""),"",Q51/'Historical scenario - input'!$D36),"") -> 1.668129078 | AL51: =IFERROR(IF(OR(R51="",'Historical scenario - input'!$D36=""),"",R51/'Historical scenario - input'!$D36),"") -> 1.678616196 | AM51: =IFERROR(IF(OR(S51="",'Historical scenario - input'!$D36=""),"",S51/'Historical scenario - input'!$D36),"") -> 1.690790377 | AN51: =IFERROR(IF(OR(T51="",'Historical scenario - input'!$D36=""),"",T51/'Historical scenario - input'!$D36),"") -> 1.707013906 | AO51: =IFERROR(IF(OR(U51="",'Historical scenario - input'!$D36=""),"",U51/'Historical scenario - input'!$D36),"") -> 1.730979175 | AP51: =IFERROR(IF(OR(V51="",'Historical scenario - input'!$D36=""),"",V51/'Historical scenario - input'!$D36),"") -> 1.767667197 | AQ51: =IFERROR(IF(OR(W51="",'Historical scenario - input'!$D36=""),"",W51/'Historical scenario - input'!$D36),"") -> 1.82317276
A52: =IFERROR('Historical scenario - input'!A37,"") -> 4 | B52: =IFERROR('Historical scenario - input'!B37,"") -> SWITCHGEAR | C52: =IFERROR('Historical scenario - input'!C37,"") -> > 33 kv & < = 66 kv ; switch | D52: =IFERROR(repcalc('Historical scenario - input'!$CV37:$GH37,'Historical scenario - input'!$G37,'Historical scenario - input'!$E37,'Historical scenario - input'!$F37,20,TRUE,TRUE),"") -> 54.50374051 | E52: 57.46694047 | F52: 59.22602954 | G52: 59.86530644 | H52: 59.57559492 | I52: 58.65098289 | J52: 57.44536847 | K52: 56.29242832 | L52: 55.42330585 | M52: 54.92461847 | N52: 54.7571897 | O52: 54.81903865 | P52: 55.01185805 | Q52: 55.27522715 | R52: 55.5805444 | S52: 55.90426126 | T52: 56.20810235 | U52: 56.44112831 | V52: 56.55882191 | W52: 56.5432947 | X52: =IFERROR(IF(OR(D52="",'Historical scenario - input'!$D37=""),"",D52/'Historical scenario - input'!$D37),"") -> 2.770432773 | Y52: =IFERROR(IF(OR(E52="",'Historical scenario - input'!$D37=""),"",E52/'Historical scenario - input'!$D37),"") -> 2.921052643 | Z52: =IFERROR(IF(OR(F52="",'Historical scenario - input'!$D37=""),"",F52/'Historical scenario - input'!$D37),"") -> 3.010467387 | AA52: =IFERROR(IF(OR(G52="",'Historical scenario - input'!$D37=""),"",G52/'Historical scenario - input'!$D37),"") -> 3.042961921 | AB52: =IFERROR(IF(OR(H52="",'Historical scenario - input'!$D37=""),"",H52/'Historical scenario - input'!$D37),"") -> 3.028235844 | AC52: =IFERROR(IF(OR(I52="",'Historical scenario - input'!$D37=""),"",I52/'Historical scenario - input'!$D37),"") -> 2.981237685 | AD52: =IFERROR(IF(OR(J52="",'Historical scenario - input'!$D37=""),"",J52/'Historical scenario - input'!$D37),"") -> 2.919956135 | AE52: =IFERROR(IF(OR(K52="",'Historical scenario - input'!$D37=""),"",K52/'Historical scenario - input'!$D37),"") -> 2.861352025 | AF52: =IFERROR(IF(OR(L52="",'Historical scenario - input'!$D37=""),"",L52/'Historical scenario - input'!$D37),"") -> 2.817174409 | AG52: =IFERROR(IF(OR(M52="",'Historical scenario - input'!$D37=""),"",M52/'Historical scenario - input'!$D37),"") -> 2.791826059 | AH52: =IFERROR(IF(OR(N52="",'Historical scenario - input'!$D37=""),"",N52/'Historical scenario - input'!$D37),"") -> 2.783315631 | AI52: =IFERROR(IF(OR(O52="",'Historical scenario - input'!$D37=""),"",O52/'Historical scenario - input'!$D37),"") -> 2.786459422 | AJ52: =IFERROR(IF(OR(P52="",'Historical scenario - input'!$D37=""),"",P52/'Historical scenario - input'!$D37),"") -> 2.796260459 | AK52: =IFERROR(IF(OR(Q52="",'Historical scenario - input'!$D37=""),"",Q52/'Historical scenario - input'!$D37),"") -> 2.809647547 | AL52: =IFERROR(IF(OR(R52="",'Historical scenario - input'!$D37=""),"",R52/'Historical scenario - input'!$D37),"") -> 2.825166866 | AM52: =IFERROR(IF(OR(S52="",'Historical scenario - input'!$D37=""),"",S52/'Historical scenario - input'!$D37),"") -> 2.841621439 | AN52: =IFERROR(IF(OR(T52="",'Historical scenario - input'!$D37=""),"",T52/'Historical scenario - input'!$D37),"") -> 2.857065725 | AO52: =IFERROR(IF(OR(U52="",'Historical scenario - input'!$D37=""),"",U52/'Historical scenario - input'!$D37),"") -> 2.868910467 | AP52: =IFERROR(IF(OR(V52="",'Historical scenario - input'!$D37=""),"",V52/'Historical scenario - input'!$D37),"") -> 2.874892849 | AQ52: =IFERROR(IF(OR(W52="",'Historical scenario - input'!$D37=""),"",W52/'Historical scenario - input'!$D37),"") -> 2.874103599
A53: =IFERROR('Historical scenario - input'!A38,"") -> 4 | B53: =IFERROR('Historical scenario - input'!B38,"") -> SWITCHGEAR | C53: =IFERROR('Historical scenario - input'!C38,"") -> > 66 kv & < = 132 kv ; circuit breaker | D53: =IFERROR(repcalc('Historical scenario - input'!$CV38:$GH38,'Historical scenario - input'!$G38,'Historical scenario - input'!$E38,'Historical scenario - input'!$F38,20,TRUE,TRUE),"") -> 287.4317794 | E53: 288.6053316 | F53: 290.1229226 | G53: 292.6946879 | H53: 297.0501152 | I53: 303.9765759 | J53: 314.3645068 | K53: 329.2464096 | L53: 349.8165868 | M53: 377.4199034 | N53: 413.5005431 | O53: 459.5055047 | P53: 516.7424037 | Q53: 586.1971149 | R53: 668.323901 | S53: 762.8285926 | T53: 868.4730785 | U53: 982.935113 | V53: 1102.758999 | W53: 1223.427957 | X53: =IFERROR(IF(OR(D53="",'Historical scenario - input'!$D38=""),"",D53/'Historical scenario - input'!$D38),"") -> 3.368763703 | Y53: =IFERROR(IF(OR(E53="",'Historical scenario - input'!$D38=""),"",E53/'Historical scenario - input'!$D38),"") -> 3.382517993 | Z53: =IFERROR(IF(OR(F53="",'Historical scenario - input'!$D38=""),"",F53/'Historical scenario - input'!$D38),"") -> 3.400304494 | AA53: =IFERROR(IF(OR(G53="",'Historical scenario - input'!$D38=""),"",G53/'Historical scenario - input'!$D38),"") -> 3.430446149 | AB53: =IFERROR(IF(OR(H53="",'Historical scenario - input'!$D38=""),"",H53/'Historical scenario - input'!$D38),"") -> 3.481492715 | AC53: =IFERROR(IF(OR(I53="",'Historical scenario - input'!$D38=""),"",I53/'Historical scenario - input'!$D38),"") -> 3.562672359 | AD53: =IFERROR(IF(OR(J53="",'Historical scenario - input'!$D38=""),"",J53/'Historical scenario - input'!$D38),"") -> 3.684421195 | AE53: =IFERROR(IF(OR(K53="",'Historical scenario - input'!$D38=""),"",K53/'Historical scenario - input'!$D38),"") -> 3.85884037 | AF53: =IFERROR(IF(OR(L53="",'Historical scenario - input'!$D38=""),"",L53/'Historical scenario - input'!$D38),"") -> 4.099927374 | AG53: =IFERROR(IF(OR(M53="",'Historical scenario - input'!$D38=""),"",M53/'Historical scenario - input'!$D38),"") -> 4.423444318 | AH53: =IFERROR(IF(OR(N53="",'Historical scenario - input'!$D38=""),"",N53/'Historical scenario - input'!$D38),"") -> 4.846317356 | AI53: =IFERROR(IF(OR(O53="",'Historical scenario - input'!$D38=""),"",O53/'Historical scenario - input'!$D38),"") -> 5.385505628 | AJ53: =IFERROR(IF(OR(P53="",'Historical scenario - input'!$D38=""),"",P53/'Historical scenario - input'!$D38),"") -> 6.056334679 | AK53: =IFERROR(IF(OR(Q53="",'Historical scenario - input'!$D38=""),"",Q53/'Historical scenario - input'!$D38),"") -> 6.870359178 | AL53: =IFERROR(IF(OR(R53="",'Historical scenario - input'!$D38=""),"",R53/'Historical scenario - input'!$D38),"") -> 7.832903183 | AM53: =IFERROR(IF(OR(S53="",'Historical scenario - input'!$D38=""),"",S53/'Historical scenario - input'!$D38),"") -> 8.940518964 | AN53: =IFERROR(IF(OR(T53="",'Historical scenario - input'!$D38=""),"",T53/'Historical scenario - input'!$D38),"") -> 10.17869559 | AO53: =IFERROR(IF(OR(U53="",'Historical scenario - input'!$D38=""),"",U53/'Historical scenario - input'!$D38),"") -> 11.52021582 | AP53: =IFERROR(IF(OR(V53="",'Historical scenario - input'!$D38=""),"",V53/'Historical scenario - input'!$D38),"") -> 12.92457813 | AQ53: =IFERROR(IF(OR(W53="",'Historical scenario - input'!$D38=""),"",W53/'Historical scenario - input'!$D38),"") -> 14.33884486
A54: =IFERROR('Historical scenario - input'!A39,"") -> 5 | B54: =IFERROR('Historical scenario - input'!B39,"") -> TRANSFORMERS | C54: =IFERROR('Historical scenario - input'!C39,"") -> ground outdoor / indoor chamber mounted ; ˂ 22 kv ; < = 60 kva ; multiple phase | D54: =IFERROR(repcalc('Historical scenario - input'!$CV39:$GH39,'Historical scenario - input'!$G39,'Historical scenario - input'!$E39,'Historical scenario - input'!$F39,20,TRUE,TRUE),"") -> 191.5268524 | E54: 206.4184909 | F54: 223.3743722 | G54: 242.5576247 | H54: 264.0753152 | I54: 287.9720068 | J54: 314.2223984 | K54: 342.7235862 | L54: 373.288438 | M54: 405.6421933 | N54: 439.4245303 | O54: 474.1988951 | P54: 509.4699448 | Q54: 544.7086964 | R54: 579.383627 | S54: 612.9947971 | T54: 645.1072517 | U54: 675.3796335 | V54: 703.5841485 | W54: 729.6147375 | X54: =IFERROR(IF(OR(D54="",'Historical scenario - input'!$D39=""),"",D54/'Historical scenario - input'!$D39),"") -> 4.455157955 | Y54: =IFERROR(IF(OR(E54="",'Historical scenario - input'!$D39=""),"",E54/'Historical scenario - input'!$D39),"") -> 4.801556389 | Z54: =IFERROR(IF(OR(F54="",'Historical scenario - input'!$D39=""),"",F54/'Historical scenario - input'!$D39),"") -> 5.195971733 | AA54: =IFERROR(IF(OR(G54="",'Historical scenario - input'!$D39=""),"",G54/'Historical scenario - input'!$D39),"") -> 5.642198563 | AB54: =IFERROR(IF(OR(H54="",'Historical scenario - input'!$D39=""),"",H54/'Historical scenario - input'!$D39),"") -> 6.142727385 | AC54: =IFERROR(IF(OR(I54="",'Historical scenario - input'!$D39=""),"",I54/'Historical scenario - input'!$D39),"") -> 6.698594797 | AD54: =IFERROR(IF(OR(J54="",'Historical scenario - input'!$D39=""),"",J54/'Historical scenario - input'!$D39),"") -> 7.309212261 | AE54: =IFERROR(IF(OR(K54="",'Historical scenario - input'!$D39=""),"",K54/'Historical scenario - input'!$D39),"") -> 7.972186106 | AF54: =IFERROR(IF(OR(L54="",'Historical scenario - input'!$D39=""),"",L54/'Historical scenario - input'!$D39),"") -> 8.683163397 | AG54: =IFERROR(IF(OR(M54="",'Historical scenario - input'!$D39=""),"",M54/'Historical scenario - input'!$D39),"") -> 9.435752855 | AH54: =IFERROR(IF(OR(N54="",'Historical scenario - input'!$D39=""),"",N54/'Historical scenario - input'!$D39),"") -> 10.22157294 | AI54: =IFERROR(IF(OR(O54="",'Historical scenario - input'!$D39=""),"",O54/'Historical scenario - input'!$D39),"") -> 11.03046885 | AJ54: =IFERROR(IF(OR(P54="",'Historical scenario - input'!$D39=""),"",P54/'Historical scenario - input'!$D39),"") -> 11.85091829 | AK54: =IFERROR(IF(OR(Q54="",'Historical scenario - input'!$D39=""),"",Q54/'Historical scenario - input'!$D39),"") -> 12.67061643 | AL54: =IFERROR(IF(OR(R54="",'Historical scenario - input'!$D39=""),"",R54/'Historical scenario - input'!$D39),"") -> 13.47719937 | AM54: =IFERROR(IF(OR(S54="",'Historical scenario - input'!$D39=""),"",S54/'Historical scenario - input'!$D39),"") -> 14.2590379 | AN54: =IFERROR(IF(OR(T54="",'Historical scenario - input'!$D39=""),"",T54/'Historical scenario - input'!$D39),"") -> 15.0060144 | AO54: =IFERROR(IF(OR(U54="",'Historical scenario - input'!$D39=""),"",U54/'Historical scenario - input'!$D39),"") -> 15.71018846 | AP54: =IFERROR(IF(OR(V54="",'Historical scenario - input'!$D39=""),"",V54/'Historical scenario - input'!$D39),"") -> 16.36626132 | AQ54: =IFERROR(IF(OR(W54="",'Historical scenario - input'!$D39=""),"",W54/'Historical scenario - input'!$D39),"") -> 16.9717659
A55: =IFERROR('Historical scenario - input'!A40,"") -> 5 | B55: =IFERROR('Historical scenario - input'!B40,"") -> TRANSFORMERS | C55: =IFERROR('Historical scenario - input'!C40,"") -> ground outdoor / indoor chamber mounted ; ˂ 22 kv ; > 60 kva and < = 600 kva ; multiple phase | D55: =IFERROR(repcalc('Historical scenario - input'!$CV40:$GH40,'Historical scenario - input'!$G40,'Historical scenario - input'!$E40,'Historical scenario - input'!$F40,20,TRUE,TRUE),"") -> 240.1567118 | E55: 238.7096241 | F55: 239.3282059 | G55: 242.2600626 | H55: 247.5777151 | I55: 255.1724385 | J55: 264.7590702 | K55: 275.8918627 | L55: 287.9909445 | M55: 300.3783028 | N55: 312.3214377 | O55: 323.0820715 | P55: 331.9666558 | Q55: 338.3750236 | R55: 341.8434854 | S55: 342.0789884 | T55: 338.981615 | U55: 332.6536104 | V55: 323.3941826 | W55: 311.6804006 | X55: =IFERROR(IF(OR(D55="",'Historical scenario - input'!$D40=""),"",D55/'Historical scenario - input'!$D40),"") -> 5.586350278 | Y55: =IFERROR(IF(OR(E55="",'Historical scenario - input'!$D40=""),"",E55/'Historical scenario - input'!$D40),"") -> 5.552689179 | Z55: =IFERROR(IF(OR(F55="",'Historical scenario - input'!$D40=""),"",F55/'Historical scenario - input'!$D40),"") -> 5.567078179 | AA55: =IFERROR(IF(OR(G55="",'Historical scenario - input'!$D40=""),"",G55/'Historical scenario - input'!$D40),"") -> 5.63527689 | AB55: =IFERROR(IF(OR(H55="",'Historical scenario - input'!$D40=""),"",H55/'Historical scenario - input'!$D40),"") -> 5.758972244 | AC55: =IFERROR(IF(OR(I55="",'Historical scenario - input'!$D40=""),"",I55/'Historical scenario - input'!$D40),"") -> 5.93563516 | AD55: =IFERROR(IF(OR(J55="",'Historical scenario - input'!$D40=""),"",J55/'Historical scenario - input'!$D40),"") -> 6.158632396 | AE55: =IFERROR(IF(OR(K55="",'Historical scenario - input'!$D40=""),"",K55/'Historical scenario - input'!$D40),"") -> 6.417595295 | AF55: =IFERROR(IF(OR(L55="",'Historical scenario - input'!$D40=""),"",L55/'Historical scenario - input'!$D40),"") -> 6.699035312 | AG55: =IFERROR(IF(OR(M55="",'Historical scenario - input'!$D40=""),"",M55/'Historical scenario - input'!$D40),"") -> 6.987181007 | AH55: =IFERROR(IF(OR(N55="",'Historical scenario - input'!$D40=""),"",N55/'Historical scenario - input'!$D40),"") -> 7.264993499 | AI55: =IFERROR(IF(OR(O55="",'Historical scenario - input'!$D40=""),"",O55/'Historical scenario - input'!$D40),"") -> 7.515299515 | AJ55: =IFERROR(IF(OR(P55="",'Historical scenario - input'!$D40=""),"",P55/'Historical scenario - input'!$D40),"") -> 7.721966236 | AK55: =IFERROR(IF(OR(Q55="",'Historical scenario - input'!$D40=""),"",Q55/'Historical scenario - input'!$D40),"") -> 7.871033013 | AL55: =IFERROR(IF(OR(R55="",'Historical scenario - input'!$D40=""),"",R55/'Historical scenario - input'!$D40),"") -> 7.951713842 | AM55: =IFERROR(IF(OR(S55="",'Historical scenario - input'!$D40=""),"",S55/'Historical scenario - input'!$D40),"") -> 7.957191941 | AN55: =IFERROR(IF(OR(T55="",'Historical scenario - input'!$D40=""),"",T55/'Historical scenario - input'!$D40),"") -> 7.8851431 | AO55: =IFERROR(IF(OR(U55="",'Historical scenario - input'!$D40=""),"",U55/'Historical scenario - input'!$D40),"") -> 7.737945672 | AP55: =IFERROR(IF(OR(V55="",'Historical scenario - input'!$D40=""),"",V55/'Historical scenario - input'!$D40),"") -> 7.522559616 | AQ55: =IFERROR(IF(OR(W55="",'Historical scenario - input'!$D40=""),"",W55/'Historical scenario - input'!$D40),"") -> 7.250082163
A56: =IFERROR('Historical scenario - input'!A41,"") -> 5 | B56: =IFERROR('Historical scenario - input'!B41,"") -> TRANSFORMERS | C56: =IFERROR('Historical scenario - input'!C41,"") -> ground outdoor / indoor chamber mounted ; ˂ 22 kv ; > 600 kva ; multiple phase | D56: =IFERROR(repcalc('Historical scenario - input'!$CV41:$GH41,'Historical scenario - input'!$G41,'Historical scenario - input'!$E41,'Historical scenario - input'!$F41,20,TRUE,TRUE),"") -> 134.466296 | E56: 114.6999398 | F56: 99.14277065 | G56: 86.99161658 | H56: 77.45110815 | I56: 69.80989329 | J56: 63.49218309 | K56: 58.08329753 | L56: 53.33107498 | M56: 49.12756253 | N56: 45.47705696 | O56: 42.45720143 | P56: 40.17949007 | Q56: 38.7543631 | R56: 38.26436463 | S56: 38.74692076 | T56: 40.18651445 | U56: 42.51467083 | V56: 45.61540681 | W56: 49.3336946 | X56: =IFERROR(IF(OR(D56="",'Historical scenario - input'!$D41=""),"",D56/'Historical scenario - input'!$D41),"") -> 2.478747459 | Y56: =IFERROR(IF(OR(E56="",'Historical scenario - input'!$D41=""),"",E56/'Historical scenario - input'!$D41),"") -> 2.114375073 | Z56: =IFERROR(IF(OR(F56="",'Historical scenario - input'!$D41=""),"",F56/'Historical scenario - input'!$D41),"") -> 1.827594708 | AA56: =IFERROR(IF(OR(G56="",'Historical scenario - input'!$D41=""),"",G56/'Historical scenario - input'!$D41),"") -> 1.603600717 | AB56: =IFERROR(IF(OR(H56="",'Historical scenario - input'!$D41=""),"",H56/'Historical scenario - input'!$D41),"") -> 1.427731285 | AC56: =IFERROR(IF(OR(I56="",'Historical scenario - input'!$D41=""),"",I56/'Historical scenario - input'!$D41),"") -> 1.286873371 | AD56: =IFERROR(IF(OR(J56="",'Historical scenario - input'!$D41=""),"",J56/'Historical scenario - input'!$D41),"") -> 1.170412901 | AE56: =IFERROR(IF(OR(K56="",'Historical scenario - input'!$D41=""),"",K56/'Historical scenario - input'!$D41),"") -> 1.070705675 | AF56: =IFERROR(IF(OR(L56="",'Historical scenario - input'!$D41=""),"",L56/'Historical scenario - input'!$D41),"") -> 0.9831033544 | AG56: =IFERROR(IF(OR(M56="",'Historical scenario - input'!$D41=""),"",M56/'Historical scenario - input'!$D41),"") -> 0.9056159383 | AH56: =IFERROR(IF(OR(N56="",'Historical scenario - input'!$D41=""),"",N56/'Historical scenario - input'!$D41),"") -> 0.8383226337 | AI56: =IFERROR(IF(OR(O56="",'Historical scenario - input'!$D41=""),"",O56/'Historical scenario - input'!$D41),"") -> 0.7826547121 | AJ56: =IFERROR(IF(OR(P56="",'Historical scenario - input'!$D41=""),"",P56/'Historical scenario - input'!$D41),"") -> 0.7406674529 | AK56: =IFERROR(IF(OR(Q56="",'Historical scenario - input'!$D41=""),"",Q56/'Historical scenario - input'!$D41),"") -> 0.7143967073 | AL56: =IFERROR(IF(OR(R56="",'Historical scenario - input'!$D41=""),"",R56/'Historical scenario - input'!$D41),"") -> 0.7053640908 | AM56: =IFERROR(IF(OR(S56="",'Historical scenario - input'!$D41=""),"",S56/'Historical scenario - input'!$D41),"") -> 0.7142595154 | AN56: =IFERROR(IF(OR(T56="",'Historical scenario - input'!$D41=""),"",T56/'Historical scenario - input'!$D41),"") -> 0.7407969401 | AO56: =IFERROR(IF(OR(U56="",'Historical scenario - input'!$D41=""),"",U56/'Historical scenario - input'!$D41),"") -> 0.7837141014 | AP56: =IFERROR(IF(OR(V56="",'Historical scenario - input'!$D41=""),"",V56/'Historical scenario - input'!$D41),"") -> 0.8408729706 | AQ56: =IFERROR(IF(OR(W56="",'Historical scenario - input'!$D41=""),"",W56/'Historical scenario - input'!$D41),"") -> 0.9094157704
A57: =IFERROR('Historical scenario - input'!A42,"") -> 5 | B57: =IFERROR('Historical scenario - input'!B42,"") -> TRANSFORMERS | C57: =IFERROR('Historical scenario - input'!C42,"") -> ground outdoor / indoor chamber mounted ; > = 22 kv & < = 33 kv ; < = 15 mva | D57: =IFERROR(repcalc('Historical scenario - input'!$CV42:$GH42,'Historical scenario - input'!$G42,'Historical scenario - input'!$E42,'Historical scenario - input'!$F42,20,TRUE,TRUE),"") -> 572.9804507 | E57: 418.6104964 | F57: 307.2154605 | G57: 228.2153848 | H57: 173.0379451 | I57: 134.9794153 | J57: 108.9593794 | K57: 91.23477811 | L57: 79.1184308 | M57: 70.72866088 | N57: 64.78197902 | O57: 60.43044297 | P57: 57.13898682 | Q57: 54.59495333 | R57: 52.64143082 | S57: 51.22698086 | T57: 50.36622404 | U57: 50.10791039 | V57: 50.50904256 | W57: 51.61500123 | X57: =IFERROR(IF(OR(D57="",'Historical scenario - input'!$D42=""),"",D57/'Historical scenario - input'!$D42),"") -> 10.56230356 | Y57: =IFERROR(IF(OR(E57="",'Historical scenario - input'!$D42=""),"",E57/'Historical scenario - input'!$D42),"") -> 7.71665269 | Z57: =IFERROR(IF(OR(F57="",'Historical scenario - input'!$D42=""),"",F57/'Historical scenario - input'!$D42),"") -> 5.66320011 | AA57: =IFERROR(IF(OR(G57="",'Historical scenario - input'!$D42=""),"",G57/'Historical scenario - input'!$D42),"") -> 4.206915206 | AB57: =IFERROR(IF(OR(H57="",'Historical scenario - input'!$D42=""),"",H57/'Historical scenario - input'!$D42),"") -> 3.189776024 | AC57: =IFERROR(IF(OR(I57="",'Historical scenario - input'!$D42=""),"",I57/'Historical scenario - input'!$D42),"") -> 2.488206285 | AD57: =IFERROR(IF(OR(J57="",'Historical scenario - input'!$D42=""),"",J57/'Historical scenario - input'!$D42),"") -> 2.008553763 | AE57: =IFERROR(IF(OR(K57="",'Historical scenario - input'!$D42=""),"",K57/'Historical scenario - input'!$D42),"") -> 1.681819023 | AF57: =IFERROR(IF(OR(L57="",'Historical scenario - input'!$D42=""),"",L57/'Historical scenario - input'!$D42),"") -> 1.458466658 | AG57: =IFERROR(IF(OR(M57="",'Historical scenario - input'!$D42=""),"",M57/'Historical scenario - input'!$D42),"") -> 1.303809904 | AH57: =IFERROR(IF(OR(N57="",'Historical scenario - input'!$D42=""),"",N57/'Historical scenario - input'!$D42),"") -> 1.194188958 | AI57: =IFERROR(IF(OR(O57="",'Historical scenario - input'!$D42=""),"",O57/'Historical scenario - input'!$D42),"") -> 1.11397288 | AJ57: =IFERROR(IF(OR(P57="",'Historical scenario - input'!$D42=""),"",P57/'Historical scenario - input'!$D42),"") -> 1.053298281 | AK57: =IFERROR(IF(OR(Q57="",'Historical scenario - input'!$D42=""),"",Q57/'Historical scenario - input'!$D42),"") -> 1.006401648 | AL57: =IFERROR(IF(OR(R57="",'Historical scenario - input'!$D42=""),"",R57/'Historical scenario - input'!$D42),"") -> 0.9703904757 | AM57: =IFERROR(IF(OR(S57="",'Historical scenario - input'!$D42=""),"",S57/'Historical scenario - input'!$D42),"") -> 0.9443165497 | AN57: =IFERROR(IF(OR(T57="",'Historical scenario - input'!$D42=""),"",T57/'Historical scenario - input'!$D42),"") -> 0.9284493856 | AO57: =IFERROR(IF(OR(U57="",'Historical scenario - input'!$D42=""),"",U57/'Historical scenario - input'!$D42),"") -> 0.9236876399 | AP57: =IFERROR(IF(OR(V57="",'Historical scenario - input'!$D42=""),"",V57/'Historical scenario - input'!$D42),"") -> 0.9310820977 | AQ57: =IFERROR(IF(OR(W57="",'Historical scenario - input'!$D42=""),"",W57/'Historical scenario - input'!$D42),"") -> 0.9514693049
A58: =IFERROR('Historical scenario - input'!A43,"") -> 5 | B58: =IFERROR('Historical scenario - input'!B43,"") -> TRANSFORMERS | C58: =IFERROR('Historical scenario - input'!C43,"") -> ground outdoor / indoor chamber mounted ; > = 22 kv & < = 33 kv ; > 15 mva and < = 40 mva | D58: =IFERROR(repcalc('Historical scenario - input'!$CV43:$GH43,'Historical scenario - input'!$G43,'Historical scenario - input'!$E43,'Historical scenario - input'!$F43,20,TRUE,TRUE),"") -> 2620.961146 | E58: 3084.359181 | F58: 3581.163782 | G58: 4103.312192 | H58: 4640.902914 | I58: 5182.569064 | J58: 5715.980225 | K58: 6228.43586 | L58: 6707.501863 | M58: 7141.636102 | N58: 7520.749916 | O58: 7836.66057 | P58: 8083.403498 | Q58: 8257.390712 | R58: 8357.420237 | S58: 8384.558006 | T58: 8341.925763 | U58: 8234.434581 | V58: 8068.503092 | W58: 7851.793055 | X58: =IFERROR(IF(OR(D58="",'Historical scenario - input'!$D43=""),"",D58/'Historical scenario - input'!$D43),"") -> 0.9666684001 | Y58: =IFERROR(IF(OR(E58="",'Historical scenario - input'!$D43=""),"",E58/'Historical scenario - input'!$D43),"") -> 1.137579838 | Z58: =IFERROR(IF(OR(F58="",'Historical scenario - input'!$D43=""),"",F58/'Historical scenario - input'!$D43),"") -> 1.320812355 | AA58: =IFERROR(IF(OR(G58="",'Historical scenario - input'!$D43=""),"",G58/'Historical scenario - input'!$D43),"") -> 1.513392229 | AB58: =IFERROR(IF(OR(H58="",'Historical scenario - input'!$D43=""),"",H58/'Historical scenario - input'!$D43),"") -> 1.71166757 | AC58: =IFERROR(IF(OR(I58="",'Historical scenario - input'!$D43=""),"",I58/'Historical scenario - input'!$D43),"") -> 1.911446018 | AD58: =IFERROR(IF(OR(J58="",'Historical scenario - input'!$D43=""),"",J58/'Historical scenario - input'!$D43),"") -> 2.108179844 | AE58: =IFERROR(IF(OR(K58="",'Historical scenario - input'!$D43=""),"",K58/'Historical scenario - input'!$D43),"") -> 2.297184808 | AF58: =IFERROR(IF(OR(L58="",'Historical scenario - input'!$D43=""),"",L58/'Historical scenario - input'!$D43),"") -> 2.473874939 | AG58: =IFERROR(IF(OR(M58="",'Historical scenario - input'!$D43=""),"",M58/'Historical scenario - input'!$D43),"") -> 2.633993242 | AH58: =IFERROR(IF(OR(N58="",'Historical scenario - input'!$D43=""),"",N58/'Historical scenario - input'!$D43),"") -> 2.773818796 | AI58: =IFERROR(IF(OR(O58="",'Historical scenario - input'!$D43=""),"",O58/'Historical scenario - input'!$D43),"") -> 2.890333627 | AJ58: =IFERROR(IF(OR(P58="",'Historical scenario - input'!$D43=""),"",P58/'Historical scenario - input'!$D43),"") -> 2.981337873 | AK58: =IFERROR(IF(OR(Q58="",'Historical scenario - input'!$D43=""),"",Q58/'Historical scenario - input'!$D43),"") -> 3.045508203 | AL58: =IFERROR(IF(OR(R58="",'Historical scenario - input'!$D43=""),"",R58/'Historical scenario - input'!$D43),"") -> 3.082401302 | AM58: =IFERROR(IF(OR(S58="",'Historical scenario - input'!$D43=""),"",S58/'Historical scenario - input'!$D43),"") -> 3.092410311 | AN58: =IFERROR(IF(OR(T58="",'Historical scenario - input'!$D43=""),"",T58/'Historical scenario - input'!$D43),"") -> 3.076686598 | AO58: =IFERROR(IF(OR(U58="",'Historical scenario - input'!$D43=""),"",U58/'Historical scenario - input'!$D43),"") -> 3.037041474 | AP58: =IFERROR(IF(OR(V58="",'Historical scenario - input'!$D43=""),"",V58/'Historical scenario - input'!$D43),"") -> 2.975842273 | AQ58: =IFERROR(IF(OR(W58="",'Historical scenario - input'!$D43=""),"",W58/'Historical scenario - input'!$D43),"") -> 2.895914822
A59: =IFERROR('Historical scenario - input'!A44,"") -> 5 | B59: =IFERROR('Historical scenario - input'!B44,"") -> TRANSFORMERS | C59: =IFERROR('Historical scenario - input'!C44,"") -> ground outdoor / indoor chamber mounted ; > 33 kv & < = 66 kv ; < = 15 mva | D59: =IFERROR(repcalc('Historical scenario - input'!$CV44:$GH44,'Historical scenario - input'!$G44,'Historical scenario - input'!$E44,'Historical scenario - input'!$F44,20,TRUE,TRUE),"") -> 3298.17387 | E59: 3019.034632 | F59: 2742.71229 | G59: 2477.33979 | H59: 2229.056881 | I59: 2001.950927 | J59: 1798.187741 | K59: 1618.286496 | L59: 1461.482564 | M59: 1326.120924 | N59: 1210.029435 | O59: 1110.833644 | P59: 1026.190275 | Q59: 953.932382 | R59: 892.1329887 | S59: 839.1043259 | T59: 793.3554904 | U59: 753.5325622 | V59: 718.3624355 | W59: 686.6159625 | X59: =IFERROR(IF(OR(D59="",'Historical scenario - input'!$D44=""),"",D59/'Historical scenario - input'!$D44),"") -> 1.216439421 | Y59: =IFERROR(IF(OR(E59="",'Historical scenario - input'!$D44=""),"",E59/'Historical scenario - input'!$D44),"") -> 1.1134867 | Z59: =IFERROR(IF(OR(F59="",'Historical scenario - input'!$D44=""),"",F59/'Historical scenario - input'!$D44),"") -> 1.011572913 | AA59: =IFERROR(IF(OR(G59="",'Historical scenario - input'!$D44=""),"",G59/'Historical scenario - input'!$D44),"") -> 0.9136976695 | AB59: =IFERROR(IF(OR(H59="",'Historical scenario - input'!$D44=""),"",H59/'Historical scenario - input'!$D44),"") -> 0.8221254452 | AC59: =IFERROR(IF(OR(I59="",'Historical scenario - input'!$D44=""),"",I59/'Historical scenario - input'!$D44),"") -> 0.7383637498 | AD59: =IFERROR(IF(OR(J59="",'Historical scenario - input'!$D44=""),"",J59/'Historical scenario - input'!$D44),"") -> 0.6632113831 | AE59: =IFERROR(IF(OR(K59="",'Historical scenario - input'!$D44=""),"",K59/'Historical scenario - input'!$D44),"") -> 0.5968598277 | AF59: =IFERROR(IF(OR(L59="",'Historical scenario - input'!$D44=""),"",L59/'Historical scenario - input'!$D44),"") -> 0.5390270717 | AG59: =IFERROR(IF(OR(M59="",'Historical scenario - input'!$D44=""),"",M59/'Historical scenario - input'!$D44),"") -> 0.4891027071 | AH59: =IFERROR(IF(OR(N59="",'Historical scenario - input'!$D44=""),"",N59/'Historical scenario - input'!$D44),"") -> 0.4462856002 | AI59: =IFERROR(IF(OR(O59="",'Historical scenario - input'!$D44=""),"",O59/'Historical scenario - input'!$D44),"") -> 0.4096999998 | AJ59: =IFERROR(IF(OR(P59="",'Historical scenario - input'!$D44=""),"",P59/'Historical scenario - input'!$D44),"") -> 0.3784816547 | AK59: =IFERROR(IF(OR(Q59="",'Historical scenario - input'!$D44=""),"",Q59/'Historical scenario - input'!$D44),"") -> 0.3518313467 | AL59: =IFERROR(IF(OR(R59="",'Historical scenario - input'!$D44=""),"",R59/'Historical scenario - input'!$D44),"") -> 0.3290383645 | AM59: =IFERROR(IF(OR(S59="",'Historical scenario - input'!$D44=""),"",S59/'Historical scenario - input'!$D44),"") -> 0.3094802216 | AN59: =IFERROR(IF(OR(T59="",'Historical scenario - input'!$D44=""),"",T59/'Historical scenario - input'!$D44),"") -> 0.2926070399 | AO59: =IFERROR(IF(OR(U59="",'Historical scenario - input'!$D44=""),"",U59/'Historical scenario - input'!$D44),"") -> 0.2779194638 | AP59: =IFERROR(IF(OR(V59="",'Historical scenario - input'!$D44=""),"",V59/'Historical scenario - input'!$D44),"") -> 0.2649479437 | AQ59: =IFERROR(IF(OR(W59="",'Historical scenario - input'!$D44=""),"",W59/'Historical scenario - input'!$D44),"") -> 0.2532391428
A60: =IFERROR('Historical scenario - input'!A45,"") -> 5 | B60: =IFERROR('Historical scenario - input'!B45,"") -> TRANSFORMERS | C60: =IFERROR('Historical scenario - input'!C45,"") -> ground outdoor / indoor chamber mounted ; > 33 kv & < = 66 kv ; > 15 mva and < = 40 mva | D60: =IFERROR(repcalc('Historical scenario - input'!$CV45:$GH45,'Historical scenario - input'!$G45,'Historical scenario - input'!$E45,'Historical scenario - input'!$F45,20,TRUE,TRUE),"") -> 744.0269488 | E60: 836.3173465 | F60: 931.9979258 | G60: 1030.561101 | H60: 1131.671824 | I60: 1235.202193 | J60: 1341.238962 | K60: 1450.059513 | L60: 1562.075369 | M60: 1677.746343 | N60: 1797.472307 | O60: 1921.472814 | P60: 2049.66696 | Q60: 2181.566659 | R60: 2316.195887 | S60: 2452.046453 | T60: 2587.077947 | U60: 2718.76585 | V60: 2844.19793 | W60: 2960.215119 | X60: =IFERROR(IF(OR(D60="",'Historical scenario - input'!$D45=""),"",D60/'Historical scenario - input'!$D45),"") -> 0.2744135835 | Y60: =IFERROR(IF(OR(E60="",'Historical scenario - input'!$D45=""),"",E60/'Historical scenario - input'!$D45),"") -> 0.308452322 | Z60: =IFERROR(IF(OR(F60="",'Historical scenario - input'!$D45=""),"",F60/'Historical scenario - input'!$D45),"") -> 0.3437414344 | AA60: =IFERROR(IF(OR(G60="",'Historical scenario - input'!$D45=""),"",G60/'Historical scenario - input'!$D45),"") -> 0.3800937118 | AB60: =IFERROR(IF(OR(H60="",'Historical scenario - input'!$D45=""),"",H60/'Historical scenario - input'!$D45),"") -> 0.4173855814 | AC60: =IFERROR(IF(OR(I60="",'Historical scenario - input'!$D45=""),"",I60/'Historical scenario - input'!$D45),"") -> 0.4555698696 | AD60: =IFERROR(IF(OR(J60="",'Historical scenario - input'!$D45=""),"",J60/'Historical scenario - input'!$D45),"") -> 0.4946785737 | AE60: =IFERROR(IF(OR(K60="",'Historical scenario - input'!$D45=""),"",K60/'Historical scenario - input'!$D45),"") -> 0.5348139983 | AF60: =IFERROR(IF(OR(L60="",'Historical scenario - input'!$D45=""),"",L60/'Historical scenario - input'!$D45),"") -> 0.5761279218 | AG60: =IFERROR(IF(OR(M60="",'Historical scenario - input'!$D45=""),"",M60/'Historical scenario - input'!$D45),"") -> 0.6187899334 | AH60: =IFERROR(IF(OR(N60="",'Historical scenario - input'!$D45=""),"",N60/'Historical scenario - input'!$D45),"") -> 0.6629475151 | AI60: =IFERROR(IF(OR(O60="",'Historical scenario - input'!$D45=""),"",O60/'Historical scenario - input'!$D45),"") -> 0.708681643 | AJ60: =IFERROR(IF(OR(P60="",'Historical scenario - input'!$D45=""),"",P60/'Historical scenario - input'!$D45),"") -> 0.7559624772 | AK60: =IFERROR(IF(OR(Q60="",'Historical scenario - input'!$D45=""),"",Q60/'Historical scenario - input'!$D45),"") -> 0.8046100016 | AL60: =IFERROR(IF(OR(R60="",'Historical scenario - input'!$D45=""),"",R60/'Historical scenario - input'!$D45),"") -> 0.8542642365 | AM60: =IFERROR(IF(OR(S60="",'Historical scenario - input'!$D45=""),"",S60/'Historical scenario - input'!$D45),"") -> 0.904368928 | AN60: =IFERROR(IF(OR(T60="",'Historical scenario - input'!$D45=""),"",T60/'Historical scenario - input'!$D45),"") -> 0.9541715273 | AO60: =IFERROR(IF(OR(U60="",'Historical scenario - input'!$D45=""),"",U60/'Historical scenario - input'!$D45),"") -> 1.002740937 | AP60: =IFERROR(IF(OR(V60="",'Historical scenario - input'!$D45=""),"",V60/'Historical scenario - input'!$D45),"") -> 1.04900306 | AQ60: =IFERROR(IF(OR(W60="",'Historical scenario - input'!$D45=""),"",W60/'Historical scenario - input'!$D45),"") -> 1.091792764
A61: =IFERROR('Historical scenario - input'!A46,"") -> 5 | B61: =IFERROR('Historical scenario - input'!B46,"") -> TRANSFORMERS | C61: =IFERROR('Historical scenario - input'!C46,"") -> ground outdoor / indoor chamber mounted ; > 66 kv & < = 132 kv ; < = 100 mva | D61: =IFERROR(repcalc('Historical scenario - input'!$CV46:$GH46,'Historical scenario - input'!$G46,'Historical scenario - input'!$E46,'Historical scenario - input'!$F46,20,TRUE,TRUE),"") -> 836.3611276 | E61: 930.6891474 | F61: 1022.096996 | G61: 1108.280186 | H61: 1187.181925 | I61: 1257.172149 | J61: 1317.209462 | K61: 1366.968999 | L61: 1406.920989 | M61: 1438.348417 | N61: 1463.297476 | O61: 1484.460892 | P61: 1505.001139 | Q61: 1528.327264 | R61: 1557.844704 | S61: 1596.701431 | T61: 1647.555458 | U61: 1712.387855 | V61: 1792.381943 | W61: 1887.883481 | X61: =IFERROR(IF(OR(D61="",'Historical scenario - input'!$D46=""),"",D61/'Historical scenario - input'!$D46),"") -> 0.3084684694 | Y61: =IFERROR(IF(OR(E61="",'Historical scenario - input'!$D46=""),"",E61/'Historical scenario - input'!$D46),"") -> 0.343258728 | Z61: =IFERROR(IF(OR(F61="",'Historical scenario - input'!$D46=""),"",F61/'Historical scenario - input'!$D46),"") -> 0.3769719629 | AA61: =IFERROR(IF(OR(G61="",'Historical scenario - input'!$D46=""),"",G61/'Historical scenario - input'!$D46),"") -> 0.4087582281 | AB61: =IFERROR(IF(OR(H61="",'Historical scenario - input'!$D46=""),"",H61/'Historical scenario - input'!$D46),"") -> 0.4378589336 | AC61: =IFERROR(IF(OR(I61="",'Historical scenario - input'!$D46=""),"",I61/'Historical scenario - input'!$D46),"") -> 0.4636728752 | AD61: =IFERROR(IF(OR(J61="",'Historical scenario - input'!$D46=""),"",J61/'Historical scenario - input'!$D46),"") -> 0.4858159629 | AE61: =IFERROR(IF(OR(K61="",'Historical scenario - input'!$D46=""),"",K61/'Historical scenario - input'!$D46),"") -> 0.50416838 | AF61: =IFERROR(IF(OR(L61="",'Historical scenario - input'!$D46=""),"",L61/'Historical scenario - input'!$D46),"") -> 0.5189035569 | AG61: =IFERROR(IF(OR(M61="",'Historical scenario - input'!$D46=""),"",M61/'Historical scenario - input'!$D46),"") -> 0.530494687 | AH61: =IFERROR(IF(OR(N61="",'Historical scenario - input'!$D46=""),"",N61/'Historical scenario - input'!$D46),"") -> 0.5396964517 | AI61: =IFERROR(IF(OR(O61="",'Historical scenario - input'!$D46=""),"",O61/'Historical scenario - input'!$D46),"") -> 0.5475019873 | AJ61: =IFERROR(IF(OR(P61="",'Historical scenario - input'!$D46=""),"",P61/'Historical scenario - input'!$D46),"") -> 0.5550776842 | AK61: =IFERROR(IF(OR(Q61="",'Historical scenario - input'!$D46=""),"",Q61/'Historical scenario - input'!$D46),"") -> 0.5636808745 | AL61: =IFERROR(IF(OR(R61="",'Historical scenario - input'!$D46=""),"",R61/'Historical scenario - input'!$D46),"") -> 0.5745675588 | AM61: =IFERROR(IF(OR(S61="",'Historical scenario - input'!$D46=""),"",S61/'Historical scenario - input'!$D46),"") -> 0.5888987786 | AN61: =IFERROR(IF(OR(T61="",'Historical scenario - input'!$D46=""),"",T61/'Historical scenario - input'!$D46),"") -> 0.6076548678 | AO61: =IFERROR(IF(OR(U61="",'Historical scenario - input'!$D46=""),"",U61/'Historical scenario - input'!$D46),"") -> 0.6315664889 | AP61: =IFERROR(IF(OR(V61="",'Historical scenario - input'!$D46=""),"",V61/'Historical scenario - input'!$D46),"") -> 0.6610700764 | AQ61: =IFERROR(IF(OR(W61="",'Historical scenario - input'!$D46=""),"",W61/'Historical scenario - input'!$D46),"") -> 0.6962931545
A62: =IFERROR('Historical scenario - input'!A47,"") -> 5 | B62: =IFERROR('Historical scenario - input'!B47,"") -> TRANSFORMERS | C62: =IFERROR('Historical scenario - input'!C47,"") -> ground outdoor / indoor chamber mounted ; > 66 kv & < = 132 kv ; > 100 mva | D62: =IFERROR(repcalc('Historical scenario - input'!$CV47:$GH47,'Historical scenario - input'!$G47,'Historical scenario - input'!$E47,'Historical scenario - input'!$F47,20,TRUE,TRUE),"") -> 1235.989818 | E62: 1388.654341 | F62: 1539.184843 | G62: 1683.457429 | H62: 1817.315147 | I62: 1936.78481 | J62: 2038.287844 | K62: 2118.828166 | L62: 2176.142408 | M62: 2208.801769 | N62: 2216.259747 | O62: 2198.845317 | P62: 2157.70607 | Q62: 2094.709909 | R62: 2012.316615 | S62: 1913.431896 | T62: 1801.256459 | U62: 1679.141403 | V62: 1550.459219 | W62: 1418.497226 | X62: =IFERROR(IF(OR(D62="",'Historical scenario - input'!$D47=""),"",D62/'Historical scenario - input'!$D47),"") -> 0.4558603633 | Y62: =IFERROR(IF(OR(E62="",'Historical scenario - input'!$D47=""),"",E62/'Historical scenario - input'!$D47),"") -> 0.5121664134 | Z62: =IFERROR(IF(OR(F62="",'Historical scenario - input'!$D47=""),"",F62/'Historical scenario - input'!$D47),"") -> 0.5676853897 | AA62: =IFERROR(IF(OR(G62="",'Historical scenario - input'!$D47=""),"",G62/'Historical scenario - input'!$D47),"") -> 0.6208963081 | AB62: =IFERROR(IF(OR(H62="",'Historical scenario - input'!$D47=""),"",H62/'Historical scenario - input'!$D47),"") -> 0.6702659933 | AC62: =IFERROR(IF(OR(I62="",'Historical scenario - input'!$D47=""),"",I62/'Historical scenario - input'!$D47),"") -> 0.7143290455 | AD62: =IFERROR(IF(OR(J62="",'Historical scenario - input'!$D47=""),"",J62/'Historical scenario - input'!$D47),"") -> 0.7517656078 | AE62: =IFERROR(IF(OR(K62="",'Historical scenario - input'!$D47=""),"",K62/'Historical scenario - input'!$D47),"") -> 0.7814706587 | AF62: =IFERROR(IF(OR(L62="",'Historical scenario - input'!$D47=""),"",L62/'Historical scenario - input'!$D47),"") -> 0.8026094179 | AG62: =IFERROR(IF(OR(M62="",'Historical scenario - input'!$D47=""),"",M62/'Historical scenario - input'!$D47),"") -> 0.8146549121 | AH62: =IFERROR(IF(OR(N62="",'Historical scenario - input'!$D47=""),"",N62/'Historical scenario - input'!$D47),"") -> 0.8174055795 | AI62: =IFERROR(IF(OR(O62="",'Historical scenario - input'!$D47=""),"",O62/'Historical scenario - input'!$D47),"") -> 0.8109827527 | AJ62: =IFERROR(IF(OR(P62="",'Historical scenario - input'!$D47=""),"",P62/'Historical scenario - input'!$D47),"") -> 0.795809689 | AK62: =IFERROR(IF(OR(Q62="",'Historical scenario - input'!$D47=""),"",Q62/'Historical scenario - input'!$D47),"") -> 0.7725753126 | AL62: =IFERROR(IF(OR(R62="",'Historical scenario - input'!$D47=""),"",R62/'Historical scenario - input'!$D47),"") -> 0.7421868447 | AM62: =IFERROR(IF(OR(S62="",'Historical scenario - input'!$D47=""),"",S62/'Historical scenario - input'!$D47),"") -> 0.7057159748 | AN62: =IFERROR(IF(OR(T62="",'Historical scenario - input'!$D47=""),"",T62/'Historical scenario - input'!$D47),"") -> 0.6643431942 | AO62: =IFERROR(IF(OR(U62="",'Historical scenario - input'!$D47=""),"",U62/'Historical scenario - input'!$D47),"") -> 0.6193044624 | AP62: =IFERROR(IF(OR(V62="",'Historical scenario - input'!$D47=""),"",V62/'Historical scenario - input'!$D47),"") -> 0.5718436289 | AQ62: =IFERROR(IF(OR(W62="",'Historical scenario - input'!$D47=""),"",W62/'Historical scenario - input'!$D47),"") -> 0.5231731291
A63: =IFERROR('Historical scenario - input'!A48,"") -> 5 | B63: =IFERROR('Historical scenario - input'!B48,"") -> TRANSFORMERS | C63: =IFERROR('Historical scenario - input'!C48,"") -> kiosk mounted ; < = 22 kv ; < = 60 kva ; multiple phase | D63: =IFERROR(repcalc('Historical scenario - input'!$CV48:$GH48,'Historical scenario - input'!$G48,'Historical scenario - input'!$E48,'Historical scenario - input'!$F48,20,TRUE,TRUE),"") -> 0.5698597453 | E63: 0.7722262084 | F63: 1.026051988 | G63: 1.336993745 | H63: 1.708913372 | I63: 2.143126631 | J63: 2.637748647 | K63: 3.187249399 | L63: 3.782329351 | M63: 4.410202875 | N63: 5.055334736 | O63: 5.700615729 | P63: 6.328895036 | Q63: 6.924719496 | R63: 7.476076173 | S63: 7.975906331 | T63: 8.423164799 | U63: 8.823241921 | V63: 9.187641892 | W63: 9.532910131 | X63: =IFERROR(IF(OR(D63="",'Historical scenario - input'!$D48=""),"",D63/'Historical scenario - input'!$D48),"") -> 0.01370642057 | Y63: =IFERROR(IF(OR(E63="",'Historical scenario - input'!$D48=""),"",E63/'Historical scenario - input'!$D48),"") -> 0.01857379342 | Z63: =IFERROR(IF(OR(F63="",'Historical scenario - input'!$D48=""),"",F63/'Historical scenario - input'!$D48),"") -> 0.02467887965 | AA63: =IFERROR(IF(OR(G63="",'Historical scenario - input'!$D48=""),"",G63/'Historical scenario - input'!$D48),"") -> 0.03215773482 | AB63: =IFERROR(IF(OR(H63="",'Historical scenario - input'!$D48=""),"",H63/'Historical scenario - input'!$D48),"") -> 0.04110324617 | AC63: =IFERROR(IF(OR(I63="",'Historical scenario - input'!$D48=""),"",I63/'Historical scenario - input'!$D48),"") -> 0.0515470608 | AD63: =IFERROR(IF(OR(J63="",'Historical scenario - input'!$D48=""),"",J63/'Historical scenario - input'!$D48),"") -> 0.06344384318 | AE63: =IFERROR(IF(OR(K63="",'Historical scenario - input'!$D48=""),"",K63/'Historical scenario - input'!$D48),"") -> 0.07666058376 | AF63: =IFERROR(IF(OR(L63="",'Historical scenario - input'!$D48=""),"",L63/'Historical scenario - input'!$D48),"") -> 0.09097360754 | AG63: =IFERROR(IF(OR(M63="",'Historical scenario - input'!$D48=""),"",M63/'Historical scenario - input'!$D48),"") -> 0.1060753912 | AH63: =IFERROR(IF(OR(N63="",'Historical scenario - input'!$D48=""),"",N63/'Historical scenario - input'!$D48),"") -> 0.121592277 | AI63: =IFERROR(IF(OR(O63="",'Historical scenario - input'!$D48=""),"",O63/'Historical scenario - input'!$D48),"") -> 0.1371127498 | AJ63: =IFERROR(IF(OR(P63="",'Historical scenario - input'!$D48=""),"",P63/'Historical scenario - input'!$D48),"") -> 0.1522242935 | AK63: =IFERROR(IF(OR(Q63="",'Historical scenario - input'!$D48=""),"",Q63/'Historical scenario - input'!$D48),"") -> 0.1665552244 | AL63: =IFERROR(IF(OR(R63="",'Historical scenario - input'!$D48=""),"",R63/'Historical scenario - input'!$D48),"") -> 0.1798166042 | AM63: =IFERROR(IF(OR(S63="",'Historical scenario - input'!$D48=""),"",S63/'Historical scenario - input'!$D48),"") -> 0.1918386542 | AN63: =IFERROR(IF(OR(T63="",'Historical scenario - input'!$D48=""),"",T63/'Historical scenario - input'!$D48),"") -> 0.2025962357 | AO63: =IFERROR(IF(OR(U63="",'Historical scenario - input'!$D48=""),"",U63/'Historical scenario - input'!$D48),"") -> 0.2122189987 | AP63: =IFERROR(IF(OR(V63="",'Historical scenario - input'!$D48=""),"",V63/'Historical scenario - input'!$D48),"") -> 0.2209836453 | AQ63: =IFERROR(IF(OR(W63="",'Historical scenario - input'!$D48=""),"",W63/'Historical scenario - input'!$D48),"") -> 0.2292881303
A64: =IFERROR('Historical scenario - input'!A49,"") -> 5 | B64: =IFERROR('Historical scenario - input'!B49,"") -> TRANSFORMERS | C64: =IFERROR('Historical scenario - input'!C49,"") -> kiosk mounted ; < = 22 kv ; > 60 kva and < = 600 kva ; multiple phase | D64: =IFERROR(repcalc('Historical scenario - input'!$CV49:$GH49,'Historical scenario - input'!$G49,'Historical scenario - input'!$E49,'Historical scenario - input'!$F49,20,TRUE,TRUE),"") -> 2278.694014 | E64: 2543.571608 | F64: 2830.086963 | G64: 3132.354144 | H64: 3443.56564 | I64: 3756.350173 | J64: 4063.231692 | K64: 4357.160725 | L64: 4632.07585 | M64: 4883.444018 | N64: 5108.725545 | O64: 5307.713282 | P64: 5482.705167 | Q64: 5638.48348 | R64: 5782.090528 | S64: 5922.407176 | T64: 6069.555976 | U64: 6234.163833 | V64: 6426.529925 | W64: 6655.753111 | X64: =IFERROR(IF(OR(D64="",'Historical scenario - input'!$D49=""),"",D64/'Historical scenario - input'!$D49),"") -> 54.80776414 | Y64: =IFERROR(IF(OR(E64="",'Historical scenario - input'!$D49=""),"",E64/'Historical scenario - input'!$D49),"") -> 61.1786716 | Z64: =IFERROR(IF(OR(F64="",'Historical scenario - input'!$D49=""),"",F64/'Historical scenario - input'!$D49),"") -> 68.07001633 | AA64: =IFERROR(IF(OR(G64="",'Historical scenario - input'!$D49=""),"",G64/'Historical scenario - input'!$D49),"") -> 75.34022824 | AB64: =IFERROR(IF(OR(H64="",'Historical scenario - input'!$D49=""),"",H64/'Historical scenario - input'!$D49),"") -> 82.82557123 | AC64: =IFERROR(IF(OR(I64="",'Historical scenario - input'!$D49=""),"",I64/'Historical scenario - input'!$D49),"") -> 90.34874934 | AD64: =IFERROR(IF(OR(J64="",'Historical scenario - input'!$D49=""),"",J64/'Historical scenario - input'!$D49),"") -> 97.72994656 | AE64: =IFERROR(IF(OR(K64="",'Historical scenario - input'!$D49=""),"",K64/'Historical scenario - input'!$D49),"") -> 104.7996071 | AF64: =IFERROR(IF(OR(L64="",'Historical scenario - input'!$D49=""),"",L64/'Historical scenario - input'!$D49),"") -> 111.4119399 | AG64: =IFERROR(IF(OR(M64="",'Historical scenario - input'!$D49=""),"",M64/'Historical scenario - input'!$D49),"") -> 117.457915 | AH64: =IFERROR(IF(OR(N64="",'Historical scenario - input'!$D49=""),"",N64/'Historical scenario - input'!$D49),"") -> 122.8764472 | AI64: =IFERROR(IF(OR(O64="",'Historical scenario - input'!$D49=""),"",O64/'Historical scenario - input'!$D49),"") -> 127.662554 | AJ64: =IFERROR(IF(OR(P64="",'Historical scenario - input'!$D49=""),"",P64/'Historical scenario - input'!$D49),"") -> 131.8715061 | AK64: =IFERROR(IF(OR(Q64="",'Historical scenario - input'!$D49=""),"",Q64/'Historical scenario - input'!$D49),"") -> 135.6183282 | AL64: =IFERROR(IF(OR(R64="",'Historical scenario - input'!$D49=""),"",R64/'Historical scenario - input'!$D49),"") -> 139.0724037 | AM64: =IFERROR(IF(OR(S64="",'Historical scenario - input'!$D49=""),"",S64/'Historical scenario - input'!$D49),"") -> 142.4473377 | AN64: =IFERROR(IF(OR(T64="",'Historical scenario - input'!$D49=""),"",T64/'Historical scenario - input'!$D49),"") -> 145.9866003 | AO64: =IFERROR(IF(OR(U64="",'Historical scenario - input'!$D49=""),"",U64/'Historical scenario - input'!$D49),"") -> 149.945793 | AP64: =IFERROR(IF(OR(V64="",'Historical scenario - input'!$D49=""),"",V64/'Historical scenario - input'!$D49),"") -> 154.5726342 | AQ64: =IFERROR(IF(OR(W64="",'Historical scenario - input'!$D49=""),"",W64/'Historical scenario - input'!$D49),"") -> 160.0859722
A65: =IFERROR('Historical scenario - input'!A50,"") -> 5 | B65: =IFERROR('Historical scenario - input'!B50,"") -> TRANSFORMERS | C65: =IFERROR('Historical scenario - input'!C50,"") -> kiosk mounted ; < = 22 kv ; > 600 kva ; multiple phase | D65: =IFERROR(repcalc('Historical scenario - input'!$CV50:$GH50,'Historical scenario - input'!$G50,'Historical scenario - input'!$E50,'Historical scenario - input'!$F50,20,TRUE,TRUE),"") -> 686.1440448 | E65: 739.1317279 | F65: 810.0971432 | G65: 895.5408058 | H65: 994.258493 | I65: 1106.358661 | J65: 1232.707139 | K65: 1374.576335 | L65: 1533.371426 | M65: 1710.371345 | N65: 1906.465387 | O65: 2121.892519 | P65: 2356.004147 | Q65: 2607.075069 | R65: 2872.184482 | S65: 3147.181697 | T65: 3426.742542 | U65: 3704.514278 | V65: 3973.340926 | W65: 4225.557311 | X65: =IFERROR(IF(OR(D65="",'Historical scenario - input'!$D50=""),"",D65/'Historical scenario - input'!$D50),"") -> 11.77497155 | Y65: =IFERROR(IF(OR(E65="",'Historical scenario - input'!$D50=""),"",E65/'Historical scenario - input'!$D50),"") -> 12.68429732 | Z65: =IFERROR(IF(OR(F65="",'Historical scenario - input'!$D50=""),"",F65/'Historical scenario - input'!$D50),"") -> 13.90214035 | AA65: =IFERROR(IF(OR(G65="",'Historical scenario - input'!$D50=""),"",G65/'Historical scenario - input'!$D50),"") -> 15.36844572 | AB65: =IFERROR(IF(OR(H65="",'Historical scenario - input'!$D50=""),"",H65/'Historical scenario - input'!$D50),"") -> 17.06254766 | AC65: =IFERROR(IF(OR(I65="",'Historical scenario - input'!$D50=""),"",I65/'Historical scenario - input'!$D50),"") -> 18.9863074 | AD65: =IFERROR(IF(OR(J65="",'Historical scenario - input'!$D50=""),"",J65/'Historical scenario - input'!$D50),"") -> 21.15458349 | AE65: =IFERROR(IF(OR(K65="",'Historical scenario - input'!$D50=""),"",K65/'Historical scenario - input'!$D50),"") -> 23.58921186 | AF65: =IFERROR(IF(OR(L65="",'Historical scenario - input'!$D50=""),"",L65/'Historical scenario - input'!$D50),"") -> 26.31430681 | AG65: =IFERROR(IF(OR(M65="",'Historical scenario - input'!$D50=""),"",M65/'Historical scenario - input'!$D50),"") -> 29.35181625 | AH65: =IFERROR(IF(OR(N65="",'Historical scenario - input'!$D50=""),"",N65/'Historical scenario - input'!$D50),"") -> 32.71700141 | AI65: =IFERROR(IF(OR(O65="",'Historical scenario - input'!$D50=""),"",O65/'Historical scenario - input'!$D50),"") -> 36.41396327 | AJ65: =IFERROR(IF(OR(P65="",'Historical scenario - input'!$D50=""),"",P65/'Historical scenario - input'!$D50),"") -> 40.43157119 | AK65: =IFERROR(IF(OR(Q65="",'Historical scenario - input'!$D50=""),"",Q65/'Historical scenario - input'!$D50),"") -> 44.7402189 | AL65: =IFERROR(IF(OR(R65="",'Historical scenario - input'!$D50=""),"",R65/'Historical scenario - input'!$D50),"") -> 49.28978224 | AM65: =IFERROR(IF(OR(S65="",'Historical scenario - input'!$D50=""),"",S65/'Historical scenario - input'!$D50),"") -> 54.00903094 | AN65: =IFERROR(IF(OR(T65="",'Historical scenario - input'!$D50=""),"",T65/'Historical scenario - input'!$D50),"") -> 58.80659643 | AO65: =IFERROR(IF(OR(U65="",'Historical scenario - input'!$D50=""),"",U65/'Historical scenario - input'!$D50),"") -> 63.57345888 | AP65: =IFERROR(IF(OR(V65="",'Historical scenario - input'!$D50=""),"",V65/'Historical scenario - input'!$D50),"") -> 68.18681398 | AQ65: =IFERROR(IF(OR(W65="",'Historical scenario - input'!$D50=""),"",W65/'Historical scenario - input'!$D50),"") -> 72.51511907
